Workbook

Sheet Introduktion
B1: Introduktion og struktur
B13: Introduktion til regnearket
B14: Dette regneark indeholder fakta-ark for teknologi-elementer og systemberegninger for teknologi-spor for alternative drivmidler til transportsektoren.
B15: Regnearket er en opdatering og videreudvikling af en tidligere opstillet beregningsmodel for alternative drivmidler.
B17: Regnearket består af ark med: data for teknologi-elementer, systemberegning, opsummering af resultater samt ark med information.
B19: Indholdet og formålet med de enkelte ark er nærmere forklaret nedenfor.
B21: Regnearket centrale beregninger er systemberegningerne for teknologi-sporene. Der beregnes økonomi, virkningsgrad og miljøpåvirkning.
B23: Tilgang og metode bag ved beregingerne er beskrevet i dokumentationsrapporten: "Alternative drivmidler", Energistyrelsen, 2015
B26: Konventioner for tal
B27: Blå med lyseblå baggrund tal indikerer at tallene er input data til beregningerne.
B28: Sorte tal indikerer at tallene er beregnet på basis af andre tal.
B29: Grå tal indikerer at tallene er vist med henblik på sammenligning men ikke bruges i de videre beregninger.
B30: Grønne med grøn baggrund tal indikerer at tallene er linkede til input eller mellemresultater fra andre ark.
B31: Røde og lyserøde tal indikerer at tallene er usikre eller ikke-officielle data.
B32: Kursiv= årstal
B34: Arkenes indhold
B35: Arket navn | C35: Arkets formål
B37: Introduktion | C37: Denne introduktion til regnearket med tilhørende forklaring af definitioner for farvekoder og beskrivelse af arkenes indhold.
B39: Referencer | C39: Arket indeholder en liste med anvendte og visiterede referencer.
B41: ResultsOneYear og ResultsAllYears | C41: Sammenfatning af de overordnede resultater af systemberegningerne
B43: Fuels og Vehicles | C43: Systemberegninger for teknologi-sporene
B45: Basic data og General assumption and conversions | C45: Alle baggrundsdata om omkostninger, emissioner og energiforbrug
B47: LCA Vehicles | C47: Udregninger af emissioner og energiforbrug for produktion af transportmidlerne
B49: Råstofkonvertering | C49: Fakta-ark for konvertering af råstof
B51: Mellemproduktkonvertering | C51: Fakta-ark for konvertering af mellemprodukt
B53: Transportmidler | C53: Fakta-ark for motortype
B55: Følsomhed og Log over ændriger
B58: Makroer
B60: Danmark | C60: Set all settings to 'default settings'
B62: KørFølsomhed | C62: Run sensitivity analysis on the "Sensitivity" sheet
B64: LogResults | C64: Log all results (see Log2015, Log2020, Log2035 and Log2050 sheets)
B66: PopulateA4results | C66: Macro populating the table in the A4result sheet documenting each pathway for all years
B68: PrintA4pdfFiles | C68: Loop over all pathways in sheet A4results and print each pathway A4 sheet to a PDF file
B70: PopulateResultsAllyearsTables | C70: Update all charts and tables on the "ResultAllYears" sheet
B72: Protect | C72: Protects all sheets
B74: Unprotect | C74: Unprotect all sheets

Sheet Referencer
A1: Referencer
B6: =CONCATENATE(D6,", ",C6) -> Nr. , Reference | C6: Reference | D6: Nr.
B7: =CONCATENATE(D7,", ",C7) -> 1, Forudsætninger for samfundsøkonomiske analyser på energiområdet. Energistyrelsen. April 2011. | C7: Forudsætninger for samfundsøkonomiske analyser på energiområdet. Energistyrelsen. April 2011. | D7: 1
B8: =CONCATENATE(D8,", ",C8) -> 2, Energistyrelsen. Forudsætninger for samfundsøkonomiske analyser på energiområdet. April 2010 | C8: Energistyrelsen. Forudsætninger for samfundsøkonomiske analyser på energiområdet. April 2010 | D8: =D7+1 -> 2
B9: 3, Transportøkonomiske enhedspriser 2010, DTU , Institut for transport | C9: Transportøkonomiske enhedspriser 2010, DTU , Institut for transport | D9: =D8+1 -> 3
B10: 4, http://www.agri-outlook.org/ | C10: http://www.agri-outlook.org/ | D10: 4
B11: 5, Concawe (2011): Well-to-wheels analysis of future automotive fuels and power-trains in the European Context. November 2011. | C11: Concawe (2011): Well-to-wheels analysis of future automotive fuels and power-trains in the European Context. November 2011. | D11: 5
B12: 6, Nyt fra Danmarks Statistik, Motorparken 2010. | C12: Nyt fra Danmarks Statistik, Motorparken 2010. | D12: 6
B13: 7, EU kommisionens forordning nr. 692/2008 om EURO V og VI normer | C13: EU kommisionens forordning nr. 692/2008 om EURO V og VI normer | D13: 7
B14: 8, IEA, Energy Technology Perspectives 2008. | C14: IEA, Energy Technology Perspectives 2008. | D14: 8
B15: 9, Better Place, Renault Fluence | C15: Better Place, Renault Fluence | D15: 9
B16: 10, COWI, Literaturstudie vedrørerende aktuelle og forventede priser på batterier, sendt til ENS | C16: COWI, Literaturstudie vedrørerende aktuelle og forventede priser på batterier, sendt til ENS | D16: 10
B17: 11, Catalyst, Forsøgsordning med el-biler - tredje runde. Juni 2011. ENS | C17: Catalyst, Forsøgsordning med el-biler - tredje runde. Juni 2011. ENS | D17: 11
B18: =CONCATENATE(D18,", ",C18) -> 12, http://www.biofuelsb2b.com/useful_info.php?page=Typic | C18: http://www.biofuelsb2b.com/useful_info.php?page=Typic | D18: 12
B19: 13, Concawe (2006): Well-to-wheels analysis of future automotive fuels and power-trains in the European Context. May 2006. | C19: Concawe (2006): Well-to-wheels analysis of future automotive fuels and power-trains in the European Context. May 2006. | D19: 13
B20: 14, Energistyrelsen. Energistatistik 2011. | C20: Energistyrelsen. Energistatistik 2011. | D20: 14
B21: 15, Oplysninger per email fra Steffen Müller, produktionschef i Volvo Danmark, november 2011 | C21: Oplysninger per email fra Steffen Müller, produktionschef i Volvo Danmark, november 2011 | D21: 15
B22: 16, Lorie Hamelin, 2011. Modeling land use changes in consequential LCA, presentation, meta study | C22: Lorie Hamelin, 2011. Modeling land use changes in consequential LCA, presentation, meta study | D22: 16
B23: 17, www.eof.dk | C23: www.eof.dk | D23: 17
B24: 18, Power Point præsentation "Alternative Fuels Volvo Busser Danmark A/S" fra Jens Ommen, Volvo (via mail fra Steffen Müller 15/12-2011 til Michael Rask) | C24: Power Point præsentation "Alternative Fuels Volvo Busser Danmark A/S" fra Jens Ommen, Volvo (via mail fra Steffen Müller 15/12-2011 til Michael Rask) | D24: 18
B25: =CONCATENATE(D25,", ",C25) -> 19, Emails fra Kurt Vinther (kurt.vinther@volvo.com), Volvo d. 23/1-2012 | C25: Emails fra Kurt Vinther (kurt.vinther@volvo.com), Volvo d. 23/1-2012 | D25: =D24+1 -> 19
B26: 20, Oplysninger per email fra Niels Frees, Trafikstyrelsen, bekræftet af ENS. 07-09-2012. | C26: Oplysninger per email fra Niels Frees, Trafikstyrelsen, bekræftet af ENS. 07-09-2012. | D26: 20
B27: 21, Oplysninger per mail fra ENS, Henrik Duer, 06/12 2012 | C27: Oplysninger per mail fra ENS, Henrik Duer, 06/12 2012 | D27: 21
B28: 22, Høringssvar til Alternative Drivmidler, jan 2012, SerEnergy A/S, Danish Power Systems, Nordic Green, Aalborg University. inklusiv uddybning per 10/12 2012 | C28: Høringssvar til Alternative Drivmidler, jan 2012, SerEnergy A/S, Danish Power Systems, Nordic Green, Aalborg University. inklusiv uddybning per 10/12 2012 | D28: 22
B29: 23, Forudsætninger for samfundsøkonomiske analyser på energiområdet. Energistyrelsen. April 2011, opdateret dataark oktober 2012 | C29: Forudsætninger for samfundsøkonomiske analyser på energiområdet. Energistyrelsen. April 2011, opdateret dataark oktober 2012 | D29: 23
B30: 24, SHIP-DESMO-Container Ship - 1 January 2014.xls - https://www.shipowners.dk/services/beregningsvaerktoejer/ | C30: SHIP-DESMO-Container Ship - 1 January 2014.xls - https://www.shipowners.dk/services/beregningsvaerktoejer/ | D30: 24
B31: 25, JEC - Joint Research Centre-EUCAR-CONCAWE collaboration, Tank to Wheels Report, version 4.0, July 2013 | C31: JEC - Joint Research Centre-EUCAR-CONCAWE collaboration, Tank to Wheels Report, version 4.0, July 2013 | D31: 25
B32: 26, Statoil, Grønt Regnskab 2012 | C32: Statoil, Grønt Regnskab 2012 | D32: 26
B33: 27, ASTM 7566 - 13, Standard Specification for Aviation Fuel Containing Synthesized Hydrocarbons | C33: ASTM 7566 - 13, Standard Specification for Aviation Fuel Containing Synthesized Hydrocarbons | D33: 27
B34: 28, ASTM 1655 - 13, Standard Specification for Aviation Fuel | C34: ASTM 1655 - 13, Standard Specification for Aviation Fuel | D34: 28
B35: 29, Biogas i Danmark - status, barrierer og perspektiver, Biogas Taskforce, November 2013, Kap 8, Biogasøkonomi. Ea-energianalyser har leveret den bagvedliggende data. | C35: Biogas i Danmark - status, barrierer og perspektiver, Biogas Taskforce, November 2013, Kap 8, Biogasøkonomi. Ea-energianalyser har leveret den bagvedliggende data. | D35: 29
B36: 30, http://www.energinet.dk/SiteCollectionDocuments/Danske%20dokumenter/Gas/Faktablad%20-%20gaskvalitet.pdf | C36: http://www.energinet.dk/SiteCollectionDocuments/Danske%20dokumenter/Gas/Faktablad%20-%20gaskvalitet.pdf | D36: 30
B37: 31, IFRO rapport 220: Biogasproduktion i Danmark – Vurderinger af drifts- og samfundsøkonomi, 2013, tabel 5.6. http://curis.ku.dk/ws/files/46258309/IFRO_rapport_220.pdf | C37: IFRO rapport 220: Biogasproduktion i Danmark – Vurderinger af drifts- og samfundsøkonomi, 2013, tabel 5.6. http://curis.ku.dk/ws/files/46258309/IFRO_rapport_220.pdf | D37: 31
B38: 32, Energistyrelsen. Biogasanlæg business case: Model 1000 m3/dag med salg af gas til decentral KV-værk og halmprocesvarme. Rev. 2009.05.25 | C38: Energistyrelsen. Biogasanlæg business case: Model 1000 m3/dag med salg af gas til decentral KV-værk og halmprocesvarme. Rev. 2009.05.25 | D38: 32
B39: 33, FORCE, Danish Energy Agency, 2013, Technology data for advanced bioenergy fuels. | C39: FORCE, Danish Energy Agency, 2013, Technology data for advanced bioenergy fuels. | D39: 33
B40: 34, Energistyrelsen Juni 1999. Brændselsprisforudsætninger for samfundsøkonomiske beregninger | C40: Energistyrelsen Juni 1999. Brændselsprisforudsætninger for samfundsøkonomiske beregninger | D40: 34
B41: 35, Energistyrelsen. Forudsætninger for samfundsøkonomiske analyser på energi-området. Maj 2009 | C41: Energistyrelsen. Forudsætninger for samfundsøkonomiske analyser på energi-området. Maj 2009 | D41: 35
B42: 36, Concawe (2006): Well-to-wheels analysis of future automotive fuels and power-trains in the European Context. May 2006. | C42: Concawe (2006): Well-to-wheels analysis of future automotive fuels and power-trains in the European Context. May 2006. | D42: 36
B43: 37, www.cleanfuelconnection.com | C43: www.cleanfuelconnection.com | D43: 37
B44: 38, Energistyrelsen (2006): Appendiks: Forudsætninger for samfundsøkonomiske analyser på energiområdet. Energistyrelsen, juli 2006. | C44: Energistyrelsen (2006): Appendiks: Forudsætninger for samfundsøkonomiske analyser på energiområdet. Energistyrelsen, juli 2006. | D44: 38
B45: 39, Niras (2011). Strategisk analyse af electrificering af banenettet - Opgave A, strategianalysen. Banedanmark. | C45: Niras (2011). Strategisk analyse af electrificering af banenettet - Opgave A, strategianalysen. Banedanmark. | D45: 39
B46: 40, LNG LTD. Improved LNG process - Better Economics for Future Projects. http://www.lnglimited.com.au/IRM/content/default.aspx | C46: LNG LTD. Improved LNG process - Better Economics for Future Projects. http://www.lnglimited.com.au/IRM/content/default.aspx | D46: 40
B47: 41, Ea Enerrgy Analyses (2013) "Analysis of biomass prices, future Danish prices for straw, wood chips and wood pellets (draft 21-03-2013)", | C47: Ea Enerrgy Analyses (2013) "Analysis of biomass prices, future Danish prices for straw, wood chips and wood pellets (draft 21-03-2013)", | D47: 41
B48: 42, COWI/SDU 2013: Life Cycle Assessment of bioenergy pathways for the future Danish energy system | C48: COWI/SDU 2013: Life Cycle Assessment of bioenergy pathways for the future Danish energy system | D48: 42
B49: 43, IFPRI (2010): Global Trade and Environmental Impact Study of the EU Biofuels Mandate | C49: IFPRI (2010): Global Trade and Environmental Impact Study of the EU Biofuels Mandate | D49: 43
B50: 44, EU projektet Railenergy (www.railenergy.eu) | C50: EU projektet Railenergy (www.railenergy.eu) | D50: 44
B51: 45, "European Benchmarking of the costs, performance and revenues of GB TOCs", Prepared for the Office of Rail Regulation, Hamburg, November 20th, 2012, Civity Management Consultants, http://www.rail-reg.gov.uk/upload/pdf/civity-toc-benchmarking-201112.pdf (modificeret dansk værdi ift EU gns.: 2,4£ x 1,36) | C51: "European Benchmarking of the costs, performance and revenues of GB TOCs", Prepared for the Office of Rail Regulation, Hamburg, November 20th, 2012, Civity Management Consultants, http://www.rail-reg.gov.uk/upload/pdf/civity-toc-benchmarking-201112.pdf (modificeret dansk værdi ift EU gns.: 2,4£ x 1,36) | D51: 45
B52: 46, Baseret på viden og praktisk erfaring fra tekniske eksperter fra jernbanesektoren i Danmark og internationale faglige netværk | C52: Baseret på viden og praktisk erfaring fra tekniske eksperter fra jernbanesektoren i Danmark og internationale faglige netværk | D52: 46
B53: 47, Det lovgivende dokument for ikke vejgående maskiner (Non-Road Mobile Machinery, NRMM) indeholder i dag syv direktiver: "moder"-direktivet 97/68/EC, direktivændringerne som fremgår af Direktiv 2002/88/EC, Direktiv 2004/26/EC, Direktiv 2006/105/EC, Direktiv 2015/26/EU, Direktiv 2011/88/EU , og den sidste ændring af Direktiv 2012/46/EU, http://ec.europa.eu/enterprise/sectors/mechanical/documents/legislation/emissions-non-road | C53: Det lovgivende dokument for ikke vejgående maskiner (Non-Road Mobile Machinery, NRMM) indeholder i dag syv direktiver: "moder"-direktivet 97/68/EC, direktivændringerne som fremgår af Direktiv 2002/88/EC, Direktiv 2004/26/EC, Direktiv 2006/105/EC, Direktiv 2015/26/EU, Direktiv 2011/88/EU , og den sidste ændring af Direktiv 2012/46/EU, http://ec.europa.eu/enterprise/sectors/mechanical/documents/legislation/emissions-non-road | D53: 47
B54: 48, Lokalbanen, www.lokalbanen.dk/om-lokalbanen/miljoe | C54: Lokalbanen, www.lokalbanen.dk/om-lokalbanen/miljoe | D54: 48
B55: 49, ETH, Zürich, http://www.ethlife.ethz.ch/archive_articles/130912_erdgasdieselhybrid_cn/index_EN | C55: ETH, Zürich, http://www.ethlife.ethz.ch/archive_articles/130912_erdgasdieselhybrid_cn/index_EN | D55: 49
B56: 50, Bilag til lokalbaneplan for Østbanen, Region Sjælland | C56: Bilag til lokalbaneplan for Østbanen, Region Sjælland | D56: 50
B57: =CONCATENATE(D57,", ",C57) -> 51, RAMMEVILKÅR FOR GAS TIL TUNG VEJTRANSPORT, Energistyrelsen, 2014 | C57: RAMMEVILKÅR FOR GAS TIL TUNG VEJTRANSPORT, Energistyrelsen, 2014 | D57: 51
B58: 52, Maritime Economics, Martin Stopford, 3rd edition, 2009, chapter 13, Routledge | C58: Maritime Economics, Martin Stopford, 3rd edition, 2009, chapter 13, Routledge | D58: 52
B59: 53, Fast Ferry International, http://www.fastferryinfo.com/ | C59: Fast Ferry International, http://www.fastferryinfo.com/ | D59: 53
B60: 54, Upstream Emissions of Fossil Fuel Feedstocks for Transport Fuels Consumed in the EU, International Council on Clean Transportation (ICCT), 2014. | C60: Upstream Emissions of Fossil Fuel Feedstocks for Transport Fuels Consumed in the EU, International Council on Clean Transportation (ICCT), 2014. | D60: 54
B61: 55, Energiscenarier frem mod 2020, 2035 og 2050. 2014, Energistyrelsen | C61: Energiscenarier frem mod 2020, 2035 og 2050. 2014, Energistyrelsen | D61: 55
B62: 56, Arriva elbusprojekt, korrespondance med Joachim Reinhard Danchell, Movia, 14/10-2014 | C62: Arriva elbusprojekt, korrespondance med Joachim Reinhard Danchell, Movia, 14/10-2014 | D62: 56
B63: 57, Forudsætninger for samfundsøkonomiske analyser på energiområdet, Energistyrelsen, 2014 | C63: Forudsætninger for samfundsøkonomiske analyser på energiområdet, Energistyrelsen, 2014 | D63: 57
B64: 58, Danmarks energi- og klimafremskrivning 2014, Energistyrelsen, 2014 | C64: Danmarks energi- og klimafremskrivning 2014, Energistyrelsen, 2014 | D64: 58
B65: 59, Efficiency and cost evolution of zero carbon technology pathways to 2050: The case of light duty battery electric vehicles (BEVs), Cuenot, 2014, Energistyrelsen | C65: Efficiency and cost evolution of zero carbon technology pathways to 2050: The case of light duty battery electric vehicles (BEVs), Cuenot, 2014, Energistyrelsen | D65: 59
B66: 60, Lifecycle Analysis Comparison of a Battery Electric Vehicle and a Conventional Gasoline Vehicle, Aguirre et al. 2012, Californian Air Ressource Board | C66: Lifecycle Analysis Comparison of a Battery Electric Vehicle and a Conventional Gasoline Vehicle, Aguirre et al. 2012, Californian Air Ressource Board | D66: 60
B67: 61, CO2 emissions from fuel combustion - highlights, 2013, IEA | C67: CO2 emissions from fuel combustion - highlights, 2013, IEA | D67: 61
B68: 62, World Energy Outlook, 2014, IEA | C68: World Energy Outlook, 2014, IEA | D68: 62
B69: 63, COWI/SDU: Carbon footprint of bioenergy pathways for the future Danish energy system, main report, 2014 | C69: COWI/SDU: Carbon footprint of bioenergy pathways for the future Danish energy system, main report, 2014 | D69: 63
B70: 64, JEC WTW study Version 4a, 2014 | C70: JEC WTW study Version 4a, 2014 | D70: 64
B71: 65, EUDP: "Technology data for hydrogen technologies", part of "Analysis for commercialization of hydrogen technologies" 2015 | C71: EUDP: "Technology data for hydrogen technologies", part of "Analysis for commercialization of hydrogen technologies" 2015 | D71: 65
B72: 66, US DOE: "Fuel Cell System Cost - 2013" http://www.hydrogen.energy.gov/pdfs/14012_fuel_cell_system_cost_2013.pdf | C72: US DOE: "Fuel Cell System Cost - 2013" http://www.hydrogen.energy.gov/pdfs/14012_fuel_cell_system_cost_2013.pdf | D72: 66
B73: 67, Electric Power Research Institute (2013): Total Cost of Ownership Model for Current Plug-in Electric Vehicles | C73: Electric Power Research Institute (2013): Total Cost of Ownership Model for Current Plug-in Electric Vehicles | D73: 67
B74: 68, Validering af energiforbrugsdata for køretøjer i AD modellen. Teknologisk Institut, 2015 | C74: Validering af energiforbrugsdata for køretøjer i AD modellen. Teknologisk Institut, 2015 | D74: 68
B75: 69, Analyse nr. 18- Fremtidig vejtransport, 2015, Dansk Energi | C75: Analyse nr. 18- Fremtidig vejtransport, 2015, Dansk Energi | D75: 69
B76: 70, ADDITION OF MATERIALS DATA TO THE DANISH TRANSPORTATION LCA MODEL, (S&T)2 Consultants Inc., 2014 | C76: ADDITION OF MATERIALS DATA TO THE DANISH TRANSPORTATION LCA MODEL, (S&T)2 Consultants Inc., 2014 | D76: 70
B77: 71, A case for Life Cycle Assessment Light Duty Truck Vehicle, WorldSteelAuto 2014 | C77: A case for Life Cycle Assessment Light Duty Truck Vehicle, WorldSteelAuto 2014 | D77: 71
B78: 72, 9000 TEU container ship - overall efficiency - propulsion and auxiliary power included, Notat fra Hans Otto Kristensen, 2015 | C78: 9000 TEU container ship - overall efficiency - propulsion and auxiliary power included, Notat fra Hans Otto Kristensen, 2015 | D78: 72
B79: 73, REVIEW OF TECHNOLOGY DATA FOR ADVANCED BIOENERGY FUELS | C79: REVIEW OF TECHNOLOGY DATA FOR ADVANCED BIOENERGY FUELS | D79: 73
B80: 74, Landbrug og Fødevarers prisdatabase, september 2015 | C80: Landbrug og Fødevarers prisdatabase, september 2015 | D80: 74
B81: 75, Ciriminna et al. 2014: Understanding the glycerol market. European journal og lipid science and technology. | C81: Ciriminna et al. 2014: Understanding the glycerol market. European journal og lipid science and technology. | D81: 75
B82: 76, International Energy Agency: World Energy Outlook 2014 | C82: International Energy Agency: World Energy Outlook 2014 | D82: 76
B83: 77, GHGenius 4.03a, http://www.ghgenius.ca/ | C83: GHGenius 4.03a, http://www.ghgenius.ca/ | D83: 77
B84: 78, Less oil, more CO2? ASPO Netherlands, 2009, http://www.peakoil.nl/wp-content/uploads/2009/05/april_2009_less_oil_more_co2_aspo_netherlands.pdf | C84: Less oil, more CO2? ASPO Netherlands, 2009, http://www.peakoil.nl/wp-content/uploads/2009/05/april_2009_less_oil_more_co2_aspo_netherlands.pdf | D84: 78
B85: =CONCATENATE(D85,", ",C85) -> 79, Dansk Eenrgi Transportmodel v. 5.0 | C85: Dansk Eenrgi Transportmodel v. 5.0 | D85: 79
B86: 80, Energiforbrug for tog og fly, Teknologisk Institut, 2016 | C86: Energiforbrug for tog og fly, Teknologisk Institut, 2016 | D86: 80
B87: ,
B88: ,
B89: ,
B90: =CONCATENATE(D90,", ",C90) -> ,
B91: =CONCATENATE(D91,", ",C91) -> ,
B92: =CONCATENATE(D92,", ",C92) -> ,
B93: =CONCATENATE(D93,", ",C93) -> ,
B94: =CONCATENATE(D94,", ",C94) -> ,

Sheet ResultsOneYear
B1: Resultater | T1: ='Log2015'!M1 -> 0 | U1: ='Log2015'!N1 -> 0
B4: Year | E4: Centrale resultater
B5: 1 | F5: Modenhed af teknologi | H5: Økonomi | L5: Energiforbrug | O5: Miljøpåvirkning (luftemissioner) | X5: Infrastuktur
E6: Teknologi-spor | F6: Jo mindre moden i 2015, jo større usikkerhed | I6: DKK/km | M6: GJ mek/GJ systemforbrug | R6: g/km | V6: g/km
B7: LUC | F7: Transportmiddel | G7: Drivmiddel | H7: Køretøj | I7: Brændstof inkl. infrastruktur | J7: Værdi emissioner + støj | K7: SØK omk. | M7: Systemeffektivitet | O7: CO2 | P7: CH4 | Q7: N2O | R7: SO2 | S7: NOx | T7: Partikler | V7: CO2e | X7: DKK/km | AA7: Spor-Kode
B8: 2 | D8: Standardbil | E8: Bil-konv. diesel | F8: =HLOOKUP(INDIRECT(ADDRESS(9,3,,,HLOOKUP(AA8,Vehicles!F$6:BB$9,4,FALSE))),'General ass. and conv.'!R$69:W$72,chosenYear,FALSE) -> Established | G8: =HLOOKUP(INDIRECT(ADDRESS(19,3,,,HLOOKUP(AA8,Vehicles!F$6:BB$17,12,FALSE))),'General ass. and conv.'!R$69:W$72,chosenYear,FALSE) -> Established | H8: =IF(OFFSET(Vehicles!$E$12,chosenYear,MATCH($AA8,Vehicles!$F$6:$AZ$6,0))="Nej","Teknologi ikke tilgængelig",OFFSET(Vehicles!$E$26,0,MATCH($AA8,Vehicles!$F$6:$AZ$6,0))-OFFSET(Vehicles!$E$27,0,MATCH($AA8,Vehicles!$F$6:$AZ$6,0))) -> 1.176958968 | I8: =IF($H8="Teknologi ikke tilgængelig"," ",OFFSET(Vehicles!$E$27,0,MATCH($AA8,Vehicles!$F$6:$AZ$6,0))) -> 0.2928804628 | J8: =IF($H8="Teknologi ikke tilgængelig"," ",OFFSET(Vehicles!$E$25,0,MATCH($AA8,Vehicles!$F$6:$AZ$6,0))) -> 0.09669394036 | K8: =IF($H8="Teknologi ikke tilgængelig"," ",SUM(H8:J8)) -> 1.566533371 | M8: =IF($H8="Teknologi ikke tilgængelig"," ",OFFSET(Vehicles!E$230,0,MATCH($AA8,Vehicles!$F$6:$AZ$6,0))) -> 0.156163199 | O8: =IF($H8="Teknologi ikke tilgængelig"," ",OFFSET(Vehicles!$E$344,0,MATCH($AA8,Vehicles!$F$6:$AZ$6,0))) -> 219.2712468 | P8: =IF($H8="Teknologi ikke tilgængelig"," ",OFFSET(Vehicles!$E$345,0,MATCH($AA8,Vehicles!$F$6:$AZ$6,0))) -> 0.05043944489 | Q8: =IF($H8="Teknologi ikke tilgængelig"," ",OFFSET(Vehicles!$E$346,0,MATCH($AA8,Vehicles!$F$6:$AZ$6,0))) -> 0.0002657192011 | R8: =IF($H8="Teknologi ikke tilgængelig"," ",OFFSET(Vehicles!$E$347,0,MATCH($AA8,Vehicles!$F$6:$AZ$6,0))) -> 0.01034438603 | S8: =IF($H8="Teknologi ikke tilgængelig"," ",OFFSET(Vehicles!$E$348,0,MATCH($AA8,Vehicles!$F$6:$AZ$6,0))) -> 0.5267896745 | T8: =IF($H8="Teknologi ikke tilgængelig"," ",OFFSET(Vehicles!$E$349,0,MATCH($AA8,Vehicles!$F$6:$AZ$6,0))) -> 0.005287595069 | V8: =IF($H8="Teknologi ikke tilgængelig"," ",SUMPRODUCT('Basic Data'!$C$211:$E$211,O8:Q8)) -> 220.6114172 | X8: =IF($H8="Teknologi ikke tilgængelig"," ",OFFSET(Vehicles!$E$51,0,MATCH($AA8,Vehicles!$F$6:$AZ$6,0))) -> 0.05720221063 | AA8: Standard dieselbil
E9: Bil-konv. Benzin | F9: =HLOOKUP(INDIRECT(ADDRESS(9,3,,,HLOOKUP(AA9,Vehicles!F$6:BB$9,4,FALSE))),'General ass. and conv.'!R$69:W$72,chosenYear,FALSE) -> Established | G9: =HLOOKUP(INDIRECT(ADDRESS(19,3,,,HLOOKUP(AA9,Vehicles!F$6:BB$17,12,FALSE))),'General ass. and conv.'!R$69:W$72,chosenYear,FALSE) -> Established | H9: =IF(OFFSET(Vehicles!$E$12,chosenYear,MATCH($AA9,Vehicles!$F$6:$AZ$6,0))="Nej","Teknologi ikke tilgængelig",OFFSET(Vehicles!$E$26,0,MATCH($AA9,Vehicles!$F$6:$AZ$6,0))-OFFSET(Vehicles!$E$27,0,MATCH($AA9,Vehicles!$F$6:$AZ$6,0))) -> 1.102339553 | I9: =IF($H9="Teknologi ikke tilgængelig"," ",OFFSET(Vehicles!$E$27,0,MATCH($AA9,Vehicles!$F$6:$AZ$6,0))) -> 0.3428415695 | J9: =IF($H9="Teknologi ikke tilgængelig"," ",OFFSET(Vehicles!$E$25,0,MATCH($AA9,Vehicles!$F$6:$AZ$6,0))) -> 0.09307353004 | K9: 1.538254653 | M9: =IF($H9="Teknologi ikke tilgængelig"," ",OFFSET(Vehicles!E$230,0,MATCH($AA9,Vehicles!$F$6:$AZ$6,0))) -> 0.138535464 | O9: =IF($H9="Teknologi ikke tilgængelig"," ",OFFSET(Vehicles!$E$344,0,MATCH($AA9,Vehicles!$F$6:$AZ$6,0))) -> 240.2113826 | P9: =IF($H9="Teknologi ikke tilgængelig"," ",OFFSET(Vehicles!$E$345,0,MATCH($AA9,Vehicles!$F$6:$AZ$6,0))) -> 0.0325542377 | Q9: =IF($H9="Teknologi ikke tilgængelig"," ",OFFSET(Vehicles!$E$346,0,MATCH($AA9,Vehicles!$F$6:$AZ$6,0))) -> 0.0002769480816 | R9: =IF($H9="Teknologi ikke tilgængelig"," ",OFFSET(Vehicles!$E$347,0,MATCH($AA9,Vehicles!$F$6:$AZ$6,0))) -> 0.005711455554 | S9: =IF($H9="Teknologi ikke tilgængelig"," ",OFFSET(Vehicles!$E$348,0,MATCH($AA9,Vehicles!$F$6:$AZ$6,0))) -> 0.4466692541 | T9: =IF($H9="Teknologi ikke tilgængelig"," ",OFFSET(Vehicles!$E$349,0,MATCH($AA9,Vehicles!$F$6:$AZ$6,0))) -> 0.005305679666 | V9: =IF($H9="Teknologi ikke tilgængelig"," ",SUMPRODUCT('Basic Data'!$C$211:$E$211,O9:Q9)) -> 241.107769 | X9: =IF($H9="Teknologi ikke tilgængelig"," ",OFFSET(Vehicles!$E$51,0,MATCH($AA9,Vehicles!$F$6:$AZ$6,0))) -> 0.07734477334 | AA9: Standard benzinbil
B10: CO2 quotas | E10: Bil-E85 hvede | F10: =HLOOKUP(INDIRECT(ADDRESS(9,3,,,HLOOKUP(AA10,Vehicles!F$6:BB$9,4,FALSE))),'General ass. and conv.'!R$69:W$72,chosenYear,FALSE) -> Established | G10: =HLOOKUP(INDIRECT(ADDRESS(19,3,,,HLOOKUP(AA10,Vehicles!F$6:BB$17,12,FALSE))),'General ass. and conv.'!R$69:W$72,chosenYear,FALSE) -> Recent | H10: =IF(OFFSET(Vehicles!$E$12,chosenYear,MATCH($AA10,Vehicles!$F$6:$AZ$6,0))="Nej","Teknologi ikke tilgængelig",OFFSET(Vehicles!$E$26,0,MATCH($AA10,Vehicles!$F$6:$AZ$6,0))-OFFSET(Vehicles!$E$27,0,MATCH($AA10,Vehicles!$F$6:$AZ$6,0))) -> 1.102339553 | I10: =IF($H10="Teknologi ikke tilgængelig"," ",OFFSET(Vehicles!$E$27,0,MATCH($AA10,Vehicles!$F$6:$AZ$6,0))) -> 0.3890442821 | J10: =IF($H10="Teknologi ikke tilgængelig"," ",OFFSET(Vehicles!$E$25,0,MATCH($AA10,Vehicles!$F$6:$AZ$6,0))) -> 0.1068313877 | K10: 1.598215223 | M10: =IF($H10="Teknologi ikke tilgængelig"," ",OFFSET(Vehicles!E$230,0,MATCH($AA10,Vehicles!$F$6:$AZ$6,0))) -> 0.1317116511 | O10: =IF($H10="Teknologi ikke tilgængelig"," ",OFFSET(Vehicles!$E$344,0,MATCH($AA10,Vehicles!$F$6:$AZ$6,0))) -> 125.4201657 | P10: =IF($H10="Teknologi ikke tilgængelig"," ",OFFSET(Vehicles!$E$345,0,MATCH($AA10,Vehicles!$F$6:$AZ$6,0))) -> 0.04955637758 | Q10: =IF($H10="Teknologi ikke tilgængelig"," ",OFFSET(Vehicles!$E$346,0,MATCH($AA10,Vehicles!$F$6:$AZ$6,0))) -> 0.002476945537 | R10: =IF($H10="Teknologi ikke tilgængelig"," ",OFFSET(Vehicles!$E$347,0,MATCH($AA10,Vehicles!$F$6:$AZ$6,0))) -> 0.07965549606 | S10: =IF($H10="Teknologi ikke tilgængelig"," ",OFFSET(Vehicles!$E$348,0,MATCH($AA10,Vehicles!$F$6:$AZ$6,0))) -> 0.4482264973 | T10: =IF($H10="Teknologi ikke tilgængelig"," ",OFFSET(Vehicles!$E$349,0,MATCH($AA10,Vehicles!$F$6:$AZ$6,0))) -> 0.01214435236 | V10: =IF($H10="Teknologi ikke tilgængelig"," ",SUMPRODUCT('Basic Data'!$C$211:$E$211,O10:Q10)) -> 127.3972049 | X10: =IF($H10="Teknologi ikke tilgængelig"," ",OFFSET(Vehicles!$E$51,0,MATCH($AA10,Vehicles!$F$6:$AZ$6,0))) -> 0.110880797 | AA10: Bil E85-1g
B11: 2 | E11: Bil-E85 sukkerroer | F11: =HLOOKUP(INDIRECT(ADDRESS(9,3,,,HLOOKUP(AA11,Vehicles!F$6:BB$9,4,FALSE))),'General ass. and conv.'!R$69:W$72,chosenYear,FALSE) -> Established | G11: =HLOOKUP(INDIRECT(ADDRESS(19,3,,,HLOOKUP(AA11,Vehicles!F$6:BB$17,12,FALSE))),'General ass. and conv.'!R$69:W$72,chosenYear,FALSE) -> Recent | H11: =IF(OFFSET(Vehicles!$E$12,chosenYear,MATCH($AA11,Vehicles!$F$6:$AZ$6,0))="Nej","Teknologi ikke tilgængelig",OFFSET(Vehicles!$E$26,0,MATCH($AA11,Vehicles!$F$6:$AZ$6,0))-OFFSET(Vehicles!$E$27,0,MATCH($AA11,Vehicles!$F$6:$AZ$6,0))) -> 1.102339553 | I11: =IF($H11="Teknologi ikke tilgængelig"," ",OFFSET(Vehicles!$E$27,0,MATCH($AA11,Vehicles!$F$6:$AZ$6,0))) -> 0.2903917672 | J11: =IF($H11="Teknologi ikke tilgængelig"," ",OFFSET(Vehicles!$E$25,0,MATCH($AA11,Vehicles!$F$6:$AZ$6,0))) -> 0.07679157015 | K11: 1.469522891 | M11: =IF($H11="Teknologi ikke tilgængelig"," ",OFFSET(Vehicles!E$230,0,MATCH($AA11,Vehicles!$F$6:$AZ$6,0))) -> 0.1267614087 | O11: =IF($H11="Teknologi ikke tilgængelig"," ",OFFSET(Vehicles!$E$344,0,MATCH($AA11,Vehicles!$F$6:$AZ$6,0))) -> 110.9934145 | P11: =IF($H11="Teknologi ikke tilgængelig"," ",OFFSET(Vehicles!$E$345,0,MATCH($AA11,Vehicles!$F$6:$AZ$6,0))) -> 0.02801398415 | Q11: =IF($H11="Teknologi ikke tilgængelig"," ",OFFSET(Vehicles!$E$346,0,MATCH($AA11,Vehicles!$F$6:$AZ$6,0))) -> -0.0003975071471 | R11: =IF($H11="Teknologi ikke tilgængelig"," ",OFFSET(Vehicles!$E$347,0,MATCH($AA11,Vehicles!$F$6:$AZ$6,0))) -> -0.01370363352 | S11: =IF($H11="Teknologi ikke tilgængelig"," ",OFFSET(Vehicles!$E$348,0,MATCH($AA11,Vehicles!$F$6:$AZ$6,0))) -> 0.3654515103 | T11: =IF($H11="Teknologi ikke tilgængelig"," ",OFFSET(Vehicles!$E$349,0,MATCH($AA11,Vehicles!$F$6:$AZ$6,0))) -> 0.003525917907 | V11: =IF($H11="Teknologi ikke tilgængelig"," ",SUMPRODUCT('Basic Data'!$C$211:$E$211,O11:Q11)) -> 111.575307 | X11: =IF($H11="Teknologi ikke tilgængelig"," ",OFFSET(Vehicles!$E$51,0,MATCH($AA11,Vehicles!$F$6:$AZ$6,0))) -> 0.110880797 | AA11: Bil E85-1g Sugarb.
E12: Bil-E85 halm | F12: =HLOOKUP(INDIRECT(ADDRESS(9,3,,,HLOOKUP(AA12,Vehicles!F$6:BB$9,4,FALSE))),'General ass. and conv.'!R$69:W$72,chosenYear,FALSE) -> Established | G12: =HLOOKUP(INDIRECT(ADDRESS(19,3,,,HLOOKUP(AA12,Vehicles!F$6:BB$17,12,FALSE))),'General ass. and conv.'!R$69:W$72,chosenYear,FALSE) -> Developing | H12: =IF(OFFSET(Vehicles!$E$12,chosenYear,MATCH($AA12,Vehicles!$F$6:$AZ$6,0))="Nej","Teknologi ikke tilgængelig",OFFSET(Vehicles!$E$26,0,MATCH($AA12,Vehicles!$F$6:$AZ$6,0))-OFFSET(Vehicles!$E$27,0,MATCH($AA12,Vehicles!$F$6:$AZ$6,0))) -> 1.102339553 | I12: =IF($H12="Teknologi ikke tilgængelig"," ",OFFSET(Vehicles!$E$27,0,MATCH($AA12,Vehicles!$F$6:$AZ$6,0))) -> 0.4084287013 | J12: =IF($H12="Teknologi ikke tilgængelig"," ",OFFSET(Vehicles!$E$25,0,MATCH($AA12,Vehicles!$F$6:$AZ$6,0))) -> 0.03219837671 | K12: 1.542966631 | M12: =IF($H12="Teknologi ikke tilgængelig"," ",OFFSET(Vehicles!E$230,0,MATCH($AA12,Vehicles!$F$6:$AZ$6,0))) -> 0.1151829069 | O12: =IF($H12="Teknologi ikke tilgængelig"," ",OFFSET(Vehicles!$E$344,0,MATCH($AA12,Vehicles!$F$6:$AZ$6,0))) -> 101.441615 | P12: =IF($H12="Teknologi ikke tilgængelig"," ",OFFSET(Vehicles!$E$345,0,MATCH($AA12,Vehicles!$F$6:$AZ$6,0))) -> -0.001646806668 | Q12: =IF($H12="Teknologi ikke tilgængelig"," ",OFFSET(Vehicles!$E$346,0,MATCH($AA12,Vehicles!$F$6:$AZ$6,0))) -> -0.004354870006 | R12: =IF($H12="Teknologi ikke tilgængelig"," ",OFFSET(Vehicles!$E$347,0,MATCH($AA12,Vehicles!$F$6:$AZ$6,0))) -> -0.1423030756 | S12: =IF($H12="Teknologi ikke tilgængelig"," ",OFFSET(Vehicles!$E$348,0,MATCH($AA12,Vehicles!$F$6:$AZ$6,0))) -> 0.172503242 | T12: =IF($H12="Teknologi ikke tilgængelig"," ",OFFSET(Vehicles!$E$349,0,MATCH($AA12,Vehicles!$F$6:$AZ$6,0))) -> -0.008340192015 | V12: =IF($H12="Teknologi ikke tilgængelig"," ",SUMPRODUCT('Basic Data'!$C$211:$E$211,O12:Q12)) -> 100.1026936 | X12: =IF($H12="Teknologi ikke tilgængelig"," ",OFFSET(Vehicles!$E$51,0,MATCH($AA12,Vehicles!$F$6:$AZ$6,0))) -> 0.110880797 | AA12: Bil E85-2g
B13: Include emissions and energy consumption from production of vehicles | E13: Bil-Biodiesel RME | F13: =HLOOKUP(INDIRECT(ADDRESS(9,3,,,HLOOKUP(AA13,Vehicles!F$6:BB$9,4,FALSE))),'General ass. and conv.'!R$69:W$72,chosenYear,FALSE) -> Established | G13: =HLOOKUP(INDIRECT(ADDRESS(19,3,,,HLOOKUP(AA13,Vehicles!F$6:BB$17,12,FALSE))),'General ass. and conv.'!R$69:W$72,chosenYear,FALSE) -> Recent | H13: =IF(OFFSET(Vehicles!$E$12,chosenYear,MATCH($AA13,Vehicles!$F$6:$AZ$6,0))="Nej","Teknologi ikke tilgængelig",OFFSET(Vehicles!$E$26,0,MATCH($AA13,Vehicles!$F$6:$AZ$6,0))-OFFSET(Vehicles!$E$27,0,MATCH($AA13,Vehicles!$F$6:$AZ$6,0))) -> 1.176958968 | I13: =IF($H13="Teknologi ikke tilgængelig"," ",OFFSET(Vehicles!$E$27,0,MATCH($AA13,Vehicles!$F$6:$AZ$6,0))) -> 0.3116850483 | J13: =IF($H13="Teknologi ikke tilgængelig"," ",OFFSET(Vehicles!$E$25,0,MATCH($AA13,Vehicles!$F$6:$AZ$6,0))) -> 0.1065254411 | K13: 1.595169458 | M13: =IF($H13="Teknologi ikke tilgængelig"," ",OFFSET(Vehicles!E$230,0,MATCH($AA13,Vehicles!$F$6:$AZ$6,0))) -> 0.1482829612 | O13: =IF($H13="Teknologi ikke tilgængelig"," ",OFFSET(Vehicles!$E$344,0,MATCH($AA13,Vehicles!$F$6:$AZ$6,0))) -> 205.4526214 | P13: =IF($H13="Teknologi ikke tilgængelig"," ",OFFSET(Vehicles!$E$345,0,MATCH($AA13,Vehicles!$F$6:$AZ$6,0))) -> 0.05231482184 | Q13: =IF($H13="Teknologi ikke tilgængelig"," ",OFFSET(Vehicles!$E$346,0,MATCH($AA13,Vehicles!$F$6:$AZ$6,0))) -> 0.0004364487176 | R13: =IF($H13="Teknologi ikke tilgængelig"," ",OFFSET(Vehicles!$E$347,0,MATCH($AA13,Vehicles!$F$6:$AZ$6,0))) -> 0.01430358548 | S13: =IF($H13="Teknologi ikke tilgængelig"," ",OFFSET(Vehicles!$E$348,0,MATCH($AA13,Vehicles!$F$6:$AZ$6,0))) -> 0.7184197375 | T13: =IF($H13="Teknologi ikke tilgængelig"," ",OFFSET(Vehicles!$E$349,0,MATCH($AA13,Vehicles!$F$6:$AZ$6,0))) -> 0.006071777511 | V13: =IF($H13="Teknologi ikke tilgængelig"," ",SUMPRODUCT('Basic Data'!$C$211:$E$211,O13:Q13)) -> 206.8905537 | X13: =IF($H13="Teknologi ikke tilgængelig"," ",OFFSET(Vehicles!$E$51,0,MATCH($AA13,Vehicles!$F$6:$AZ$6,0))) -> 0.07545528342 | AA13: Bil biodiesel-1g RME
B14: 1 | E14: Bil-Biodiesel halm | F14: =HLOOKUP(INDIRECT(ADDRESS(9,3,,,HLOOKUP(AA14,Vehicles!F$6:BB$9,4,FALSE))),'General ass. and conv.'!R$69:W$72,chosenYear,FALSE) -> Established | G14: =HLOOKUP(INDIRECT(ADDRESS(19,3,,,HLOOKUP(AA14,Vehicles!F$6:BB$17,12,FALSE))),'General ass. and conv.'!R$69:W$72,chosenYear,FALSE) -> Laboratory | H14: =IF(OFFSET(Vehicles!$E$12,chosenYear,MATCH($AA14,Vehicles!$F$6:$AZ$6,0))="Nej","Teknologi ikke tilgængelig",OFFSET(Vehicles!$E$26,0,MATCH($AA14,Vehicles!$F$6:$AZ$6,0))-OFFSET(Vehicles!$E$27,0,MATCH($AA14,Vehicles!$F$6:$AZ$6,0))) -> Teknologi ikke tilgængelig | I14: =IF($H14="Teknologi ikke tilgængelig"," ",OFFSET(Vehicles!$E$27,0,MATCH($AA14,Vehicles!$F$6:$AZ$6,0))) ->  | J14: =IF($H14="Teknologi ikke tilgængelig"," ",OFFSET(Vehicles!$E$25,0,MATCH($AA14,Vehicles!$F$6:$AZ$6,0))) ->  | M14: =IF($H14="Teknologi ikke tilgængelig"," ",OFFSET(Vehicles!E$230,0,MATCH($AA14,Vehicles!$F$6:$AZ$6,0))) ->  | O14: =IF($H14="Teknologi ikke tilgængelig"," ",OFFSET(Vehicles!$E$344,0,MATCH($AA14,Vehicles!$F$6:$AZ$6,0))) ->  | P14: =IF($H14="Teknologi ikke tilgængelig"," ",OFFSET(Vehicles!$E$345,0,MATCH($AA14,Vehicles!$F$6:$AZ$6,0))) ->  | Q14: =IF($H14="Teknologi ikke tilgængelig"," ",OFFSET(Vehicles!$E$346,0,MATCH($AA14,Vehicles!$F$6:$AZ$6,0))) ->  | R14: =IF($H14="Teknologi ikke tilgængelig"," ",OFFSET(Vehicles!$E$347,0,MATCH($AA14,Vehicles!$F$6:$AZ$6,0))) ->  | S14: =IF($H14="Teknologi ikke tilgængelig"," ",OFFSET(Vehicles!$E$348,0,MATCH($AA14,Vehicles!$F$6:$AZ$6,0))) ->  | T14: =IF($H14="Teknologi ikke tilgængelig"," ",OFFSET(Vehicles!$E$349,0,MATCH($AA14,Vehicles!$F$6:$AZ$6,0))) ->  | V14: =IF($H14="Teknologi ikke tilgængelig"," ",SUMPRODUCT('Basic Data'!$C$211:$E$211,O14:Q14)) ->  | X14: =IF($H14="Teknologi ikke tilgængelig"," ",OFFSET(Vehicles!$E$51,0,MATCH($AA14,Vehicles!$F$6:$AZ$6,0))) ->  | AA14: Bil biodiesel-2g
E15: Bil-DME | F15: =HLOOKUP(INDIRECT(ADDRESS(9,3,,,HLOOKUP(AA15,Vehicles!F$6:BB$9,4,FALSE))),'General ass. and conv.'!R$69:W$72,chosenYear,FALSE) -> Laboratory | G15: =HLOOKUP(INDIRECT(ADDRESS(19,3,,,HLOOKUP(AA15,Vehicles!F$6:BB$17,12,FALSE))),'General ass. and conv.'!R$69:W$72,chosenYear,FALSE) -> Demonstration | H15: =IF(OFFSET(Vehicles!$E$12,chosenYear,MATCH($AA15,Vehicles!$F$6:$AZ$6,0))="Nej","Teknologi ikke tilgængelig",OFFSET(Vehicles!$E$26,0,MATCH($AA15,Vehicles!$F$6:$AZ$6,0))-OFFSET(Vehicles!$E$27,0,MATCH($AA15,Vehicles!$F$6:$AZ$6,0))) -> Teknologi ikke tilgængelig | I15: =IF($H15="Teknologi ikke tilgængelig"," ",OFFSET(Vehicles!$E$27,0,MATCH($AA15,Vehicles!$F$6:$AZ$6,0))) ->  | J15: =IF($H15="Teknologi ikke tilgængelig"," ",OFFSET(Vehicles!$E$25,0,MATCH($AA15,Vehicles!$F$6:$AZ$6,0))) ->  | M15: =IF($H15="Teknologi ikke tilgængelig"," ",OFFSET(Vehicles!E$230,0,MATCH($AA15,Vehicles!$F$6:$AZ$6,0))) ->  | O15: =IF($H15="Teknologi ikke tilgængelig"," ",OFFSET(Vehicles!$E$344,0,MATCH($AA15,Vehicles!$F$6:$AZ$6,0))) ->  | P15: =IF($H15="Teknologi ikke tilgængelig"," ",OFFSET(Vehicles!$E$345,0,MATCH($AA15,Vehicles!$F$6:$AZ$6,0))) ->  | Q15: =IF($H15="Teknologi ikke tilgængelig"," ",OFFSET(Vehicles!$E$346,0,MATCH($AA15,Vehicles!$F$6:$AZ$6,0))) ->  | R15: =IF($H15="Teknologi ikke tilgængelig"," ",OFFSET(Vehicles!$E$347,0,MATCH($AA15,Vehicles!$F$6:$AZ$6,0))) ->  | S15: =IF($H15="Teknologi ikke tilgængelig"," ",OFFSET(Vehicles!$E$348,0,MATCH($AA15,Vehicles!$F$6:$AZ$6,0))) ->  | T15: =IF($H15="Teknologi ikke tilgængelig"," ",OFFSET(Vehicles!$E$349,0,MATCH($AA15,Vehicles!$F$6:$AZ$6,0))) ->  | V15: =IF($H15="Teknologi ikke tilgængelig"," ",SUMPRODUCT('Basic Data'!$C$211:$E$211,O15:Q15)) ->  | X15: =IF($H15="Teknologi ikke tilgængelig"," ",OFFSET(Vehicles!$E$51,0,MATCH($AA15,Vehicles!$F$6:$AZ$6,0))) ->  | AA15: Bil DME
B16: Emissions from oil production | E16: Bil-Naturgas | F16: =HLOOKUP(INDIRECT(ADDRESS(9,3,,,HLOOKUP(AA16,Vehicles!F$6:BB$9,4,FALSE))),'General ass. and conv.'!R$69:W$72,chosenYear,FALSE) -> Recent | G16: =HLOOKUP(INDIRECT(ADDRESS(19,3,,,HLOOKUP(AA16,Vehicles!F$6:BB$17,12,FALSE))),'General ass. and conv.'!R$69:W$72,chosenYear,FALSE) -> Established | H16: =IF(OFFSET(Vehicles!$E$12,chosenYear,MATCH($AA16,Vehicles!$F$6:$AZ$6,0))="Nej","Teknologi ikke tilgængelig",OFFSET(Vehicles!$E$26,0,MATCH($AA16,Vehicles!$F$6:$AZ$6,0))-OFFSET(Vehicles!$E$27,0,MATCH($AA16,Vehicles!$F$6:$AZ$6,0))) -> 1.175206163 | I16: =IF($H16="Teknologi ikke tilgængelig"," ",OFFSET(Vehicles!$E$27,0,MATCH($AA16,Vehicles!$F$6:$AZ$6,0))) -> 0.1796995231 | J16: =IF($H16="Teknologi ikke tilgængelig"," ",OFFSET(Vehicles!$E$25,0,MATCH($AA16,Vehicles!$F$6:$AZ$6,0))) -> 0.07282320012 | K16: 1.427728886 | M16: =IF($H16="Teknologi ikke tilgængelig"," ",OFFSET(Vehicles!E$230,0,MATCH($AA16,Vehicles!$F$6:$AZ$6,0))) -> 0.1435825767 | O16: =IF($H16="Teknologi ikke tilgængelig"," ",OFFSET(Vehicles!$E$344,0,MATCH($AA16,Vehicles!$F$6:$AZ$6,0))) -> 167.8546747 | P16: =IF($H16="Teknologi ikke tilgængelig"," ",OFFSET(Vehicles!$E$345,0,MATCH($AA16,Vehicles!$F$6:$AZ$6,0))) -> 0.0858246281 | Q16: =IF($H16="Teknologi ikke tilgængelig"," ",OFFSET(Vehicles!$E$346,0,MATCH($AA16,Vehicles!$F$6:$AZ$6,0))) -> 0.0001632087666 | R16: =IF($H16="Teknologi ikke tilgængelig"," ",OFFSET(Vehicles!$E$347,0,MATCH($AA16,Vehicles!$F$6:$AZ$6,0))) -> 0.004475368022 | S16: =IF($H16="Teknologi ikke tilgængelig"," ",OFFSET(Vehicles!$E$348,0,MATCH($AA16,Vehicles!$F$6:$AZ$6,0))) -> 0.113893917 | T16: =IF($H16="Teknologi ikke tilgængelig"," ",OFFSET(Vehicles!$E$349,0,MATCH($AA16,Vehicles!$F$6:$AZ$6,0))) -> 0.005166924237 | V16: =IF($H16="Teknologi ikke tilgængelig"," ",SUMPRODUCT('Basic Data'!$C$211:$E$211,O16:Q16)) -> 170.0489266 | X16: =IF($H16="Teknologi ikke tilgængelig"," ",OFFSET(Vehicles!$E$51,0,MATCH($AA16,Vehicles!$F$6:$AZ$6,0))) -> 0.0281413877 | AA16: Bil Naturgas
B17: 2 | E17: Bil-Biogas | F17: =HLOOKUP(INDIRECT(ADDRESS(9,3,,,HLOOKUP(AA17,Vehicles!F$6:BB$9,4,FALSE))),'General ass. and conv.'!R$69:W$72,chosenYear,FALSE) -> Recent | G17: =HLOOKUP(INDIRECT(ADDRESS(19,3,,,HLOOKUP(AA17,Vehicles!F$6:BB$17,12,FALSE))),'General ass. and conv.'!R$69:W$72,chosenYear,FALSE) -> New | H17: =IF(OFFSET(Vehicles!$E$12,chosenYear,MATCH($AA17,Vehicles!$F$6:$AZ$6,0))="Nej","Teknologi ikke tilgængelig",OFFSET(Vehicles!$E$26,0,MATCH($AA17,Vehicles!$F$6:$AZ$6,0))-OFFSET(Vehicles!$E$27,0,MATCH($AA17,Vehicles!$F$6:$AZ$6,0))) -> 1.175206163 | I17: =IF($H17="Teknologi ikke tilgængelig"," ",OFFSET(Vehicles!$E$27,0,MATCH($AA17,Vehicles!$F$6:$AZ$6,0))) -> 0.3800274301 | J17: =IF($H17="Teknologi ikke tilgængelig"," ",OFFSET(Vehicles!$E$25,0,MATCH($AA17,Vehicles!$F$6:$AZ$6,0))) -> 0.06550256126 | K17: 1.620736155 | M17: =IF($H17="Teknologi ikke tilgængelig"," ",OFFSET(Vehicles!E$230,0,MATCH($AA17,Vehicles!$F$6:$AZ$6,0))) -> 0.1573989506 | O17: =IF($H17="Teknologi ikke tilgængelig"," ",OFFSET(Vehicles!$E$344,0,MATCH($AA17,Vehicles!$F$6:$AZ$6,0))) -> -97.23603243 | P17: =IF($H17="Teknologi ikke tilgængelig"," ",OFFSET(Vehicles!$E$345,0,MATCH($AA17,Vehicles!$F$6:$AZ$6,0))) -> 0.3175483175 | Q17: =IF($H17="Teknologi ikke tilgængelig"," ",OFFSET(Vehicles!$E$346,0,MATCH($AA17,Vehicles!$F$6:$AZ$6,0))) -> 0.0009434569187 | R17: =IF($H17="Teknologi ikke tilgængelig"," ",OFFSET(Vehicles!$E$347,0,MATCH($AA17,Vehicles!$F$6:$AZ$6,0))) -> 0.02921179996 | S17: =IF($H17="Teknologi ikke tilgængelig"," ",OFFSET(Vehicles!$E$348,0,MATCH($AA17,Vehicles!$F$6:$AZ$6,0))) -> 0.1199916925 | T17: =IF($H17="Teknologi ikke tilgængelig"," ",OFFSET(Vehicles!$E$349,0,MATCH($AA17,Vehicles!$F$6:$AZ$6,0))) -> 0.007476021516 | V17: =IF($H17="Teknologi ikke tilgængelig"," ",SUMPRODUCT('Basic Data'!$C$211:$E$211,O17:Q17)) -> -89.01617433 | X17: =IF($H17="Teknologi ikke tilgængelig"," ",OFFSET(Vehicles!$E$51,0,MATCH($AA17,Vehicles!$F$6:$AZ$6,0))) -> 0.0281413877 | AA17: Bil Biogas
E18: Bil-MeOH-brændselscellehybrid | F18: =HLOOKUP(INDIRECT(ADDRESS(9,3,,,HLOOKUP(AA18,Vehicles!F$6:BB$9,4,FALSE))),'General ass. and conv.'!R$69:W$72,chosenYear,FALSE) -> Laboratory | G18: =HLOOKUP(INDIRECT(ADDRESS(19,3,,,HLOOKUP(AA18,Vehicles!F$6:BB$17,12,FALSE))),'General ass. and conv.'!R$69:W$72,chosenYear,FALSE) -> New | H18: =IF(OFFSET(Vehicles!$E$12,chosenYear,MATCH($AA18,Vehicles!$F$6:$AZ$6,0))="Nej","Teknologi ikke tilgængelig",OFFSET(Vehicles!$E$26,0,MATCH($AA18,Vehicles!$F$6:$AZ$6,0))-OFFSET(Vehicles!$E$27,0,MATCH($AA18,Vehicles!$F$6:$AZ$6,0))) -> Teknologi ikke tilgængelig | I18: =IF($H18="Teknologi ikke tilgængelig"," ",OFFSET(Vehicles!$E$27,0,MATCH($AA18,Vehicles!$F$6:$AZ$6,0))) ->  | J18: =IF($H18="Teknologi ikke tilgængelig"," ",OFFSET(Vehicles!$E$25,0,MATCH($AA18,Vehicles!$F$6:$AZ$6,0))) ->  | M18: =IF($H18="Teknologi ikke tilgængelig"," ",OFFSET(Vehicles!E$230,0,MATCH($AA18,Vehicles!$F$6:$AZ$6,0))) ->  | O18: =IF($H18="Teknologi ikke tilgængelig"," ",OFFSET(Vehicles!$E$344,0,MATCH($AA18,Vehicles!$F$6:$AZ$6,0))) ->  | P18: =IF($H18="Teknologi ikke tilgængelig"," ",OFFSET(Vehicles!$E$345,0,MATCH($AA18,Vehicles!$F$6:$AZ$6,0))) ->  | Q18: =IF($H18="Teknologi ikke tilgængelig"," ",OFFSET(Vehicles!$E$346,0,MATCH($AA18,Vehicles!$F$6:$AZ$6,0))) ->  | R18: =IF($H18="Teknologi ikke tilgængelig"," ",OFFSET(Vehicles!$E$347,0,MATCH($AA18,Vehicles!$F$6:$AZ$6,0))) ->  | S18: =IF($H18="Teknologi ikke tilgængelig"," ",OFFSET(Vehicles!$E$348,0,MATCH($AA18,Vehicles!$F$6:$AZ$6,0))) ->  | T18: =IF($H18="Teknologi ikke tilgængelig"," ",OFFSET(Vehicles!$E$349,0,MATCH($AA18,Vehicles!$F$6:$AZ$6,0))) ->  | V18: =IF($H18="Teknologi ikke tilgængelig"," ",SUMPRODUCT('Basic Data'!$C$211:$E$211,O18:Q18)) ->  | X18: =IF($H18="Teknologi ikke tilgængelig"," ",OFFSET(Vehicles!$E$51,0,MATCH($AA18,Vehicles!$F$6:$AZ$6,0))) ->  | AA18: Bil MeOH
E19: Bil-Brint-brændselscelle | F19: =HLOOKUP(INDIRECT(ADDRESS(9,3,,,HLOOKUP(AA19,Vehicles!F$6:BB$9,4,FALSE))),'General ass. and conv.'!R$69:W$72,chosenYear,FALSE) -> Demonstration | G19: =HLOOKUP(INDIRECT(ADDRESS(19,3,,,HLOOKUP(AA19,Vehicles!F$6:BB$17,12,FALSE))),'General ass. and conv.'!R$69:W$72,chosenYear,FALSE) -> Established | H19: =IF(OFFSET(Vehicles!$E$12,chosenYear,MATCH($AA19,Vehicles!$F$6:$AZ$6,0))="Nej","Teknologi ikke tilgængelig",OFFSET(Vehicles!$E$26,0,MATCH($AA19,Vehicles!$F$6:$AZ$6,0))-OFFSET(Vehicles!$E$27,0,MATCH($AA19,Vehicles!$F$6:$AZ$6,0))) -> 1.653338036 | I19: =IF($H19="Teknologi ikke tilgængelig"," ",OFFSET(Vehicles!$E$27,0,MATCH($AA19,Vehicles!$F$6:$AZ$6,0))) -> 0.5735791358 | J19: =IF($H19="Teknologi ikke tilgængelig"," ",OFFSET(Vehicles!$E$25,0,MATCH($AA19,Vehicles!$F$6:$AZ$6,0))) -> 0.0394700605 | K19: 2.266387232 | M19: =IF($H19="Teknologi ikke tilgængelig"," ",OFFSET(Vehicles!E$230,0,MATCH($AA19,Vehicles!$F$6:$AZ$6,0))) -> 0.1768715725 | O19: =IF($H19="Teknologi ikke tilgængelig"," ",OFFSET(Vehicles!$E$344,0,MATCH($AA19,Vehicles!$F$6:$AZ$6,0))) -> 54.37187934 | P19: =IF($H19="Teknologi ikke tilgængelig"," ",OFFSET(Vehicles!$E$345,0,MATCH($AA19,Vehicles!$F$6:$AZ$6,0))) -> 0.0006252278088 | Q19: =IF($H19="Teknologi ikke tilgængelig"," ",OFFSET(Vehicles!$E$346,0,MATCH($AA19,Vehicles!$F$6:$AZ$6,0))) -> 0.0005836547879 | R19: =IF($H19="Teknologi ikke tilgængelig"," ",OFFSET(Vehicles!$E$347,0,MATCH($AA19,Vehicles!$F$6:$AZ$6,0))) -> 0.009176147759 | S19: =IF($H19="Teknologi ikke tilgængelig"," ",OFFSET(Vehicles!$E$348,0,MATCH($AA19,Vehicles!$F$6:$AZ$6,0))) -> 0.2991333781 | T19: =IF($H19="Teknologi ikke tilgængelig"," ",OFFSET(Vehicles!$E$349,0,MATCH($AA19,Vehicles!$F$6:$AZ$6,0))) -> 0.0005608174756 | V19: =IF($H19="Teknologi ikke tilgængelig"," ",SUMPRODUCT('Basic Data'!$C$211:$E$211,O19:Q19)) -> 54.56143916 | X19: =IF($H19="Teknologi ikke tilgængelig"," ",OFFSET(Vehicles!$E$51,0,MATCH($AA19,Vehicles!$F$6:$AZ$6,0))) -> 0.3334369314 | AA19: Bil brint
B20: Emissions from electricity production | E20: Bil-Brint-brændselscellehybrid | F20: =HLOOKUP(INDIRECT(ADDRESS(9,3,,,HLOOKUP(AA20,Vehicles!F$6:BB$9,4,FALSE))),'General ass. and conv.'!R$69:W$72,chosenYear,FALSE) -> Laboratory | G20: =HLOOKUP(INDIRECT(ADDRESS(19,3,,,HLOOKUP(AA20,Vehicles!F$6:BB$17,12,FALSE))),'General ass. and conv.'!R$69:W$72,chosenYear,FALSE) -> Established | H20: =IF(OFFSET(Vehicles!$E$12,chosenYear,MATCH($AA20,Vehicles!$F$6:$AZ$6,0))="Nej","Teknologi ikke tilgængelig",OFFSET(Vehicles!$E$26,0,MATCH($AA20,Vehicles!$F$6:$AZ$6,0))-OFFSET(Vehicles!$E$27,0,MATCH($AA20,Vehicles!$F$6:$AZ$6,0))) -> Teknologi ikke tilgængelig | I20: =IF($H20="Teknologi ikke tilgængelig"," ",OFFSET(Vehicles!$E$27,0,MATCH($AA20,Vehicles!$F$6:$AZ$6,0))) ->  | J20: =IF($H20="Teknologi ikke tilgængelig"," ",OFFSET(Vehicles!$E$25,0,MATCH($AA20,Vehicles!$F$6:$AZ$6,0))) ->  | M20: =IF($H20="Teknologi ikke tilgængelig"," ",OFFSET(Vehicles!E$230,0,MATCH($AA20,Vehicles!$F$6:$AZ$6,0))) ->  | O20: =IF($H20="Teknologi ikke tilgængelig"," ",OFFSET(Vehicles!$E$344,0,MATCH($AA20,Vehicles!$F$6:$AZ$6,0))) ->  | P20: =IF($H20="Teknologi ikke tilgængelig"," ",OFFSET(Vehicles!$E$345,0,MATCH($AA20,Vehicles!$F$6:$AZ$6,0))) ->  | Q20: =IF($H20="Teknologi ikke tilgængelig"," ",OFFSET(Vehicles!$E$346,0,MATCH($AA20,Vehicles!$F$6:$AZ$6,0))) ->  | R20: =IF($H20="Teknologi ikke tilgængelig"," ",OFFSET(Vehicles!$E$347,0,MATCH($AA20,Vehicles!$F$6:$AZ$6,0))) ->  | S20: =IF($H20="Teknologi ikke tilgængelig"," ",OFFSET(Vehicles!$E$348,0,MATCH($AA20,Vehicles!$F$6:$AZ$6,0))) ->  | T20: =IF($H20="Teknologi ikke tilgængelig"," ",OFFSET(Vehicles!$E$349,0,MATCH($AA20,Vehicles!$F$6:$AZ$6,0))) ->  | V20: =IF($H20="Teknologi ikke tilgængelig"," ",SUMPRODUCT('Basic Data'!$C$211:$E$211,O20:Q20)) ->  | X20: =IF($H20="Teknologi ikke tilgængelig"," ",OFFSET(Vehicles!$E$51,0,MATCH($AA20,Vehicles!$F$6:$AZ$6,0))) ->  | AA20: Bil Brinthybrid
B21: 1 | E21: Bil-El | F21: =HLOOKUP(INDIRECT(ADDRESS(9,3,,,HLOOKUP(AA21,Vehicles!F$6:BB$9,4,FALSE))),'General ass. and conv.'!R$69:W$72,chosenYear,FALSE) -> Developing | G21: =HLOOKUP(INDIRECT(ADDRESS(19,3,,,HLOOKUP(AA21,Vehicles!F$6:BB$17,12,FALSE))),'General ass. and conv.'!R$69:W$72,chosenYear,FALSE) -> Established | H21: =IF(OFFSET(Vehicles!$E$12,chosenYear,MATCH($AA21,Vehicles!$F$6:$AZ$6,0))="Nej","Teknologi ikke tilgængelig",OFFSET(Vehicles!$E$26,0,MATCH($AA21,Vehicles!$F$6:$AZ$6,0))-OFFSET(Vehicles!$E$27,0,MATCH($AA21,Vehicles!$F$6:$AZ$6,0))) -> 1.254423961 | I21: =IF($H21="Teknologi ikke tilgængelig"," ",OFFSET(Vehicles!$E$27,0,MATCH($AA21,Vehicles!$F$6:$AZ$6,0))) -> 0.07896217485 | J21: =IF($H21="Teknologi ikke tilgængelig"," ",OFFSET(Vehicles!$E$25,0,MATCH($AA21,Vehicles!$F$6:$AZ$6,0))) -> 0.02820150278 | K21: 1.361587638 | M21: =IF($H21="Teknologi ikke tilgængelig"," ",OFFSET(Vehicles!E$230,0,MATCH($AA21,Vehicles!$F$6:$AZ$6,0))) -> 0.3684000795 | O21: =IF($H21="Teknologi ikke tilgængelig"," ",OFFSET(Vehicles!$E$344,0,MATCH($AA21,Vehicles!$F$6:$AZ$6,0))) -> 28.89980291 | P21: =IF($H21="Teknologi ikke tilgængelig"," ",OFFSET(Vehicles!$E$345,0,MATCH($AA21,Vehicles!$F$6:$AZ$6,0))) -> 0.0002930022912 | Q21: =IF($H21="Teknologi ikke tilgængelig"," ",OFFSET(Vehicles!$E$346,0,MATCH($AA21,Vehicles!$F$6:$AZ$6,0))) -> 0.0002647424936 | R21: =IF($H21="Teknologi ikke tilgængelig"," ",OFFSET(Vehicles!$E$347,0,MATCH($AA21,Vehicles!$F$6:$AZ$6,0))) -> 0.005872011845 | S21: =IF($H21="Teknologi ikke tilgængelig"," ",OFFSET(Vehicles!$E$348,0,MATCH($AA21,Vehicles!$F$6:$AZ$6,0))) -> 0.1118900939 | T21: =IF($H21="Teknologi ikke tilgængelig"," ",OFFSET(Vehicles!$E$349,0,MATCH($AA21,Vehicles!$F$6:$AZ$6,0))) -> 0.0002859765011 | V21: =IF($H21="Teknologi ikke tilgængelig"," ",SUMPRODUCT('Basic Data'!$C$211:$E$211,O21:Q21)) -> 28.98602123 | X21: =IF($H21="Teknologi ikke tilgængelig"," ",OFFSET(Vehicles!$E$51,0,MATCH($AA21,Vehicles!$F$6:$AZ$6,0))) -> 0.03162596045 | AA21: Elbil
E22: Bil-El, stort batteri | F22: =HLOOKUP(INDIRECT(ADDRESS(9,3,,,HLOOKUP(AA22,Vehicles!F$6:BB$9,4,FALSE))),'General ass. and conv.'!R$69:W$72,chosenYear,FALSE) -> Developing | G22: =HLOOKUP(INDIRECT(ADDRESS(19,3,,,HLOOKUP(AA22,Vehicles!F$6:BB$17,12,FALSE))),'General ass. and conv.'!R$69:W$72,chosenYear,FALSE) -> Established | H22: =IF(OFFSET(Vehicles!$E$12,chosenYear,MATCH($AA22,Vehicles!$F$6:$AZ$6,0))="Nej","Teknologi ikke tilgængelig",OFFSET(Vehicles!$E$26,0,MATCH($AA22,Vehicles!$F$6:$AZ$6,0))-OFFSET(Vehicles!$E$27,0,MATCH($AA22,Vehicles!$F$6:$AZ$6,0))) -> 1.983834175 | I22: =IF($H22="Teknologi ikke tilgængelig"," ",OFFSET(Vehicles!$E$27,0,MATCH($AA22,Vehicles!$F$6:$AZ$6,0))) -> 0.09583729059 | J22: =IF($H22="Teknologi ikke tilgængelig"," ",OFFSET(Vehicles!$E$25,0,MATCH($AA22,Vehicles!$F$6:$AZ$6,0))) -> 0.03138610595 | K22: 2.111057571 | M22: =IF($H22="Teknologi ikke tilgængelig"," ",OFFSET(Vehicles!E$230,0,MATCH($AA22,Vehicles!$F$6:$AZ$6,0))) -> 0.337666504 | O22: =IF($H22="Teknologi ikke tilgængelig"," ",OFFSET(Vehicles!$E$344,0,MATCH($AA22,Vehicles!$F$6:$AZ$6,0))) -> 44.62770454 | P22: =IF($H22="Teknologi ikke tilgængelig"," ",OFFSET(Vehicles!$E$345,0,MATCH($AA22,Vehicles!$F$6:$AZ$6,0))) -> 0.0004362596771 | Q22: =IF($H22="Teknologi ikke tilgængelig"," ",OFFSET(Vehicles!$E$346,0,MATCH($AA22,Vehicles!$F$6:$AZ$6,0))) -> 0.0003924921753 | R22: =IF($H22="Teknologi ikke tilgængelig"," ",OFFSET(Vehicles!$E$347,0,MATCH($AA22,Vehicles!$F$6:$AZ$6,0))) -> 0.009001507624 | S22: =IF($H22="Teknologi ikke tilgængelig"," ",OFFSET(Vehicles!$E$348,0,MATCH($AA22,Vehicles!$F$6:$AZ$6,0))) -> 0.1450606088 | T22: =IF($H22="Teknologi ikke tilgængelig"," ",OFFSET(Vehicles!$E$349,0,MATCH($AA22,Vehicles!$F$6:$AZ$6,0))) -> 0.0004152519555 | V22: =IF($H22="Teknologi ikke tilgængelig"," ",SUMPRODUCT('Basic Data'!$C$211:$E$211,O22:Q22)) -> 44.7555737 | X22: =IF($H22="Teknologi ikke tilgængelig"," ",OFFSET(Vehicles!$E$51,0,MATCH($AA22,Vehicles!$F$6:$AZ$6,0))) -> 0.03838478825 | AA22: Elbil stort bat.
B23: Technological learning | E23: Bil-Plugin Hybrid | F23: =HLOOKUP(INDIRECT(ADDRESS(9,3,,,HLOOKUP(AA23,Vehicles!F$6:BB$9,4,FALSE))),'General ass. and conv.'!R$69:W$72,chosenYear,FALSE) -> Developing | G23: =HLOOKUP(INDIRECT(ADDRESS(19,3,,,HLOOKUP(AA23,Vehicles!F$6:BB$17,12,FALSE))),'General ass. and conv.'!R$69:W$72,chosenYear,FALSE) -> Established | H23: =IF(OFFSET(Vehicles!$E$12,chosenYear,MATCH($AA23,Vehicles!$F$6:$AZ$6,0))="Nej","Teknologi ikke tilgængelig",OFFSET(Vehicles!$E$26,0,MATCH($AA23,Vehicles!$F$6:$AZ$6,0))-OFFSET(Vehicles!$E$27,0,MATCH($AA23,Vehicles!$F$6:$AZ$6,0))) -> 1.349507985 | I23: =IF($H23="Teknologi ikke tilgængelig"," ",OFFSET(Vehicles!$E$27,0,MATCH($AA23,Vehicles!$F$6:$AZ$6,0))) -> 0.1114834836 | J23: =IF($H23="Teknologi ikke tilgængelig"," ",OFFSET(Vehicles!$E$25,0,MATCH($AA23,Vehicles!$F$6:$AZ$6,0))) -> 0.04034891476 | K23: 1.501340383 | M23: =IF($H23="Teknologi ikke tilgængelig"," ",OFFSET(Vehicles!E$230,0,MATCH($AA23,Vehicles!$F$6:$AZ$6,0))) -> 0.3021024966 | O23: =IF($H23="Teknologi ikke tilgængelig"," ",OFFSET(Vehicles!$E$344,0,MATCH($AA23,Vehicles!$F$6:$AZ$6,0))) -> 78.33033491 | P23: =IF($H23="Teknologi ikke tilgængelig"," ",OFFSET(Vehicles!$E$345,0,MATCH($AA23,Vehicles!$F$6:$AZ$6,0))) -> 0.0003308688348 | Q23: =IF($H23="Teknologi ikke tilgængelig"," ",OFFSET(Vehicles!$E$346,0,MATCH($AA23,Vehicles!$F$6:$AZ$6,0))) -> 0.0002617108534 | R23: =IF($H23="Teknologi ikke tilgængelig"," ",OFFSET(Vehicles!$E$347,0,MATCH($AA23,Vehicles!$F$6:$AZ$6,0))) -> 0.006302654885 | S23: =IF($H23="Teknologi ikke tilgængelig"," ",OFFSET(Vehicles!$E$348,0,MATCH($AA23,Vehicles!$F$6:$AZ$6,0))) -> 0.1664816522 | T23: =IF($H23="Teknologi ikke tilgængelig"," ",OFFSET(Vehicles!$E$349,0,MATCH($AA23,Vehicles!$F$6:$AZ$6,0))) -> 0.0002957151354 | V23: =IF($H23="Teknologi ikke tilgængelig"," ",SUMPRODUCT('Basic Data'!$C$211:$E$211,O23:Q23)) -> 78.41659646 | X23: =IF($H23="Teknologi ikke tilgængelig"," ",OFFSET(Vehicles!$E$51,0,MATCH($AA23,Vehicles!$F$6:$AZ$6,0))) -> 0.03202563581 | AA23: Bil Plugin Hybrid
B24: 2
D25: Varebiler | E25: Varebil-benzin | F25: =HLOOKUP(INDIRECT(ADDRESS(9,3,,,HLOOKUP(AA25,Vehicles!F$6:BB$9,4,FALSE))),'General ass. and conv.'!R$69:W$72,chosenYear,FALSE) -> Established | G25: =HLOOKUP(INDIRECT(ADDRESS(19,3,,,HLOOKUP(AA25,Vehicles!F$6:BB$17,12,FALSE))),'General ass. and conv.'!R$69:W$72,chosenYear,FALSE) -> Established | H25: =IF(OFFSET(Vehicles!$E$12,chosenYear,MATCH($AA25,Vehicles!$F$6:$AZ$6,0))="Nej","Teknologi ikke tilgængelig",OFFSET(Vehicles!$E$26,0,MATCH($AA25,Vehicles!$F$6:$AZ$6,0))-OFFSET(Vehicles!$E$27,0,MATCH($AA25,Vehicles!$F$6:$AZ$6,0))) -> 1.116220122 | I25: =IF($H25="Teknologi ikke tilgængelig"," ",OFFSET(Vehicles!$E$27,0,MATCH($AA25,Vehicles!$F$6:$AZ$6,0))) -> 0.6135937496 | J25: =IF($H25="Teknologi ikke tilgængelig"," ",OFFSET(Vehicles!$E$25,0,MATCH($AA25,Vehicles!$F$6:$AZ$6,0))) -> 0.1728280082 | K25: =IF($H25="Teknologi ikke tilgængelig"," ",SUM(H25:J25)) -> 1.90264188 | M25: =IF($H25="Teknologi ikke tilgængelig"," ",OFFSET(Vehicles!E$230,0,MATCH($AA25,Vehicles!$F$6:$AZ$6,0))) -> 0.166116142 | O25: =IF($H25="Teknologi ikke tilgængelig"," ",OFFSET(Vehicles!$E$344,0,MATCH($AA25,Vehicles!$F$6:$AZ$6,0))) -> 422.1345462 | P25: =IF($H25="Teknologi ikke tilgængelig"," ",OFFSET(Vehicles!$E$345,0,MATCH($AA25,Vehicles!$F$6:$AZ$6,0))) -> 0.03279007787 | Q25: =IF($H25="Teknologi ikke tilgængelig"," ",OFFSET(Vehicles!$E$346,0,MATCH($AA25,Vehicles!$F$6:$AZ$6,0))) -> 0.0004528320522 | R25: =IF($H25="Teknologi ikke tilgængelig"," ",OFFSET(Vehicles!$E$347,0,MATCH($AA25,Vehicles!$F$6:$AZ$6,0))) -> 0.00877077869 | S25: =IF($H25="Teknologi ikke tilgængelig"," ",OFFSET(Vehicles!$E$348,0,MATCH($AA25,Vehicles!$F$6:$AZ$6,0))) -> 0.7390300827 | T25: =IF($H25="Teknologi ikke tilgængelig"," ",OFFSET(Vehicles!$E$349,0,MATCH($AA25,Vehicles!$F$6:$AZ$6,0))) -> 0.005474686585 | V25: =IF($H25="Teknologi ikke tilgængelig"," ",SUMPRODUCT('Basic Data'!$C$211:$E$211,O25:Q25)) -> 423.0892421 | X25: =IF($H25="Teknologi ikke tilgængelig"," ",OFFSET(Vehicles!$E$51,0,MATCH($AA25,Vehicles!$F$6:$AZ$6,0))) -> 0.1384262403 | AA25: Varebil benzin
B26: Sensitivity choice | E26: Varebil-Diesel | F26: =HLOOKUP(INDIRECT(ADDRESS(9,3,,,HLOOKUP(AA26,Vehicles!F$6:BB$9,4,FALSE))),'General ass. and conv.'!R$69:W$72,chosenYear,FALSE) -> Established | G26: =HLOOKUP(INDIRECT(ADDRESS(19,3,,,HLOOKUP(AA26,Vehicles!F$6:BB$17,12,FALSE))),'General ass. and conv.'!R$69:W$72,chosenYear,FALSE) -> Established | H26: =IF(OFFSET(Vehicles!$E$12,chosenYear,MATCH($AA26,Vehicles!$F$6:$AZ$6,0))="Nej","Teknologi ikke tilgængelig",OFFSET(Vehicles!$E$26,0,MATCH($AA26,Vehicles!$F$6:$AZ$6,0))-OFFSET(Vehicles!$E$27,0,MATCH($AA26,Vehicles!$F$6:$AZ$6,0))) -> 1.137462014 | I26: =IF($H26="Teknologi ikke tilgængelig"," ",OFFSET(Vehicles!$E$27,0,MATCH($AA26,Vehicles!$F$6:$AZ$6,0))) -> 0.4582033893 | J26: =IF($H26="Teknologi ikke tilgængelig"," ",OFFSET(Vehicles!$E$25,0,MATCH($AA26,Vehicles!$F$6:$AZ$6,0))) -> 0.1685212028 | K26: =IF($H26="Teknologi ikke tilgængelig"," ",SUM(H26:J26)) -> 1.764186606 | M26: =IF($H26="Teknologi ikke tilgængelig"," ",OFFSET(Vehicles!E$230,0,MATCH($AA26,Vehicles!$F$6:$AZ$6,0))) -> 0.2078285185 | O26: =IF($H26="Teknologi ikke tilgængelig"," ",OFFSET(Vehicles!$E$344,0,MATCH($AA26,Vehicles!$F$6:$AZ$6,0))) -> 339.3056745 | P26: =IF($H26="Teknologi ikke tilgængelig"," ",OFFSET(Vehicles!$E$345,0,MATCH($AA26,Vehicles!$F$6:$AZ$6,0))) -> 0.05066418259 | Q26: =IF($H26="Teknologi ikke tilgængelig"," ",OFFSET(Vehicles!$E$346,0,MATCH($AA26,Vehicles!$F$6:$AZ$6,0))) -> 0.0003953585094 | R26: =IF($H26="Teknologi ikke tilgængelig"," ",OFFSET(Vehicles!$E$347,0,MATCH($AA26,Vehicles!$F$6:$AZ$6,0))) -> 0.01561412295 | S26: =IF($H26="Teknologi ikke tilgængelig"," ",OFFSET(Vehicles!$E$348,0,MATCH($AA26,Vehicles!$F$6:$AZ$6,0))) -> 0.7166176931 | T26: =IF($H26="Teknologi ikke tilgængelig"," ",OFFSET(Vehicles!$E$349,0,MATCH($AA26,Vehicles!$F$6:$AZ$6,0))) -> 0.005422892615 | V26: =IF($H26="Teknologi ikke tilgængelig"," ",SUMPRODUCT('Basic Data'!$C$211:$E$211,O26:Q26)) -> 340.6900959 | X26: =IF($H26="Teknologi ikke tilgængelig"," ",OFFSET(Vehicles!$E$51,0,MATCH($AA26,Vehicles!$F$6:$AZ$6,0))) -> 0.08949127756 | AA26: Varebil diesel
B27: 1 | E27: Varebil-CNG | F27: =HLOOKUP(INDIRECT(ADDRESS(9,3,,,HLOOKUP(AA27,Vehicles!F$6:BB$9,4,FALSE))),'General ass. and conv.'!R$69:W$72,chosenYear,FALSE) -> Established | G27: =HLOOKUP(INDIRECT(ADDRESS(19,3,,,HLOOKUP(AA27,Vehicles!F$6:BB$17,12,FALSE))),'General ass. and conv.'!R$69:W$72,chosenYear,FALSE) -> Established | H27: =IF(OFFSET(Vehicles!$E$12,chosenYear,MATCH($AA27,Vehicles!$F$6:$AZ$6,0))="Nej","Teknologi ikke tilgængelig",OFFSET(Vehicles!$E$26,0,MATCH($AA27,Vehicles!$F$6:$AZ$6,0))-OFFSET(Vehicles!$E$27,0,MATCH($AA27,Vehicles!$F$6:$AZ$6,0))) -> 1.277310349 | I27: =IF($H27="Teknologi ikke tilgængelig"," ",OFFSET(Vehicles!$E$27,0,MATCH($AA27,Vehicles!$F$6:$AZ$6,0))) -> 0.3269768445 | J27: =IF($H27="Teknologi ikke tilgængelig"," ",OFFSET(Vehicles!$E$25,0,MATCH($AA27,Vehicles!$F$6:$AZ$6,0))) -> 0.1371314646 | K27: =IF($H27="Teknologi ikke tilgængelig"," ",SUM(H27:J27)) -> 1.741418658 | M27: =IF($H27="Teknologi ikke tilgængelig"," ",OFFSET(Vehicles!E$230,0,MATCH($AA27,Vehicles!$F$6:$AZ$6,0))) -> 0.168828016 | O27: =IF($H27="Teknologi ikke tilgængelig"," ",OFFSET(Vehicles!$E$344,0,MATCH($AA27,Vehicles!$F$6:$AZ$6,0))) -> 298.9113708 | P27: =IF($H27="Teknologi ikke tilgængelig"," ",OFFSET(Vehicles!$E$345,0,MATCH($AA27,Vehicles!$F$6:$AZ$6,0))) -> 0.0859852589 | Q27: =IF($H27="Teknologi ikke tilgængelig"," ",OFFSET(Vehicles!$E$346,0,MATCH($AA27,Vehicles!$F$6:$AZ$6,0))) -> 0.0002524236558 | R27: =IF($H27="Teknologi ikke tilgængelig"," ",OFFSET(Vehicles!$E$347,0,MATCH($AA27,Vehicles!$F$6:$AZ$6,0))) -> 0.006776705522 | S27: =IF($H27="Teknologi ikke tilgængelig"," ",OFFSET(Vehicles!$E$348,0,MATCH($AA27,Vehicles!$F$6:$AZ$6,0))) -> 0.147289528 | T27: =IF($H27="Teknologi ikke tilgængelig"," ",OFFSET(Vehicles!$E$349,0,MATCH($AA27,Vehicles!$F$6:$AZ$6,0))) -> 0.005265349688 | V27: =IF($H27="Teknologi ikke tilgængelig"," ",SUMPRODUCT('Basic Data'!$C$211:$E$211,O27:Q27)) -> 301.1362245 | X27: =IF($H27="Teknologi ikke tilgængelig"," ",OFFSET(Vehicles!$E$51,0,MATCH($AA27,Vehicles!$F$6:$AZ$6,0))) -> 0.0512053788 | AA27: Varebil CNG
E28: Varebil-el | F28: =HLOOKUP(INDIRECT(ADDRESS(9,3,,,HLOOKUP(AA28,Vehicles!F$6:BB$9,4,FALSE))),'General ass. and conv.'!R$69:W$72,chosenYear,FALSE) -> Developing | G28: =HLOOKUP(INDIRECT(ADDRESS(19,3,,,HLOOKUP(AA28,Vehicles!F$6:BB$17,12,FALSE))),'General ass. and conv.'!R$69:W$72,chosenYear,FALSE) -> Established | H28: =IF(OFFSET(Vehicles!$E$12,chosenYear,MATCH($AA28,Vehicles!$F$6:$AZ$6,0))="Nej","Teknologi ikke tilgængelig",OFFSET(Vehicles!$E$26,0,MATCH($AA28,Vehicles!$F$6:$AZ$6,0))-OFFSET(Vehicles!$E$27,0,MATCH($AA28,Vehicles!$F$6:$AZ$6,0))) -> 1.376480006 | I28: =IF($H28="Teknologi ikke tilgængelig"," ",OFFSET(Vehicles!$E$27,0,MATCH($AA28,Vehicles!$F$6:$AZ$6,0))) -> 0.1728191335 | J28: =IF($H28="Teknologi ikke tilgængelig"," ",OFFSET(Vehicles!$E$25,0,MATCH($AA28,Vehicles!$F$6:$AZ$6,0))) -> 0.03374633339 | K28: =IF($H28="Teknologi ikke tilgængelig"," ",SUM(H28:J28)) -> 1.583045473 | M28: =IF($H28="Teknologi ikke tilgængelig"," ",OFFSET(Vehicles!E$230,0,MATCH($AA28,Vehicles!$F$6:$AZ$6,0))) -> 0.411334416 | O28: =IF($H28="Teknologi ikke tilgængelig"," ",OFFSET(Vehicles!$E$344,0,MATCH($AA28,Vehicles!$F$6:$AZ$6,0))) -> 42.06060818 | P28: =IF($H28="Teknologi ikke tilgængelig"," ",OFFSET(Vehicles!$E$345,0,MATCH($AA28,Vehicles!$F$6:$AZ$6,0))) -> 0.0004580812759 | Q28: =IF($H28="Teknologi ikke tilgængelig"," ",OFFSET(Vehicles!$E$346,0,MATCH($AA28,Vehicles!$F$6:$AZ$6,0))) -> 0.0004186951738 | R28: =IF($H28="Teknologi ikke tilgængelig"," ",OFFSET(Vehicles!$E$347,0,MATCH($AA28,Vehicles!$F$6:$AZ$6,0))) -> 0.0082414102 | S28: =IF($H28="Teknologi ikke tilgængelig"," ",OFFSET(Vehicles!$E$348,0,MATCH($AA28,Vehicles!$F$6:$AZ$6,0))) -> 0.1996240159 | T28: =IF($H28="Teknologi ikke tilgængelig"," ",OFFSET(Vehicles!$E$349,0,MATCH($AA28,Vehicles!$F$6:$AZ$6,0))) -> 0.0004587669898 | V28: =IF($H28="Teknologi ikke tilgængelig"," ",SUMPRODUCT('Basic Data'!$C$211:$E$211,O28:Q28)) -> 42.19683137 | X28: =IF($H28="Teknologi ikke tilgængelig"," ",OFFSET(Vehicles!$E$51,0,MATCH($AA28,Vehicles!$F$6:$AZ$6,0))) -> 0.06921758538 | AA28: Varebil el
B29: Oil price
B30: =CONCATENATE("Default CIF price (in 2015-DKK/GJ) : ",CHOOSE(chosenYear,'Basic Data'!D971,'Basic Data'!E971,'Basic Data'!F971,'Basic Data'!G971)) -> Default CIF price (in 2015-DKK/GJ) : 102.211877833182 | D30: Tunge Køretøjer | E30: Lastbil-Diesel | F30: =HLOOKUP(INDIRECT(ADDRESS(9,3,,,HLOOKUP(AA30,Vehicles!F$6:BB$9,4,FALSE))),'General ass. and conv.'!R$69:W$72,chosenYear,FALSE) -> Established | G30: =HLOOKUP(INDIRECT(ADDRESS(19,3,,,HLOOKUP(AA30,Vehicles!F$6:BB$17,12,FALSE))),'General ass. and conv.'!R$69:W$72,chosenYear,FALSE) -> Established | H30: =IF(OFFSET(Vehicles!$E$12,chosenYear,MATCH($AA30,Vehicles!$F$6:$AZ$6,0))="Nej","Teknologi ikke tilgængelig",OFFSET(Vehicles!$E$26,0,MATCH($AA30,Vehicles!$F$6:$AZ$6,0))-OFFSET(Vehicles!$E$27,0,MATCH($AA30,Vehicles!$F$6:$AZ$6,0))) -> 6.168572544 | I30: =IF($H30="Teknologi ikke tilgængelig"," ",OFFSET(Vehicles!$E$27,0,MATCH($AA30,Vehicles!$F$6:$AZ$6,0))) -> 1.961857572 | J30: =IF($H30="Teknologi ikke tilgængelig"," ",OFFSET(Vehicles!$E$25,0,MATCH($AA30,Vehicles!$F$6:$AZ$6,0))) -> 0.5742819452 | K30: =IF($H30="Teknologi ikke tilgængelig"," ",SUM(H30:J30)) -> 8.704712062 | M30: =IF($H30="Teknologi ikke tilgængelig"," ",OFFSET(Vehicles!E$230,0,MATCH($AA30,Vehicles!$F$6:$AZ$6,0))) -> 0.1466199776 | O30: =IF($H30="Teknologi ikke tilgængelig"," ",OFFSET(Vehicles!$E$344,0,MATCH($AA30,Vehicles!$F$6:$AZ$6,0))) -> 1473.287993 | P30: =IF($H30="Teknologi ikke tilgængelig"," ",OFFSET(Vehicles!$E$345,0,MATCH($AA30,Vehicles!$F$6:$AZ$6,0))) -> 0.01038296439 | Q30: =IF($H30="Teknologi ikke tilgængelig"," ",OFFSET(Vehicles!$E$346,0,MATCH($AA30,Vehicles!$F$6:$AZ$6,0))) -> 0.04678312879 | R30: =IF($H30="Teknologi ikke tilgængelig"," ",OFFSET(Vehicles!$E$347,0,MATCH($AA30,Vehicles!$F$6:$AZ$6,0))) -> 0.06981679129 | S30: =IF($H30="Teknologi ikke tilgængelig"," ",OFFSET(Vehicles!$E$348,0,MATCH($AA30,Vehicles!$F$6:$AZ$6,0))) -> 6.976293538 | T30: =IF($H30="Teknologi ikke tilgængelig"," ",OFFSET(Vehicles!$E$349,0,MATCH($AA30,Vehicles!$F$6:$AZ$6,0))) -> 0.04589188175 | V30: =IF($H30="Teknologi ikke tilgængelig"," ",SUMPRODUCT('Basic Data'!$C$211:$E$211,O30:Q30)) -> 1487.488939 | X30: =IF($H30="Teknologi ikke tilgængelig"," ",OFFSET(Vehicles!$E$51,0,MATCH($AA30,Vehicles!$F$6:$AZ$6,0))) -> 0.3831685767 | AA30: Lastbil Diesel
E31: Lastbil-CNG | F31: =HLOOKUP(INDIRECT(ADDRESS(9,3,,,HLOOKUP(AA31,Vehicles!F$6:BB$9,4,FALSE))),'General ass. and conv.'!R$69:W$72,chosenYear,FALSE) -> Recent | G31: =HLOOKUP(INDIRECT(ADDRESS(19,3,,,HLOOKUP(AA31,Vehicles!F$6:BB$17,12,FALSE))),'General ass. and conv.'!R$69:W$72,chosenYear,FALSE) -> Established | H31: =IF(OFFSET(Vehicles!$E$12,chosenYear,MATCH($AA31,Vehicles!$F$6:$AZ$6,0))="Nej","Teknologi ikke tilgængelig",OFFSET(Vehicles!$E$26,0,MATCH($AA31,Vehicles!$F$6:$AZ$6,0))-OFFSET(Vehicles!$E$27,0,MATCH($AA31,Vehicles!$F$6:$AZ$6,0))) -> 6.601079898 | I31: =IF($H31="Teknologi ikke tilgængelig"," ",OFFSET(Vehicles!$E$27,0,MATCH($AA31,Vehicles!$F$6:$AZ$6,0))) -> 1.341759971 | J31: =IF($H31="Teknologi ikke tilgængelig"," ",OFFSET(Vehicles!$E$25,0,MATCH($AA31,Vehicles!$F$6:$AZ$6,0))) -> 0.5176035062 | K31: 8.460443376 | M31: =IF($H31="Teknologi ikke tilgængelig"," ",OFFSET(Vehicles!E$230,0,MATCH($AA31,Vehicles!$F$6:$AZ$6,0))) -> 0.1211972873 | O31: =IF($H31="Teknologi ikke tilgængelig"," ",OFFSET(Vehicles!$E$344,0,MATCH($AA31,Vehicles!$F$6:$AZ$6,0))) -> 1291.179449 | P31: =IF($H31="Teknologi ikke tilgængelig"," ",OFFSET(Vehicles!$E$345,0,MATCH($AA31,Vehicles!$F$6:$AZ$6,0))) -> 0.7754248213 | Q31: =IF($H31="Teknologi ikke tilgængelig"," ",OFFSET(Vehicles!$E$346,0,MATCH($AA31,Vehicles!$F$6:$AZ$6,0))) -> 0.054983168 | R31: =IF($H31="Teknologi ikke tilgængelig"," ",OFFSET(Vehicles!$E$347,0,MATCH($AA31,Vehicles!$F$6:$AZ$6,0))) -> 0.04006305373 | S31: =IF($H31="Teknologi ikke tilgængelig"," ",OFFSET(Vehicles!$E$348,0,MATCH($AA31,Vehicles!$F$6:$AZ$6,0))) -> 5.977471022 | T31: =IF($H31="Teknologi ikke tilgængelig"," ",OFFSET(Vehicles!$E$349,0,MATCH($AA31,Vehicles!$F$6:$AZ$6,0))) -> 0.05373394274 | V31: =IF($H31="Teknologi ikke tilgængelig"," ",SUMPRODUCT('Basic Data'!$C$211:$E$211,O31:Q31)) -> 1326.950053 | X31: =IF($H31="Teknologi ikke tilgængelig"," ",OFFSET(Vehicles!$E$51,0,MATCH($AA31,Vehicles!$F$6:$AZ$6,0))) -> 0.2101229146 | AA31: Lastbil CNG
B32: 1 boe = 5,86152 GJ | E32: Lastbil-Biodiesel RME | F32: =HLOOKUP(INDIRECT(ADDRESS(9,3,,,HLOOKUP(AA32,Vehicles!F$6:BB$9,4,FALSE))),'General ass. and conv.'!R$69:W$72,chosenYear,FALSE) -> Established | G32: =HLOOKUP(INDIRECT(ADDRESS(19,3,,,HLOOKUP(AA32,Vehicles!F$6:BB$17,12,FALSE))),'General ass. and conv.'!R$69:W$72,chosenYear,FALSE) -> Recent | H32: =IF(OFFSET(Vehicles!$E$12,chosenYear,MATCH($AA32,Vehicles!$F$6:$AZ$6,0))="Nej","Teknologi ikke tilgængelig",OFFSET(Vehicles!$E$26,0,MATCH($AA32,Vehicles!$F$6:$AZ$6,0))-OFFSET(Vehicles!$E$27,0,MATCH($AA32,Vehicles!$F$6:$AZ$6,0))) -> 6.208191798 | I32: =IF($H32="Teknologi ikke tilgængelig"," ",OFFSET(Vehicles!$E$27,0,MATCH($AA32,Vehicles!$F$6:$AZ$6,0))) -> 2.087819947 | J32: =IF($H32="Teknologi ikke tilgængelig"," ",OFFSET(Vehicles!$E$25,0,MATCH($AA32,Vehicles!$F$6:$AZ$6,0))) -> 0.6846366775 | K32: 8.980648423 | M32: =IF($H32="Teknologi ikke tilgængelig"," ",OFFSET(Vehicles!E$230,0,MATCH($AA32,Vehicles!$F$6:$AZ$6,0))) -> 0.1392256721 | O32: =IF($H32="Teknologi ikke tilgængelig"," ",OFFSET(Vehicles!$E$344,0,MATCH($AA32,Vehicles!$F$6:$AZ$6,0))) -> 1380.625853 | P32: =IF($H32="Teknologi ikke tilgængelig"," ",OFFSET(Vehicles!$E$345,0,MATCH($AA32,Vehicles!$F$6:$AZ$6,0))) -> 0.02294437077 | Q32: =IF($H32="Teknologi ikke tilgængelig"," ",OFFSET(Vehicles!$E$346,0,MATCH($AA32,Vehicles!$F$6:$AZ$6,0))) -> 0.04792639717 | R32: =IF($H32="Teknologi ikke tilgængelig"," ",OFFSET(Vehicles!$E$347,0,MATCH($AA32,Vehicles!$F$6:$AZ$6,0))) -> 0.09568368387 | S32: =IF($H32="Teknologi ikke tilgængelig"," ",OFFSET(Vehicles!$E$348,0,MATCH($AA32,Vehicles!$F$6:$AZ$6,0))) -> 9.189832546 | T32: =IF($H32="Teknologi ikke tilgængelig"," ",OFFSET(Vehicles!$E$349,0,MATCH($AA32,Vehicles!$F$6:$AZ$6,0))) -> 0.05114254793 | V32: =IF($H32="Teknologi ikke tilgængelig"," ",SUMPRODUCT('Basic Data'!$C$211:$E$211,O32:Q32)) -> 1395.481529 | X32: =IF($H32="Teknologi ikke tilgængelig"," ",OFFSET(Vehicles!$E$51,0,MATCH($AA32,Vehicles!$F$6:$AZ$6,0))) -> 0.5054366473 | AA32: Lastbil BioDiesel
E33: Lastbil-Biodiesel HVO | F33: =HLOOKUP(INDIRECT(ADDRESS(9,3,,,HLOOKUP(AA33,Vehicles!F$6:BB$9,4,FALSE))),'General ass. and conv.'!R$69:W$72,chosenYear,FALSE) -> Established | G33: =HLOOKUP(INDIRECT(ADDRESS(19,3,,,HLOOKUP(AA33,Vehicles!F$6:BB$17,12,FALSE))),'General ass. and conv.'!R$69:W$72,chosenYear,FALSE) -> New | H33: =IF(OFFSET(Vehicles!$E$12,chosenYear,MATCH($AA33,Vehicles!$F$6:$AZ$6,0))="Nej","Teknologi ikke tilgængelig",OFFSET(Vehicles!$E$26,0,MATCH($AA33,Vehicles!$F$6:$AZ$6,0))-OFFSET(Vehicles!$E$27,0,MATCH($AA33,Vehicles!$F$6:$AZ$6,0))) -> 6.168572544 | I33: =IF($H33="Teknologi ikke tilgængelig"," ",OFFSET(Vehicles!$E$27,0,MATCH($AA33,Vehicles!$F$6:$AZ$6,0))) -> 3.320993342 | J33: =IF($H33="Teknologi ikke tilgængelig"," ",OFFSET(Vehicles!$E$25,0,MATCH($AA33,Vehicles!$F$6:$AZ$6,0))) -> 0.4620591064 | K33: =IF($H33="Teknologi ikke tilgængelig"," ",SUM(H33:J33)) -> 9.951624993 | M33: =IF($H33="Teknologi ikke tilgængelig"," ",OFFSET(Vehicles!E$230,0,MATCH($AA33,Vehicles!$F$6:$AZ$6,0))) -> 0.1282802238 | O33: =IF($H33="Teknologi ikke tilgængelig"," ",OFFSET(Vehicles!$E$344,0,MATCH($AA33,Vehicles!$F$6:$AZ$6,0))) -> 1515.158558 | P33: =IF($H33="Teknologi ikke tilgængelig"," ",OFFSET(Vehicles!$E$345,0,MATCH($AA33,Vehicles!$F$6:$AZ$6,0))) -> 0.004221519044 | Q33: =IF($H33="Teknologi ikke tilgængelig"," ",OFFSET(Vehicles!$E$346,0,MATCH($AA33,Vehicles!$F$6:$AZ$6,0))) -> 0.04540494101 | R33: =IF($H33="Teknologi ikke tilgængelig"," ",OFFSET(Vehicles!$E$347,0,MATCH($AA33,Vehicles!$F$6:$AZ$6,0))) -> 0.01289548083 | S33: =IF($H33="Teknologi ikke tilgængelig"," ",OFFSET(Vehicles!$E$348,0,MATCH($AA33,Vehicles!$F$6:$AZ$6,0))) -> 4.862912169 | T33: =IF($H33="Teknologi ikke tilgængelig"," ",OFFSET(Vehicles!$E$349,0,MATCH($AA33,Vehicles!$F$6:$AZ$6,0))) -> 0.04361931857 | V33: =IF($H33="Teknologi ikke tilgængelig"," ",SUMPRODUCT('Basic Data'!$C$211:$E$211,O33:Q33)) -> 1528.794768 | X33: =IF($H33="Teknologi ikke tilgængelig"," ",OFFSET(Vehicles!$E$51,0,MATCH($AA33,Vehicles!$F$6:$AZ$6,0))) -> 0.4445250513 | AA33: Lastbil HVO
B34: Gas price | E34: Lastbil-DME | F34: =HLOOKUP(INDIRECT(ADDRESS(9,3,,,HLOOKUP(AA34,Vehicles!F$6:BB$9,4,FALSE))),'General ass. and conv.'!R$69:W$72,chosenYear,FALSE) -> Demonstration | G34: =HLOOKUP(INDIRECT(ADDRESS(19,3,,,HLOOKUP(AA34,Vehicles!F$6:BB$17,12,FALSE))),'General ass. and conv.'!R$69:W$72,chosenYear,FALSE) -> Demonstration | H34: =IF(OFFSET(Vehicles!$E$12,chosenYear,MATCH($AA34,Vehicles!$F$6:$AZ$6,0))="Nej","Teknologi ikke tilgængelig",OFFSET(Vehicles!$E$26,0,MATCH($AA34,Vehicles!$F$6:$AZ$6,0))-OFFSET(Vehicles!$E$27,0,MATCH($AA34,Vehicles!$F$6:$AZ$6,0))) -> Teknologi ikke tilgængelig | I34: =IF($H34="Teknologi ikke tilgængelig"," ",OFFSET(Vehicles!$E$27,0,MATCH($AA34,Vehicles!$F$6:$AZ$6,0))) ->  | J34: =IF($H34="Teknologi ikke tilgængelig"," ",OFFSET(Vehicles!$E$25,0,MATCH($AA34,Vehicles!$F$6:$AZ$6,0))) ->  | M34: =IF($H34="Teknologi ikke tilgængelig"," ",OFFSET(Vehicles!E$230,0,MATCH($AA34,Vehicles!$F$6:$AZ$6,0))) ->  | O34: =IF($H34="Teknologi ikke tilgængelig"," ",OFFSET(Vehicles!$E$344,0,MATCH($AA34,Vehicles!$F$6:$AZ$6,0))) ->  | P34: =IF($H34="Teknologi ikke tilgængelig"," ",OFFSET(Vehicles!$E$345,0,MATCH($AA34,Vehicles!$F$6:$AZ$6,0))) ->  | Q34: =IF($H34="Teknologi ikke tilgængelig"," ",OFFSET(Vehicles!$E$346,0,MATCH($AA34,Vehicles!$F$6:$AZ$6,0))) ->  | R34: =IF($H34="Teknologi ikke tilgængelig"," ",OFFSET(Vehicles!$E$347,0,MATCH($AA34,Vehicles!$F$6:$AZ$6,0))) ->  | S34: =IF($H34="Teknologi ikke tilgængelig"," ",OFFSET(Vehicles!$E$348,0,MATCH($AA34,Vehicles!$F$6:$AZ$6,0))) ->  | T34: =IF($H34="Teknologi ikke tilgængelig"," ",OFFSET(Vehicles!$E$349,0,MATCH($AA34,Vehicles!$F$6:$AZ$6,0))) ->  | V34: =IF($H34="Teknologi ikke tilgængelig"," ",SUMPRODUCT('Basic Data'!$C$211:$E$211,O34:Q34)) ->  | X34: =IF($H34="Teknologi ikke tilgængelig"," ",OFFSET(Vehicles!$E$51,0,MATCH($AA34,Vehicles!$F$6:$AZ$6,0))) ->  | AA34: Lastbil DME
B35: =CONCATENATE("Default CIF price (in 2015-DKK/GJ) : ",CHOOSE(chosenYear,'Basic Data'!D973,'Basic Data'!E973,'Basic Data'!F973,'Basic Data'!G973)) -> Default CIF price (in 2015-DKK/GJ) : 69.7551279177571 | E35: Lastbil-CBG | F35: =HLOOKUP(INDIRECT(ADDRESS(9,3,,,HLOOKUP(AA35,Vehicles!F$6:BB$9,4,FALSE))),'General ass. and conv.'!R$69:W$72,chosenYear,FALSE) -> Recent | G35: =HLOOKUP(INDIRECT(ADDRESS(19,3,,,HLOOKUP(AA35,Vehicles!F$6:BB$17,12,FALSE))),'General ass. and conv.'!R$69:W$72,chosenYear,FALSE) -> New | H35: =IF(OFFSET(Vehicles!$E$12,chosenYear,MATCH($AA35,Vehicles!$F$6:$AZ$6,0))="Nej","Teknologi ikke tilgængelig",OFFSET(Vehicles!$E$26,0,MATCH($AA35,Vehicles!$F$6:$AZ$6,0))-OFFSET(Vehicles!$E$27,0,MATCH($AA35,Vehicles!$F$6:$AZ$6,0))) -> 6.601079898 | I35: =IF($H35="Teknologi ikke tilgængelig"," ",OFFSET(Vehicles!$E$27,0,MATCH($AA35,Vehicles!$F$6:$AZ$6,0))) -> 2.837545614 | J35: =IF($H35="Teknologi ikke tilgængelig"," ",OFFSET(Vehicles!$E$25,0,MATCH($AA35,Vehicles!$F$6:$AZ$6,0))) -> 0.4628949845 | K35: 9.901520497 | M35: =IF($H35="Teknologi ikke tilgængelig"," ",OFFSET(Vehicles!E$230,0,MATCH($AA35,Vehicles!$F$6:$AZ$6,0))) -> 0.1326204643 | O35: =IF($H35="Teknologi ikke tilgængelig"," ",OFFSET(Vehicles!$E$344,0,MATCH($AA35,Vehicles!$F$6:$AZ$6,0))) -> -689.8936468 | P35: =IF($H35="Teknologi ikke tilgængelig"," ",OFFSET(Vehicles!$E$345,0,MATCH($AA35,Vehicles!$F$6:$AZ$6,0))) -> 2.50713987 | Q35: =IF($H35="Teknologi ikke tilgængelig"," ",OFFSET(Vehicles!$E$346,0,MATCH($AA35,Vehicles!$F$6:$AZ$6,0))) -> 0.06081411032 | R35: =IF($H35="Teknologi ikke tilgængelig"," ",OFFSET(Vehicles!$E$347,0,MATCH($AA35,Vehicles!$F$6:$AZ$6,0))) -> 0.2249230978 | S35: =IF($H35="Teknologi ikke tilgængelig"," ",OFFSET(Vehicles!$E$348,0,MATCH($AA35,Vehicles!$F$6:$AZ$6,0))) -> 6.023040854 | T35: =IF($H35="Teknologi ikke tilgængelig"," ",OFFSET(Vehicles!$E$349,0,MATCH($AA35,Vehicles!$F$6:$AZ$6,0))) -> 0.07099026434 | V35: =IF($H35="Teknologi ikke tilgængelig"," ",SUMPRODUCT('Basic Data'!$C$211:$E$211,O35:Q35)) -> -609.0925452 | X35: =IF($H35="Teknologi ikke tilgængelig"," ",OFFSET(Vehicles!$E$51,0,MATCH($AA35,Vehicles!$F$6:$AZ$6,0))) -> 0.2101229146 | AA35: Lastbil CBG
E36: Bus-Diesel | F36: =HLOOKUP(INDIRECT(ADDRESS(9,3,,,HLOOKUP(AA36,Vehicles!F$6:BB$9,4,FALSE))),'General ass. and conv.'!R$69:W$72,chosenYear,FALSE) -> Established | G36: =HLOOKUP(INDIRECT(ADDRESS(19,3,,,HLOOKUP(AA36,Vehicles!F$6:BB$17,12,FALSE))),'General ass. and conv.'!R$69:W$72,chosenYear,FALSE) -> Established | H36: =IF(OFFSET(Vehicles!$E$12,chosenYear,MATCH($AA36,Vehicles!$F$6:$AZ$6,0))="Nej","Teknologi ikke tilgængelig",OFFSET(Vehicles!$E$26,0,MATCH($AA36,Vehicles!$F$6:$AZ$6,0))-OFFSET(Vehicles!$E$27,0,MATCH($AA36,Vehicles!$F$6:$AZ$6,0))) -> 5.772066938 | I36: =IF($H36="Teknologi ikke tilgængelig"," ",OFFSET(Vehicles!$E$27,0,MATCH($AA36,Vehicles!$F$6:$AZ$6,0))) -> 2.356289552 | J36: =IF($H36="Teknologi ikke tilgængelig"," ",OFFSET(Vehicles!$E$25,0,MATCH($AA36,Vehicles!$F$6:$AZ$6,0))) -> 0.7158607824 | K36: 8.844217273 | M36: =IF($H36="Teknologi ikke tilgængelig"," ",OFFSET(Vehicles!E$230,0,MATCH($AA36,Vehicles!$F$6:$AZ$6,0))) -> 0.09481691265 | O36: =IF($H36="Teknologi ikke tilgængelig"," ",OFFSET(Vehicles!$E$344,0,MATCH($AA36,Vehicles!$F$6:$AZ$6,0))) -> 1721.629917 | P36: =IF($H36="Teknologi ikke tilgængelig"," ",OFFSET(Vehicles!$E$345,0,MATCH($AA36,Vehicles!$F$6:$AZ$6,0))) -> 0.00894623504 | Q36: =IF($H36="Teknologi ikke tilgængelig"," ",OFFSET(Vehicles!$E$346,0,MATCH($AA36,Vehicles!$F$6:$AZ$6,0))) -> 0.04792291338 | R36: =IF($H36="Teknologi ikke tilgængelig"," ",OFFSET(Vehicles!$E$347,0,MATCH($AA36,Vehicles!$F$6:$AZ$6,0))) -> 0.07951251763 | S36: =IF($H36="Teknologi ikke tilgængelig"," ",OFFSET(Vehicles!$E$348,0,MATCH($AA36,Vehicles!$F$6:$AZ$6,0))) -> 9.461713844 | T36: =IF($H36="Teknologi ikke tilgængelig"," ",OFFSET(Vehicles!$E$349,0,MATCH($AA36,Vehicles!$F$6:$AZ$6,0))) -> 0.0544809866 | V36: =IF($H36="Teknologi ikke tilgængelig"," ",SUMPRODUCT('Basic Data'!$C$211:$E$211,O36:Q36)) -> 1736.134601 | X36: =IF($H36="Teknologi ikke tilgængelig"," ",OFFSET(Vehicles!$E$51,0,MATCH($AA36,Vehicles!$F$6:$AZ$6,0))) -> 0.4602047197 | AA36: Bus Diesel
B37: 1000 Nm³ = 39,46 GJ | E37: Bus-Biodiesel HVO | F37: =HLOOKUP(INDIRECT(ADDRESS(9,3,,,HLOOKUP(AA37,Vehicles!F$6:BB$9,4,FALSE))),'General ass. and conv.'!R$69:W$72,chosenYear,FALSE) -> Established | G37: =HLOOKUP(INDIRECT(ADDRESS(19,3,,,HLOOKUP(AA37,Vehicles!F$6:BB$17,12,FALSE))),'General ass. and conv.'!R$69:W$72,chosenYear,FALSE) -> New | H37: =IF(OFFSET(Vehicles!$E$12,chosenYear,MATCH($AA37,Vehicles!$F$6:$AZ$6,0))="Nej","Teknologi ikke tilgængelig",OFFSET(Vehicles!$E$26,0,MATCH($AA37,Vehicles!$F$6:$AZ$6,0))-OFFSET(Vehicles!$E$27,0,MATCH($AA37,Vehicles!$F$6:$AZ$6,0))) -> 5.772066938 | I37: =IF($H37="Teknologi ikke tilgængelig"," ",OFFSET(Vehicles!$E$27,0,MATCH($AA37,Vehicles!$F$6:$AZ$6,0))) -> 3.988679925 | J37: =IF($H37="Teknologi ikke tilgængelig"," ",OFFSET(Vehicles!$E$25,0,MATCH($AA37,Vehicles!$F$6:$AZ$6,0))) -> 0.5810755125 | K37: =IF($H37="Teknologi ikke tilgængelig"," ",SUM(H37:J37)) -> 10.34182238 | M37: =IF($H37="Teknologi ikke tilgængelig"," ",OFFSET(Vehicles!E$230,0,MATCH($AA37,Vehicles!$F$6:$AZ$6,0))) -> 0.08270283008 | O37: =IF($H37="Teknologi ikke tilgængelig"," ",OFFSET(Vehicles!$E$344,0,MATCH($AA37,Vehicles!$F$6:$AZ$6,0))) -> 1771.918569 | P37: =IF($H37="Teknologi ikke tilgængelig"," ",OFFSET(Vehicles!$E$345,0,MATCH($AA37,Vehicles!$F$6:$AZ$6,0))) -> 0.001546029492 | Q37: =IF($H37="Teknologi ikke tilgængelig"," ",OFFSET(Vehicles!$E$346,0,MATCH($AA37,Vehicles!$F$6:$AZ$6,0))) -> 0.04626764058 | R37: =IF($H37="Teknologi ikke tilgængelig"," ",OFFSET(Vehicles!$E$347,0,MATCH($AA37,Vehicles!$F$6:$AZ$6,0))) -> 0.01114716276 | S37: =IF($H37="Teknologi ikke tilgængelig"," ",OFFSET(Vehicles!$E$348,0,MATCH($AA37,Vehicles!$F$6:$AZ$6,0))) -> 6.923436596 | T37: =IF($H37="Teknologi ikke tilgængelig"," ",OFFSET(Vehicles!$E$349,0,MATCH($AA37,Vehicles!$F$6:$AZ$6,0))) -> 0.05175152399 | V37: =IF($H37="Teknologi ikke tilgængelig"," ",SUMPRODUCT('Basic Data'!$C$211:$E$211,O37:Q37)) -> 1785.744977 | X37: =IF($H37="Teknologi ikke tilgængelig"," ",OFFSET(Vehicles!$E$51,0,MATCH($AA37,Vehicles!$F$6:$AZ$6,0))) -> 0.5338969296 | AA37: Bus HVO
E38: Bus-CNG | F38: =HLOOKUP(INDIRECT(ADDRESS(9,3,,,HLOOKUP(AA38,Vehicles!F$6:BB$9,4,FALSE))),'General ass. and conv.'!R$69:W$72,chosenYear,FALSE) -> Recent | G38: =HLOOKUP(INDIRECT(ADDRESS(19,3,,,HLOOKUP(AA38,Vehicles!F$6:BB$17,12,FALSE))),'General ass. and conv.'!R$69:W$72,chosenYear,FALSE) -> Established | H38: =IF(OFFSET(Vehicles!$E$12,chosenYear,MATCH($AA38,Vehicles!$F$6:$AZ$6,0))="Nej","Teknologi ikke tilgængelig",OFFSET(Vehicles!$E$26,0,MATCH($AA38,Vehicles!$F$6:$AZ$6,0))-OFFSET(Vehicles!$E$27,0,MATCH($AA38,Vehicles!$F$6:$AZ$6,0))) -> 6.327200146 | I38: =IF($H38="Teknologi ikke tilgængelig"," ",OFFSET(Vehicles!$E$27,0,MATCH($AA38,Vehicles!$F$6:$AZ$6,0))) -> 1.61475279 | J38: =IF($H38="Teknologi ikke tilgængelig"," ",OFFSET(Vehicles!$E$25,0,MATCH($AA38,Vehicles!$F$6:$AZ$6,0))) -> 0.6597208142 | K38: 8.601673751 | M38: =IF($H38="Teknologi ikke tilgængelig"," ",OFFSET(Vehicles!E$230,0,MATCH($AA38,Vehicles!$F$6:$AZ$6,0))) -> 0.07789496912 | O38: =IF($H38="Teknologi ikke tilgængelig"," ",OFFSET(Vehicles!$E$344,0,MATCH($AA38,Vehicles!$F$6:$AZ$6,0))) -> 1507.603203 | P38: =IF($H38="Teknologi ikke tilgængelig"," ",OFFSET(Vehicles!$E$345,0,MATCH($AA38,Vehicles!$F$6:$AZ$6,0))) -> 0.5881662666 | Q38: =IF($H38="Teknologi ikke tilgængelig"," ",OFFSET(Vehicles!$E$346,0,MATCH($AA38,Vehicles!$F$6:$AZ$6,0))) -> 0.05624455993 | R38: =IF($H38="Teknologi ikke tilgængelig"," ",OFFSET(Vehicles!$E$347,0,MATCH($AA38,Vehicles!$F$6:$AZ$6,0))) -> 0.04639828332 | S38: =IF($H38="Teknologi ikke tilgængelig"," ",OFFSET(Vehicles!$E$348,0,MATCH($AA38,Vehicles!$F$6:$AZ$6,0))) -> 8.503637677 | T38: =IF($H38="Teknologi ikke tilgængelig"," ",OFFSET(Vehicles!$E$349,0,MATCH($AA38,Vehicles!$F$6:$AZ$6,0))) -> 0.06396807586 | V38: =IF($H38="Teknologi ikke tilgængelig"," ",SUMPRODUCT('Basic Data'!$C$211:$E$211,O38:Q38)) -> 1539.068238 | X38: =IF($H38="Teknologi ikke tilgængelig"," ",OFFSET(Vehicles!$E$51,0,MATCH($AA38,Vehicles!$F$6:$AZ$6,0))) -> 0.2528742621 | AA38: Bus CNG
E39: Bus-CBG | F39: =HLOOKUP(INDIRECT(ADDRESS(9,3,,,HLOOKUP(AA39,Vehicles!F$6:BB$9,4,FALSE))),'General ass. and conv.'!R$69:W$72,chosenYear,FALSE) -> Recent | G39: =HLOOKUP(INDIRECT(ADDRESS(19,3,,,HLOOKUP(AA39,Vehicles!F$6:BB$17,12,FALSE))),'General ass. and conv.'!R$69:W$72,chosenYear,FALSE) -> New | H39: =IF(OFFSET(Vehicles!$E$12,chosenYear,MATCH($AA39,Vehicles!$F$6:$AZ$6,0))="Nej","Teknologi ikke tilgængelig",OFFSET(Vehicles!$E$26,0,MATCH($AA39,Vehicles!$F$6:$AZ$6,0))-OFFSET(Vehicles!$E$27,0,MATCH($AA39,Vehicles!$F$6:$AZ$6,0))) -> 6.327200146 | I39: =IF($H39="Teknologi ikke tilgængelig"," ",OFFSET(Vehicles!$E$27,0,MATCH($AA39,Vehicles!$F$6:$AZ$6,0))) -> 3.414869124 | J39: =IF($H39="Teknologi ikke tilgængelig"," ",OFFSET(Vehicles!$E$25,0,MATCH($AA39,Vehicles!$F$6:$AZ$6,0))) -> 0.5938813646 | K39: 10.33595064 | M39: =IF($H39="Teknologi ikke tilgængelig"," ",OFFSET(Vehicles!E$230,0,MATCH($AA39,Vehicles!$F$6:$AZ$6,0))) -> 0.08540022724 | O39: =IF($H39="Teknologi ikke tilgængelig"," ",OFFSET(Vehicles!$E$344,0,MATCH($AA39,Vehicles!$F$6:$AZ$6,0))) -> -876.5365667 | P39: =IF($H39="Teknologi ikke tilgængelig"," ",OFFSET(Vehicles!$E$345,0,MATCH($AA39,Vehicles!$F$6:$AZ$6,0))) -> 2.67221391 | Q39: =IF($H39="Teknologi ikke tilgængelig"," ",OFFSET(Vehicles!$E$346,0,MATCH($AA39,Vehicles!$F$6:$AZ$6,0))) -> 0.06326185854 | R39: =IF($H39="Teknologi ikke tilgængelig"," ",OFFSET(Vehicles!$E$347,0,MATCH($AA39,Vehicles!$F$6:$AZ$6,0))) -> 0.2688697226 | S39: =IF($H39="Teknologi ikke tilgængelig"," ",OFFSET(Vehicles!$E$348,0,MATCH($AA39,Vehicles!$F$6:$AZ$6,0))) -> 8.558479091 | T39: =IF($H39="Teknologi ikke tilgængelig"," ",OFFSET(Vehicles!$E$349,0,MATCH($AA39,Vehicles!$F$6:$AZ$6,0))) -> 0.08473534725 | V39: =IF($H39="Teknologi ikke tilgængelig"," ",SUMPRODUCT('Basic Data'!$C$211:$E$211,O39:Q39)) -> -790.8791851 | X39: =IF($H39="Teknologi ikke tilgængelig"," ",OFFSET(Vehicles!$E$51,0,MATCH($AA39,Vehicles!$F$6:$AZ$6,0))) -> 0.2528742621 | AA39: Bus CBG
E40: Bus-biodiesel RME | F40: =HLOOKUP(INDIRECT(ADDRESS(9,3,,,HLOOKUP(AA40,Vehicles!F$6:BB$9,4,FALSE))),'General ass. and conv.'!R$69:W$72,chosenYear,FALSE) -> Established | G40: =HLOOKUP(INDIRECT(ADDRESS(19,3,,,HLOOKUP(AA40,Vehicles!F$6:BB$17,12,FALSE))),'General ass. and conv.'!R$69:W$72,chosenYear,FALSE) -> Recent | H40: =IF(OFFSET(Vehicles!$E$12,chosenYear,MATCH($AA40,Vehicles!$F$6:$AZ$6,0))="Nej","Teknologi ikke tilgængelig",OFFSET(Vehicles!$E$26,0,MATCH($AA40,Vehicles!$F$6:$AZ$6,0))-OFFSET(Vehicles!$E$27,0,MATCH($AA40,Vehicles!$F$6:$AZ$6,0))) -> 5.772066938 | I40: =IF($H40="Teknologi ikke tilgængelig"," ",OFFSET(Vehicles!$E$27,0,MATCH($AA40,Vehicles!$F$6:$AZ$6,0))) -> 2.507576695 | J40: =IF($H40="Teknologi ikke tilgængelig"," ",OFFSET(Vehicles!$E$25,0,MATCH($AA40,Vehicles!$F$6:$AZ$6,0))) -> 0.7949574291 | K40: 9.074601063 | M40: =IF($H40="Teknologi ikke tilgængelig"," ",OFFSET(Vehicles!E$230,0,MATCH($AA40,Vehicles!$F$6:$AZ$6,0))) -> 0.08991870059 | O40: =IF($H40="Teknologi ikke tilgængelig"," ",OFFSET(Vehicles!$E$344,0,MATCH($AA40,Vehicles!$F$6:$AZ$6,0))) -> 1610.455951 | P40: =IF($H40="Teknologi ikke tilgængelig"," ",OFFSET(Vehicles!$E$345,0,MATCH($AA40,Vehicles!$F$6:$AZ$6,0))) -> 0.02403406671 | Q40: =IF($H40="Teknologi ikke tilgængelig"," ",OFFSET(Vehicles!$E$346,0,MATCH($AA40,Vehicles!$F$6:$AZ$6,0))) -> 0.04929647095 | R40: =IF($H40="Teknologi ikke tilgængelig"," ",OFFSET(Vehicles!$E$347,0,MATCH($AA40,Vehicles!$F$6:$AZ$6,0))) -> 0.1113651725 | S40: =IF($H40="Teknologi ikke tilgængelig"," ",OFFSET(Vehicles!$E$348,0,MATCH($AA40,Vehicles!$F$6:$AZ$6,0))) -> 11.00342103 | T40: =IF($H40="Teknologi ikke tilgængelig"," ",OFFSET(Vehicles!$E$349,0,MATCH($AA40,Vehicles!$F$6:$AZ$6,0))) -> 0.06078991167 | V40: =IF($H40="Teknologi ikke tilgængelig"," ",SUMPRODUCT('Basic Data'!$C$211:$E$211,O40:Q40)) -> 1625.747151 | X40: =IF($H40="Teknologi ikke tilgængelig"," ",OFFSET(Vehicles!$E$51,0,MATCH($AA40,Vehicles!$F$6:$AZ$6,0))) -> 0.6070548179 | AA40: Bus Biodiesel
B41: Default settings | E41: Bus-Hybrid | F41: =HLOOKUP(INDIRECT(ADDRESS(9,3,,,HLOOKUP(AA41,Vehicles!F$6:BB$9,4,FALSE))),'General ass. and conv.'!R$69:W$72,chosenYear,FALSE) -> Recent | G41: =HLOOKUP(INDIRECT(ADDRESS(19,3,,,HLOOKUP(AA41,Vehicles!F$6:BB$17,12,FALSE))),'General ass. and conv.'!R$69:W$72,chosenYear,FALSE) -> Established | H41: =IF(OFFSET(Vehicles!$E$12,chosenYear,MATCH($AA41,Vehicles!$F$6:$AZ$6,0))="Nej","Teknologi ikke tilgængelig",OFFSET(Vehicles!$E$26,0,MATCH($AA41,Vehicles!$F$6:$AZ$6,0))-OFFSET(Vehicles!$E$27,0,MATCH($AA41,Vehicles!$F$6:$AZ$6,0))) -> 7.336225582 | I41: =IF($H41="Teknologi ikke tilgængelig"," ",OFFSET(Vehicles!$E$27,0,MATCH($AA41,Vehicles!$F$6:$AZ$6,0))) -> 1.648372454 | J41: =IF($H41="Teknologi ikke tilgængelig"," ",OFFSET(Vehicles!$E$25,0,MATCH($AA41,Vehicles!$F$6:$AZ$6,0))) -> 0.5492956274 | K41: 9.533893663 | M41: =IF($H41="Teknologi ikke tilgængelig"," ",OFFSET(Vehicles!E$230,0,MATCH($AA41,Vehicles!$F$6:$AZ$6,0))) -> 0.1252896559 | O41: =IF($H41="Teknologi ikke tilgængelig"," ",OFFSET(Vehicles!$E$344,0,MATCH($AA41,Vehicles!$F$6:$AZ$6,0))) -> 1299.798581 | P41: =IF($H41="Teknologi ikke tilgængelig"," ",OFFSET(Vehicles!$E$345,0,MATCH($AA41,Vehicles!$F$6:$AZ$6,0))) -> 0.007064123963 | Q41: =IF($H41="Teknologi ikke tilgængelig"," ",OFFSET(Vehicles!$E$346,0,MATCH($AA41,Vehicles!$F$6:$AZ$6,0))) -> 0.03425193835 | R41: =IF($H41="Teknologi ikke tilgængelig"," ",OFFSET(Vehicles!$E$347,0,MATCH($AA41,Vehicles!$F$6:$AZ$6,0))) -> 0.0714989207 | S41: =IF($H41="Teknologi ikke tilgængelig"," ",OFFSET(Vehicles!$E$348,0,MATCH($AA41,Vehicles!$F$6:$AZ$6,0))) -> 6.767304088 | T41: =IF($H41="Teknologi ikke tilgængelig"," ",OFFSET(Vehicles!$E$349,0,MATCH($AA41,Vehicles!$F$6:$AZ$6,0))) -> 0.03875991927 | V41: =IF($H41="Teknologi ikke tilgængelig"," ",SUMPRODUCT('Basic Data'!$C$211:$E$211,O41:Q41)) -> 1310.182261 | X41: =IF($H41="Teknologi ikke tilgængelig"," ",OFFSET(Vehicles!$E$51,0,MATCH($AA41,Vehicles!$F$6:$AZ$6,0))) -> 0.32194209 | AA41: Bus Hybrid
B42: - ILUC, low | E42: Bus-El | F42: =HLOOKUP(INDIRECT(ADDRESS(9,3,,,HLOOKUP(AA42,Vehicles!F$6:BB$9,4,FALSE))),'General ass. and conv.'!R$69:W$72,chosenYear,FALSE) -> New | G42: =HLOOKUP(INDIRECT(ADDRESS(19,3,,,HLOOKUP(AA42,Vehicles!F$6:BB$17,12,FALSE))),'General ass. and conv.'!R$69:W$72,chosenYear,FALSE) -> Established | H42: =IF(OFFSET(Vehicles!$E$12,chosenYear,MATCH($AA42,Vehicles!$F$6:$AZ$6,0))="Nej","Teknologi ikke tilgængelig",OFFSET(Vehicles!$E$26,0,MATCH($AA42,Vehicles!$F$6:$AZ$6,0))-OFFSET(Vehicles!$E$27,0,MATCH($AA42,Vehicles!$F$6:$AZ$6,0))) -> 10.41652443 | I42: =IF($H42="Teknologi ikke tilgængelig"," ",OFFSET(Vehicles!$E$27,0,MATCH($AA42,Vehicles!$F$6:$AZ$6,0))) -> 0.6672590468 | J42: =IF($H42="Teknologi ikke tilgængelig"," ",OFFSET(Vehicles!$E$25,0,MATCH($AA42,Vehicles!$F$6:$AZ$6,0))) -> 0.07944520597 | K42: 11.16322868 | M42: =IF($H42="Teknologi ikke tilgængelig"," ",OFFSET(Vehicles!E$230,0,MATCH($AA42,Vehicles!$F$6:$AZ$6,0))) -> 0.2210095692 | O42: =IF($H42="Teknologi ikke tilgængelig"," ",OFFSET(Vehicles!$E$344,0,MATCH($AA42,Vehicles!$F$6:$AZ$6,0))) -> 201.2207933 | P42: =IF($H42="Teknologi ikke tilgængelig"," ",OFFSET(Vehicles!$E$345,0,MATCH($AA42,Vehicles!$F$6:$AZ$6,0))) -> 0.001998614982 | Q42: =IF($H42="Teknologi ikke tilgængelig"," ",OFFSET(Vehicles!$E$346,0,MATCH($AA42,Vehicles!$F$6:$AZ$6,0))) -> 0.001826332094 | R42: =IF($H42="Teknologi ikke tilgængelig"," ",OFFSET(Vehicles!$E$347,0,MATCH($AA42,Vehicles!$F$6:$AZ$6,0))) -> 0.03615326951 | S42: =IF($H42="Teknologi ikke tilgængelig"," ",OFFSET(Vehicles!$E$348,0,MATCH($AA42,Vehicles!$F$6:$AZ$6,0))) -> 0.8289433527 | T42: =IF($H42="Teknologi ikke tilgængelig"," ",OFFSET(Vehicles!$E$349,0,MATCH($AA42,Vehicles!$F$6:$AZ$6,0))) -> 0.001924620166 | V42: =IF($H42="Teknologi ikke tilgængelig"," ",SUMPRODUCT('Basic Data'!$C$211:$E$211,O42:Q42)) -> 201.8150056 | X42: =IF($H42="Teknologi ikke tilgængelig"," ",OFFSET(Vehicles!$E$51,0,MATCH($AA42,Vehicles!$F$6:$AZ$6,0))) -> 0.2672508484 | AA42: Bus El
B43: - Electricity price excludes CO2 quotes
B44: - (Long term) marginal emissions | D44: Skibe | E44: Hurtigfærge | F44: =HLOOKUP(INDIRECT(ADDRESS(9,3,,,HLOOKUP(AA44,Vehicles!F$6:BB$9,4,FALSE))),'General ass. and conv.'!R$69:W$72,chosenYear,FALSE) -> Established | G44: =HLOOKUP(INDIRECT(ADDRESS(19,3,,,HLOOKUP(AA44,Vehicles!F$6:BB$17,12,FALSE))),'General ass. and conv.'!R$69:W$72,chosenYear,FALSE) -> Established | H44: =IF(OFFSET(Vehicles!$E$12,chosenYear,MATCH($AA44,Vehicles!$F$6:$AZ$6,0))="Nej","Teknologi ikke tilgængelig",OFFSET(Vehicles!$E$26,0,MATCH($AA44,Vehicles!$F$6:$AZ$6,0))-OFFSET(Vehicles!$E$27,0,MATCH($AA44,Vehicles!$F$6:$AZ$6,0))) -> 0 | I44: =IF($H44="Teknologi ikke tilgængelig"," ",OFFSET(Vehicles!$E$27,0,MATCH($AA44,Vehicles!$F$6:$AZ$6,0))) -> 622.8760073 | J44: =IF($H44="Teknologi ikke tilgængelig"," ",OFFSET(Vehicles!$E$25,0,MATCH($AA44,Vehicles!$F$6:$AZ$6,0))) -> 382.7833772 | K44: =IF($H44="Teknologi ikke tilgængelig"," ",SUM(H44:J44)) -> 1005.659384 | M44: =IF($H44="Teknologi ikke tilgængelig"," ",OFFSET(Vehicles!E$230,0,MATCH($AA44,Vehicles!$F$6:$AZ$6,0))) -> 0.3332101801 | O44: =IF($H44="Teknologi ikke tilgængelig"," ",OFFSET(Vehicles!$E$344,0,MATCH($AA44,Vehicles!$F$6:$AZ$6,0))) -> 433175.0495 | P44: =IF($H44="Teknologi ikke tilgængelig"," ",OFFSET(Vehicles!$E$345,0,MATCH($AA44,Vehicles!$F$6:$AZ$6,0))) -> 0.6516496229 | Q44: =IF($H44="Teknologi ikke tilgængelig"," ",OFFSET(Vehicles!$E$346,0,MATCH($AA44,Vehicles!$F$6:$AZ$6,0))) -> 0.3270863517 | R44: =IF($H44="Teknologi ikke tilgængelig"," ",OFFSET(Vehicles!$E$347,0,MATCH($AA44,Vehicles!$F$6:$AZ$6,0))) -> 778.4362582 | S44: =IF($H44="Teknologi ikke tilgængelig"," ",OFFSET(Vehicles!$E$348,0,MATCH($AA44,Vehicles!$F$6:$AZ$6,0))) -> 2666.236805 | T44: =IF($H44="Teknologi ikke tilgængelig"," ",OFFSET(Vehicles!$E$349,0,MATCH($AA44,Vehicles!$F$6:$AZ$6,0))) -> 391.4022302 | V44: =IF($H44="Teknologi ikke tilgængelig"," ",SUMPRODUCT('Basic Data'!$C$211:$E$211,O44:Q44)) -> 433288.8124 | X44: =IF($H44="Teknologi ikke tilgængelig"," ",OFFSET(Vehicles!$E$51,0,MATCH($AA44,Vehicles!$F$6:$AZ$6,0))) -> 121.6533333 | AA44: Fast Ferry
B45: - Moderate learning | E45: Hurtigfærge-biod. halm | F45: =HLOOKUP(INDIRECT(ADDRESS(9,3,,,HLOOKUP(AA45,Vehicles!F$6:BB$9,4,FALSE))),'General ass. and conv.'!R$69:W$72,chosenYear,FALSE) -> Established | G45: =HLOOKUP(INDIRECT(ADDRESS(19,3,,,HLOOKUP(AA45,Vehicles!F$6:BB$17,12,FALSE))),'General ass. and conv.'!R$69:W$72,chosenYear,FALSE) -> Laboratory | H45: =IF(OFFSET(Vehicles!$E$12,chosenYear,MATCH($AA45,Vehicles!$F$6:$AZ$6,0))="Nej","Teknologi ikke tilgængelig",OFFSET(Vehicles!$E$26,0,MATCH($AA45,Vehicles!$F$6:$AZ$6,0))-OFFSET(Vehicles!$E$27,0,MATCH($AA45,Vehicles!$F$6:$AZ$6,0))) -> Teknologi ikke tilgængelig | I45: =IF($H45="Teknologi ikke tilgængelig"," ",OFFSET(Vehicles!$E$27,0,MATCH($AA45,Vehicles!$F$6:$AZ$6,0))) ->  | J45: =IF($H45="Teknologi ikke tilgængelig"," ",OFFSET(Vehicles!$E$25,0,MATCH($AA45,Vehicles!$F$6:$AZ$6,0))) ->  | M45: =IF($H45="Teknologi ikke tilgængelig"," ",OFFSET(Vehicles!E$230,0,MATCH($AA45,Vehicles!$F$6:$AZ$6,0))) ->  | O45: =IF($H45="Teknologi ikke tilgængelig"," ",OFFSET(Vehicles!$E$344,0,MATCH($AA45,Vehicles!$F$6:$AZ$6,0))) ->  | P45: =IF($H45="Teknologi ikke tilgængelig"," ",OFFSET(Vehicles!$E$345,0,MATCH($AA45,Vehicles!$F$6:$AZ$6,0))) ->  | Q45: =IF($H45="Teknologi ikke tilgængelig"," ",OFFSET(Vehicles!$E$346,0,MATCH($AA45,Vehicles!$F$6:$AZ$6,0))) ->  | R45: =IF($H45="Teknologi ikke tilgængelig"," ",OFFSET(Vehicles!$E$347,0,MATCH($AA45,Vehicles!$F$6:$AZ$6,0))) ->  | S45: =IF($H45="Teknologi ikke tilgængelig"," ",OFFSET(Vehicles!$E$348,0,MATCH($AA45,Vehicles!$F$6:$AZ$6,0))) ->  | T45: =IF($H45="Teknologi ikke tilgængelig"," ",OFFSET(Vehicles!$E$349,0,MATCH($AA45,Vehicles!$F$6:$AZ$6,0))) ->  | V45: =IF($H45="Teknologi ikke tilgængelig"," ",SUMPRODUCT('Basic Data'!$C$211:$E$211,O45:Q45)) ->  | X45: =IF($H45="Teknologi ikke tilgængelig"," ",OFFSET(Vehicles!$E$51,0,MATCH($AA45,Vehicles!$F$6:$AZ$6,0))) ->  | AA45: Fast Ferry - Biodiesel
B46: - Baseline sensitivities | E46: 9000TEU HFO | F46: =HLOOKUP(INDIRECT(ADDRESS(9,3,,,HLOOKUP(AA46,Vehicles!F$6:BB$9,4,FALSE))),'General ass. and conv.'!R$69:W$72,chosenYear,FALSE) -> Established | G46: =HLOOKUP(INDIRECT(ADDRESS(19,3,,,HLOOKUP(AA46,Vehicles!F$6:BB$17,12,FALSE))),'General ass. and conv.'!R$69:W$72,chosenYear,FALSE) -> Established | H46: =IF(OFFSET(Vehicles!$E$12,chosenYear,MATCH($AA46,Vehicles!$F$6:$AZ$6,0))="Nej","Teknologi ikke tilgængelig",OFFSET(Vehicles!$E$26,0,MATCH($AA46,Vehicles!$F$6:$AZ$6,0))-OFFSET(Vehicles!$E$27,0,MATCH($AA46,Vehicles!$F$6:$AZ$6,0))) -> 322.6724915 | I46: =IF($H46="Teknologi ikke tilgængelig"," ",OFFSET(Vehicles!$E$27,0,MATCH($AA46,Vehicles!$F$6:$AZ$6,0))) -> 601.570413 | J46: =IF($H46="Teknologi ikke tilgængelig"," ",OFFSET(Vehicles!$E$25,0,MATCH($AA46,Vehicles!$F$6:$AZ$6,0))) -> 2797.980215 | K46: 3722.22312 | M46: =IF($H46="Teknologi ikke tilgængelig"," ",OFFSET(Vehicles!E$230,0,MATCH($AA46,Vehicles!$F$6:$AZ$6,0))) -> 0.2670168137 | O46: =IF($H46="Teknologi ikke tilgængelig"," ",OFFSET(Vehicles!$E$344,0,MATCH($AA46,Vehicles!$F$6:$AZ$6,0))) -> 668722.6161 | P46: =IF($H46="Teknologi ikke tilgængelig"," ",OFFSET(Vehicles!$E$345,0,MATCH($AA46,Vehicles!$F$6:$AZ$6,0))) -> 0.8438941965 | Q46: =IF($H46="Teknologi ikke tilgængelig"," ",OFFSET(Vehicles!$E$346,0,MATCH($AA46,Vehicles!$F$6:$AZ$6,0))) -> 0.4507423886 | R46: =IF($H46="Teknologi ikke tilgængelig"," ",OFFSET(Vehicles!$E$347,0,MATCH($AA46,Vehicles!$F$6:$AZ$6,0))) -> 11849.17652 | S46: =IF($H46="Teknologi ikke tilgængelig"," ",OFFSET(Vehicles!$E$348,0,MATCH($AA46,Vehicles!$F$6:$AZ$6,0))) -> 3886.61971 | T46: =IF($H46="Teknologi ikke tilgængelig"," ",OFFSET(Vehicles!$E$349,0,MATCH($AA46,Vehicles!$F$6:$AZ$6,0))) -> 1658.940241 | V46: =IF($H46="Teknologi ikke tilgængelig"," ",SUMPRODUCT('Basic Data'!$C$211:$E$211,O46:Q46)) -> 668878.0347 | X46: =IF($H46="Teknologi ikke tilgængelig"," ",OFFSET(Vehicles!$E$51,0,MATCH($AA46,Vehicles!$F$6:$AZ$6,0))) -> 14.18856139 | AA46: 9000TEU HFO
B47: - Include emissions from vehicles | E47: 9000TEU Diesel | F47: =HLOOKUP(INDIRECT(ADDRESS(9,3,,,HLOOKUP(AA47,Vehicles!F$6:BB$9,4,FALSE))),'General ass. and conv.'!R$69:W$72,chosenYear,FALSE) -> Established | G47: =HLOOKUP(INDIRECT(ADDRESS(19,3,,,HLOOKUP(AA47,Vehicles!F$6:BB$17,12,FALSE))),'General ass. and conv.'!R$69:W$72,chosenYear,FALSE) -> Established | H47: =IF(OFFSET(Vehicles!$E$12,chosenYear,MATCH($AA47,Vehicles!$F$6:$AZ$6,0))="Nej","Teknologi ikke tilgængelig",OFFSET(Vehicles!$E$26,0,MATCH($AA47,Vehicles!$F$6:$AZ$6,0))-OFFSET(Vehicles!$E$27,0,MATCH($AA47,Vehicles!$F$6:$AZ$6,0))) -> 340.488793 | I47: =IF($H47="Teknologi ikke tilgængelig"," ",OFFSET(Vehicles!$E$27,0,MATCH($AA47,Vehicles!$F$6:$AZ$6,0))) -> 963.955852 | J47: =IF($H47="Teknologi ikke tilgængelig"," ",OFFSET(Vehicles!$E$25,0,MATCH($AA47,Vehicles!$F$6:$AZ$6,0))) -> 593.6509978 | K47: 1898.095643 | M47: =IF($H47="Teknologi ikke tilgængelig"," ",OFFSET(Vehicles!E$230,0,MATCH($AA47,Vehicles!$F$6:$AZ$6,0))) -> 0.2648652558 | O47: =IF($H47="Teknologi ikke tilgængelig"," ",OFFSET(Vehicles!$E$344,0,MATCH($AA47,Vehicles!$F$6:$AZ$6,0))) -> 676863.4607 | P47: =IF($H47="Teknologi ikke tilgængelig"," ",OFFSET(Vehicles!$E$345,0,MATCH($AA47,Vehicles!$F$6:$AZ$6,0))) -> 1.057836763 | Q47: =IF($H47="Teknologi ikke tilgængelig"," ",OFFSET(Vehicles!$E$346,0,MATCH($AA47,Vehicles!$F$6:$AZ$6,0))) -> 0.5471895489 | R47: =IF($H47="Teknologi ikke tilgængelig"," ",OFFSET(Vehicles!$E$347,0,MATCH($AA47,Vehicles!$F$6:$AZ$6,0))) -> 1206.240159 | S47: =IF($H47="Teknologi ikke tilgængelig"," ",OFFSET(Vehicles!$E$348,0,MATCH($AA47,Vehicles!$F$6:$AZ$6,0))) -> 4137.403249 | T47: =IF($H47="Teknologi ikke tilgængelig"," ",OFFSET(Vehicles!$E$349,0,MATCH($AA47,Vehicles!$F$6:$AZ$6,0))) -> 605.8057409 | V47: =IF($H47="Teknologi ikke tilgængelig"," ",SUMPRODUCT('Basic Data'!$C$211:$E$211,O47:Q47)) -> 677052.9691 | X47: =IF($H47="Teknologi ikke tilgængelig"," ",OFFSET(Vehicles!$E$51,0,MATCH($AA47,Vehicles!$F$6:$AZ$6,0))) -> 188.2693204 | AA47: 9000TEU Diesel
B48: - Default oil and gas prices | E48: 9000TEU BioDiesel | F48: =HLOOKUP(INDIRECT(ADDRESS(9,3,,,HLOOKUP(AA48,Vehicles!F$6:BB$9,4,FALSE))),'General ass. and conv.'!R$69:W$72,chosenYear,FALSE) -> Established | G48: =HLOOKUP(INDIRECT(ADDRESS(19,3,,,HLOOKUP(AA48,Vehicles!F$6:BB$17,12,FALSE))),'General ass. and conv.'!R$69:W$72,chosenYear,FALSE) -> Laboratory | H48: =IF(OFFSET(Vehicles!$E$12,chosenYear,MATCH($AA48,Vehicles!$F$6:$AZ$6,0))="Nej","Teknologi ikke tilgængelig",OFFSET(Vehicles!$E$26,0,MATCH($AA48,Vehicles!$F$6:$AZ$6,0))-OFFSET(Vehicles!$E$27,0,MATCH($AA48,Vehicles!$F$6:$AZ$6,0))) -> Teknologi ikke tilgængelig | I48: =IF($H48="Teknologi ikke tilgængelig"," ",OFFSET(Vehicles!$E$27,0,MATCH($AA48,Vehicles!$F$6:$AZ$6,0))) ->  | J48: =IF($H48="Teknologi ikke tilgængelig"," ",OFFSET(Vehicles!$E$25,0,MATCH($AA48,Vehicles!$F$6:$AZ$6,0))) ->  | M48: =IF($H48="Teknologi ikke tilgængelig"," ",OFFSET(Vehicles!E$230,0,MATCH($AA48,Vehicles!$F$6:$AZ$6,0))) ->  | O48: =IF($H48="Teknologi ikke tilgængelig"," ",OFFSET(Vehicles!$E$344,0,MATCH($AA48,Vehicles!$F$6:$AZ$6,0))) ->  | P48: =IF($H48="Teknologi ikke tilgængelig"," ",OFFSET(Vehicles!$E$345,0,MATCH($AA48,Vehicles!$F$6:$AZ$6,0))) ->  | Q48: =IF($H48="Teknologi ikke tilgængelig"," ",OFFSET(Vehicles!$E$346,0,MATCH($AA48,Vehicles!$F$6:$AZ$6,0))) ->  | R48: =IF($H48="Teknologi ikke tilgængelig"," ",OFFSET(Vehicles!$E$347,0,MATCH($AA48,Vehicles!$F$6:$AZ$6,0))) ->  | S48: =IF($H48="Teknologi ikke tilgængelig"," ",OFFSET(Vehicles!$E$348,0,MATCH($AA48,Vehicles!$F$6:$AZ$6,0))) ->  | T48: =IF($H48="Teknologi ikke tilgængelig"," ",OFFSET(Vehicles!$E$349,0,MATCH($AA48,Vehicles!$F$6:$AZ$6,0))) ->  | V48: =IF($H48="Teknologi ikke tilgængelig"," ",SUMPRODUCT('Basic Data'!$C$211:$E$211,O48:Q48)) ->  | X48: =IF($H48="Teknologi ikke tilgængelig"," ",OFFSET(Vehicles!$E$51,0,MATCH($AA48,Vehicles!$F$6:$AZ$6,0))) ->  | AA48: 9000TEU BioDiesel
E49: 9000TEU LNG | F49: =HLOOKUP(INDIRECT(ADDRESS(9,3,,,HLOOKUP(AA49,Vehicles!F$6:BB$9,4,FALSE))),'General ass. and conv.'!R$69:W$72,chosenYear,FALSE) -> Recent | G49: =HLOOKUP(INDIRECT(ADDRESS(19,3,,,HLOOKUP(AA49,Vehicles!F$6:BB$17,12,FALSE))),'General ass. and conv.'!R$69:W$72,chosenYear,FALSE) -> Established | H49: =IF(OFFSET(Vehicles!$E$12,chosenYear,MATCH($AA49,Vehicles!$F$6:$AZ$6,0))="Nej","Teknologi ikke tilgængelig",OFFSET(Vehicles!$E$26,0,MATCH($AA49,Vehicles!$F$6:$AZ$6,0))-OFFSET(Vehicles!$E$27,0,MATCH($AA49,Vehicles!$F$6:$AZ$6,0))) -> 350.924158 | I49: =IF($H49="Teknologi ikke tilgængelig"," ",OFFSET(Vehicles!$E$27,0,MATCH($AA49,Vehicles!$F$6:$AZ$6,0))) -> 624.083851 | J49: =IF($H49="Teknologi ikke tilgængelig"," ",OFFSET(Vehicles!$E$25,0,MATCH($AA49,Vehicles!$F$6:$AZ$6,0))) -> 230.994935 | K49: 1206.002944 | M49: =IF($H49="Teknologi ikke tilgængelig"," ",OFFSET(Vehicles!E$230,0,MATCH($AA49,Vehicles!$F$6:$AZ$6,0))) -> 0.2365078032 | O49: =IF($H49="Teknologi ikke tilgængelig"," ",OFFSET(Vehicles!$E$344,0,MATCH($AA49,Vehicles!$F$6:$AZ$6,0))) -> 582661.0903 | P49: =IF($H49="Teknologi ikke tilgængelig"," ",OFFSET(Vehicles!$E$345,0,MATCH($AA49,Vehicles!$F$6:$AZ$6,0))) -> 982.59545 | Q49: =IF($H49="Teknologi ikke tilgængelig"," ",OFFSET(Vehicles!$E$346,0,MATCH($AA49,Vehicles!$F$6:$AZ$6,0))) -> 1.324045193 | R49: =IF($H49="Teknologi ikke tilgængelig"," ",OFFSET(Vehicles!$E$347,0,MATCH($AA49,Vehicles!$F$6:$AZ$6,0))) -> 761.4108235 | S49: =IF($H49="Teknologi ikke tilgængelig"," ",OFFSET(Vehicles!$E$348,0,MATCH($AA49,Vehicles!$F$6:$AZ$6,0))) -> 728.3429299 | T49: =IF($H49="Teknologi ikke tilgængelig"," ",OFFSET(Vehicles!$E$349,0,MATCH($AA49,Vehicles!$F$6:$AZ$6,0))) -> 92.1012604 | V49: =IF($H49="Teknologi ikke tilgængelig"," ",SUMPRODUCT('Basic Data'!$C$211:$E$211,O49:Q49)) -> 607620.542 | X49: =IF($H49="Teknologi ikke tilgængelig"," ",OFFSET(Vehicles!$E$51,0,MATCH($AA49,Vehicles!$F$6:$AZ$6,0))) -> 54.64868457 | AA49: 9000TEU LNG
D51: Fly | E51: Fly-fossil | F51: =HLOOKUP(INDIRECT(ADDRESS(9,3,,,HLOOKUP(AA51,Vehicles!F$6:BB$9,4,FALSE))),'General ass. and conv.'!R$69:W$72,chosenYear,FALSE) -> Established | G51: =HLOOKUP(INDIRECT(ADDRESS(19,3,,,HLOOKUP(AA51,Vehicles!F$6:BB$17,12,FALSE))),'General ass. and conv.'!R$69:W$72,chosenYear,FALSE) -> Established | H51: =IF(OFFSET(Vehicles!$E$12,chosenYear,MATCH($AA51,Vehicles!$F$6:$AZ$6,0))="Nej","Teknologi ikke tilgængelig",OFFSET(Vehicles!$E$26,0,MATCH($AA51,Vehicles!$F$6:$AZ$6,0))-OFFSET(Vehicles!$E$27,0,MATCH($AA51,Vehicles!$F$6:$AZ$6,0))) -> 0.248220629 | I51: =IF($H51="Teknologi ikke tilgængelig"," ",OFFSET(Vehicles!$E$27,0,MATCH($AA51,Vehicles!$F$6:$AZ$6,0))) -> 0.220585324 | J51: =IF($H51="Teknologi ikke tilgængelig"," ",OFFSET(Vehicles!$E$25,0,MATCH($AA51,Vehicles!$F$6:$AZ$6,0))) -> 0.03313535606 | K51: =IF($H51="Teknologi ikke tilgængelig"," ",SUM(H51:J51)) -> 0.501941309 | M51: =IF($H51="Teknologi ikke tilgængelig"," ",OFFSET(Vehicles!E$230,0,MATCH($AA51,Vehicles!$F$6:$AZ$6,0))) -> 0.1366081122 | O51: =IF($H51="Teknologi ikke tilgængelig"," ",OFFSET(Vehicles!$E$344,0,MATCH($AA51,Vehicles!$F$6:$AZ$6,0))) -> 185.6519573 | P51: =IF($H51="Teknologi ikke tilgængelig"," ",OFFSET(Vehicles!$E$345,0,MATCH($AA51,Vehicles!$F$6:$AZ$6,0))) -> 0.0002541595671 | Q51: =IF($H51="Teknologi ikke tilgængelig"," ",OFFSET(Vehicles!$E$346,0,MATCH($AA51,Vehicles!$F$6:$AZ$6,0))) -> 0.0001160167644 | R51: =IF($H51="Teknologi ikke tilgængelig"," ",OFFSET(Vehicles!$E$347,0,MATCH($AA51,Vehicles!$F$6:$AZ$6,0))) -> 0.000955566357 | S51: =IF($H51="Teknologi ikke tilgængelig"," ",OFFSET(Vehicles!$E$348,0,MATCH($AA51,Vehicles!$F$6:$AZ$6,0))) -> 0.4711044095 | T51: =IF($H51="Teknologi ikke tilgængelig"," ",OFFSET(Vehicles!$E$349,0,MATCH($AA51,Vehicles!$F$6:$AZ$6,0))) -> 9.951623409e-05 | V51: =IF($H51="Teknologi ikke tilgængelig"," ",SUMPRODUCT('Basic Data'!$C$211:$E$211,O51:Q51)) -> 185.6928843 | X51: =IF($H51="Teknologi ikke tilgængelig"," ",OFFSET(Vehicles!$E$51,0,MATCH($AA51,Vehicles!$F$6:$AZ$6,0))) -> 0.004115969481 | AA51: Fly standard
E52: Fly-biofuel | F52: =HLOOKUP(INDIRECT(ADDRESS(9,3,,,HLOOKUP(AA52,Vehicles!F$6:BB$9,4,FALSE))),'General ass. and conv.'!R$69:W$72,chosenYear,FALSE) -> Established | G52: =HLOOKUP(INDIRECT(ADDRESS(19,3,,,HLOOKUP(AA52,Vehicles!F$6:BB$17,12,FALSE))),'General ass. and conv.'!R$69:W$72,chosenYear,FALSE) -> Laboratory | H52: =IF(OFFSET(Vehicles!$E$12,chosenYear,MATCH($AA52,Vehicles!$F$6:$AZ$6,0))="Nej","Teknologi ikke tilgængelig",OFFSET(Vehicles!$E$26,0,MATCH($AA52,Vehicles!$F$6:$AZ$6,0))-OFFSET(Vehicles!$E$27,0,MATCH($AA52,Vehicles!$F$6:$AZ$6,0))) -> Teknologi ikke tilgængelig | I52: =IF($H52="Teknologi ikke tilgængelig"," ",OFFSET(Vehicles!$E$27,0,MATCH($AA52,Vehicles!$F$6:$AZ$6,0))) ->  | J52: =IF($H52="Teknologi ikke tilgængelig"," ",OFFSET(Vehicles!$E$25,0,MATCH($AA52,Vehicles!$F$6:$AZ$6,0))) ->  | K52: =IF($H52="Teknologi ikke tilgængelig"," ",SUM(H52:J52)) ->  | M52: =IF($H52="Teknologi ikke tilgængelig"," ",OFFSET(Vehicles!E$230,0,MATCH($AA52,Vehicles!$F$6:$AZ$6,0))) ->  | O52: =IF($H52="Teknologi ikke tilgængelig"," ",OFFSET(Vehicles!$E$344,0,MATCH($AA52,Vehicles!$F$6:$AZ$6,0))) ->  | P52: =IF($H52="Teknologi ikke tilgængelig"," ",OFFSET(Vehicles!$E$345,0,MATCH($AA52,Vehicles!$F$6:$AZ$6,0))) ->  | Q52: =IF($H52="Teknologi ikke tilgængelig"," ",OFFSET(Vehicles!$E$346,0,MATCH($AA52,Vehicles!$F$6:$AZ$6,0))) ->  | R52: =IF($H52="Teknologi ikke tilgængelig"," ",OFFSET(Vehicles!$E$347,0,MATCH($AA52,Vehicles!$F$6:$AZ$6,0))) ->  | S52: =IF($H52="Teknologi ikke tilgængelig"," ",OFFSET(Vehicles!$E$348,0,MATCH($AA52,Vehicles!$F$6:$AZ$6,0))) ->  | T52: =IF($H52="Teknologi ikke tilgængelig"," ",OFFSET(Vehicles!$E$349,0,MATCH($AA52,Vehicles!$F$6:$AZ$6,0))) ->  | V52: =IF($H52="Teknologi ikke tilgængelig"," ",SUMPRODUCT('Basic Data'!$C$211:$E$211,O52:Q52)) ->  | X52: =IF($H52="Teknologi ikke tilgængelig"," ",OFFSET(Vehicles!$E$51,0,MATCH($AA52,Vehicles!$F$6:$AZ$6,0))) ->  | AA52: Fly Biofuel
D54: Tog | E54: IC Tog-diesel | F54: =HLOOKUP(INDIRECT(ADDRESS(9,3,,,HLOOKUP(AA54,Vehicles!F$6:BB$9,4,FALSE))),'General ass. and conv.'!R$69:W$72,chosenYear,FALSE) -> Established | G54: =HLOOKUP(INDIRECT(ADDRESS(19,3,,,HLOOKUP(AA54,Vehicles!F$6:BB$17,12,FALSE))),'General ass. and conv.'!R$69:W$72,chosenYear,FALSE) -> Established | H54: =IF(OFFSET(Vehicles!$E$12,chosenYear,MATCH($AA54,Vehicles!$F$6:$AZ$6,0))="Nej","Teknologi ikke tilgængelig",OFFSET(Vehicles!$E$26,0,MATCH($AA54,Vehicles!$F$6:$AZ$6,0))-OFFSET(Vehicles!$E$27,0,MATCH($AA54,Vehicles!$F$6:$AZ$6,0))) -> 0.2141985783 | I54: =IF($H54="Teknologi ikke tilgængelig"," ",OFFSET(Vehicles!$E$27,0,MATCH($AA54,Vehicles!$F$6:$AZ$6,0))) -> 0.03679402799 | J54: =IF($H54="Teknologi ikke tilgængelig"," ",OFFSET(Vehicles!$E$25,0,MATCH($AA54,Vehicles!$F$6:$AZ$6,0))) -> 0.02552430248 | K54: =IF($H54="Teknologi ikke tilgængelig"," ",SUM(H54:J54)) -> 0.2765169088 | M54: =IF($H54="Teknologi ikke tilgængelig"," ",OFFSET(Vehicles!E$230,0,MATCH($AA54,Vehicles!$F$6:$AZ$6,0))) -> 0.1958994705 | O54: =IF($H54="Teknologi ikke tilgængelig"," ",OFFSET(Vehicles!$E$344,0,MATCH($AA54,Vehicles!$F$6:$AZ$6,0))) -> 25.57939022 | P54: =IF($H54="Teknologi ikke tilgængelig"," ",OFFSET(Vehicles!$E$345,0,MATCH($AA54,Vehicles!$F$6:$AZ$6,0))) -> 3.80729413e-05 | Q54: =IF($H54="Teknologi ikke tilgængelig"," ",OFFSET(Vehicles!$E$346,0,MATCH($AA54,Vehicles!$F$6:$AZ$6,0))) -> 1.897784558e-05 | R54: =IF($H54="Teknologi ikke tilgængelig"," ",OFFSET(Vehicles!$E$347,0,MATCH($AA54,Vehicles!$F$6:$AZ$6,0))) -> 0.0007646036936 | S54: =IF($H54="Teknologi ikke tilgængelig"," ",OFFSET(Vehicles!$E$348,0,MATCH($AA54,Vehicles!$F$6:$AZ$6,0))) -> 0.3873974324 | T54: =IF($H54="Teknologi ikke tilgængelig"," ",OFFSET(Vehicles!$E$349,0,MATCH($AA54,Vehicles!$F$6:$AZ$6,0))) -> 0.006960331171 | V54: =IF($H54="Teknologi ikke tilgængelig"," ",SUMPRODUCT('Basic Data'!$C$211:$E$211,O54:Q54)) -> 25.58599744 | X54: =IF($H54="Teknologi ikke tilgængelig"," ",OFFSET(Vehicles!$E$51,0,MATCH($AA54,Vehicles!$F$6:$AZ$6,0))) -> 0.007186207365 | AA54: IC Tog Diesel
E55: IC Tog-biodiesel halm | F55: =HLOOKUP(INDIRECT(ADDRESS(9,3,,,HLOOKUP(AA55,Vehicles!F$6:BB$9,4,FALSE))),'General ass. and conv.'!R$69:W$72,chosenYear,FALSE) -> Established | G55: =HLOOKUP(INDIRECT(ADDRESS(19,3,,,HLOOKUP(AA55,Vehicles!F$6:BB$17,12,FALSE))),'General ass. and conv.'!R$69:W$72,chosenYear,FALSE) -> Laboratory | H55: =IF(OFFSET(Vehicles!$E$12,chosenYear,MATCH($AA55,Vehicles!$F$6:$AZ$6,0))="Nej","Teknologi ikke tilgængelig",OFFSET(Vehicles!$E$26,0,MATCH($AA55,Vehicles!$F$6:$AZ$6,0))-OFFSET(Vehicles!$E$27,0,MATCH($AA55,Vehicles!$F$6:$AZ$6,0))) -> Teknologi ikke tilgængelig | I55: =IF($H55="Teknologi ikke tilgængelig"," ",OFFSET(Vehicles!$E$27,0,MATCH($AA55,Vehicles!$F$6:$AZ$6,0))) ->  | J55: =IF($H55="Teknologi ikke tilgængelig"," ",OFFSET(Vehicles!$E$25,0,MATCH($AA55,Vehicles!$F$6:$AZ$6,0))) ->  | M55: =IF($H55="Teknologi ikke tilgængelig"," ",OFFSET(Vehicles!E$230,0,MATCH($AA55,Vehicles!$F$6:$AZ$6,0))) ->  | O55: =IF($H55="Teknologi ikke tilgængelig"," ",OFFSET(Vehicles!$E$344,0,MATCH($AA55,Vehicles!$F$6:$AZ$6,0))) ->  | P55: =IF($H55="Teknologi ikke tilgængelig"," ",OFFSET(Vehicles!$E$345,0,MATCH($AA55,Vehicles!$F$6:$AZ$6,0))) ->  | Q55: =IF($H55="Teknologi ikke tilgængelig"," ",OFFSET(Vehicles!$E$346,0,MATCH($AA55,Vehicles!$F$6:$AZ$6,0))) ->  | R55: =IF($H55="Teknologi ikke tilgængelig"," ",OFFSET(Vehicles!$E$347,0,MATCH($AA55,Vehicles!$F$6:$AZ$6,0))) ->  | S55: =IF($H55="Teknologi ikke tilgængelig"," ",OFFSET(Vehicles!$E$348,0,MATCH($AA55,Vehicles!$F$6:$AZ$6,0))) ->  | T55: =IF($H55="Teknologi ikke tilgængelig"," ",OFFSET(Vehicles!$E$349,0,MATCH($AA55,Vehicles!$F$6:$AZ$6,0))) ->  | V55: =IF($H55="Teknologi ikke tilgængelig"," ",SUMPRODUCT('Basic Data'!$C$211:$E$211,O55:Q55)) ->  | X55: =IF($H55="Teknologi ikke tilgængelig"," ",OFFSET(Vehicles!$E$51,0,MATCH($AA55,Vehicles!$F$6:$AZ$6,0))) ->  | AA55: IC Tog Biodiesel
E56: IC Tog-el | F56: =HLOOKUP(INDIRECT(ADDRESS(9,3,,,HLOOKUP(AA56,Vehicles!F$6:BB$9,4,FALSE))),'General ass. and conv.'!R$69:W$72,chosenYear,FALSE) -> Established | G56: =HLOOKUP(INDIRECT(ADDRESS(19,3,,,HLOOKUP(AA56,Vehicles!F$6:BB$17,12,FALSE))),'General ass. and conv.'!R$69:W$72,chosenYear,FALSE) -> Established | H56: =IF(OFFSET(Vehicles!$E$12,chosenYear,MATCH($AA56,Vehicles!$F$6:$AZ$6,0))="Nej","Teknologi ikke tilgængelig",OFFSET(Vehicles!$E$26,0,MATCH($AA56,Vehicles!$F$6:$AZ$6,0))-OFFSET(Vehicles!$E$27,0,MATCH($AA56,Vehicles!$F$6:$AZ$6,0))) -> 0.1948855399 | I56: =IF($H56="Teknologi ikke tilgængelig"," ",OFFSET(Vehicles!$E$27,0,MATCH($AA56,Vehicles!$F$6:$AZ$6,0))) -> 0.03371557178 | J56: =IF($H56="Teknologi ikke tilgængelig"," ",OFFSET(Vehicles!$E$25,0,MATCH($AA56,Vehicles!$F$6:$AZ$6,0))) -> 0.0004723749544 | K56: 0.2290734866 | M56: =IF($H56="Teknologi ikke tilgængelig"," ",OFFSET(Vehicles!E$230,0,MATCH($AA56,Vehicles!$F$6:$AZ$6,0))) -> 0.4844056824 | O56: =IF($H56="Teknologi ikke tilgængelig"," ",OFFSET(Vehicles!$E$344,0,MATCH($AA56,Vehicles!$F$6:$AZ$6,0))) -> 1.017946641 | P56: =IF($H56="Teknologi ikke tilgængelig"," ",OFFSET(Vehicles!$E$345,0,MATCH($AA56,Vehicles!$F$6:$AZ$6,0))) -> 1.272187258e-05 | Q56: =IF($H56="Teknologi ikke tilgængelig"," ",OFFSET(Vehicles!$E$346,0,MATCH($AA56,Vehicles!$F$6:$AZ$6,0))) -> 1.230872469e-05 | R56: =IF($H56="Teknologi ikke tilgængelig"," ",OFFSET(Vehicles!$E$347,0,MATCH($AA56,Vehicles!$F$6:$AZ$6,0))) -> 0.0001061910872 | S56: =IF($H56="Teknologi ikke tilgængelig"," ",OFFSET(Vehicles!$E$348,0,MATCH($AA56,Vehicles!$F$6:$AZ$6,0))) -> 0.008042563389 | T56: =IF($H56="Teknologi ikke tilgængelig"," ",OFFSET(Vehicles!$E$349,0,MATCH($AA56,Vehicles!$F$6:$AZ$6,0))) -> 1.140594493e-05 | V56: =IF($H56="Teknologi ikke tilgængelig"," ",SUMPRODUCT('Basic Data'!$C$211:$E$211,O56:Q56)) -> 1.021932688 | X56: =IF($H56="Teknologi ikke tilgængelig"," ",OFFSET(Vehicles!$E$51,0,MATCH($AA56,Vehicles!$F$6:$AZ$6,0))) -> 0.02860318853 | AA56: IC Tog El
E57: Lokaltog-diesel | F57: =HLOOKUP(INDIRECT(ADDRESS(9,3,,,HLOOKUP(AA57,Vehicles!F$6:BB$9,4,FALSE))),'General ass. and conv.'!R$69:W$72,chosenYear,FALSE) -> Established | G57: =HLOOKUP(INDIRECT(ADDRESS(19,3,,,HLOOKUP(AA57,Vehicles!F$6:BB$17,12,FALSE))),'General ass. and conv.'!R$69:W$72,chosenYear,FALSE) -> Established | H57: =IF(OFFSET(Vehicles!$E$12,chosenYear,MATCH($AA57,Vehicles!$F$6:$AZ$6,0))="Nej","Teknologi ikke tilgængelig",OFFSET(Vehicles!$E$26,0,MATCH($AA57,Vehicles!$F$6:$AZ$6,0))-OFFSET(Vehicles!$E$27,0,MATCH($AA57,Vehicles!$F$6:$AZ$6,0))) -> 0.3532793056 | I57: =IF($H57="Teknologi ikke tilgængelig"," ",OFFSET(Vehicles!$E$27,0,MATCH($AA57,Vehicles!$F$6:$AZ$6,0))) -> 0.03973755023 | J57: =IF($H57="Teknologi ikke tilgængelig"," ",OFFSET(Vehicles!$E$25,0,MATCH($AA57,Vehicles!$F$6:$AZ$6,0))) -> 0.02388363073 | K57: 0.4169004865 | M57: =IF($H57="Teknologi ikke tilgængelig"," ",OFFSET(Vehicles!E$230,0,MATCH($AA57,Vehicles!$F$6:$AZ$6,0))) -> 0.08979512403 | O57: =IF($H57="Teknologi ikke tilgængelig"," ",OFFSET(Vehicles!$E$344,0,MATCH($AA57,Vehicles!$F$6:$AZ$6,0))) -> 28.35260052 | P57: =IF($H57="Teknologi ikke tilgængelig"," ",OFFSET(Vehicles!$E$345,0,MATCH($AA57,Vehicles!$F$6:$AZ$6,0))) -> 4.729131423e-05 | Q57: =IF($H57="Teknologi ikke tilgængelig"," ",OFFSET(Vehicles!$E$346,0,MATCH($AA57,Vehicles!$F$6:$AZ$6,0))) -> 2.619142427e-05 | R57: =IF($H57="Teknologi ikke tilgængelig"," ",OFFSET(Vehicles!$E$347,0,MATCH($AA57,Vehicles!$F$6:$AZ$6,0))) -> 0.0009199224043 | S57: =IF($H57="Teknologi ikke tilgængelig"," ",OFFSET(Vehicles!$E$348,0,MATCH($AA57,Vehicles!$F$6:$AZ$6,0))) -> 0.4029819721 | T57: =IF($H57="Teknologi ikke tilgængelig"," ",OFFSET(Vehicles!$E$349,0,MATCH($AA57,Vehicles!$F$6:$AZ$6,0))) -> 0.003621867544 | V57: =IF($H57="Teknologi ikke tilgængelig"," ",SUMPRODUCT('Basic Data'!$C$211:$E$211,O57:Q57)) -> 28.36158784 | X57: =IF($H57="Teknologi ikke tilgængelig"," ",OFFSET(Vehicles!$E$51,0,MATCH($AA57,Vehicles!$F$6:$AZ$6,0))) -> 0.007761103955 | AA57: Lokaltog Diesel
E58: Lokaltog-biodiesel halm | F58: =HLOOKUP(INDIRECT(ADDRESS(9,3,,,HLOOKUP(AA58,Vehicles!F$6:BB$9,4,FALSE))),'General ass. and conv.'!R$69:W$72,chosenYear,FALSE) -> Established | G58: =HLOOKUP(INDIRECT(ADDRESS(19,3,,,HLOOKUP(AA58,Vehicles!F$6:BB$17,12,FALSE))),'General ass. and conv.'!R$69:W$72,chosenYear,FALSE) -> Laboratory | H58: =IF(OFFSET(Vehicles!$E$12,chosenYear,MATCH($AA58,Vehicles!$F$6:$AZ$6,0))="Nej","Teknologi ikke tilgængelig",OFFSET(Vehicles!$E$26,0,MATCH($AA58,Vehicles!$F$6:$AZ$6,0))-OFFSET(Vehicles!$E$27,0,MATCH($AA58,Vehicles!$F$6:$AZ$6,0))) -> Teknologi ikke tilgængelig | I58: =IF($H58="Teknologi ikke tilgængelig"," ",OFFSET(Vehicles!$E$27,0,MATCH($AA58,Vehicles!$F$6:$AZ$6,0))) ->  | J58: =IF($H58="Teknologi ikke tilgængelig"," ",OFFSET(Vehicles!$E$25,0,MATCH($AA58,Vehicles!$F$6:$AZ$6,0))) ->  | M58: =IF($H58="Teknologi ikke tilgængelig"," ",OFFSET(Vehicles!E$230,0,MATCH($AA58,Vehicles!$F$6:$AZ$6,0))) ->  | O58: =IF($H58="Teknologi ikke tilgængelig"," ",OFFSET(Vehicles!$E$344,0,MATCH($AA58,Vehicles!$F$6:$AZ$6,0))) ->  | P58: =IF($H58="Teknologi ikke tilgængelig"," ",OFFSET(Vehicles!$E$345,0,MATCH($AA58,Vehicles!$F$6:$AZ$6,0))) ->  | Q58: =IF($H58="Teknologi ikke tilgængelig"," ",OFFSET(Vehicles!$E$346,0,MATCH($AA58,Vehicles!$F$6:$AZ$6,0))) ->  | R58: =IF($H58="Teknologi ikke tilgængelig"," ",OFFSET(Vehicles!$E$347,0,MATCH($AA58,Vehicles!$F$6:$AZ$6,0))) ->  | S58: =IF($H58="Teknologi ikke tilgængelig"," ",OFFSET(Vehicles!$E$348,0,MATCH($AA58,Vehicles!$F$6:$AZ$6,0))) ->  | T58: =IF($H58="Teknologi ikke tilgængelig"," ",OFFSET(Vehicles!$E$349,0,MATCH($AA58,Vehicles!$F$6:$AZ$6,0))) ->  | V58: =IF($H58="Teknologi ikke tilgængelig"," ",SUMPRODUCT('Basic Data'!$C$211:$E$211,O58:Q58)) ->  | X58: =IF($H58="Teknologi ikke tilgængelig"," ",OFFSET(Vehicles!$E$51,0,MATCH($AA58,Vehicles!$F$6:$AZ$6,0))) ->  | AA58: Lokaltog biodiesel
E59: Lokaltog-LNG | F59: =HLOOKUP(INDIRECT(ADDRESS(9,3,,,HLOOKUP(AA59,Vehicles!F$6:BB$9,4,FALSE))),'General ass. and conv.'!R$69:W$72,chosenYear,FALSE) -> Established | G59: =HLOOKUP(INDIRECT(ADDRESS(19,3,,,HLOOKUP(AA59,Vehicles!F$6:BB$17,12,FALSE))),'General ass. and conv.'!R$69:W$72,chosenYear,FALSE) -> Established | H59: =IF(OFFSET(Vehicles!$E$12,chosenYear,MATCH($AA59,Vehicles!$F$6:$AZ$6,0))="Nej","Teknologi ikke tilgængelig",OFFSET(Vehicles!$E$26,0,MATCH($AA59,Vehicles!$F$6:$AZ$6,0))-OFFSET(Vehicles!$E$27,0,MATCH($AA59,Vehicles!$F$6:$AZ$6,0))) -> 0.3612486971 | I59: =IF($H59="Teknologi ikke tilgængelig"," ",OFFSET(Vehicles!$E$27,0,MATCH($AA59,Vehicles!$F$6:$AZ$6,0))) -> 0.03082142579 | J59: =IF($H59="Teknologi ikke tilgængelig"," ",OFFSET(Vehicles!$E$25,0,MATCH($AA59,Vehicles!$F$6:$AZ$6,0))) -> 0.02671360756 | K59: 0.4187837304 | M59: =IF($H59="Teknologi ikke tilgængelig"," ",OFFSET(Vehicles!E$230,0,MATCH($AA59,Vehicles!$F$6:$AZ$6,0))) -> 0.06743537306 | O59: =IF($H59="Teknologi ikke tilgængelig"," ",OFFSET(Vehicles!$E$344,0,MATCH($AA59,Vehicles!$F$6:$AZ$6,0))) -> 28.82620255 | P59: =IF($H59="Teknologi ikke tilgængelig"," ",OFFSET(Vehicles!$E$345,0,MATCH($AA59,Vehicles!$F$6:$AZ$6,0))) -> 7.01523888e-05 | Q59: =IF($H59="Teknologi ikke tilgængelig"," ",OFFSET(Vehicles!$E$346,0,MATCH($AA59,Vehicles!$F$6:$AZ$6,0))) -> 6.675643337e-05 | R59: =IF($H59="Teknologi ikke tilgængelig"," ",OFFSET(Vehicles!$E$347,0,MATCH($AA59,Vehicles!$F$6:$AZ$6,0))) -> 0.0003209763939 | S59: =IF($H59="Teknologi ikke tilgængelig"," ",OFFSET(Vehicles!$E$348,0,MATCH($AA59,Vehicles!$F$6:$AZ$6,0))) -> 0.4511094795 | T59: =IF($H59="Teknologi ikke tilgængelig"," ",OFFSET(Vehicles!$E$349,0,MATCH($AA59,Vehicles!$F$6:$AZ$6,0))) -> 0.004415987805 | V59: =IF($H59="Teknologi ikke tilgængelig"," ",SUMPRODUCT('Basic Data'!$C$211:$E$211,O59:Q59)) -> 28.84784977 | X59: =IF($H59="Teknologi ikke tilgængelig"," ",OFFSET(Vehicles!$E$51,0,MATCH($AA59,Vehicles!$F$6:$AZ$6,0))) -> 0.002629849611 | AA59: Lokaltog Gas

Sheet ResultsAllYears
A1: Results for all years
B3: Instructions
B4: Please assign each pathway to a group with a letter in col. C
B5: Clicking "Update charts" will update the chart for the group
B6: selected in the dropdown menu
B8: Select group to chart
B9: 6
B11: Set number of vehicles in table (max 52)
B12: 47
B15: Groups
B16: Group name | C16: Letter
B17: Personbiler | C17: A
B18: Tunge køretøjer mm. | C18: B
B19: Aircrafts | C19: C
B20: Ships | C20: D
B21: Trains | C21: E
B22: Andet | C22: F
B24: Chart control table, vehicles
B25: =OFFSET(Vehicles!$E$6,0,ROW(A9)-ROW($A$8)) -> Standard dieselbil | C25: f | D25: =IF(C25<>"",C25&COUNTIF(C$25:C25,C25),"") -> f1
B26: =OFFSET(Vehicles!$E$6,0,ROW(A10)-ROW($A$8)) -> Standard benzinbil | C26: f | D26: =IF(C26<>"",C26&COUNTIF(C$25:C26,C26),"") -> f2
B27: =OFFSET(Vehicles!$E$6,0,ROW(A11)-ROW($A$8)) -> Bil E85-1g | C27: f | D27: =IF(C27<>"",C27&COUNTIF(C$25:C27,C27),"") -> f3
B28: =OFFSET(Vehicles!$E$6,0,ROW(A12)-ROW($A$8)) -> Bil E85-1g Sugarb. | C28: f | D28: =IF(C28<>"",C28&COUNTIF(C$25:C28,C28),"") -> f4
B29: =OFFSET(Vehicles!$E$6,0,ROW(A13)-ROW($A$8)) -> Bil E85-2g | C29: f | D29: =IF(C29<>"",C29&COUNTIF(C$25:C29,C29),"") -> f5
B30: =OFFSET(Vehicles!$E$6,0,ROW(A14)-ROW($A$8)) -> Bil biodiesel-1g RME | C30: f | D30: =IF(C30<>"",C30&COUNTIF(C$25:C30,C30),"") -> f6
B31: =OFFSET(Vehicles!$E$6,0,ROW(A15)-ROW($A$8)) -> Bil biodiesel-2g | C31: f | D31: =IF(C31<>"",C31&COUNTIF(C$25:C31,C31),"") -> f7
B32: =OFFSET(Vehicles!$E$6,0,ROW(A16)-ROW($A$8)) -> Bil DME | C32: f | D32: =IF(C32<>"",C32&COUNTIF(C$25:C32,C32),"") -> f8
B33: =OFFSET(Vehicles!$E$6,0,ROW(A17)-ROW($A$8)) -> Bil Naturgas | C33: f | D33: =IF(C33<>"",C33&COUNTIF(C$25:C33,C33),"") -> f9
B34: =OFFSET(Vehicles!$E$6,0,ROW(A18)-ROW($A$8)) -> Bil biogas | C34: f | D34: =IF(C34<>"",C34&COUNTIF(C$25:C34,C34),"") -> f10
B35: =OFFSET(Vehicles!$E$6,0,ROW(A19)-ROW($A$8)) -> Bil MeOH | C35: f | D35: =IF(C35<>"",C35&COUNTIF(C$25:C35,C35),"") -> f11
B36: =OFFSET(Vehicles!$E$6,0,ROW(A20)-ROW($A$8)) -> Bil brinthybrid | C36: f | D36: =IF(C36<>"",C36&COUNTIF(C$25:C36,C36),"") -> f12
B37: =OFFSET(Vehicles!$E$6,0,ROW(A21)-ROW($A$8)) -> Elbil | C37: f | D37: =IF(C37<>"",C37&COUNTIF(C$25:C37,C37),"") -> f13
B38: =OFFSET(Vehicles!$E$6,0,ROW(A22)-ROW($A$8)) -> Elbil stort bat. | C38: f | D38: =IF(C38<>"",C38&COUNTIF(C$25:C38,C38),"") -> f14
B39: =OFFSET(Vehicles!$E$6,0,ROW(A23)-ROW($A$8)) -> Bil plugin hybrid | C39: f | D39: =IF(C39<>"",C39&COUNTIF(C$25:C39,C39),"") -> f15
B40: =OFFSET(Vehicles!$E$6,0,ROW(A24)-ROW($A$8)) -> Bil brint | C40: f | D40: =IF(C40<>"",C40&COUNTIF(C$25:C40,C40),"") -> f16
B41: =OFFSET(Vehicles!$E$6,0,ROW(A25)-ROW($A$8)) -> Varebil benzin | C41: f | D41: =IF(C41<>"",C41&COUNTIF(C$25:C41,C41),"") -> f17
B42: =OFFSET(Vehicles!$E$6,0,ROW(A26)-ROW($A$8)) -> Varebil CNG | C42: f | D42: =IF(C42<>"",C42&COUNTIF(C$25:C42,C42),"") -> f18
B43: =OFFSET(Vehicles!$E$6,0,ROW(A27)-ROW($A$8)) -> Varebil diesel | C43: f | D43: =IF(C43<>"",C43&COUNTIF(C$25:C43,C43),"") -> f19
B44: =OFFSET(Vehicles!$E$6,0,ROW(A28)-ROW($A$8)) -> Varebil el | C44: f | D44: =IF(C44<>"",C44&COUNTIF(C$25:C44,C44),"") -> f20
B45: =OFFSET(Vehicles!$E$6,0,ROW(A29)-ROW($A$8)) -> Fast Ferry | C45: f | D45: =IF(C45<>"",C45&COUNTIF(C$25:C45,C45),"") -> f21
B46: =OFFSET(Vehicles!$E$6,0,ROW(A30)-ROW($A$8)) -> Fast Ferry - biodiesel | C46: f | D46: =IF(C46<>"",C46&COUNTIF(C$25:C46,C46),"") -> f22
B47: =OFFSET(Vehicles!$E$6,0,ROW(A31)-ROW($A$8)) -> 9000TEU HFO | C47: f | D47: =IF(C47<>"",C47&COUNTIF(C$25:C47,C47),"") -> f23
B48: =OFFSET(Vehicles!$E$6,0,ROW(A32)-ROW($A$8)) -> 9000TEU Diesel | C48: f | D48: =IF(C48<>"",C48&COUNTIF(C$25:C48,C48),"") -> f24
B49: =OFFSET(Vehicles!$E$6,0,ROW(A33)-ROW($A$8)) -> 9000TEU BioDiesel | C49: f | D49: =IF(C49<>"",C49&COUNTIF(C$25:C49,C49),"") -> f25
B50: =OFFSET(Vehicles!$E$6,0,ROW(A34)-ROW($A$8)) -> 9000TEU LNG | C50: f | D50: =IF(C50<>"",C50&COUNTIF(C$25:C50,C50),"") -> f26
B51: =OFFSET(Vehicles!$E$6,0,ROW(A35)-ROW($A$8)) -> IC Tog Diesel | C51: f | D51: =IF(C51<>"",C51&COUNTIF(C$25:C51,C51),"") -> f27
B52: =OFFSET(Vehicles!$E$6,0,ROW(A36)-ROW($A$8)) -> IC Tog Biodiesel | C52: f | D52: =IF(C52<>"",C52&COUNTIF(C$25:C52,C52),"") -> f28
B53: =OFFSET(Vehicles!$E$6,0,ROW(A37)-ROW($A$8)) -> IC Tog El | C53: f | D53: =IF(C53<>"",C53&COUNTIF(C$25:C53,C53),"") -> f29
B54: =OFFSET(Vehicles!$E$6,0,ROW(A38)-ROW($A$8)) -> Lokaltog Diesel | C54: f | D54: =IF(C54<>"",C54&COUNTIF(C$25:C54,C54),"") -> f30
B55: =OFFSET(Vehicles!$E$6,0,ROW(A39)-ROW($A$8)) -> Lokaltog biodiesel | C55: f | D55: =IF(C55<>"",C55&COUNTIF(C$25:C55,C55),"") -> f31
B56: =OFFSET(Vehicles!$E$6,0,ROW(A40)-ROW($A$8)) -> Lokaltog Gas | C56: f | D56: =IF(C56<>"",C56&COUNTIF(C$25:C56,C56),"") -> f32
B57: =OFFSET(Vehicles!$E$6,0,ROW(A41)-ROW($A$8)) -> Lastbil Diesel | C57: f | D57: =IF(C57<>"",C57&COUNTIF(C$25:C57,C57),"") -> f33
B58: =OFFSET(Vehicles!$E$6,0,ROW(A42)-ROW($A$8)) -> Lastbil biodiesel | C58: f | D58: =IF(C58<>"",C58&COUNTIF(C$25:C58,C58),"") -> f34
B59: =OFFSET(Vehicles!$E$6,0,ROW(A43)-ROW($A$8)) -> Lastbil CNG | C59: f | D59: =IF(C59<>"",C59&COUNTIF(C$25:C59,C59),"") -> f35
B60: =OFFSET(Vehicles!$E$6,0,ROW(A44)-ROW($A$8)) -> Lastbil DME | C60: f | D60: =IF(C60<>"",C60&COUNTIF(C$25:C60,C60),"") -> f36
B61: =OFFSET(Vehicles!$E$6,0,ROW(A45)-ROW($A$8)) -> Lastbil CBG | C61: f | D61: =IF(C61<>"",C61&COUNTIF(C$25:C61,C61),"") -> f37
B62: =OFFSET(Vehicles!$E$6,0,ROW(A46)-ROW($A$8)) -> Lastbil HVO | C62: f | D62: =IF(C62<>"",C62&COUNTIF(C$25:C62,C62),"") -> f38
B63: =OFFSET(Vehicles!$E$6,0,ROW(A47)-ROW($A$8)) -> Bus Diesel | C63: f | D63: =IF(C63<>"",C63&COUNTIF(C$25:C63,C63),"") -> f39
B64: =OFFSET(Vehicles!$E$6,0,ROW(A48)-ROW($A$8)) -> Bus biodiesel | C64: f | D64: =IF(C64<>"",C64&COUNTIF(C$25:C64,C64),"") -> f40
B65: =OFFSET(Vehicles!$E$6,0,ROW(A49)-ROW($A$8)) -> Bus HVO | C65: f | D65: =IF(C65<>"",C65&COUNTIF(C$25:C65,C65),"") -> f41
B66: =OFFSET(Vehicles!$E$6,0,ROW(A50)-ROW($A$8)) -> Bus CNG | C66: f | D66: =IF(C66<>"",C66&COUNTIF(C$25:C66,C66),"") -> f42
B67: =OFFSET(Vehicles!$E$6,0,ROW(A51)-ROW($A$8)) -> Bus CBG | C67: f | D67: =IF(C67<>"",C67&COUNTIF(C$25:C67,C67),"") -> f43
B68: =OFFSET(Vehicles!$E$6,0,ROW(A52)-ROW($A$8)) -> Bus Hybrid | C68: f | D68: =IF(C68<>"",C68&COUNTIF(C$25:C68,C68),"") -> f44
B69: =OFFSET(Vehicles!$E$6,0,ROW(A53)-ROW($A$8)) -> Bus El | C69: f | D69: =IF(C69<>"",C69&COUNTIF(C$25:C69,C69),"") -> f45
B70: =OFFSET(Vehicles!$E$6,0,ROW(A54)-ROW($A$8)) -> Fly standard | C70: f | D70: =IF(C70<>"",C70&COUNTIF(C$25:C70,C70),"") -> f46
B71: =OFFSET(Vehicles!$E$6,0,ROW(A55)-ROW($A$8)) -> Fly biofuel | C71: f | D71: =IF(C71<>"",C71&COUNTIF(C$25:C71,C71),"") -> f47
B72: =OFFSET(Vehicles!$E$6,0,ROW(A56)-ROW($A$8)) -> 0 | D72: =IF(C72<>"",C72&COUNTIF(C$25:C72,C72),"") -> 
B75: Max 8 pathways per table
J123: Chart titles
J124: ="Development in socio-economic cost by pathway, "&LOWER(OFFSET($B$16,$B$9,0)) -> Development in socio-economic cost by pathway, andet
J125: ="Development in greenhouse gas emissions by pathway, "&LOWER(OFFSET($B$16,$B$9,0)) -> Development in greenhouse gas emissions by pathway, andet
J126: ="Development in energy efficiency by pathway, "&LOWER(OFFSET($B$16,$B$9,0)) -> Development in energy efficiency by pathway, andet
F130: Macro control | J130: Data collection
F131: =OFFSET($C$16,B9,0) -> F | L131: Externalities | M131: Fuel | N131: O&M | O131: Vehicle | P131: CO₂ | Q131: Opstrøm | R131: Tailpipe | S131: Vehicle | T131: ILUC | U131: SO₂ | V131: NOx | W131: Particles | X131: Råstofudvinding - tab | Y131: Råstofkonvertering - tab | Z131: Distributionstab - råstofkonv -> mellemkonv. | AA131: Mellemkonvertering - tab | AB131: Distributionstab, transport | AC131: Motor- og kabinetab | AD131: Transportmiddelfremstilling - tab | AF131: Mekanisk energiforbrug
F132: =F131&"1" -> F1 | G132: =IFERROR(MATCH(F132,$D$25:$D$72,0),"") -> 1 | H132: 1 | J132: =IF(ISNUMBER(G132),OFFSET($B$24,G132,0)," ") -> Standard dieselbil | K132: ='General ass. and conv.'!$O$69 -> 2015 | L132: 0.08115170602 | M132: 0.2928804628 | N132: 0.3725616751 | O132: 0.8043972931 | P132: 172.4330527 | Q132: 23.87901282 | R132: 148.51 | U132: 0.005498419797 | V132: 0.2814252279 | W132: 0.005104699898 | X132: 0.05637383936 | Y132: 0.002602726959 | Z132: 0 | AA132: 0 | AB132: 0.001044421125 | AC132: 0.7496695285 | AD132: 0 | AE132: 2.117068545 | AF132: =IF(SUM(X132:AD132)=0,"",1-SUM(X132:AD132)) -> 0.1903094841
F133: =F132 -> F1 | G133: =IFERROR(MATCH(F133,$D$25:$D$72,0),"") -> 1 | H133: 2 | K133: ='General ass. and conv.'!$O$70 -> 2020 | L133: 0.07959528134 | M133: 0.3168591878 | N133: 0.3975739133 | O133: 0.8043972931 | P133: 167.9561637 | Q133: 24.33423706 | R133: 143.59 | U133: 0.004586670277 | V133: 0.1762084068 | W133: 0.005035801759 | X133: 0.06167747251 | Y133: 0.006949516955 | Z133: 0 | AA133: 0 | AB133: 0.001033710334 | AC133: 0.7380170964 | AD133: 0 | AE133: 2.053014421 | AF133: =IF(SUM(X133:AD133)=0,"",1-SUM(X133:AD133)) -> 0.1923222038
F134: =F133 -> F1 | G134: 1 | H134: 3 | K134: ='General ass. and conv.'!$O$71 -> 2035 | L134: 0.112696254 | M134: 0.3075615907 | N134: 0.3776952176 | O134: 0.8043972931 | P134: 149.5239283 | Q134: 22.18580944 | R134: 127.31 | U134: 0.004060808025 | V134: 0.1646618162 | W134: 0.005031366176 | X134: 0.06481810732 | Y134: 0.006911340542 | Z134: 0 | AA134: 0 | AB134: 0.001030266984 | AC134: 0.7214377978 | AD134: 0 | AE134: 1.822612787 | AF134: 0.2058024874
F135: =F134 -> F1 | G135: 1 | H135: 4 | K135: ='General ass. and conv.'!$O$72 -> 2050 | L135: 0.1083333772 | M135: 0.2823237473 | N135: 0.3588104567 | O135: 0.8043972931 | P135: 136.9398002 | Q135: 19.96433109 | R135: 116.95 | U135: 0.00372355626 | V135: 0.1576410043 | W135: 0.005028721767 | X135: 0.06436363009 | Y135: 0.006916865001 | Z135: 0 | AA135: 0 | AB135: 0.001030765266 | AC135: 0.7144140962 | AD135: 0 | AE135: 1.67081903 | AF135: 0.2132746434
F136: =F131&"2" -> F2 | G136: 2 | H136: =H132 -> 1 | J136: =IF(ISNUMBER(G136),OFFSET($B$24,G136,0)," ") -> Standard benzinbil | K136: =IF(J136<>" ",K132," ") -> 2015 | L136: 0.07611798559 | M136: 0.3428415695 | N136: 0.3725616751 | O136: 0.7297778781 | P136: 189.8807682 | Q136: 26.98624025 | R136: 162.8445713 | U136: 0.0009466161764 | V136: 0.1748531878 | W136: 0.005133973295 | X136: 0.05598141584 | Y136: 0.002584609135 | Z136: 0 | AA136: 0 | AB136: 0.001140755528 | AC136: 0.7738613196 | AD136: 0 | AE136: 2.367195599 | AF136: 0.1664318999
F137: =F136 -> F2 | G137: 2 | H137: =H133 -> 2 | K137: =IF(J136<>" ",K133," ") -> 2020 | L137: 0.07816690974 | M137: 0.3427875731 | N137: 0.3725616751 | O137: 0.7297778781 | P137: 170.4539745 | Q137: 25.47724487 | R137: 144.9429953 | U137: 0.0001193714251 | V137: 0.1607734959 | W137: 0.005039814576 | X137: 0.06098932748 | Y137: 0.01019612781 | Z137: 0 | AA137: 0 | AB137: 0.001125464297 | AC137: 0.7467897097 | AD137: 0 | AE137: 2.134320989 | AF137: 0.1808993707
F138: =F137 -> F2 | G138: 2 | H138: 3 | K138: =IF(J136<>" ",K134," ") -> 2035 | L138: 0.1118499813 | M138: 0.332863255 | N138: 0.3725616751 | O138: 0.7297778781 | P138: 151.8254781 | Q138: 23.23492708 | R138: 128.5608361 | U138: 0.0001079235956 | V138: 0.1484903276 | W138: 0.005020637846 | X138: 0.06407137635 | Y138: 0.0101363915 | Z138: 0 | AA138: 0 | AB138: 0.001121802097 | AC138: 0.7314143102 | AD138: 0 | AE138: 1.897960374 | AF138: 0.1932561199
F139: =F138 -> F2 | G139: 2 | H139: 4 | K139: =IF(J136<>" ",K135," ") -> 2050 | L139: 0.1075720059 | M139: 0.3049563183 | N139: 0.3725616751 | O139: 0.7297778781 | P139: 139.2186728 | Q139: 20.94869825 | R139: 118.2431048 | U139: 9.821686327e-05 | V139: 0.1416461413 | W139: 0.005041958846 | X139: 0.06362551716 | Y139: 0.01014503315 | Z139: 0 | AA139: 0 | AB139: 0.001122331882 | AC139: 0.7252839804 | AD139: 0 | AE139: 1.743806243 | AF139: 0.1998231374
F140: =F131&"3" -> F3 | G140: 3 | H140: 1 | J140: =IF(ISNUMBER(G140),OFFSET($B$24,G140,0)," ") -> Bil E85-1g | K140: =IF(J140<>" ",K136," ") -> 2015 | L140: 0.09896184797 | M140: 0.3890442821 | N140: 0.3725616751 | O140: 0.7297778781 | P140: 74.76255932 | Q140: 38.80092224 | R140: 34.66258434 | U140: 0.07502706685 | V140: 0.3667571711 | W140: 0.01197264599 | X140: 0.06875887373 | Y140: 0.1095409352 | Z140: 0 | AA140: 0 | AB140: 0.001287985917 | AC140: 0.6751992449 | AD140: 0 | AE140: 2.713097096 | AF140: 0.1452129603
F141: =F140 -> F3 | G141: 3 | H141: 2 | K141: =IF(J140<>" ",K137," ") -> 2020 | L141: 0.07627484507 | M141: 0.3668759162 | N141: 0.3725616751 | O141: 0.7297778781 | P141: 65.41463831 | Q141: 34.32798677 | R141: 30.9020258 | U141: 0.0002224934436 | V141: 0.2932754004 | W141: 0.005059177412 | X141: 0.0692179662 | Y141: 0.1104125368 | Z141: 0 | AA141: 0 | AB141: 0.001281273894 | AC141: 0.6593660196 | AD141: 0 | AE141: 2.417305266 | AF141: 0.1597222035
F142: =F141 -> F3 | G142: 3 | H142: 3 | K142: =IF(J140<>" ",K138," ") -> 2035 | L142: 0.08767602595 | M142: 0.3368784826 | N142: 0.3725616751 | O142: 0.7297778781 | P142: 58.07487356 | Q142: 30.43349441 | R142: 27.4604542 | U142: 0.0001572877819 | V142: 0.2587371264 | W142: 0.00502373788 | X142: 0.06938329199 | Y142: 0.1103509283 | Z142: 0 | AA142: 0 | AB142: 0.001276180996 | AC142: 0.6478207726 | AD142: 0 | AE142: 2.142869504 | AF142: 0.1711688261
F143: =F142 -> F3 | G143: 3 | H143: 4 | K143: =IF(J140<>" ",K139," ") -> 2050 | L143: 0.08519646459 | M143: 0.3066264006 | N143: 0.3725616751 | O143: 0.7297778781 | P143: 52.64960507 | Q143: 27.17731553 | R143: 25.29597641 | U143: 0.0001390079255 | V143: 0.2423652935 | W143: 0.005044220948 | X143: 0.06912735847 | Y143: 0.110352138 | Z143: 0 | AA143: 0 | AB143: 0.001272812471 | AC143: 0.6422901898 | AD143: 0 | AE143: 1.969132883 | AF143: 0.1769575013
F144: =F131&"4" -> F4 | G144: 4 | H144: 1 | J144: =IF(ISNUMBER(G144),OFFSET($B$24,G144,0)," ") -> Bil E85-1g Sugarb. | K144: =IF(J144<>" ",K140," ") -> 2015 | L144: 0.06885783974 | M144: 0.2903917672 | N144: 0.3725616751 | O144: 0.7297778781 | P144: 57.77841356 | Q144: 23.21192321 | R144: 34.66258434 | U144: -0.01833206274 | V144: 0.2839821842 | W144: 0.003354211536 | X144: 0.07682980471 | Y144: 0.1353877433 | Z144: 0 | AA144: 0 | AB144: 0.001234821064 | AC144: 0.6473287003 | AD144: 0 | AE144: 2.829908684 | AF144: 0.1392189307
F145: =F144 -> F4 | G145: 4 | H145: 2 | K145: =IF(J144<>" ",K141," ") -> 2020 | L145: 0.07391856274 | M145: 0.2624443823 | N145: 0.3725616751 | O145: 0.7297778781 | P145: 52.1379729 | Q145: 21.05868565 | R145: 30.9020258 | U145: 0.0001478447795 | V145: 0.2666584062 | W145: 0.005038015392 | X145: 0.07725748823 | Y145: 0.1361834305 | Z145: 0 | AA145: 0 | AB145: 0.001228467929 | AC145: 0.6321911437 | AD145: 0 | AE145: 2.521213667 | AF145: 0.1531394696
F146: =F145 -> F4 | G146: 4 | H146: 3 | K146: =IF(J144<>" ",K142," ") -> 2035 | L146: 0.08335368669 | M146: 0.2338480876 | N146: 0.3725616751 | O146: 0.7297778781 | P146: 46.46835626 | Q146: 18.8319065 | R146: 27.4604542 | U146: 0.000141569383 | V146: 0.2447952498 | W146: 0.005022999557 | X146: 0.07741507301 | Y146: 0.1361213857 | Z146: 0 | AA146: 0 | AB146: 0.001223591 | AC146: 0.6211248007 | AD146: 0 | AE146: 2.234970131 | AF146: 0.1641151496
F147: =F146 -> F4 | G147: 4 | H147: 4 | K147: =IF(J144<>" ",K143," ") -> 2050 | L147: 0.08149568627 | M147: 0.2087131064 | N147: 0.3725616751 | O147: 0.7297778781 | P147: 42.74419441 | Q147: 17.27190487 | R147: 25.29597641 | U147: 0.0001302815388 | V147: 0.2301884935 | W147: 0.005044220948 | X147: 0.07717211617 | Y147: 0.1361303319 | Z147: 0 | AA147: 0 | AB147: 0.00122034544 | AC147: 0.6158141299 | AD147: 0 | AE147: 2.053792974 | AF147: 0.1696630766
F148: =F131&"5" -> F5 | G148: 5 | H148: 1 | J148: =IF(ISNUMBER(G148),OFFSET($B$24,G148,0)," ") -> Bil E85-2g | K148: =IF(J148<>" ",K144," ") -> 2015 | L148: 0.02426390604 | M148: 0.4084287013 | N148: 0.3725616751 | O148: 0.7297778781 | P148: 46.29239696 | Q148: 13.64672051 | R148: 34.66258434 | U148: -0.1469315048 | V148: 0.09103391588 | W148: -0.008511898386 | X148: 0.03604070526 | Y148: 0.2545020898 | Z148: 0 | AA148: 0 | AB148: 0.001112049016 | AC148: 0.5829680633 | AD148: 0 | AE148: 3.142335276 | AF148: 0.1253770926
F149: =F148 -> F5 | G149: 5 | H149: 2 | K149: =IF(J148<>" ",K145," ") -> 2020 | L149: 0.06811826276 | M149: 0.3770277392 | N149: 0.3725616751 | O149: 0.7297778781 | P149: 44.44021391 | Q149: 13.37097599 | R149: 30.9020258 | U149: -5.309801866e-06 | V149: 0.1595735763 | W149: 0.005008891464 | X149: 0.03648277199 | Y149: 0.2550527706 | Z149: 0 | AA149: 0 | AB149: 0.001106497764 | AC149: 0.5694231575 | AD149: 0 | AE149: 2.799129137 | AF149: 0.1379348021
F150: =F149 -> F5 | G150: 5 | H150: 3 | K150: =IF(J148<>" ",K146," ") -> 2035 | L150: 0.07734597984 | M150: 0.343638166 | N150: 0.3725616751 | O150: 0.7297778781 | P150: 39.86729084 | Q150: 12.23755009 | R150: 27.4604542 | U150: 7.527613293e-05 | V150: 0.1631663547 | W150: 0.005021994684 | X150: 0.03662895231 | Y150: 0.2549845247 | Z150: 0 | AA150: 0 | AB150: 0.00110211768 | AC150: 0.5594619646 | AD150: 0 | AE150: 2.481304298 | AF150: 0.1478224407
F151: =F150 -> F5 | G151: 5 | H151: 4 | K151: =IF(J148<>" ",K147," ") -> 2050 | L151: 0.07634402827 | M151: 0.3213258337 | N151: 0.3725616751 | O151: 0.7297778781 | P151: 37.71548184 | Q151: 12.2431923 | R151: 25.29597641 | U151: 7.713191786e-05 | V151: 0.1560235125 | W151: 0.005044220948 | X151: 0.03639902226 | Y151: 0.2550249301 | Z151: 0 | AA151: 0 | AB151: 0.001099161357 | AC151: 0.5546618789 | AD151: 0 | AE151: 2.280226533 | AF151: 0.1528150074
F152: =F131&"6" -> F6 | G152: 6 | H152: 1 | J152: =IF(ISNUMBER(G152),OFFSET($B$24,G152,0)," ") -> Bil biodiesel-1g RME | K152: =IF(J152<>" ",K148," ") -> 2015 | L152: 0.09726937314 | M152: 0.3116850483 | N152: 0.3725616751 | O152: 0.8043972931 | P152: 86.58388375 | Q152: 85.19208203 | R152: 1.25 | U152: 0.009610493869 | V152: 0.6863765319 | W152: 0.005888882339 | X152: 0.1661369906 | Y152: 0.03479563275 | Z152: 0 | AA152: 0 | AB152: 0.001053654482 | AC152: 0.6364467322 | AD152: 0 | AE152: 2.493691455 | AF152: 0.16156699
F153: =F152 -> F6 | G153: 6 | H153: 2 | K153: =IF(J152<>" ",K149," ") -> 2020 | L153: 0.09053043883 | M153: 0.3180433525 | N153: 0.3975739133 | O153: 0.8043972931 | P153: 83.94273456 | Q153: 81.68864602 | R153: 2.25 | U153: 0.0003505064374 | V153: 0.5596907688 | W153: 0.005033691863 | X153: 0.1661369906 | Y153: 0.03479563275 | Z153: 0 | AA153: 0 | AB153: 0.001053654482 | AC153: 0.6330462123 | AD153: 0 | AE153: 2.393442552 | AF153: 0.1649675099
F154: =F153 -> F6 | G154: 6 | H154: 3 | K154: =IF(J152<>" ",K150," ") -> 2035 | L154: 0.1046214823 | M154: 0.2850905487 | N154: 0.3776952176 | O154: 0.8043972931 | P154: 74.51353663 | Q154: 72.2601034 | R154: 2.25 | U154: 0.0003047347286 | V154: 0.5034069678 | W154: 0.005027886802 | X154: 0.1661369906 | Y154: 0.03479563275 | Z154: 0 | AA154: 0 | AB154: 0.001053654482 | AC154: 0.6208932803 | AD154: 0 | AE154: 2.11775807 | AF154: 0.1771204418
F155: =F154 -> F6 | G155: 6 | H155: 4 | K155: =IF(J152<>" ",K151," ") -> 2050 | L155: 0.1009891573 | M155: 0.2608784892 | N155: 0.3588104567 | O155: 0.8043972931 | P155: 68.36003631 | Q155: 66.10787967 | R155: 2.25 | U155: 0.000278237455 | V155: 0.4681919672 | W155: 0.005025428044 | X155: 0.1661369906 | Y155: 0.03479563275 | Z155: 0 | AA155: 0 | AB155: 0.001053654482 | AC155: 0.6145512258 | AD155: 0 | AE155: 1.94232249 | AF155: 0.1834624964
F156: =F131&"7" -> F7 | G156: 7 | H156: 1 | J156: =IF(ISNUMBER(G156),OFFSET($B$24,G156,0)," ") -> Bil biodiesel-2g | K156: =IF(J156<>" ",K152," ") -> 2015 | L156: Teknologi ikke tilgængelig | X156: Teknologi ikke tilgængelig | Y156: Teknologi ikke tilgængelig | Z156: Teknologi ikke tilgængelig | AA156: Teknologi ikke tilgængelig | AB156: Teknologi ikke tilgængelig | AC156: Teknologi ikke tilgængelig | AD156: Teknologi ikke tilgængelig | AE156: Teknologi ikke tilgængelig
F157: =F156 -> F7 | G157: 7 | H157: 2 | K157: =IF(J156<>" ",K153," ") -> 2020 | L157: Teknologi ikke tilgængelig | X157: Teknologi ikke tilgængelig | Y157: Teknologi ikke tilgængelig | Z157: Teknologi ikke tilgængelig | AA157: Teknologi ikke tilgængelig | AB157: Teknologi ikke tilgængelig | AC157: Teknologi ikke tilgængelig | AD157: Teknologi ikke tilgængelig | AE157: Teknologi ikke tilgængelig
F158: =F157 -> F7 | G158: 7 | H158: 3 | K158: =IF(J156<>" ",K154," ") -> 2035 | L158: 0.06259853266 | M158: 0.2768932706 | N158: 0.3776952176 | O158: 0.8043972931 | P158: -12.95476535 | Q158: -15.19432636 | R158: 2.25 | U158: 7.301621121e-05 | V158: 0.2019630782 | W158: 0.005021471295 | X158: 0.03445580341 | Y158: 0.2230843008 | Z158: 0 | AA158: 0 | AB158: 0.0008240398399 | AC158: 0.5770285731 | AD158: 0 | AE158: 2.27874635 | AF158: 0.1646072829
F159: =F158 -> F7 | G159: 7 | H159: 4 | K159: =IF(J156<>" ",K155," ") -> 2050 | L159: 0.06299267476 | M159: 0.2554834824 | N159: 0.3588104567 | O159: 0.8043972931 | P159: -10.4090687 | Q159: -12.66088358 | R159: 2.25 | U159: 8.135023414e-05 | V159: 0.1934651389 | W159: 0.005021398463 | X159: 0.03445580341 | Y159: 0.2230843008 | Z159: 0 | AA159: 0 | AB159: 0.0008240398399 | AC159: 0.5711345704 | AD159: 0 | AE159: 2.089974463 | AF159: 0.1705012856
F160: =F131&"8" -> F8 | G160: 8 | H160: 1 | J160: =IF(ISNUMBER(G160),OFFSET($B$24,G160,0)," ") -> Bil DME | K160: =IF(J160<>" ",K156," ") -> 2015 | L160: Teknologi ikke tilgængelig | X160: Teknologi ikke tilgængelig | Y160: Teknologi ikke tilgængelig | Z160: Teknologi ikke tilgængelig | AA160: Teknologi ikke tilgængelig | AB160: Teknologi ikke tilgængelig | AC160: Teknologi ikke tilgængelig | AD160: Teknologi ikke tilgængelig | AE160: Teknologi ikke tilgængelig
F161: =F160 -> F8 | G161: 8 | H161: 2 | K161: =IF(J160<>" ",K157," ") -> 2020 | L161: Teknologi ikke tilgængelig | X161: Teknologi ikke tilgængelig | Y161: Teknologi ikke tilgængelig | Z161: Teknologi ikke tilgængelig | AA161: Teknologi ikke tilgængelig | AB161: Teknologi ikke tilgængelig | AC161: Teknologi ikke tilgængelig | AD161: Teknologi ikke tilgængelig | AE161: Teknologi ikke tilgængelig
F162: =F161 -> F8 | G162: 8 | H162: 3 | K162: =IF(J160<>" ",K158," ") -> 2035 | L162: 0.07234744767 | M162: 0.3056838042 | N162: 0.3776952176 | O162: 0.8407742579 | P162: 20.97367963 | Q162: 18.7326229 | R162: 2.25 | U162: 5.889188631e-05 | V162: 0.1825487835 | W162: 0.005041567567 | X162: 0.03635877518 | Y162: 0.1332383982 | Z162: 0 | AA162: 0 | AB162: 0.001735608098 | AC162: 0.6425405004 | AD162: 0 | AE162: 2.015284257 | AF162: 0.1861267182
F163: =F162 -> F8 | G163: 8 | H163: 4 | K163: =IF(J160<>" ",K159," ") -> 2050 | L163: 0.07220263125 | M163: 0.2965297895 | N163: 0.3588104567 | O163: 0.8407742579 | P163: 21.47838472 | Q163: 19.22498572 | R163: 2.25 | U163: 6.901473171e-05 | V163: 0.1762076829 | W163: 0.005040076116 | X163: 0.03635877518 | Y163: 0.1332383982 | Z163: 0 | AA163: 0 | AB163: 0.001735608098 | AC163: 0.6369204404 | AD163: 0 | AE163: 1.858405842 | AF163: 0.1917467782
F164: =F131&"9" -> F9 | G164: =IFERROR(MATCH(F164,$D$25:$D$72,0),"") -> 9 | H164: 1 | J164: =IF(ISNUMBER(G164),OFFSET($B$24,G164,0)," ") -> Bil Naturgas | K164: =IF(J164<>" ",K160," ") -> 2015 | L164: 0.06940059301 | M164: 0.1796995231 | N164: 0.3725616751 | O164: 0.802644488 | P164: 151.9478513 | Q164: 28.99991767 | R164: 122.9393815 | U164: 0.0001798313736 | V164: 0.08382998722 | W164: 0.00500306252 | X164: 0.1422470752 | Y164: 0 | Z164: 0 | AA164: 0.02040847564 | AB164: 0 | AC164: 0.6815983816 | AD164: 0 | AE164: 2.529610327 | AF164: 0.1557460675
F165: =F164 -> F9 | G165: =IFERROR(MATCH(F165,$D$25:$D$72,0),"") -> 9 | H165: 2 | K165: =IF(J164<>" ",K161," ") -> 2020 | L165: 0.07150288215 | M165: 0.1647873111 | N165: 0.3725616751 | O165: 0.802644488 | P165: 135.9748368 | Q165: 25.88476551 | R165: 110.082757 | U165: 0.0001480065549 | V165: 0.07898999784 | W165: 0.005009040614 | X165: 0.1422470752 | Y165: 0 | Z165: 0 | AA165: 0.02040847564 | AB165: 0 | AC165: 0.6665261815 | AD165: 0 | AE165: 2.260281228 | AF165: 0.1708182676
F166: =F165 -> F9 | G166: 9 | H166: 3 | K166: =IF(J164<>" ",K162," ") -> 2035 | L166: 0.09858865505 | M166: 0.1564497071 | N166: 0.3725616751 | O166: 0.802644488 | P166: 120.5742073 | Q166: 22.90190287 | R166: 97.66585779 | U166: 0.000130942928 | V166: 0.07690149969 | W166: 0.005016355318 | X166: 0.1422470752 | Y166: 0 | Z166: 0 | AA166: 0.02040847564 | AB166: 0 | AC166: 0.6539660148 | AD166: 0 | AE166: 2.000194073 | AF166: 0.1833784344
F167: =F166 -> F9 | G167: 9 | H167: 4 | K167: =IF(J164<>" ",K163," ") -> 2050 | L167: 0.09535656717 | M167: 0.143749088 | N167: 0.3725616751 | O167: 0.802644488 | P167: 110.5287636 | Q167: 20.83087886 | R167: 89.6929266 | U167: 0.0001188116714 | V167: 0.0753942736 | W167: 0.005017987694 | X167: 0.1422470752 | Y167: 0 | Z167: 0 | AA167: 0.02040847564 | AB167: 0 | AC167: 0.6472672592 | AD167: 0 | AE167: 1.833217519 | AF167: 0.19007719
F168: =F131&"10" -> F10 | G168: 10 | H168: =H164 -> 1 | J168: =IF(ISNUMBER(G168),OFFSET($B$24,G168,0)," ") -> Bil biogas | K168: =IF(J168<>" ",K164," ") -> 2015 | L168: 0.06198232273 | M168: 0.3800274301 | N168: 0.3725616751 | O168: 0.802644488 | P168: -108.8849814 | Q168: -117.0601321 | R168: 2.140992419 | U168: 0.02491626331 | V168: 0.08992776275 | W168: 0.007312159799 | X168: 0 | Y168: 0.0519773023 | Z168: 0 | AA168: 0.02255985342 | AB168: 0 | AC168: 0.7533267552 | AD168: 0 | AE168: 2.288752249 | AF168: 0.172136089
F169: =F168 -> F10 | G169: 10 | H169: =H165 -> 2 | K169: =IF(J168<>" ",K165," ") -> 2020 | L169: 0.0523746337 | M169: 0.3464285348 | N169: 0.3725616751 | O169: 0.802644488 | P169: -97.65635866 | Q169: -104.8628011 | R169: 2.145843469 | U169: 3.109398289e-05 | V169: 0.06489936901 | W169: 0.005015213757 | X169: 0 | Y169: 0.0519773023 | Z169: 0 | AA169: 0.02255985342 | AB169: 0 | AC169: 0.736668424 | AD169: 0 | AE169: 2.045067451 | AF169: 0.1887944202
F170: =F169 -> F10 | G170: 10 | H170: 3 | K170: =IF(J168<>" ",K166," ") -> 2035 | L170: 0.03281809862 | M170: 0.3138973782 | N170: 0.3725616751 | O170: 0.802644488 | P170: -86.22900098 | Q170: -92.85583991 | R170: 2.149082212 | U170: 1.392372136e-05 | V170: 0.06184581741 | W170: 0.005016997257 | X170: 0 | Y170: 0.0519773023 | Z170: 0 | AA170: 0.02255985342 | AB170: 0 | AC170: 0.7227864814 | AD170: 0 | AE170: 1.809744621 | AF170: 0.2026763629
F171: =F170 -> F10 | G171: 10 | H171: 4 | K171: =IF(J168<>" ",K167," ") -> 2050 | L171: 0.06367054408 | M171: 0.2768080372 | N171: 0.3725616751 | O171: 0.802644488 | P171: 12.01778818 | Q171: 5.768805528 | R171: 2.149908283 | U171: 6.600648409e-06 | V171: 0.06104170089 | W171: 0.005017987694 | X171: 0 | Y171: 0.0519773023 | Z171: 0 | AA171: 0.02255985342 | AB171: 0 | AC171: 0.7153827786 | AD171: 0 | AE171: 1.658666821 | AF171: 0.2100800657
F172: =F131&"11" -> F11 | G172: 11 | H172: 1 | J172: =IF(ISNUMBER(G172),OFFSET($B$24,G172,0)," ") -> Bil MeOH | K172: =IF(J172<>" ",K168," ") -> 2015 | L172: Teknologi ikke tilgængelig | X172: Teknologi ikke tilgængelig | Y172: Teknologi ikke tilgængelig | Z172: Teknologi ikke tilgængelig | AA172: Teknologi ikke tilgængelig | AB172: Teknologi ikke tilgængelig | AC172: Teknologi ikke tilgængelig | AD172: Teknologi ikke tilgængelig | AE172: Teknologi ikke tilgængelig
F173: =F172 -> F11 | G173: 11 | H173: 2 | K173: =IF(J172<>" ",K169," ") -> 2020 | L173: Teknologi ikke tilgængelig | X173: Teknologi ikke tilgængelig | Y173: Teknologi ikke tilgængelig | Z173: Teknologi ikke tilgængelig | AA173: Teknologi ikke tilgængelig | AB173: Teknologi ikke tilgængelig | AC173: Teknologi ikke tilgængelig | AD173: Teknologi ikke tilgængelig | AE173: Teknologi ikke tilgængelig
F174: =F173 -> F11 | G174: 11 | H174: 3 | K174: =IF(J172<>" ",K170," ") -> 2035 | L174: 0.02373126637 | M174: 0.1508988765 | N174: 0.1751039873 | O174: 1.06611957 | P174: 5.987905455 | Q174: 5.978095202 | R174: 0 | U174: 3.997087653e-05 | V174: 0.04141675461 | W174: 1.276494326e-05 | X174: 0.03630543784 | Y174: 0.09305270413 | Z174: 0.02350945147 | AA174: 0.03123398553 | AB174: 0.0009788283957 | AC174: 0.3473300251 | AD174: 0 | AE174: 0.9407200164 | AF174: 0.4675895675
F175: =F174 -> F11 | G175: 11 | H175: 4 | K175: =IF(J172<>" ",K171," ") -> 2050 | L175: 0.02287584291 | M175: 0.1464568354 | N175: 0.1751039873 | O175: 1.056293282 | P175: 3.994440058 | Q175: 3.993557133 | R175: 0 | U175: 2.635291449e-05 | V175: 0.03674805657 | W175: 1.041019179e-05 | X175: 0.03582839492 | Y175: 0.09266243145 | Z175: 0.02297785887 | AA175: 0.03052772679 | AB175: 0.0009752787511 | AC175: 0.3306074106 | AD175: 0 | AE175: 0.8590858731 | AF175: 0.4864208986
F176: =F131&"12" -> F12 | G176: 12 | H176: 1 | J176: =IF(ISNUMBER(G176),OFFSET($B$24,G176,0)," ") -> Bil brinthybrid | K176: =IF(J176<>" ",K172," ") -> 2015 | L176: Teknologi ikke tilgængelig | X176: Teknologi ikke tilgængelig | Y176: Teknologi ikke tilgængelig | Z176: Teknologi ikke tilgængelig | AA176: Teknologi ikke tilgængelig | AB176: Teknologi ikke tilgængelig | AC176: Teknologi ikke tilgængelig | AD176: Teknologi ikke tilgængelig | AE176: Teknologi ikke tilgængelig
F177: =F176 -> F12 | G177: 12 | H177: 2 | K177: =IF(J176<>" ",K173," ") -> 2020 | L177: Teknologi ikke tilgængelig | X177: Teknologi ikke tilgængelig | Y177: Teknologi ikke tilgængelig | Z177: Teknologi ikke tilgængelig | AA177: Teknologi ikke tilgængelig | AB177: Teknologi ikke tilgængelig | AC177: Teknologi ikke tilgængelig | AD177: Teknologi ikke tilgængelig | AE177: Teknologi ikke tilgængelig
F178: =F177 -> F12 | G178: 12 | H178: 3 | K178: =IF(J176<>" ",K174," ") -> 2035 | L178: 0.02314750103 | M178: 0.1801696263 | N178: 0.1751039873 | O178: 1.112195807 | P178: 4.143888455 | Q178: 4.120647682 | R178: 0 | U178: 5.668088003e-05 | V178: 0.04141432738 | W178: 3.480996777e-06 | X178: 0.0415406395 | Y178: 0.006353379852 | Z178: 0.05368267372 | AA178: 0.09544475863 | AB178: 0 | AC178: 0.3315638824 | AD178: 0 | AE178: 0.9246290275 | AF178: 0.4714146659
F179: =F178 -> F12 | G179: 12 | H179: 4 | K179: =IF(J176<>" ",K175," ") -> 2050 | L179: 0.02152272471 | M179: 0.1739333257 | N179: 0.1751039873 | O179: 1.102369519 | P179: 0 | Q179: 0 | R179: 0 | U179: 2.500851357e-05 | V179: 0.03489687984 | W179: 0 | X179: 0.04099169314 | Y179: 0.006269421955 | Z179: 0.05297327424 | AA179: 0.09441997242 | AB179: 0 | AC179: 0.3148398319 | AD179: 0 | AE179: 0.8442091704 | AF179: 0.4905058063
F180: =F131&"13" -> F13 | G180: 13 | H180: 1 | J180: =IF(ISNUMBER(G180),OFFSET($B$24,G180,0)," ") -> Elbil | K180: =IF(J180<>" ",K176," ") -> 2015 | L180: 0.02354790298 | M180: 0.07896217485 | N180: 0.08196356853 | O180: 1.172460392 | P180: 3.787713267 | Q180: 3.763964936 | R180: 0 | U180: 0.0002422237697 | V180: 0.07065018794 | W180: 7.352424516e-05 | X180: 0.05098328676 | Y180: 0.01819433801 | Z180: 0.06515756627 | AA180: 0.1714016322 | AB180: 0 | AC180: 0.184674005 | AD180: 0 | AE180: 0.8493385014 | AF180: 0.5095891718
F181: =F180 -> F13 | G181: 13 | H181: 2 | K181: =IF(J180<>" ",K177," ") -> 2020 | L181: 0.02159616736 | M181: 0.0907131886 | N181: 0.08196356853 | O181: 1.023321392 | P181: 3.181323666 | Q181: 3.163481386 | R181: 0 | U181: 4.300296748e-05 | V181: 0.03108025761 | W181: 2.672412048e-06 | X181: 0.05098328676 | Y181: 0.007797573432 | Z181: 0.06588533979 | AA181: 0.1733160924 | AB181: 0 | AC181: 0.1846306571 | AD181: 0 | AE181: 0.8030422202 | AF181: 0.5173870505
F182: =F181 -> F13 | G182: 13 | H182: 3 | K182: =IF(J180<>" ",K178," ") -> 2035 | L182: 0.02211532823 | M182: 0.1203163328 | N182: 0.08196356853 | O182: 0.9094466557 | P182: 2.849645433 | Q182: 2.833663352 | R182: 0 | U182: 3.897798231e-05 | V182: 0.028479567 | W182: 2.393791888e-06 | X182: 0.05098328676 | Y182: 0.007797573432 | Z182: 0.06588533979 | AA182: 0.1733160924 | AB182: 0 | AC182: 0.1719943384 | AD182: 0 | AE182: 0.7373016647 | AF182: 0.5300233693
F183: =F182 -> F13 | G183: 13 | H183: 4 | K183: =IF(J180<>" ",K179," ") -> 2050 | L183: 0.02100092314 | M183: 0.116247507 | N183: 0.08196356853 | O183: 0.8910797628 | P183: 0 | Q183: 0 | R183: 0 | U183: 1.72410552e-05 | V183: 0.02405816843 | W183: 0 | X183: 0.05098328676 | Y183: 0.007797573432 | Z183: 0.06588533979 | AA183: 0.1733160924 | AB183: 0 | AC183: 0.1551459134 | AD183: 0 | AE183: 0.6763414561 | AF183: 0.5468717942
F184: =F131&"14" -> F14 | G184: 14 | H184: 1 | J184: =IF(ISNUMBER(G184),OFFSET($B$24,G184,0)," ") -> Elbil stort bat. | K184: =IF(J184<>" ",K180," ") -> 2015 | L184: 0.02400141848 | M184: 0.09583729059 | N184: 0.08196356853 | O184: 1.901870606 | P184: 4.251328648 | Q184: 4.224673526 | R184: 0 | U184: 0.0002718719129 | V184: 0.07929775747 | W184: 8.252359874e-05 | X184: 0.05098328676 | Y184: 0.01819433801 | Z184: 0.06515756627 | AA184: 0.1714016322 | AB184: 0 | AC184: 0.184674005 | AD184: 0 | AE184: 0.953297372 | AF184: 0.5095891718
F185: =F184 -> F14 | G185: 14 | H185: 2 | K185: =IF(J184<>" ",K181," ") -> 2020 | L185: 0.02175496839 | M185: 0.1055222038 | N185: 0.08196356853 | O185: 1.466881855 | P185: 3.469437949 | Q185: 3.449979795 | R185: 0 | U185: 4.68975002e-05 | V185: 0.03389501872 | W185: 2.914437117e-06 | X185: 0.05098328676 | Y185: 0.007797573432 | Z185: 0.06588533979 | AA185: 0.1733160924 | AB185: 0 | AC185: 0.1846306571 | AD185: 0 | AE185: 0.8757691595 | AF185: 0.5173870505
F186: =F185 -> F14 | G186: 14 | H186: 3 | K186: =IF(J184<>" ",K182," ") -> 2035 | L186: 0.02228456615 | M186: 0.1351872201 | N186: 0.08196356853 | O186: 1.134747209 | P186: 3.061853115 | Q186: 3.044680878 | R186: 0 | U186: 4.188059861e-05 | V186: 0.03060038625 | W186: 2.572053023e-06 | X186: 0.05098328676 | Y186: 0.007797573432 | Z186: 0.06588533979 | AA186: 0.1733160924 | AB186: 0 | AC186: 0.1719943384 | AD186: 0 | AE186: 0.792207119 | AF186: 0.5300233693
F187: =F186 -> F14 | G187: 14 | H187: 4 | K187: =IF(J184<>" ",K183," ") -> 2050 | L187: 0.02108017233 | M187: 0.1301738059 | N187: 0.08196356853 | O187: 1.081177104 | P187: 0 | Q187: 0 | R187: 0 | U187: 1.842074653e-05 | V187: 0.02570430971 | W187: 0 | X187: 0.05098328676 | Y187: 0.007797573432 | Z187: 0.06588533979 | AA187: 0.1733160924 | AB187: 0 | AC187: 0.1551459134 | AD187: 0 | AE187: 0.7226190267 | AF187: 0.5468717942
F188: =F131&"15" -> F15 | G188: 15 | H188: 1 | J188: =IF(ISNUMBER(G188),OFFSET($B$24,G188,0)," ") -> Bil plugin hybrid | K188: =IF(J188<>" ",K184," ") -> 2015 | L188: 0.03256772364 | M188: 0.1114834836 | N188: 0.1751039873 | O188: 1.174403998 | P188: 46.18959112 | Q188: 8.553552174 | R188: 37.60999515 | U188: 0.0003670820363 | V188: 0.06960532712 | W188: 7.276622921e-05 | X188: 0.04789953119 | Y188: 0.007844412322 | Z188: 0.02317027211 | AA188: 0.03078336151 | AB188: 0.0006066286948 | AC188: 0.4751788198 | AD188: 0 | AE188: 1.033185319 | AF188: 0.4145169743
F189: =F188 -> F15 | G189: 15 | H189: 2 | K189: =IF(J188<>" ",K185," ") -> 2020 | L189: 0.03186973437 | M189: 0.1208999685 | N189: 0.1751039873 | O189: 0.9720155359 | P189: 41.43377428 | Q189: 7.858243443 | R189: 33.55680851 | U189: 5.398586784e-05 | V189: 0.0423934187 | W189: 1.09049317e-05 | X189: 0.05044051144 | Y189: 0.008165302411 | Z189: 0.02426468868 | AA189: 0.03223737211 | AB189: 0.0005843113635 | AC189: 0.4542030266 | AD189: 0 | AE189: 0.9570490922 | AF189: 0.4301047874
F190: =F189 -> F15 | G190: 15 | H190: 3 | K190: =IF(J188<>" ",K186," ") -> 2035 | L190: 0.03998288121 | M190: 0.1492029559 | N190: 0.1751039873 | O190: 0.9178332018 | P190: 36.86852339 | Q190: 7.138365787 | R190: 29.71346311 | U190: 4.896071937e-05 | V190: 0.03805407735 | W190: 9.576637038e-06 | X190: 0.05157499081 | Y190: 0.008060090325 | Z190: 0.02439543988 | AA190: 0.03241108441 | AB190: 0.0005724858603 | AC190: 0.4331572876 | AD190: 0 | AE190: 0.8649408441 | AF190: 0.4498286211
F191: =F190 -> F15 | G191: 15 | H191: 4 | K191: =IF(J188<>" ",K187," ") -> 2050 | L191: 0.03827652108 | M191: 0.1428891805 | N191: 0.1751039873 | O191: 0.906996735 | P191: 32.12474588 | Q191: 4.861911644 | R191: 27.25659812 | U191: 3.337059799e-05 | V191: 0.03367867742 | W191: 7.426179891e-06 | X191: 0.05095610807 | Y191: 0.008004807949 | Z191: 0.02385754268 | AA191: 0.03169644956 | AB191: 0.000573195204 | AC191: 0.4192697844 | AD191: 0 | AE191: 0.7924411169 | AF191: 0.4656421121
F192: =F131&"16" -> F16 | G192: =IFERROR(MATCH(F192,$D$25:$D$72,0),"") -> 16 | H192: =H188 -> 1 | J192: =IF(ISNUMBER(G192),OFFSET($B$24,G192,0)," ") -> Bil brint | K192: =IF(J192<>" ",K188," ") -> 2015 | L192: 0.03202470613 | M192: 0.5735791358 | N192: 0.1751039873 | O192: 1.478234048 | P192: 12.45329651 | Q192: 12.37521642 | R192: 0 | U192: 0.0007963866887 | V192: 0.2322846734 | W192: 0.0002417340388 | X192: 0.04997625137 | Y192: 0.01783495862 | Z192: 0.06387055675 | AA192: 0.282489968 | AB192: 0 | AC192: 0.3664057239 | AD192: 0 | AE192: 2.133731119 | AF192: 0.2194225414
F193: =F192 -> F16 | G193: =IFERROR(MATCH(F193,$D$25:$D$72,0),"") -> 16 | H193: =H189 -> 2 | K193: =IF(J192<>" ",K189," ") -> 2020 | L193: 0.02477278183 | M193: 0.3289595161 | N193: 0.1751039873 | O193: 1.12748828 | P193: 8.944686631 | Q193: 8.894520844 | R193: 0 | U193: 0.0001209081843 | V193: 0.08738600467 | W193: 7.513818405e-06 | X193: 0.05004740381 | Y193: 0.007654436014 | Z193: 0.06467590489 | AA193: 0.2086535546 | AB193: 0 | AC193: 0.4131857693 | AD193: 0 | AE193: 1.793805897 | AF193: 0.2557829314
F194: =F193 -> F16 | G194: =IFERROR(MATCH(F194,$D$25:$D$72,0),"") -> 16 | H194: =H190 -> 3 | K194: =IF(J192<>" ",K190," ") -> 2035 | L194: 0.02547554795 | M194: 0.379316583 | N194: 0.1751039873 | O194: 0.9906708905 | P194: 7.063029992 | Q194: 7.023417373 | R194: 0 | U194: 9.660944304e-05 | V194: 0.07058844358 | W194: 5.933167582e-06 | X194: 0.05004740381 | Y194: 0.007654436014 | Z194: 0.06467590489 | AA194: 0.1341218118 | AB194: 0 | AC194: 0.4515367386 | AD194: 0 | AE194: 1.492937912 | AF194: 0.2919637049
F195: =F194 -> F16 | G195: =IFERROR(MATCH(F195,$D$25:$D$72,0),"") -> 16 | H195: =H191 -> 4 | K195: =IF(J192<>" ",K191," ") -> 2050 | L195: 0.02269023391 | M195: 0.3609329622 | N195: 0.1751039873 | O195: 0.9897525458 | P195: 0 | Q195: 0 | R195: 0 | U195: 4.238787723e-05 | V195: 0.05914804389 | W195: 0 | X195: 0.05004740381 | Y195: 0.007654436014 | Z195: 0.06467590489 | AA195: 0.1341218118 | AB195: 0 | AC195: 0.4386729912 | AD195: 0 | AE195: 1.358439001 | AF195: 0.3048274523
F196: =F131&"17" -> F17 | G196: =IFERROR(MATCH(F196,$D$25:$D$72,0),"") -> 17 | H196: 1 | J196: =IF(ISNUMBER(G196),OFFSET($B$24,G196,0)," ") -> Varebil benzin | K196: =IF(J196<>" ",K192," ") -> 2015 | L196: 0.1437726379 | M196: 0.6135937496 | N196: 0.28 | O196: 0.836220122 | P196: 338.3091002 | Q196: 48.1709665 | R196: 290.04896 | U196: 0.001689728384 | V196: 0.2647325753 | W196: 0.005215594065 | X196: 0.05598141584 | Y196: 0.002584609135 | Z196: 0 | AA196: 0 | AB196: 0.001140755528 | AC196: 0.7438663162 | AD196: 0 | AE196: 4.22549043 | AF196: 0.1964269033
F197: =F196 -> F17 | G197: =IFERROR(MATCH(F197,$D$25:$D$72,0),"") -> 17 | H197: 2 | K197: =IF(J196<>" ",K193," ") -> 2020 | L197: 0.1475919454 | M197: 0.614593881 | N197: 0.28 | O197: 0.8576407938 | P197: 304.9796989 | Q197: 45.67921526 | R197: 259.24 | U197: 0.0002140260084 | V197: 0.2406817508 | W197: 0.005071447355 | X197: 0.06098932748 | Y197: 0.01019612781 | Z197: 0 | AA197: 0 | AB197: 0.001125464297 | AC197: 0.7151306866 | AD197: 0 | AE197: 3.826713147 | AF197: =IF(SUM(X197:AD197)=0,"",1-SUM(X197:AD197)) -> 0.2125583938
F198: =F197 -> F17 | G198: 17 | H198: 3 | K198: =IF(J196<>" ",K194," ") -> 2035 | L198: 0.2076753955 | M198: 0.5938583072 | N198: 0.28 | O198: 0.9150009588 | P198: 271.0167761 | Q198: 41.57161069 | R198: 229.392 | U198: 0.0001930954069 | V198: 0.2186313892 | W198: 0.00506240136 | X198: 0.06407137635 | Y198: 0.0101363915 | Z198: 0 | AA198: 0 | AB198: 0.001121802097 | AC198: 0.6971161048 | AD198: 0 | AE198: 3.395804492 | AF198: 0.2275543253
F199: =F198 -> F17 | G199: 17 | H199: 4 | K199: =IF(J196<>" ",K195," ") -> 2050 | L199: 0.199774546 | M199: 0.5455119234 | N199: 0.28 | O199: 0.9157772406 | P199: 247.9109083 | Q199: 37.39893872 | R199: 210.464 | U199: 0.0001753429452 | V199: 0.2055464418 | W199: 0.005057123878 | X199: 0.06362551716 | Y199: 0.01014503315 | Z199: 0 | AA199: 0 | AB199: 0.001122331882 | AC199: 0.689303256 | AD199: 0 | AE199: 3.113153001 | AF199: 0.2358038618
F200: =F131&"18" -> F18 | G200: 18 | H200: =H196 -> 1 | J200: =IF(ISNUMBER(G200),OFFSET($B$24,G200,0)," ") -> Varebil CNG | K200: =IF(J200<>" ",K196," ") -> 2015 | L200: 0.1321082347 | M200: 0.3269768445 | N200: 0.28 | O200: 0.9973103491 | P200: 274.9647971 | Q200: 52.81349742 | R200: 222.135725 | U200: 0.00032750175 | V200: 0.1034933125 | W200: 0.00501350125 | X200: 0.1422470752 | Y200: 0 | Z200: 0 | AA200: 0.02040847564 | AB200: 0 | AC200: 0.657177011 | AD200: 0 | AE200: 4.606825786 | AF200: 0.1801674382
F201: =F200 -> F18 | G201: 18 | H201: =H197 -> 2 | K201: =IF(J200<>" ",K197," ") -> 2020 | L201: 0.1358255576 | M201: 0.2999303441 | N201: 0.28 | O201: 1.016778555 | P201: 245.3864403 | Q201: 47.04744615 | R201: 198.3257 | U201: 0.0002690126909 | V201: 0.09436372364 | W201: 0.005003766956 | X201: 0.1422470752 | Y201: 0 | Z201: 0 | AA201: 0.02040847564 | AB201: 0 | AC201: 0.6393514332 | AD201: 0 | AE201: 4.108225717 | AF201: 0.197993016
F202: =F201 -> F18 | G202: 18 | H202: 3 | K202: =IF(J200<>" ",K198," ") -> 2035 | L202: 0.1847542103 | M202: 0.2857315011 | N202: 0.28 | O202: 1.055512662 | P202: 217.801412 | Q202: 41.70567227 | R202: 176.084 | U202: 0.0002384545455 | V202: 0.09046118182 | W202: 0.005003332818 | X202: 0.1422470752 | Y202: 0 | Z202: 0 | AA202: 0.02040847564 | AB202: 0 | AC202: 0.6251998012 | AD202: 0 | AE202: 3.642467569 | AF202: 0.2121446479
F203: =F202 -> F18 | G203: 18 | H203: 4 | K203: =IF(J200<>" ",K199," ") -> 2050 | L203: 0.1789679033 | M203: 0.2630702264 | N203: 0.28 | O203: 1.056011364 | P203: 199.832384 | Q203: 37.99684 | R203: 161.8265 | U203: 0.00021672 | V203: 0.08772 | W203: 0.0050028 | X203: 0.1422470752 | Y203: 0 | Z203: 0 | AA203: 0.02040847564 | AB203: 0 | AC203: 0.6178126215 | AD203: 0 | AE203: 3.343904653 | AF203: 0.2195318276
F204: =F131&"19" -> F19 | G204: 19 | H204: 1 | J204: =IF(ISNUMBER(G204),OFFSET($B$24,G204,0)," ") -> Varebil diesel | K204: =IF(J204<>" ",K200," ") -> 2015 | L204: 0.1448310168 | M204: 0.4582033893 | N204: 0.28 | O204: 0.8574620138 | P204: 269.0611548 | Q204: 37.35805558 | R204: 231.6342 | U204: 0.008602125806 | V204: 0.3386769658 | W204: 0.005163800096 | X204: 0.05637383936 | Y204: 0.002602726959 | Z204: 0 | AA204: 0 | AB204: 0.001044421125 | AC204: 0.6893823529 | AD204: 0 | AE204: 3.312095226 | AF204: 0.2505966596
F205: =F204 -> F19 | G205: 19 | H205: 2 | K205: =IF(J204<>" ",K201," ") -> 2020 | L205: 0.1450623846 | M205: 0.4960256395 | N205: 0.28 | O205: 0.8663163306 | P205: 261.6538898 | Q205: 38.09391037 | R205: 223.51 | U205: 0.007180180172 | V205: 0.2306089719 | W205: 0.005056045685 | X205: 0.06167747251 | Y205: 0.006949516955 | Z205: 0 | AA205: 0 | AB205: 0.001033710334 | AC205: 0.6772496725 | AD205: 0 | AE205: 3.213881214 | AF205: 0.2530896277
F206: =F205 -> F19 | G206: 19 | H206: 3 | K206: =IF(J204<>" ",K202," ") -> 2035 | L206: 0.1967137279 | M206: 0.4822711333 | N206: 0.28 | O206: 0.9000493016 | P206: 233.1824911 | Q206: 34.78839942 | R206: 198.35 | U206: 0.00636753921 | V206: 0.2127537354 | W206: 0.005049183648 | X206: 0.06481810732 | Y206: 0.006911340542 | Z206: 0 | AA206: 0 | AB206: 0.001030266984 | AC206: 0.656860517 | AD206: 0 | AE206: 2.857943127 | AF206: 0.2703797681
F207: =F206 -> F19 | G207: 19 | H207: 4 | K207: =IF(J204<>" ",K203," ") -> 2050 | L207: 0.1898582257 | M207: 0.442610778 | N207: 0.28 | O207: 0.9006420986 | P207: 213.4088481 | Q207: 31.29891906 | R207: 182.07 | U207: 0.005837575298 | V207: 0.2017210583 | W207: 0.005045028319 | X207: 0.06436363009 | Y207: 0.006916865001 | Z207: 0 | AA207: 0 | AB207: 0.001030765266 | AC207: 0.6474375982 | AD207: 0 | AE207: 2.61941306 | AF207: 0.2802511415
F208: =F131&"20" -> F20 | G208: 20 | H208: 1 | J208: =IF(ISNUMBER(G208),OFFSET($B$24,G208,0)," ") -> Varebil el | K208: =IF(J208<>" ",K204," ") -> 2015 | L208: 0.02734192832 | M208: 0.1728191335 | N208: 0.238 | O208: 1.138480006 | P208: 7.666232305 | Q208: 7.618166305 | R208: 0 | U208: 0.0004902545565 | V208: 0.1429941273 | W208: 0.0001488111437 | X208: 0.05098328676 | Y208: 0.01819433801 | Z208: 0.06515756627 | AA208: 0.1714016322 | AB208: 0 | AC208: 0.184674005 | AD208: 0 | AE208: 1.71903885 | AF208: 0.5095891718
F209: =F208 -> F20 | G209: 20 | H209: 2 | K209: =IF(J208<>" ",K205," ") -> 2020 | L209: 0.02338546504 | M209: 0.1954960112 | N209: 0.238 | O209: 0.9223168263 | P209: 6.427664088 | Q209: 6.391614884 | R209: 0 | U209: 8.688478719e-05 | V209: 0.06279570287 | W209: 5.399440217e-06 | X209: 0.05098328676 | Y209: 0.007797573432 | Z209: 0.06588533979 | AA209: 0.1733160924 | AB209: 0 | AC209: 0.1846306571 | AD209: 0 | AE209: 1.622496225 | AF209: 0.5173870505
F210: =F209 -> F20 | G210: 20 | H210: 3 | K210: =IF(J208<>" ",K206," ") -> 2035 | L210: 0.02443060964 | M210: 0.2539972837 | N210: 0.238 | O210: 0.7648022 | P210: 5.752780281 | Q210: 5.720516126 | R210: 0 | U210: 7.868760284e-05 | V210: 0.05749371116 | W210: 4.83251657e-06 | X210: 0.05098328676 | Y210: 0.007797573432 | Z210: 0.06588533979 | AA210: 0.1733160924 | AB210: 0 | AC210: 0.1719943384 | AD210: 0 | AE210: 1.488442888 | AF210: 0.5300233693
F211: =F210 -> F20 | G211: 20 | H211: 4 | K211: =IF(J208<>" ",K207," ") -> 2050 | L211: 0.02218023172 | M211: 0.2458931774 | N211: 0.238 | O211: 0.7393966151 | P211: 0 | Q211: 0 | R211: 0 | U211: 3.479606255e-05 | V211: 0.04855442568 | W211: 0 | X211: 0.05098328676 | Y211: 0.007797573432 | Z211: 0.06588533979 | AA211: 0.1733160924 | AB211: 0 | AC211: 0.1551459134 | AD211: 0 | AE211: 1.364998797 | AF211: 0.5468717942
F212: =F131&"21" -> F21 | G212: 21 | H212: 1 | J212: =IF(ISNUMBER(G212),OFFSET($B$24,G212,0)," ") -> Fast Ferry | K212: =IF(J212<>" ",K208," ") -> 2015 | L212: 356.3053456 | M212: 622.8760073 | N212: 0 | O212: 0 | P212: 364059.1638 | Q212: 50784.07764 | R212: 313181.4255 | U212: 776.9749468 | V212: 2201.300044 | W212: 391.3410339 | X212: 0.05637383936 | Y212: 0.002602726959 | Z212: 0 | AA212: 0 | AB212: 0.001044421125 | AC212: 0.562603698 | AD212: 0 | AE212: 4502.421191 | AF212: 0.3773753145
F213: =F212 -> F21 | G213: 21 | H213: 2 | K213: =IF(J212<>" ",K209," ") -> 2020 | L213: 363.5226805 | M213: 702.0971566 | N213: 0 | O213: 0 | P213: 367172.0147 | Q213: 53919.84611 | R213: 313181.4255 | U213: 774.8731489 | V213: 2182.578483 | W213: 390.1627373 | X213: 0.06167747251 | Y213: 0.006949516955 | Z213: 0 | AA213: 0 | AB213: 0.001033710334 | AC213: 0.5568340609 | AD213: 0 | AE213: 4549.073037 | AF213: 0.3735052393
F214: =F213 -> F21 | G214: 21 | H214: 3 | K214: =IF(J212<>" ",K210," ") -> 2035 | L214: 448.7454676 | M214: 770.2109179 | N214: 0 | O214: 0 | P214: 368810.6413 | Q214: 55558.79919 | R214: 313181.4255 | U214: 773.7066952 | V214: 2157.667836 | W214: 388.5172958 | X214: 0.06481810732 | Y214: 0.006911340542 | Z214: 0 | AA214: 0 | AB214: 0.001030266984 | AC214: 0.5549792138 | AD214: 0 | AE214: 4564.276912 | AF214: 0.3722610713
F215: =F214 -> F21 | G215: 21 | H215: 4 | K215: =IF(J212<>" ",K211," ") -> 2050 | L215: 448.4143285 | M215: 770.867948 | N215: 0 | O215: 0 | P215: 367762.3682 | Q215: 54511.40078 | R215: 313181.4255 | U215: 773.7043649 | V215: 2157.647612 | W215: 388.5171701 | X215: 0.06436363009 | Y215: 0.006916865001 | Z215: 0 | AA215: 0 | AB215: 0.001030765266 | AC215: 0.5552476264 | AD215: 0 | AE215: 4562.070493 | AF215: 0.3724411133
F216: =F131&"22" -> F22 | G216: 22 | H216: 1 | J216: =IF(ISNUMBER(G216),OFFSET($B$24,G216,0)," ") -> Fast Ferry - biodiesel | K216: =IF(J216<>" ",K212," ") -> 2015 | L216: Teknologi ikke tilgængelig | X216: Teknologi ikke tilgængelig | Y216: Teknologi ikke tilgængelig | Z216: Teknologi ikke tilgængelig | AA216: Teknologi ikke tilgængelig | AB216: Teknologi ikke tilgængelig | AC216: Teknologi ikke tilgængelig | AD216: Teknologi ikke tilgængelig | AE216: Teknologi ikke tilgængelig
F217: =F216 -> F22 | G217: 22 | H217: 2 | K217: =IF(J216<>" ",K213," ") -> 2020 | L217: Teknologi ikke tilgængelig | X217: Teknologi ikke tilgængelig | Y217: Teknologi ikke tilgængelig | Z217: Teknologi ikke tilgængelig | AA217: Teknologi ikke tilgængelig | AB217: Teknologi ikke tilgængelig | AC217: Teknologi ikke tilgængelig | AD217: Teknologi ikke tilgængelig | AE217: Teknologi ikke tilgængelig
F218: =F217 -> F22 | G218: 22 | H218: 3 | K218: =IF(J216<>" ",K214," ") -> 2035 | L218: 323.4070157 | M218: 693.4097968 | N218: 0 | O218: 0 | P218: -38076.52395 | Q218: -38050.38213 | R218: 0 | U218: 763.7202701 | V218: 2251.079498 | W218: 388.4925166 | X218: 0.03445580341 | Y218: 0.2230843008 | Z218: 0 | AA218: 0 | AB218: 0.0008240398399 | AC218: 0.4438897779 | AD218: 0 | AE218: 5706.549099 | AF218: 0.297746078
F219: =F218 -> F22 | G219: 22 | H219: 4 | K219: =IF(J216<>" ",K215," ") -> 2050 | L219: 324.7330127 | M219: 697.5822249 | N219: 0 | O219: 0 | P219: -34564.82285 | Q219: -34569.77826 | R219: 0 | U219: 763.7595412 | V219: 2255.463249 | W219: 388.4971743 | X219: 0.03445580341 | Y219: 0.2230843008 | Z219: 0 | AA219: 0 | AB219: 0.0008240398399 | AC219: 0.4438897779 | AD219: 0 | AE219: 5706.549099 | AF219: 0.297746078
F220: =F131&"23" -> F23 | G220: 23 | H220: 1 | J220: =IF(ISNUMBER(G220),OFFSET($B$24,G220,0)," ") -> 9000TEU HFO | K220: =IF(J220<>" ",K216," ") -> 2015 | L220: 2765.233593 | M220: 601.570413 | N220: 107.1248266 | O220: 215.5476649 | P220: 578501.5342 | Q220: 59590.83769 | R220: 518799.838 | U220: 11845.49613 | V220: 3326.36511 | W220: 1658.769451 | X220: 0.05540847259 | Y220: 0.002558156886 | Z220: 0 | AA220: 0 | AB220: 0.0009414777443 | AC220: 0.6380603033 | AD220: 0 | AE220: 6959.6562 | AF220: 0.3030315895
F221: =F220 -> F23 | G221: 23 | H221: 2 | K221: =IF(J220<>" ",K217," ") -> 2020 | L221: 2293.402345 | M221: 596.8448977 | N221: 117.8373193 | O221: 237.1024516 | P221: 483484.6001 | Q221: 54734.81515 | R221: 428675.821 | U221: 9778.967971 | V221: 2734.760647 | W221: 1366.851483 | X221: 0.0593983527 | Y221: 0.0236786819 | Z221: 0 | AA221: 0 | AB221: 0.0009163821497 | AC221: 0.6256324964 | AD221: 0 | AE221: 5908.134589 | AF221: 0.2903740869
F222: =F221 -> F23 | G222: 23 | H222: 3 | K222: =IF(J220<>" ",K218," ") -> 2035 | L222: 1977.969381 | M222: 559.3689585 | N222: 130.9303548 | O222: 263.4471684 | P222: 400363.9752 | Q222: 47418.87491 | R222: 352883.387 | U222: 8037.651695 | V222: 2228.50163 | W222: 1120.438952 | X222: 0.06237062175 | Y222: 0.0235288712 | Z222: 0 | AA222: 0 | AB222: 0.0009135613561 | AC222: 0.6310121795 | AD222: 0 | AE222: 4878.558368 | AF222: 0.2821747662
F223: =F222 -> F23 | G223: 23 | H223: 4 | K223: =IF(J220<>" ",K219," ") -> 2050 | L223: 1977.800804 | M223: 565.2647931 | N223: 130.9303548 | O223: 263.4471684 | P223: 399627.5557 | Q223: 46684.19732 | R223: 352883.387 | U223: 8037.649728 | V223: 2229.824648 | W223: 1120.438772 | X223: 0.06194081684 | Y223: 0.02355053457 | Z223: 0 | AA223: 0 | AB223: 0.0009139692569 | AC223: 0.6312939234 | AD223: 0 | AE223: 4876.381087 | AF223: 0.2823007559
F224: =F131&"24" -> F24 | G224: 24 | H224: 1 | J224: =IF(ISNUMBER(G224),OFFSET($B$24,G224,0)," ") -> 9000TEU Diesel | K224: =IF(J224<>" ",K220," ") -> 2015 | L224: 551.4141161 | M224: 963.955852 | N224: 113.039704 | O224: 227.4490891 | P224: 563413.8374 | Q224: 78592.86321 | R224: 484676.0259 | U224: 1202.437625 | V224: 3406.707008 | W224: 605.6349505 | X224: 0.05637383936 | Y224: 0.002602726959 | Z224: 0 | AA224: 0 | AB224: 0.001044421125 | AC224: 0.6373057705 | AD224: 0 | AE224: 6967.896026 | AF224: 0.302673242
F225: =F224 -> F24 | G225: 24 | H225: 2 | K225: =IF(J224<>" ",K221," ") -> 2020 | L225: 464.8536125 | M225: 897.8047781 | N225: 124.3436744 | O225: 250.193998 | P225: 469520.1884 | Q225: 68949.85263 | R225: 400479.8732 | U225: 990.8668751 | V225: 2790.96614 | W225: 498.9195106 | X225: 0.06167747251 | Y225: 0.006949516955 | Z225: 0 | AA225: 0 | AB225: 0.001033710334 | AC225: 0.635421742 | AD225: 0 | AE225: 5817.114441 | AF225: 0.2949175582
F226: =F225 -> F24 | G226: 24 | H226: 3 | K226: =IF(J224<>" ",K222," ") -> 2035 | L226: 472.3751015 | M226: 810.7679893 | N226: 138.1596382 | O226: 277.9933311 | P226: 388231.1392 | Q226: 58484.3643 | R226: 329672.6504 | U226: 814.4478442 | V226: 2271.284362 | W226: 408.975489 | X226: 0.06481810732 | Y226: 0.006911340542 | Z226: 0 | AA226: 0 | AB226: 0.001030266984 | AC226: 0.640723037 | AD226: 0 | AE226: 4804.618487 | AF226: 0.2865172481
F227: =F226 -> F24 | G227: 24 | H227: 4 | K227: =IF(J224<>" ",K223," ") -> 2050 | L227: 472.0265255 | M227: 811.4596167 | N227: 138.1596382 | O227: 277.9933311 | P227: 387127.6671 | Q227: 57381.81293 | R227: 329672.6504 | U227: 814.4453911 | V227: 2271.263073 | W227: 408.9753567 | X227: 0.06436363009 | Y227: 0.006916865001 | Z227: 0 | AA227: 0 | AB227: 0.001030765266 | AC227: 0.6410329191 | AD227: 0 | AE227: 4802.295884 | AF227: 0.2866558205
F228: =F131&"25" -> F25 | G228: =IFERROR(MATCH(F228,$D$25:$D$72,0),"") -> 25 | H228: 1 | J228: =IF(ISNUMBER(G228),OFFSET($B$24,G228,0)," ") -> 9000TEU BioDiesel | K228: =IF(J228<>" ",K224," ") -> 2015 | L228: Teknologi ikke tilgængelig | X228: Teknologi ikke tilgængelig | Y228: Teknologi ikke tilgængelig | Z228: Teknologi ikke tilgængelig | AA228: Teknologi ikke tilgængelig | AB228: Teknologi ikke tilgængelig | AC228: Teknologi ikke tilgængelig | AD228: Teknologi ikke tilgængelig | AE228: Teknologi ikke tilgængelig
F229: =F228 -> F25 | G229: =IFERROR(MATCH(F229,$D$25:$D$72,0),"") -> 25 | H229: 2 | K229: =IF(J228<>" ",K225," ") -> 2020 | L229: Teknologi ikke tilgængelig | X229: Teknologi ikke tilgængelig | Y229: Teknologi ikke tilgængelig | Z229: Teknologi ikke tilgængelig | AA229: Teknologi ikke tilgængelig | AB229: Teknologi ikke tilgængelig | AC229: Teknologi ikke tilgængelig | AD229: Teknologi ikke tilgængelig | AE229: Teknologi ikke tilgængelig
F230: =F229 -> F25 | G230: 25 | H230: 3 | K230: =IF(J228<>" ",K226," ") -> 2035 | L230: 340.4366905 | M230: 729.9227441 | N230: 138.1596382 | O230: 277.9933311 | P230: -40081.52319 | Q230: -40054.00482 | R230: 0 | U230: 803.9355629 | V230: 2369.614811 | W230: 408.9494049 | X230: 0.03445580341 | Y230: 0.2230843008 | Z230: 0 | AA230: 0 | AB230: 0.0008240398399 | AC230: 0.5124703764 | AD230: 0 | AE230: 6007.039412 | AF230: 0.2291654795
F231: =F230 -> F25 | G231: 25 | H231: 4 | K231: =IF(J228<>" ",K227," ") -> 2050 | L231: 341.8325107 | M231: 734.3148802 | N231: 138.1596382 | O231: 277.9933311 | P231: -36384.9061 | Q231: -36390.12245 | R231: 0 | U231: 803.9769019 | V231: 2374.229397 | W231: 408.9543079 | X231: 0.03445580341 | Y231: 0.2230843008 | Z231: 0 | AA231: 0 | AB231: 0.0008240398399 | AC231: 0.5124703764 | AD231: 0 | AE231: 6007.039412 | AF231: 0.2291654795
F232: =F131&"26" -> F26 | G232: 26 | H232: =H228 -> 1 | J232: =IF(ISNUMBER(G232),OFFSET($B$24,G232,0)," ") -> 9000TEU LNG | K232: =IF(J232<>" ",K228," ") -> 2015 | L232: 225.3956075 | M232: 624.083851 | N232: 105.8935158 | O232: 245.0306422 | P232: 583787.7996 | Q232: 160810.1975 | R232: 422255.3556 | U232: 758.0798374 | V232: 655.643983 | W232: 91.93047002 | X232: 0.1333491256 | Y232: 0.0001201561042 | Z232: 0 | AA232: 0.09388046471 | AB232: 4.821618845e-05 | AC232: 0.5292323956 | AD232: 0 | AE232: 8875.787368 | AF232: 0.2433696418
F233: =F232 -> F26 | G233: 26 | H233: =H229 -> 2 | K233: =IF(J232<>" ",K229," ") -> 2020 | L233: 199.1834934 | M233: 529.2086973 | N233: 116.4828674 | O233: 269.5337064 | P233: 481771.4227 | Q233: 132891.4576 | R233: 348302.368 | U233: 636.0198685 | V233: 537.8839589 | W233: 75.81255059 | X233: 0.1335072863 | Y233: 0.0003170797969 | Z233: 0 | AA233: 0.09384210649 | AB233: 4.71642367e-05 | AC233: 0.5328775906 | AD233: 0 | AE233: 7323.949134 | AF233: 0.2394087726
F234: =F233 -> F26 | G234: 26 | H234: 3 | K234: =IF(J232<>" ",K230," ") -> 2035 | L234: 256.4154648 | M234: 463.9270187 | N234: 129.4254082 | O234: 299.481896 | P234: 395713.416 | Q234: 109231.4401 | R234: 286006.3494 | U234: 521.3630628 | V234: 438.2983181 | W234: 62.14540998 | X234: 0.1335664552 | Y234: 0.0003071376866 | Z234: 0 | AA234: 0.0938369224 | AB234: 4.578472381e-05 | AC234: 0.5390261026 | AD234: 0 | AE234: 6014.376582 | AF234: 0.2332175974
F235: =F234 -> F26 | G235: 26 | H235: 4 | K235: =IF(J232<>" ",K231," ") -> 2050 | L235: 256.3936604 | M235: 463.9702817 | N235: 129.4254082 | O235: 299.481896 | P235: 395644.391 | Q235: 109162.4727 | R235: 286006.3494 | U235: 521.3629093 | V235: 438.2969864 | W235: 62.1454017 | X235: 0.1335478935 | Y235: 0.0003072599606 | Z235: 0 | AA235: 0.09383891984 | AB235: 4.578850317e-05 | AC235: 0.5390375764 | AD235: 0 | AE235: 6014.248561 | AF235: 0.2332225617
F236: =F131&"27" -> F27 | G236: 27 | H236: 1 | J236: =IF(ISNUMBER(G236),OFFSET($B$24,G236,0)," ") -> IC Tog Diesel | K236: =IF(J236<>" ",K232," ") -> 2015 | L236: 0.02396535149 | M236: 0.03679402799 | N236: 0.1521401684 | O236: 0.06205840992 | P236: 21.50540863 | Q236: 2.999875982 | R236: 18.5 | U236: 0.0006907562559 | V236: 0.359964085 | W236: 0.006957597698 | X236: 0.05637383936 | Y236: 0.002602726959 | Z236: 0 | AA236: 0 | AB236: 0.001044421125 | AC236: 0.7181439656 | AD236: 0 | AE236: 0.265963385 | AF236: 0.221835047
F237: =F236 -> F27 | G237: 27 | H237: 2 | K237: =IF(J236<>" ",K233," ") -> 2020 | L237: 0.0178230634 | M237: 0.03815581842 | N237: 0.1521401684 | O237: 0.06205840992 | P237: 19.95414537 | Q237: 2.930300797 | R237: 17.02 | U237: 0.0005523215517 | V237: 0.33102975 | W237: 0.000323755651 | X237: 0.06167747251 | Y237: 0.006949516955 | Z237: 0 | AA237: 0 | AB237: 0.001033710334 | AC237: 0.6957319984 | AD237: 0 | AE237: 0.2472216319 | AF237: 0.2346073018
F238: =F237 -> F27 | G238: 27 | H238: 3 | K238: =IF(J236<>" ",K234," ") -> 2035 | L238: 0.02058718164 | M238: 0.03821771245 | N238: 0.1521401684 | O238: 0.06205840992 | P238: 18.30031062 | Q238: 2.756816558 | R238: 15.54 | U238: 0.0005045974469 | V238: 0.302186774 | W238: 0.0002955642388 | X238: 0.06481810732 | Y238: 0.006911340542 | Z238: 0 | AA238: 0 | AB238: 0.001030266984 | AC238: 0.6755607792 | AD238: 0 | AE238: 0.2264785119 | AF238: 0.251679506
F239: =F238 -> F27 | G239: 27 | H239: 4 | K239: =IF(J236<>" ",K235," ") -> 2050 | L239: 0.01959119103 | M239: 0.03642887062 | N239: 0.1521401684 | O239: 0.06205840992 | P239: 17.37932906 | Q239: 2.576042721 | R239: 14.8 | U239: 0.0004804588723 | V239: 0.2877959719 | W239: 0.0002814838123 | X239: 0.06436363009 | Y239: 0.006916865001 | Z239: 0 | AA239: 0 | AB239: 0.001030765266 | AC239: 0.6679358925 | AD239: 0 | AE239: 0.2155895522 | AF239: 0.2597528471
F240: =F131&"28" -> F28 | G240: 28 | H240: 1 | J240: =IF(ISNUMBER(G240),OFFSET($B$24,G240,0)," ") -> IC Tog Biodiesel | K240: =IF(J240<>" ",K236," ") -> 2015 | L240: Teknologi ikke tilgængelig | X240: Teknologi ikke tilgængelig | Y240: Teknologi ikke tilgængelig | Z240: Teknologi ikke tilgængelig | AA240: Teknologi ikke tilgængelig | AB240: Teknologi ikke tilgængelig | AC240: Teknologi ikke tilgængelig | AD240: Teknologi ikke tilgængelig | AE240: Teknologi ikke tilgængelig
F241: =F240 -> F28 | G241: 28 | H241: 2 | K241: =IF(J240<>" ",K237," ") -> 2020 | L241: Teknologi ikke tilgængelig | X241: Teknologi ikke tilgængelig | Y241: Teknologi ikke tilgængelig | Z241: Teknologi ikke tilgængelig | AA241: Teknologi ikke tilgængelig | AB241: Teknologi ikke tilgængelig | AC241: Teknologi ikke tilgængelig | AD241: Teknologi ikke tilgængelig | AE241: Teknologi ikke tilgængelig
F242: =F241 -> F28 | G242: 28 | H242: 3 | K242: =IF(J240<>" ",K238," ") -> 2035 | L242: 0.014362021 | M242: 0.03440685611 | N242: 0.1521401684 | O242: 0.06205840992 | P242: -1.88934954 | Q242: -1.888052388 | R242: 0 | U242: 9.073020328e-06 | V242: 0.3068218421 | W242: 0.0002943346974 | X242: 0.03445580341 | Y242: 0.2230843008 | Z242: 0 | AA242: 0 | AB242: 0.0008240398399 | AC242: 0.540334695 | AD242: 0 | AE242: 0.2831578305 | AF242: 0.2013011609
F243: =F242 -> F28 | G243: 28 | H243: 4 | K243: =IF(J240<>" ",K239," ") -> 2050 | L243: 0.01374077782 | M243: 0.03296561063 | N243: 0.1521401684 | O243: 0.06205840992 | P243: -1.633428219 | Q243: -1.633662397 | R243: 0 | U243: 1.049680441e-05 | V243: 0.2924184409 | W243: 0.0002805388698 | X243: 0.03445580341 | Y243: 0.2230843008 | Z243: 0 | AA243: 0 | AB243: 0.0008240398399 | AC243: 0.5339778163 | AD243: 0 | AE243: 0.2696741243 | AF243: 0.2076580397
F244: =F131&"29" -> F29 | G244: 29 | H244: 1 | J244: =IF(ISNUMBER(G244),OFFSET($B$24,G244,0)," ") -> IC Tog El | K244: =IF(J244<>" ",K240," ") -> 2015 | L244: 0.0003713259104 | M244: 0.03371557178 | N244: 0.1373953062 | O244: 0.05749023366 | P244: 0.3795954126 | Q244: 0.3772154126 | R244: 0 | U244: 2.427507715e-05 | V244: 0.007080390028 | W244: 7.368421053e-06 | X244: 0.05098328676 | Y244: 0.01819433801 | Z244: 0.06515756627 | AA244: 0.04328324045 | AB244: 0 | AC244: 0.293707703 | AD244: 0 | AE244: 0.08511863918 | AF244: 0.5286738655
F245: =F244 -> F29 | G245: 29 | H245: 2 | K245: =IF(J244<>" ",K241," ") -> 2020 | L245: 0.0001759282226 | M245: 0.03363741964 | N245: 0.1373953062 | O245: 0.05749023366 | P245: 0.3191883091 | Q245: 0.3173981588 | R245: 0 | U245: 4.314570259e-06 | V245: 0.003118341896 | W245: 2.681282297e-07 | X245: 0.05098328676 | Y245: 0.007797573432 | Z245: 0.06588533979 | AA245: 0.04376669 | AB245: 0 | AC245: 0.2730518869 | AD245: 0 | AE245: 0.08057076716 | AF245: 0.5585152231
F246: =F245 -> F29 | G246: 29 | H246: 3 | K246: =IF(J244<>" ",K242," ") -> 2035 | L246: 0.000203867301 | M246: 0.03106242865 | N246: 0.1373953062 | O246: 0.05749023366 | P246: 0.2556295158 | Q246: 0.2541958316 | R246: 0 | U246: 3.496548248e-06 | V246: 0.002554780268 | W246: 2.147368421e-07 | X246: 0.05098328676 | Y246: 0.007797573432 | Z246: 0.06588533979 | AA246: 0.04376669 | AB246: 0 | AC246: 0.211671628 | AD246: 0 | AE246: 0.066140182 | AF246: 0.619895482
F247: =F246 -> F29 | G247: 29 | H247: 4 | K247: =IF(J244<>" ",K243," ") -> 2050 | L247: 9.884807351e-05 | M247: 0.02765712377 | N247: 0.1373953062 | O247: 0.05749023366 | P247: 0 | Q247: 0 | R247: 0 | U247: 1.471437323e-06 | V247: 0.002053243641 | W247: 0 | X247: 0.05098328676 | Y247: 0.007797573432 | Z247: 0.06588533979 | AA247: 0.04376669 | AB247: 0 | AC247: 0.1905674627 | AD247: 0 | AE247: 0.05772234065 | AF247: 0.6409996473
F248: =F131&"30" -> F30 | G248: 30 | H248: 1 | J248: =IF(ISNUMBER(G248),OFFSET($B$24,G248,0)," ") -> Lokaltog Diesel | K248: =IF(J248<>" ",K244," ") -> 2015 | L248: 0.02208492761 | M248: 0.03973755023 | N248: 0.2735853905 | O248: 0.07969391507 | P248: 23.22584132 | Q248: 3.239866061 | R248: 19.98 | U248: 0.0007460167564 | V248: 0.3722612118 | W248: 0.003614205514 | X248: 0.05637383936 | Y248: 0.002602726959 | Z248: 0 | AA248: 0 | AB248: 0.001044421125 | AC248: 0.8355369 | AD248: 0 | AE248: 0.2872404558 | AF248: 0.1044421125
F249: =F248 -> F30 | G249: 30 | H249: 2 | K249: =IF(J248<>" ",K245," ") -> 2020 | L249: 0.01850041112 | M249: 0.04147371568 | N249: 0.2735853905 | O249: 0.1023359034 | P249: 21.68928844 | Q249: 3.185109562 | R249: 18.5 | U249: 0.0006003495127 | V249: 0.3445371678 | W249: 0.0001713527607 | X249: 0.06167747251 | Y249: 0.006949516955 | Z249: 0 | AA249: 0 | AB249: 0.001033710334 | AC249: 0.8224199414 | AD249: 0 | AE249: 0.2687191651 | AF249: 0.1079193588
F250: =F249 -> F30 | G250: 30 | H250: 3 | K250: =IF(J248<>" ",K246," ") -> 2035 | L250: 0.0207997378 | M250: 0.04003760352 | N250: 0.2735853905 | O250: 0.1023359034 | P250: 19.17175398 | Q250: 2.888093537 | R250: 16.28 | U250: 0.0005286258967 | V250: 0.3031321759 | W250: 0.0001507498375 | X250: 0.06481810732 | Y250: 0.006911340542 | Z250: 0 | AA250: 0 | AB250: 0.001030266984 | AC250: 0.8050131567 | AD250: 0 | AE250: 0.237263203 | AF250: 0.1222271285
F251: =F250 -> F30 | G251: 30 | H251: 4 | K251: =IF(J248<>" ",K247," ") -> 2050 | L251: 0.02078252431 | M251: 0.04007175768 | N251: 0.2735853905 | O251: 0.1023359034 | P251: 19.11726197 | Q251: 2.833646993 | R251: 16.28 | U251: 0.0005285047595 | V251: 0.3031311246 | W251: 0.0001507433046 | X251: 0.06436363009 | Y251: 0.006916865001 | Z251: 0 | AA251: 0 | AB251: 0.001030765266 | AC251: 0.8054024967 | AD251: 0 | AE251: 0.2371485075 | AF251: 0.122286243
F252: =F131&"31" -> F31 | G252: 31 | H252: 1 | J252: =IF(ISNUMBER(G252),OFFSET($B$24,G252,0)," ") -> Lokaltog biodiesel | K252: =IF(J252<>" ",K248," ") -> 2015 | L252: Teknologi ikke tilgængelig | X252: Teknologi ikke tilgængelig | Y252: Teknologi ikke tilgængelig | Z252: Teknologi ikke tilgængelig | AA252: Teknologi ikke tilgængelig | AB252: Teknologi ikke tilgængelig | AC252: Teknologi ikke tilgængelig | AD252: Teknologi ikke tilgængelig | AE252: Teknologi ikke tilgængelig
F253: =F252 -> F31 | G253: 31 | H253: 2 | K253: =IF(J252<>" ",K249," ") -> 2020 | L253: Teknologi ikke tilgængelig | X253: Teknologi ikke tilgængelig | Y253: Teknologi ikke tilgængelig | Z253: Teknologi ikke tilgængelig | AA253: Teknologi ikke tilgængelig | AB253: Teknologi ikke tilgængelig | AC253: Teknologi ikke tilgængelig | AD253: Teknologi ikke tilgængelig | AE253: Teknologi ikke tilgængelig
F254: =F253 -> F31 | G254: 31 | H254: 3 | K254: =IF(J252<>" ",K250," ") -> 2035 | L254: 0.01427814094 | M254: 0.03604527782 | N254: 0.2735853905 | O254: 0.1023359034 | P254: -1.979318566 | Q254: -1.977959645 | R254: 0 | U254: 9.505068915e-06 | V254: 0.3079879615 | W254: 0.0001494617464 | X254: 0.03445580341 | Y254: 0.2230843008 | Z254: 0 | AA254: 0 | AB254: 0.0008240398399 | AC254: 0.6438747658 | AD254: 0 | AE254: 0.2966415367 | AF254: 0.0977610901
F255: =F254 -> F31 | G255: 31 | H255: 4 | K255: =IF(J252<>" ",K251," ") -> 2050 | L255: 0.01434706978 | M255: 0.03626217169 | N255: 0.2735853905 | O255: 0.1023359034 | P255: -1.796771041 | Q255: -1.797028637 | R255: 0 | U255: 1.154648485e-05 | V255: 0.3082158405 | W255: 0.0001497038679 | X255: 0.03445580341 | Y255: 0.2230843008 | Z255: 0 | AA255: 0 | AB255: 0.0008240398399 | AC255: 0.6438747658 | AD255: 0 | AE255: 0.2966415367 | AF255: 0.0977610901
F256: =F131&"32" -> F32 | G256: 32 | H256: 1 | J256: =IF(ISNUMBER(G256),OFFSET($B$24,G256,0)," ") -> Lokaltog Gas | K256: =IF(J256<>" ",K252," ") -> 2015 | L256: 0.0262973362 | M256: 0.03082142579 | N256: 0.2735853905 | O256: 0.08766330657 | P256: 26.97577069 | Q256: 7.577842277 | R256: 19.37991 | U256: 0.0001374149434 | V256: 0.4454939749 | W256: 0.004407088582 | X256: 0.1303647114 | Y256: 0.0001931552124 | Z256: 0 | AA256: 0.09060225279 | AB256: 7.750923837e-05 | AC256: 0.7079657921 | AD256: 0 | AE256: 0.4237492875 | AF256: 0.07079657921
F257: =F256 -> F32 | G257: 32 | H257: 2 | K257: =IF(J256<>" ",K253," ") -> 2020 | L257: 0.007555732414 | M257: 0.02705941729 | N257: 0.2735853905 | O257: 0.1125694937 | P257: 22.90912724 | Q257: 6.450430517 | R257: 16.44356 | U257: 0.0001064689422 | V257: 0.1177337397 | W257: 9.839956624e-05 | X257: 0.1304213264 | Y257: 0.000483352419 | Z257: 0 | AA257: 0.09056669413 | AB257: 7.189656396e-05 | AC257: 0.6978308548 | AD257: 0 | AE257: 0.359686016 | AF257: 0.08062587566
F258: =F257 -> F32 | G258: 32 | H258: 3 | K258: =IF(J256<>" ",K254," ") -> 2035 | L258: 0.01110391627 | M258: 0.02481114261 | N258: 0.2735853905 | O258: 0.1125694937 | P258: 19.64568716 | Q258: 5.538234675 | R258: 14.09448 | U258: 9.129381975e-05 | V258: 0.1009080306 | W258: 8.433805714e-05 | X258: 0.1305161187 | Y258: 0.0004687225835 | Z258: 0 | AA258: 0.09055855086 | AB258: 6.987203124e-05 | AC258: 0.6843316719 | AD258: 0 | AE258: 0.3083300228 | AF258: 0.09405506391
... 146 more rows

Sheet Vehicles
D1: Køretøjer | Q1: ='Log2015'!M1 -> 0 | R1: ='Log2015'!N1 -> 0
D2: Alle priser i faktorpriser
D5: Køretøjs teknologier | F5: Personbiler | V5: Varebiler | Z5: Skibe | AF5: Tog | AK5: Lastbiler | AR5: Busser | AY5: Fly
D6: Spor-koder | F6: Standard dieselbil | G6: Standard benzinbil | H6: Bil E85-1g | I6: Bil E85-1g Sugarb. | J6: Bil E85-2g | K6: Bil biodiesel-1g RME | L6: Bil biodiesel-2g | M6: Bil DME | N6: Bil Naturgas | O6: Bil biogas | P6: Bil MeOH | Q6: Bil brinthybrid | R6: Elbil | S6: Elbil stort bat. | T6: Bil plugin hybrid | U6: Bil brint | V6: Varebil benzin | W6: Varebil CNG | X6: Varebil diesel | Y6: Varebil el | Z6: Fast Ferry | AA6: Fast Ferry - biodiesel | AB6: 9000TEU HFO | AC6: 9000TEU Diesel | AD6: 9000TEU BioDiesel | AE6: 9000TEU LNG | AF6: IC Tog Diesel | AG6: IC Tog Biodiesel | AH6: IC Tog El | AI6: Lokaltog Diesel | AJ6: Lokaltog biodiesel | AK6: Lokaltog Gas | AL6: Lastbil Diesel | AM6: Lastbil biodiesel | AN6: Lastbil CNG | AO6: Lastbil DME | AP6: Lastbil CBG | AQ6: Lastbil HVO | AR6: Bus Diesel | AS6: Bus biodiesel | AT6: Bus HVO | AU6: Bus CNG | AV6: Bus CBG | AW6: Bus Hybrid | AX6: Bus El | AY6: Fly standard | AZ6: Fly biofuel
D7: Primært drivmiddel | F7: Diesel | G7: Benzin | H7: Ethanol-hvede | I7: Ethanol-sukkerroer | J7: Ethanol-halm | K7: RME | L7: 2G Biodiesel | M7: DME | N7: CNG | O7: Biogas - ENS | P7: MeOH-træ | Q7: Brint | R7: El | S7: El | T7: Benzin | U7: Brint | V7: Benzin | W7: CNG | X7: Diesel | Y7: El | Z7: Diesel | AA7: 2G Biodiesel | AB7: Heavy Fuel Oil | AC7: Diesel | AD7: 2G Biodiesel | AE7: LNG | AF7: Diesel | AG7: 2G Biodiesel | AH7: El Tog | AI7: Diesel | AJ7: 2G Biodiesel | AK7: LNG | AL7: Diesel | AM7: RME | AN7: CNG | AO7: DME | AP7: Biogas - ENS | AQ7: HVO | AR7: Diesel | AS7: RME | AT7: HVO | AU7: CNG | AV7: Biogas - ENS | AW7: Diesel | AX7: El | AY7: Jet Fuel | AZ7: Bio Jet Fuel
D8: Sekundært drivmiddel | H8: Benzin | I8: Benzin | J8: Benzin | P8: El-hybrid | Q8: El-hybrid | T8: El-hybrid | AE8: Diesel | AK8: Diesel
D9: Køretøj | F9: EU Std diesel personbil | G9: EU Std benzin personbil | H9: EU Std benzin personbil | I9: EU Std benzin personbil | J9: EU Std benzin personbil | K9: EU Std diesel personbil | L9: EU Std diesel personbil | M9: EU Diesel personbil DME | N9: EU Tilpasset Otto personbil | O9: EU Tilpasset Otto personbil | P9: EU FC, methanolhybrid personbil | Q9: EU FC, brinthybrid personbil | R9: EU El personbil | S9: EU El personbil, stort bat. | T9: EU Plugin Hybrid personbil | U9: EU Brændselscelle, brint bil | V9: EU Varebil benzin | W9: EU Varebil CNG | X9: EU varebil diesel | Y9: EU varebil el | Z9: EU Katamaran ferry | AA9: EU Katamaran ferry | AB9: EU 9000 TEU HFO | AC9: EU 9000 TEU Diesel | AD9: EU 9000 TEU Diesel | AE9: EU 9000 TEU Dual fuel | AF9: EU Diesel IC-reg.tog | AG9: EU Diesel IC-reg.tog | AH9: EU El IC-reg.tog | AI9: EU Diesel Lokaltog | AJ9: EU Diesel Lokaltog | AK9: EU Gas Lokaltog | AL9: EU Lastbil | AM9: EU Lastbil RME | AN9: EU Lastbil Gas | AO9: EU Lastbil DME | AP9: EU Lastbil Gas | AQ9: EU Lastbil | AR9: EU Bus | AS9: EU Bus | AT9: EU Bus | AU9: EU Bus Gas | AV9: EU Bus Gas | AW9: EU Bus Hybrid | AX9: EU Bus El | AY9: EU SAS avg. airplane | AZ9: EU SAS avg. airplane
D10: Emission fra transportmiddel | F10: Blandet | G10: Blandet | H10: Blandet | I10: Blandet | J10: Blandet | K10: Blandet | L10: Blandet | M10: Blandet | N10: Blandet | O10: Blandet | P10: Blandet | Q10: Blandet | R10: Blandet | S10: Blandet | T10: Blandet | U10: Blandet | V10: Blandet | W10: Blandet | X10: Blandet | Y10: Blandet | Z10: Land | AA10: Land | AB10: Land | AC10: Land | AD10: Land | AE10: Land | AF10: Blandet | AG10: Blandet | AH10: Blandet | AI10: Blandet | AJ10: Blandet | AK10: Blandet | AL10: Blandet | AM10: Blandet | AN10: Blandet | AO10: Blandet | AP10: Blandet | AQ10: Blandet | AR10: Blandet | AS10: Blandet | AT10: Blandet | AU10: Blandet | AV10: Blandet | AW10: Blandet | AX10: Blandet | AY10: Land | AZ10: Land
D11: Primært drivmiddel (energiforbrug) | F11: 1 | G11: 1 | H11: 0.79 | I11: 0.79 | J11: 0.79 | K11: 1 | L11: 1 | M11: 1 | N11: 1 | O11: 1 | P11: 0.31 | Q11: 0.31 | R11: 1 | S11: 1 | T11: 0.31 | U11: 1 | V11: 1 | W11: 1 | X11: 1 | Y11: 1 | Z11: 1 | AA11: 1 | AB11: 1 | AC11: 1 | AD11: 1 | AE11: 0.94 | AF11: 1 | AG11: 1 | AH11: 1 | AI11: 1 | AJ11: 1 | AK11: 0.9 | AL11: 1 | AM11: 1 | AN11: 1 | AO11: 1 | AP11: 1 | AQ11: 1 | AR11: 1 | AS11: 1 | AT11: 1 | AU11: 1 | AV11: 1 | AW11: 1 | AX11: 1 | AY11: 1 | AZ11: 1
D12: Sekundært drivmiddel (energiforbrug) | F12: =1-F11 -> 0 | H12: =1-H11 -> 0.21 | I12: =1-I11 -> 0.21 | J12: 0.21 | K12: 0 | L12: 0 | M12: 0 | N12: 0 | O12: 0 | P12: 0.69 | Q12: 0.69 | R12: 0 | S12: 0 | T12: 0.69 | U12: 0 | V12: =1-V11 -> 0 | W12: =1-W11 -> 0 | X12: =1-X11 -> 0 | Y12: =1-Y11 -> 0 | Z12: =1-Z11 -> 0 | AA12: 0 | AB12: 0 | AC12: 0 | AD12: 0 | AE12: 0.06 | AF12: 0 | AG12: 0 | AH12: 0 | AI12: 0 | AJ12: 0 | AK12: 0.1 | AL12: 0 | AM12: 0 | AN12: 0 | AO12: 0 | AP12: 0 | AQ12: =1-AQ11 -> 0 | AR12: 0 | AS12: 0 | AT12: =1-AT11 -> 0 | AU12: 0 | AV12: 0 | AW12: 0 | AX12: 0 | AY12: 0 | AZ12: 0
A13: 19 | B13: 3 | D13: Sporets tilgængelighed | E13: ='General ass. and conv.'!O69 -> 2015 | F13: =IF(OR(INDIRECT(ADDRESS($A13,$B13,,,F$17))='General ass. and conv.'!$B$34,INDIRECT(ADDRESS($A13,$B13,,,F$17))='General ass. and conv.'!$B$35),"Nej","Ja") -> Ja | G13: =IF(OR(INDIRECT(ADDRESS($A13,$B13,,,G$17))='General ass. and conv.'!$B$34,INDIRECT(ADDRESS($A13,$B13,,,G$17))='General ass. and conv.'!$B$35),"Nej","Ja") -> Ja | H13: =IF(OR(INDIRECT(ADDRESS($A13,$B13,,,H$17))='General ass. and conv.'!$B$34,INDIRECT(ADDRESS($A13,$B13,,,H$17))='General ass. and conv.'!$B$35),"Nej","Ja") -> Ja | I13: =IF(OR(INDIRECT(ADDRESS($A13,$B13,,,I$17))='General ass. and conv.'!$B$34,INDIRECT(ADDRESS($A13,$B13,,,I$17))='General ass. and conv.'!$B$35),"Nej","Ja") -> Ja | J13: =IF(OR(INDIRECT(ADDRESS($A13,$B13,,,J$17))='General ass. and conv.'!$B$34,INDIRECT(ADDRESS($A13,$B13,,,J$17))='General ass. and conv.'!$B$35),"Nej","Ja") -> Ja | K13: =IF(OR(INDIRECT(ADDRESS($A13,$B13,,,K$17))='General ass. and conv.'!$B$34,INDIRECT(ADDRESS($A13,$B13,,,K$17))='General ass. and conv.'!$B$35),"Nej","Ja") -> Ja | L13: =IF(OR(INDIRECT(ADDRESS($A13,$B13,,,L$17))='General ass. and conv.'!$B$34,INDIRECT(ADDRESS($A13,$B13,,,L$17))='General ass. and conv.'!$B$35),"Nej","Ja") -> Nej | M13: =IF(OR(INDIRECT(ADDRESS($A13,$B13,,,M$17))='General ass. and conv.'!$B$34,INDIRECT(ADDRESS($A13,$B13,,,M$17))='General ass. and conv.'!$B$35),"Nej","Ja") -> Nej | N13: =IF(OR(INDIRECT(ADDRESS($A13,$B13,,,N$17))='General ass. and conv.'!$B$34,INDIRECT(ADDRESS($A13,$B13,,,N$17))='General ass. and conv.'!$B$35),"Nej","Ja") -> Ja | O13: =IF(OR(INDIRECT(ADDRESS($A13,$B13,,,O$17))='General ass. and conv.'!$B$34,INDIRECT(ADDRESS($A13,$B13,,,O$17))='General ass. and conv.'!$B$35),"Nej","Ja") -> Ja | P13: Nej | Q13: Nej | R13: =IF(OR(INDIRECT(ADDRESS($A13,$B13,,,R$17))='General ass. and conv.'!$B$34,INDIRECT(ADDRESS($A13,$B13,,,R$17))='General ass. and conv.'!$B$35),"Nej","Ja") -> Ja | S13: =IF(OR(INDIRECT(ADDRESS($A13,$B13,,,S$17))='General ass. and conv.'!$B$34,INDIRECT(ADDRESS($A13,$B13,,,S$17))='General ass. and conv.'!$B$35),"Nej","Ja") -> Ja | T13: =IF(OR(INDIRECT(ADDRESS($A13,$B13,,,T$17))='General ass. and conv.'!$B$34,INDIRECT(ADDRESS($A13,$B13,,,T$17))='General ass. and conv.'!$B$35),"Nej","Ja") -> Ja | U13: =IF(OR(INDIRECT(ADDRESS($A13,$B13,,,U$17))='General ass. and conv.'!$B$34,INDIRECT(ADDRESS($A13,$B13,,,U$17))='General ass. and conv.'!$B$35),"Nej","Ja") -> Ja | V13: =IF(OR(INDIRECT(ADDRESS($A13,$B13,,,V$17))='General ass. and conv.'!$B$34,INDIRECT(ADDRESS($A13,$B13,,,V$17))='General ass. and conv.'!$B$35),"Nej","Ja") -> Ja | W13: =IF(OR(INDIRECT(ADDRESS($A13,$B13,,,W$17))='General ass. and conv.'!$B$34,INDIRECT(ADDRESS($A13,$B13,,,W$17))='General ass. and conv.'!$B$35),"Nej","Ja") -> Ja | X13: =IF(OR(INDIRECT(ADDRESS($A13,$B13,,,X$17))='General ass. and conv.'!$B$34,INDIRECT(ADDRESS($A13,$B13,,,X$17))='General ass. and conv.'!$B$35),"Nej","Ja") -> Ja | Y13: =IF(OR(INDIRECT(ADDRESS($A13,$B13,,,Y$17))='General ass. and conv.'!$B$34,INDIRECT(ADDRESS($A13,$B13,,,Y$17))='General ass. and conv.'!$B$35),"Nej","Ja") -> Ja | Z13: =IF(OR(INDIRECT(ADDRESS($A13,$B13,,,Z$17))='General ass. and conv.'!$B$34,INDIRECT(ADDRESS($A13,$B13,,,Z$17))='General ass. and conv.'!$B$35),"Nej","Ja") -> Ja | AA13: =IF(OR(INDIRECT(ADDRESS($A13,$B13,,,AA$17))='General ass. and conv.'!$B$34,INDIRECT(ADDRESS($A13,$B13,,,AA$17))='General ass. and conv.'!$B$35),"Nej","Ja") -> Nej | AB13: =IF(OR(INDIRECT(ADDRESS($A13,$B13,,,AB$17))='General ass. and conv.'!$B$34,INDIRECT(ADDRESS($A13,$B13,,,AB$17))='General ass. and conv.'!$B$35),"Nej","Ja") -> Ja | AC13: =IF(OR(INDIRECT(ADDRESS($A13,$B13,,,AC$17))='General ass. and conv.'!$B$34,INDIRECT(ADDRESS($A13,$B13,,,AC$17))='General ass. and conv.'!$B$35),"Nej","Ja") -> Ja | AD13: =IF(OR(INDIRECT(ADDRESS($A13,$B13,,,AD$17))='General ass. and conv.'!$B$34,INDIRECT(ADDRESS($A13,$B13,,,AD$17))='General ass. and conv.'!$B$35),"Nej","Ja") -> Nej | AE13: =IF(OR(INDIRECT(ADDRESS($A13,$B13,,,AE$17))='General ass. and conv.'!$B$34,INDIRECT(ADDRESS($A13,$B13,,,AE$17))='General ass. and conv.'!$B$35),"Nej","Ja") -> Ja | AF13: =IF(OR(INDIRECT(ADDRESS($A13,$B13,,,AF$17))='General ass. and conv.'!$B$34,INDIRECT(ADDRESS($A13,$B13,,,AF$17))='General ass. and conv.'!$B$35),"Nej","Ja") -> Ja | AG13: =IF(OR(INDIRECT(ADDRESS($A13,$B13,,,AG$17))='General ass. and conv.'!$B$34,INDIRECT(ADDRESS($A13,$B13,,,AG$17))='General ass. and conv.'!$B$35),"Nej","Ja") -> Nej | AH13: =IF(OR(INDIRECT(ADDRESS($A13,$B13,,,AH$17))='General ass. and conv.'!$B$34,INDIRECT(ADDRESS($A13,$B13,,,AH$17))='General ass. and conv.'!$B$35),"Nej","Ja") -> Ja | AI13: =IF(OR(INDIRECT(ADDRESS($A13,$B13,,,AI$17))='General ass. and conv.'!$B$34,INDIRECT(ADDRESS($A13,$B13,,,AI$17))='General ass. and conv.'!$B$35),"Nej","Ja") -> Ja | AJ13: =IF(OR(INDIRECT(ADDRESS($A13,$B13,,,AJ$17))='General ass. and conv.'!$B$34,INDIRECT(ADDRESS($A13,$B13,,,AJ$17))='General ass. and conv.'!$B$35),"Nej","Ja") -> Nej | AK13: =IF(OR(INDIRECT(ADDRESS($A13,$B13,,,AK$17))='General ass. and conv.'!$B$34,INDIRECT(ADDRESS($A13,$B13,,,AK$17))='General ass. and conv.'!$B$35),"Nej","Ja") -> Ja | AL13: =IF(OR(INDIRECT(ADDRESS($A13,$B13,,,AL$17))='General ass. and conv.'!$B$34,INDIRECT(ADDRESS($A13,$B13,,,AL$17))='General ass. and conv.'!$B$35),"Nej","Ja") -> Ja | AM13: =IF(OR(INDIRECT(ADDRESS($A13,$B13,,,AM$17))='General ass. and conv.'!$B$34,INDIRECT(ADDRESS($A13,$B13,,,AM$17))='General ass. and conv.'!$B$35),"Nej","Ja") -> Ja | AN13: =IF(OR(INDIRECT(ADDRESS($A13,$B13,,,AN$17))='General ass. and conv.'!$B$34,INDIRECT(ADDRESS($A13,$B13,,,AN$17))='General ass. and conv.'!$B$35),"Nej","Ja") -> Ja | AO13: =IF(OR(INDIRECT(ADDRESS($A13,$B13,,,AO$17))='General ass. and conv.'!$B$34,INDIRECT(ADDRESS($A13,$B13,,,AO$17))='General ass. and conv.'!$B$35),"Nej","Ja") -> Nej | AP13: =IF(OR(INDIRECT(ADDRESS($A13,$B13,,,AP$17))='General ass. and conv.'!$B$34,INDIRECT(ADDRESS($A13,$B13,,,AP$17))='General ass. and conv.'!$B$35),"Nej","Ja") -> Ja | AQ13: =IF(OR(INDIRECT(ADDRESS($A13,$B13,,,AQ$17))='General ass. and conv.'!$B$34,INDIRECT(ADDRESS($A13,$B13,,,AQ$17))='General ass. and conv.'!$B$35),"Nej","Ja") -> Ja | AR13: =IF(OR(INDIRECT(ADDRESS($A13,$B13,,,AR$17))='General ass. and conv.'!$B$34,INDIRECT(ADDRESS($A13,$B13,,,AR$17))='General ass. and conv.'!$B$35),"Nej","Ja") -> Ja | AS13: =IF(OR(INDIRECT(ADDRESS($A13,$B13,,,AS$17))='General ass. and conv.'!$B$34,INDIRECT(ADDRESS($A13,$B13,,,AS$17))='General ass. and conv.'!$B$35),"Nej","Ja") -> Ja | AT13: =IF(OR(INDIRECT(ADDRESS($A13,$B13,,,AT$17))='General ass. and conv.'!$B$34,INDIRECT(ADDRESS($A13,$B13,,,AT$17))='General ass. and conv.'!$B$35),"Nej","Ja") -> Ja | AU13: =IF(OR(INDIRECT(ADDRESS($A13,$B13,,,AU$17))='General ass. and conv.'!$B$34,INDIRECT(ADDRESS($A13,$B13,,,AU$17))='General ass. and conv.'!$B$35),"Nej","Ja") -> Ja | AV13: =IF(OR(INDIRECT(ADDRESS($A13,$B13,,,AV$17))='General ass. and conv.'!$B$34,INDIRECT(ADDRESS($A13,$B13,,,AV$17))='General ass. and conv.'!$B$35),"Nej","Ja") -> Ja | AW13: =IF(OR(INDIRECT(ADDRESS($A13,$B13,,,AW$17))='General ass. and conv.'!$B$34,INDIRECT(ADDRESS($A13,$B13,,,AW$17))='General ass. and conv.'!$B$35),"Nej","Ja") -> Ja | AX13: =IF(OR(INDIRECT(ADDRESS($A13,$B13,,,AX$17))='General ass. and conv.'!$B$34,INDIRECT(ADDRESS($A13,$B13,,,AX$17))='General ass. and conv.'!$B$35),"Nej","Ja") -> Ja | AY13: =IF(OR(INDIRECT(ADDRESS($A13,$B13,,,AY$17))='General ass. and conv.'!$B$34,INDIRECT(ADDRESS($A13,$B13,,,AY$17))='General ass. and conv.'!$B$35),"Nej","Ja") -> Ja | AZ13: =IF(OR(INDIRECT(ADDRESS($A13,$B13,,,AZ$17))='General ass. and conv.'!$B$34,INDIRECT(ADDRESS($A13,$B13,,,AZ$17))='General ass. and conv.'!$B$35),"Nej","Ja") -> Nej
A14: 19 | B14: 3 | E14: ='General ass. and conv.'!O70 -> 2020 | F14: =IF(INDIRECT(ADDRESS($A14,$B14,,,F$17))='General ass. and conv.'!$B$35,"Nej","Ja") -> Ja | G14: =IF(INDIRECT(ADDRESS($A14,$B14,,,G$17))='General ass. and conv.'!$B$35,"Nej","Ja") -> Ja | H14: =IF(INDIRECT(ADDRESS($A14,$B14,,,H$17))='General ass. and conv.'!$B$35,"Nej","Ja") -> Ja | I14: =IF(INDIRECT(ADDRESS($A14,$B14,,,I$17))='General ass. and conv.'!$B$35,"Nej","Ja") -> Ja | J14: =IF(INDIRECT(ADDRESS($A14,$B14,,,J$17))='General ass. and conv.'!$B$35,"Nej","Ja") -> Ja | K14: =IF(INDIRECT(ADDRESS($A14,$B14,,,K$17))='General ass. and conv.'!$B$35,"Nej","Ja") -> Ja | L14: =IF(INDIRECT(ADDRESS($A14,$B14,,,L$17))='General ass. and conv.'!$B$35,"Nej","Ja") -> Nej | M14: Nej | N14: =IF(INDIRECT(ADDRESS($A14,$B14,,,N$17))='General ass. and conv.'!$B$35,"Nej","Ja") -> Ja | O14: =IF(INDIRECT(ADDRESS($A14,$B14,,,O$17))='General ass. and conv.'!$B$35,"Nej","Ja") -> Ja | P14: Nej | Q14: Nej | R14: =IF(INDIRECT(ADDRESS($A14,$B14,,,R$17))='General ass. and conv.'!$B$35,"Nej","Ja") -> Ja | S14: =IF(INDIRECT(ADDRESS($A14,$B14,,,S$17))='General ass. and conv.'!$B$35,"Nej","Ja") -> Ja | T14: =IF(INDIRECT(ADDRESS($A14,$B14,,,T$17))='General ass. and conv.'!$B$35,"Nej","Ja") -> Ja | U14: =IF(INDIRECT(ADDRESS($A14,$B14,,,U$17))='General ass. and conv.'!$B$35,"Nej","Ja") -> Ja | V14: =IF(INDIRECT(ADDRESS($A14,$B14,,,V$17))='General ass. and conv.'!$B$35,"Nej","Ja") -> Ja | W14: =IF(INDIRECT(ADDRESS($A14,$B14,,,W$17))='General ass. and conv.'!$B$35,"Nej","Ja") -> Ja | X14: =IF(INDIRECT(ADDRESS($A14,$B14,,,X$17))='General ass. and conv.'!$B$35,"Nej","Ja") -> Ja | Y14: =IF(INDIRECT(ADDRESS($A14,$B14,,,Y$17))='General ass. and conv.'!$B$35,"Nej","Ja") -> Ja | Z14: =IF(INDIRECT(ADDRESS($A14,$B14,,,Z$17))='General ass. and conv.'!$B$35,"Nej","Ja") -> Ja | AA14: =IF(INDIRECT(ADDRESS($A14,$B14,,,AA$17))='General ass. and conv.'!$B$35,"Nej","Ja") -> Nej | AB14: =IF(INDIRECT(ADDRESS($A14,$B14,,,AB$17))='General ass. and conv.'!$B$35,"Nej","Ja") -> Ja | AC14: =IF(INDIRECT(ADDRESS($A14,$B14,,,AC$17))='General ass. and conv.'!$B$35,"Nej","Ja") -> Ja | AD14: =IF(INDIRECT(ADDRESS($A14,$B14,,,AD$17))='General ass. and conv.'!$B$35,"Nej","Ja") -> Nej | AE14: =IF(INDIRECT(ADDRESS($A14,$B14,,,AE$17))='General ass. and conv.'!$B$35,"Nej","Ja") -> Ja | AF14: =IF(INDIRECT(ADDRESS($A14,$B14,,,AF$17))='General ass. and conv.'!$B$35,"Nej","Ja") -> Ja | AG14: =IF(INDIRECT(ADDRESS($A14,$B14,,,AG$17))='General ass. and conv.'!$B$35,"Nej","Ja") -> Nej | AH14: =IF(INDIRECT(ADDRESS($A14,$B14,,,AH$17))='General ass. and conv.'!$B$35,"Nej","Ja") -> Ja | AI14: =IF(INDIRECT(ADDRESS($A14,$B14,,,AI$17))='General ass. and conv.'!$B$35,"Nej","Ja") -> Ja | AJ14: =IF(INDIRECT(ADDRESS($A14,$B14,,,AJ$17))='General ass. and conv.'!$B$35,"Nej","Ja") -> Nej | AK14: =IF(INDIRECT(ADDRESS($A14,$B14,,,AK$17))='General ass. and conv.'!$B$35,"Nej","Ja") -> Ja | AL14: =IF(INDIRECT(ADDRESS($A14,$B14,,,AL$17))='General ass. and conv.'!$B$35,"Nej","Ja") -> Ja | AM14: =IF(INDIRECT(ADDRESS($A14,$B14,,,AM$17))='General ass. and conv.'!$B$35,"Nej","Ja") -> Ja | AN14: =IF(INDIRECT(ADDRESS($A14,$B14,,,AN$17))='General ass. and conv.'!$B$35,"Nej","Ja") -> Ja | AO14: =IF(INDIRECT(ADDRESS($A14,$B14,,,AO$17))='General ass. and conv.'!$B$35,"Nej","Ja") -> Ja | AP14: =IF(INDIRECT(ADDRESS($A14,$B14,,,AP$17))='General ass. and conv.'!$B$35,"Nej","Ja") -> Ja | AQ14: =IF(INDIRECT(ADDRESS($A14,$B14,,,AQ$17))='General ass. and conv.'!$B$35,"Nej","Ja") -> Ja | AR14: =IF(INDIRECT(ADDRESS($A14,$B14,,,AR$17))='General ass. and conv.'!$B$35,"Nej","Ja") -> Ja | AS14: =IF(INDIRECT(ADDRESS($A14,$B14,,,AS$17))='General ass. and conv.'!$B$35,"Nej","Ja") -> Ja | AT14: =IF(INDIRECT(ADDRESS($A14,$B14,,,AT$17))='General ass. and conv.'!$B$35,"Nej","Ja") -> Ja | AU14: =IF(INDIRECT(ADDRESS($A14,$B14,,,AU$17))='General ass. and conv.'!$B$35,"Nej","Ja") -> Ja | AV14: =IF(INDIRECT(ADDRESS($A14,$B14,,,AV$17))='General ass. and conv.'!$B$35,"Nej","Ja") -> Ja | AW14: =IF(INDIRECT(ADDRESS($A14,$B14,,,AW$17))='General ass. and conv.'!$B$35,"Nej","Ja") -> Ja | AX14: =IF(INDIRECT(ADDRESS($A14,$B14,,,AX$17))='General ass. and conv.'!$B$35,"Nej","Ja") -> Ja | AY14: =IF(INDIRECT(ADDRESS($A14,$B14,,,AY$17))='General ass. and conv.'!$B$35,"Nej","Ja") -> Ja | AZ14: =IF(INDIRECT(ADDRESS($A14,$B14,,,AZ$17))='General ass. and conv.'!$B$35,"Nej","Ja") -> Nej
A15: 19 | B15: 3 | E15: ='General ass. and conv.'!O71 -> 2035 | F15: Ja | G15: Ja | H15: Ja | I15: Ja | J15: ja | K15: Ja | L15: ja | M15: ja | N15: Ja | O15: Ja | P15: ja | Q15: ja | R15: Ja | S15: Ja | T15: Ja | U15: Ja | V15: Ja | W15: Ja | X15: Ja | Y15: Ja | Z15: Ja | AA15: Ja | AB15: Ja | AC15: Ja | AD15: Ja | AE15: Ja | AF15: Ja | AG15: Ja | AH15: Ja | AI15: Ja | AJ15: Ja | AK15: Ja | AL15: Ja | AM15: Ja | AN15: Ja | AO15: Ja | AP15: Ja | AQ15: Ja | AR15: Ja | AS15: Ja | AT15: Ja | AU15: Ja | AV15: Ja | AW15: Ja | AX15: Ja | AY15: Ja | AZ15: Ja
A16: 19 | B16: 3 | E16: ='General ass. and conv.'!O72 -> 2050 | F16: Ja | G16: Ja | H16: Ja | I16: Ja | J16: ja | K16: Ja | L16: ja | M16: ja | N16: Ja | O16: Ja | P16: ja | Q16: ja | R16: Ja | S16: Ja | T16: Ja | U16: Ja | V16: Ja | W16: Ja | X16: Ja | Y16: Ja | Z16: Ja | AA16: Ja | AB16: Ja | AC16: Ja | AD16: Ja | AE16: Ja | AF16: Ja | AG16: Ja | AH16: Ja | AI16: Ja | AJ16: Ja | AK16: Ja | AL16: Ja | AM16: Ja | AN16: Ja | AO16: Ja | AP16: Ja | AQ16: Ja | AR16: Ja | AS16: Ja | AT16: Ja | AU16: Ja | AV16: Ja | AW16: Ja | AX16: Ja | AY16: Ja | AZ16: Ja
D17: Teknologi, råstofkonvertering (gule ark) | F17: =HLOOKUP(F7,Fuels!6:12,6,FALSE) -> PC Diesel | G17: =HLOOKUP(G7,Fuels!6:12,6,FALSE) -> PC Benzin | H17: =HLOOKUP(H7,Fuels!6:12,6,FALSE) -> PC (FORCE 3) 1G ethanol | I17: =HLOOKUP(I7,Fuels!6:12,6,FALSE) -> PC (FORCE 20) Ethanol SugarBeet | J17: =HLOOKUP(J7,Fuels!6:12,6,FALSE) -> PC (FORCE 4) 2G ethanol | K17: =HLOOKUP(K7,Fuels!6:12,6,FALSE) -> PC (FORCE 19) RME Rapeseed | L17: =HLOOKUP(L7,Fuels!6:12,6,FALSE) -> PC (FORCE 7) 2G diesel | M17: =HLOOKUP(M7,Fuels!6:12,6,FALSE) -> PC (FORCE 9) Bio-DME | N17: =HLOOKUP(N7,Fuels!6:12,6,FALSE) -> PC Naturgas raffinering | O17: =HLOOKUP(O7,Fuels!6:12,6,FALSE) -> PC Biogas ENS | P17: =HLOOKUP(P7,Fuels!6:12,6,FALSE) -> PC (FORCE 1) Bio-Methanol | Q17: =HLOOKUP(Q7,Fuels!6:12,6,FALSE) -> PC brint-elektricitet | R17: =HLOOKUP(R7,Fuels!6:12,6,FALSE) -> PC oplade-elektricitet | S17: =HLOOKUP(S7,Fuels!6:12,6,FALSE) -> PC oplade-elektricitet | T17: =HLOOKUP(T7,Fuels!6:12,6,FALSE) -> PC Benzin | U17: =HLOOKUP(U7,Fuels!6:12,6,FALSE) -> PC brint-elektricitet | V17: =HLOOKUP(V7,Fuels!6:12,6,FALSE) -> PC Benzin | W17: =HLOOKUP(W7,Fuels!6:12,6,FALSE) -> PC Naturgas raffinering | X17: =HLOOKUP(X7,Fuels!6:12,6,FALSE) -> PC Diesel | Y17: =HLOOKUP(Y7,Fuels!6:12,6,FALSE) -> PC oplade-elektricitet | Z17: =HLOOKUP(Z7,Fuels!6:12,6,FALSE) -> PC Diesel | AA17: =HLOOKUP(AA7,Fuels!6:12,6,FALSE) -> PC (FORCE 7) 2G diesel | AB17: =HLOOKUP(AB7,Fuels!6:12,6,FALSE) -> PC HFO | AC17: =HLOOKUP(AC7,Fuels!6:12,6,FALSE) -> PC Diesel | AD17: =HLOOKUP(AD7,Fuels!6:12,6,FALSE) -> PC (FORCE 7) 2G diesel | AE17: =HLOOKUP(AE7,Fuels!6:12,6,FALSE) -> PC Naturgas raffinering | AF17: =HLOOKUP(AF7,Fuels!6:12,6,FALSE) -> PC Diesel | AG17: =HLOOKUP(AG7,Fuels!6:12,6,FALSE) -> PC (FORCE 7) 2G diesel | AH17: =HLOOKUP(AH7,Fuels!6:12,6,FALSE) -> PC brint-elektricitet | AI17: =HLOOKUP(AI7,Fuels!6:12,6,FALSE) -> PC Diesel | AJ17: =HLOOKUP(AJ7,Fuels!6:12,6,FALSE) -> PC (FORCE 7) 2G diesel | AK17: =HLOOKUP(AK7,Fuels!6:12,6,FALSE) -> PC Naturgas raffinering | AL17: =HLOOKUP(AL7,Fuels!6:12,6,FALSE) -> PC Diesel | AM17: =HLOOKUP(AM7,Fuels!6:12,6,FALSE) -> PC (FORCE 19) RME Rapeseed | AN17: =HLOOKUP(AN7,Fuels!6:12,6,FALSE) -> PC Naturgas raffinering | AO17: =HLOOKUP(AO7,Fuels!6:12,6,FALSE) -> PC (FORCE 9) Bio-DME | AP17: =HLOOKUP(AP7,Fuels!6:12,6,FALSE) -> PC Biogas ENS | AQ17: =HLOOKUP(AQ7,Fuels!6:12,6,FALSE) -> PC (FORCE 6) 1G HVO DIESEL | AR17: =HLOOKUP(AR7,Fuels!6:12,6,FALSE) -> PC Diesel | AS17: =HLOOKUP(AS7,Fuels!6:12,6,FALSE) -> PC (FORCE 19) RME Rapeseed | AT17: =HLOOKUP(AT7,Fuels!6:12,6,FALSE) -> PC (FORCE 6) 1G HVO DIESEL | AU17: =HLOOKUP(AU7,Fuels!6:12,6,FALSE) -> PC Naturgas raffinering | AV17: =HLOOKUP(AV7,Fuels!6:12,6,FALSE) -> PC Biogas ENS | AW17: =HLOOKUP(AW7,Fuels!6:12,6,FALSE) -> PC Diesel | AX17: =HLOOKUP(AX7,Fuels!6:12,6,FALSE) -> PC oplade-elektricitet | AY17: =HLOOKUP(AY7,Fuels!6:12,6,FALSE) -> PC Jet Fuel | AZ17: =HLOOKUP(AZ7,Fuels!6:12,6,FALSE) -> PC (FORCE 18) Bio Jetfuel
D18: Kolonnenr primært drivmiddel | F18: =MATCH(F7,Fuels!$F$6:$AJ$6,0) -> 1 | G18: =MATCH(G7,Fuels!$F$6:$AJ$6,0) -> 2 | H18: =MATCH(H7,Fuels!$F$6:$AJ$6,0) -> 7 | I18: =MATCH(I7,Fuels!$F$6:$AJ$6,0) -> 20 | J18: =MATCH(J7,Fuels!$F$6:$AJ$6,0) -> 8 | K18: =MATCH(K7,Fuels!$F$6:$AJ$6,0) -> 19 | L18: =MATCH(L7,Fuels!$F$6:$AJ$6,0) -> 11 | M18: =MATCH(M7,Fuels!$F$6:$AJ$6,0) -> 12 | N18: =MATCH(N7,Fuels!$F$6:$AJ$6,0) -> 5 | O18: =MATCH(O7,Fuels!$F$6:$AJ$6,0) -> 13 | P18: =MATCH(P7,Fuels!$F$6:$AJ$6,0) -> 9 | Q18: =MATCH(Q7,Fuels!$F$6:$AJ$6,0) -> 14 | R18: =MATCH(R7,Fuels!$F$6:$AJ$6,0) -> 15 | S18: =MATCH(S7,Fuels!$F$6:$AJ$6,0) -> 15 | T18: =MATCH(T7,Fuels!$F$6:$AJ$6,0) -> 2 | U18: =MATCH(U7,Fuels!$F$6:$AJ$6,0) -> 14 | V18: =MATCH(V7,Fuels!$F$6:$AJ$6,0) -> 2 | W18: =MATCH(W7,Fuels!$F$6:$AJ$6,0) -> 5 | X18: =MATCH(X7,Fuels!$F$6:$AJ$6,0) -> 1 | Y18: =MATCH(Y7,Fuels!$F$6:$AJ$6,0) -> 15 | Z18: =MATCH(Z7,Fuels!$F$6:$AJ$6,0) -> 1 | AA18: =MATCH(AA7,Fuels!$F$6:$AJ$6,0) -> 11 | AB18: =MATCH(AB7,Fuels!$F$6:$AJ$6,0) -> 4 | AC18: =MATCH(AC7,Fuels!$F$6:$AJ$6,0) -> 1 | AD18: =MATCH(AD7,Fuels!$F$6:$AJ$6,0) -> 11 | AE18: =MATCH(AE7,Fuels!$F$6:$AJ$6,0) -> 6 | AF18: =MATCH(AF7,Fuels!$F$6:$AJ$6,0) -> 1 | AG18: =MATCH(AG7,Fuels!$F$6:$AJ$6,0) -> 11 | AH18: =MATCH(AH7,Fuels!$F$6:$AJ$6,0) -> 17 | AI18: =MATCH(AI7,Fuels!$F$6:$AJ$6,0) -> 1 | AJ18: =MATCH(AJ7,Fuels!$F$6:$AJ$6,0) -> 11 | AK18: =MATCH(AK7,Fuels!$F$6:$AJ$6,0) -> 6 | AL18: =MATCH(AL7,Fuels!$F$6:$AJ$6,0) -> 1 | AM18: =MATCH(AM7,Fuels!$F$6:$AJ$6,0) -> 19 | AN18: =MATCH(AN7,Fuels!$F$6:$AJ$6,0) -> 5 | AO18: =MATCH(AO7,Fuels!$F$6:$AJ$6,0) -> 12 | AP18: =MATCH(AP7,Fuels!$F$6:$AJ$6,0) -> 13 | AQ18: =MATCH(AQ7,Fuels!$F$6:$AJ$6,0) -> 21 | AR18: =MATCH(AR7,Fuels!$F$6:$AJ$6,0) -> 1 | AS18: =MATCH(AS7,Fuels!$F$6:$AJ$6,0) -> 19 | AT18: =MATCH(AT7,Fuels!$F$6:$AJ$6,0) -> 21 | AU18: =MATCH(AU7,Fuels!$F$6:$AJ$6,0) -> 5 | AV18: =MATCH(AV7,Fuels!$F$6:$AJ$6,0) -> 13 | AW18: =MATCH(AW7,Fuels!$F$6:$AJ$6,0) -> 1 | AX18: =MATCH(AX7,Fuels!$F$6:$AJ$6,0) -> 15 | AY18: =MATCH(AY7,Fuels!$F$6:$AJ$6,0) -> 3 | AZ18: =MATCH(AZ7,Fuels!$F$6:$AJ$6,0) -> 18
D19: Kolonnenr sekundært drivmiddel | F19: =IF(F8<>"",MATCH(F8,Fuels!$F$6:$AJ$6,0),1000) -> 1000 | G19: =IF(G8<>"",MATCH(G8,Fuels!$F$6:$AJ$6,0),1000) -> 1000 | H19: =IF(H8<>"",MATCH(H8,Fuels!$F$6:$AJ$6,0),1000) -> 2 | I19: =IF(I8<>"",MATCH(I8,Fuels!$F$6:$AJ$6,0),1000) -> 2 | J19: =IF(J8<>"",MATCH(J8,Fuels!$F$6:$AJ$6,0),1000) -> 2 | K19: =IF(K8<>"",MATCH(K8,Fuels!$F$6:$AJ$6,0),1000) -> 1000 | L19: =IF(L8<>"",MATCH(L8,Fuels!$F$6:$AJ$6,0),1000) -> 1000 | M19: =IF(M8<>"",MATCH(M8,Fuels!$F$6:$AJ$6,0),1000) -> 1000 | N19: =IF(N8<>"",MATCH(N8,Fuels!$F$6:$AJ$6,0),1000) -> 1000 | O19: =IF(O8<>"",MATCH(O8,Fuels!$F$6:$AJ$6,0),1000) -> 1000 | P19: =IF(P8<>"",MATCH(P8,Fuels!$F$6:$AJ$6,0),1000) -> 16 | Q19: =IF(Q8<>"",MATCH(Q8,Fuels!$F$6:$AJ$6,0),1000) -> 16 | R19: =IF(R8<>"",MATCH(R8,Fuels!$F$6:$AJ$6,0),1000) -> 1000 | S19: =IF(S8<>"",MATCH(S8,Fuels!$F$6:$AJ$6,0),1000) -> 1000 | T19: =IF(T8<>"",MATCH(T8,Fuels!$F$6:$AJ$6,0),1000) -> 16 | U19: =IF(U8<>"",MATCH(U8,Fuels!$F$6:$AJ$6,0),1000) -> 1000 | V19: =IF(V8<>"",MATCH(V8,Fuels!$F$6:$AJ$6,0),1000) -> 1000 | W19: =IF(W8<>"",MATCH(W8,Fuels!$F$6:$AJ$6,0),1000) -> 1000 | X19: =IF(X8<>"",MATCH(X8,Fuels!$F$6:$AJ$6,0),1000) -> 1000 | Y19: =IF(Y8<>"",MATCH(Y8,Fuels!$F$6:$AJ$6,0),1000) -> 1000 | Z19: =IF(Z8<>"",MATCH(Z8,Fuels!$F$6:$AJ$6,0),1000) -> 1000 | AA19: =IF(AA8<>"",MATCH(AA8,Fuels!$F$6:$AJ$6,0),1000) -> 1000 | AB19: =IF(AB8<>"",MATCH(AB8,Fuels!$F$6:$AJ$6,0),1000) -> 1000 | AC19: =IF(AC8<>"",MATCH(AC8,Fuels!$F$6:$AJ$6,0),1000) -> 1000 | AD19: =IF(AD8<>"",MATCH(AD8,Fuels!$F$6:$AJ$6,0),1000) -> 1000 | AE19: =IF(AE8<>"",MATCH(AE8,Fuels!$F$6:$AJ$6,0),1000) -> 1 | AF19: =IF(AF8<>"",MATCH(AF8,Fuels!$F$6:$AJ$6,0),1000) -> 1000 | AG19: =IF(AG8<>"",MATCH(AG8,Fuels!$F$6:$AJ$6,0),1000) -> 1000 | AH19: =IF(AH8<>"",MATCH(AH8,Fuels!$F$6:$AJ$6,0),1000) -> 1000 | AI19: =IF(AI8<>"",MATCH(AI8,Fuels!$F$6:$AJ$6,0),1000) -> 1000 | AJ19: =IF(AJ8<>"",MATCH(AJ8,Fuels!$F$6:$AJ$6,0),1000) -> 1000 | AK19: =IF(AK8<>"",MATCH(AK8,Fuels!$F$6:$AJ$6,0),1000) -> 1 | AL19: =IF(AL8<>"",MATCH(AL8,Fuels!$F$6:$AJ$6,0),1000) -> 1000 | AM19: =IF(AM8<>"",MATCH(AM8,Fuels!$F$6:$AJ$6,0),1000) -> 1000 | AN19: =IF(AN8<>"",MATCH(AN8,Fuels!$F$6:$AJ$6,0),1000) -> 1000 | AO19: =IF(AO8<>"",MATCH(AO8,Fuels!$F$6:$AJ$6,0),1000) -> 1000 | AP19: =IF(AP8<>"",MATCH(AP8,Fuels!$F$6:$AJ$6,0),1000) -> 1000 | AQ19: =IF(AQ8<>"",MATCH(AQ8,Fuels!$F$6:$AJ$6,0),1000) -> 1000 | AR19: =IF(AR8<>"",MATCH(AR8,Fuels!$F$6:$AJ$6,0),1000) -> 1000 | AS19: =IF(AS8<>"",MATCH(AS8,Fuels!$F$6:$AJ$6,0),1000) -> 1000 | AT19: =IF(AT8<>"",MATCH(AT8,Fuels!$F$6:$AJ$6,0),1000) -> 1000 | AU19: =IF(AU8<>"",MATCH(AU8,Fuels!$F$6:$AJ$6,0),1000) -> 1000 | AV19: =IF(AV8<>"",MATCH(AV8,Fuels!$F$6:$AJ$6,0),1000) -> 1000 | AW19: =IF(AW8<>"",MATCH(AW8,Fuels!$F$6:$AJ$6,0),1000) -> 1000 | AX19: =IF(AX8<>"",MATCH(AX8,Fuels!$F$6:$AJ$6,0),1000) -> 1000 | AY19: =IF(AY8<>"",MATCH(AY8,Fuels!$F$6:$AJ$6,0),1000) -> 1000 | AZ19: =IF(AZ8<>"",MATCH(AZ8,Fuels!$F$6:$AJ$6,0),1000) -> 1000
A21: Køretøjsøkonomi
D23: Kørselsomkostninger
D24: AD SØK kørselsomkostninger | E24: DKK / km | F24: =F26+F25 -> 1.566533371 | G24: 1.538254653 | H24: 1.598215223 | I24: 1.469522891 | J24: 1.542966631 | K24: 1.595169458 | L24: 1.542650087 | M24: 1.549704136 | N24: 1.427728886 | O24: 1.620736155 | P24: 1.7547793 | Q24: 1.774695226 | R24: 1.361587638 | S24: =S26+S25 -> 2.111057571 | T24: 1.501340383 | U24: 2.266387232 | V24: =V26+V25 -> 1.90264188 | W24: =W26+W25 -> 1.741418658 | X24: =X26+X25 -> 1.764186606 | Y24: =Y26+Y25 -> 1.583045473 | Z24: =Z26+Z25 -> 1005.659384 | AA24: 954.9849577 | AB24: 3722.22312 | AC24: 1898.095643 | AD24: 1819.672474 | AE24: 1206.002944 | AF24: 0.2765169088 | AG24: 0.2735164962 | AH24: 0.2290734866 | AI24: 0.4169004865 | AJ24: 0.4136600409 | AK24: 0.4187837304 | AL24: 8.704712062 | AM24: 8.980648423 | AN24: 8.460443376 | AO24: 8.344406297 | AP24: =AP26+AP25 -> 9.901520497 | AQ24: =AQ26+AQ25 -> 9.951624993 | AR24: 8.844217273 | AS24: 9.074601063 | AT24: =AT26+AT25 -> 10.34182238 | AU24: 8.601673751 | AV24: 10.33595064 | AW24: 9.533893663 | AX24: 11.16322868 | AY24: 0.501941309 | AZ24: 0.4712277537
D25: Eksternaliteter | E25: DKK / km | F25: =F362 -> 0.09669394036 | G25: 0.09307353004 | H25: 0.1068313877 | I25: 0.07679157015 | J25: 0.03219837671 | K25: 0.1065254411 | L25: 0.02947244967 | M25: 0.0001035364908 | N25: 0.07282320012 | O25: 0.06550256126 | P25: 0.01611403429 | Q25: 0.03240967975 | R25: 0.02820150278 | S25: =S362 -> 0.03138610595 | T25: 0.04034891476 | U25: 0.0394700605 | V25: =V362 -> 0.1728280082 | W25: =W362 -> 0.1371314646 | X25: =X362 -> 0.1685212028 | Y25: =Y362 -> 0.03374633339 | Z25: =Z362 -> 382.7833772 | AA25: 239.940532 | AB25: 2797.980215 | AC25: 593.6509978 | AD25: 372.589029 | AE25: 230.994935 | AF25: 0.02552430248 | AG25: 0.01707939159 | AH25: 0.0004723749544 | AI25: 0.02388363073 | AJ25: 0.01476312697 | AK25: 0.02671360756 | AL25: 0.5742819452 | AM25: 0.6846366775 | AN25: 0.5176035062 | AO25: -0.07579886172 | AP25: =AP362 -> 0.4628949845 | AQ25: =AQ362 -> 0.4620591064 | AR25: 0.7158607824 | AS25: 0.7949574291 | AT25: =AT362 -> 0.5810755125 | AU25: 0.6597208142 | AV25: 0.5938813646 | AW25: 0.5492956274 | AX25: 0.07944520597 | AY25: 0.03313535606 | AZ25: -0.04850893754
D26: Totale kørselsomkostninger | E26: DKK / km | F26: =SUM(F27:F29) -> 1.469839431 | G26: 1.445181123 | H26: 1.491383835 | I26: 1.39273132 | J26: 1.510768255 | K26: 1.488644017 | L26: 1.513177637 | M26: 1.549600599 | N26: 1.354905686 | O26: 1.555233593 | P26: 1.738665266 | Q26: 1.742285546 | R26: 1.333386135 | S26: =SUM(S27:S29) -> 2.079671465 | T26: 1.460991469 | U26: 2.226917172 | V26: =SUM(V27:V29) -> 1.729813872 | W26: =SUM(W27:W29) -> 1.604287194 | X26: =SUM(X27:X29) -> 1.595665403 | Y26: =SUM(Y27:Y29) -> 1.549299139 | Z26: =SUM(Z27:Z29) -> 622.8760073 | AA26: 715.0444257 | AB26: 924.2429045 | AC26: 1304.444645 | AD26: 1447.083445 | AE26: 975.008009 | AF26: 0.2509926063 | AG26: 0.2564371046 | AH26: 0.2286011117 | AI26: 0.3930168558 | AJ26: 0.398896914 | AK26: 0.3920701229 | AL26: 8.130430117 | AM26: 8.296011745 | AN26: 7.942839869 | AO26: 8.420205159 | AP26: =SUM(AP27:AP29) -> 9.438625512 | AQ26: =SUM(AQ27:AQ29) -> 9.489565886 | AR26: 8.12835649 | AS26: 8.279643634 | AT26: =SUM(AT27:AT29) -> 9.760746863 | AU26: 7.941952936 | AV26: 9.742069271 | AW26: 8.984598036 | AX26: 11.08378348 | AY26: 0.4688059529 | AZ26: 0.5197366913
D27: Brændstof | E27: DKK / km | F27: =F45*F36/1000 -> 0.2928804628 | G27: 0.3428415695 | H27: 0.3890442821 | I27: 0.2903917672 | J27: 0.4084287013 | K27: 0.3116850483 | L27: 0.3362186693 | M27: 0.3362646662 | N27: 0.1796995231 | O27: 0.3800274301 | P27: 0.1100585347 | Q27: 0.1784800171 | R27: 0.07896217485 | S27: =S45*S36/1000 -> 0.09583729059 | T27: 0.1114834836 | U27: 0.5735791358 | V27: =V45*V36/1000 -> 0.6135937496 | W27: =W45*W36/1000 -> 0.3269768445 | X27: =X45*X36/1000 -> 0.4582033893 | Y27: =Y45*Y36/1000 -> 0.1728191335 | Z27: =Z45*Z36/1000 -> 622.8760073 | AA27: 715.0444257 | AB27: 601.570413 | AC27: 963.955852 | AD27: 1106.594652 | AE27: 624.083851 | AF27: 0.03679402799 | AG27: 0.04223852629 | AH27: 0.03371557178 | AI27: 0.03973755023 | AJ27: 0.0456176084 | AK27: 0.03082142579 | AL27: 1.961857572 | AM27: 2.087819947 | AN27: 1.341759971 | AO27: 2.251632614 | AP27: =AP45*AP36/1000 -> 2.837545614 | AQ27: =AQ45*AQ36/1000 -> 3.320993342 | AR27: 2.356289552 | AS27: 2.507576695 | AT27: =AT45*AT36/1000 -> 3.988679925 | AU27: 1.61475279 | AV27: 3.414869124 | AW27: 1.648372454 | AX27: 0.6672590468 | AY27: 0.220585324 | AZ27: 0.2715160623
D28: Reparationer, slid | E28: DKK / km | F28: =F35*F39/1000 -> 0.3725616751 | G28: 0.3725616751 | H28: 0.3725616751 | I28: 0.3725616751 | J28: 0.3725616751 | K28: 0.3725616751 | L28: 0.3725616751 | M28: 0.3725616751 | N28: 0.3725616751 | O28: 0.3725616751 | P28: 0.1751039873 | Q28: 0.1751039873 | R28: 0.08196356853 | S28: =S35*S39/1000 -> 0.08196356853 | T28: 0.1751039873 | U28: 0.1751039873 | V28: =V35*V39/1000 -> 0.28 | W28: =W35*W39/1000 -> 0.28 | X28: =X35*X39/1000 -> 0.28 | Y28: =Y35*Y39/1000 -> 0.238 | Z28: =Z35*Z39/1000 -> 0 | AA28: 0 | AB28: 107.1248266 | AC28: 113.039704 | AD28: 113.039704 | AE28: 105.8935158 | AF28: 0.1521401684 | AG28: 0.1521401684 | AH28: 0.1373953062 | AI28: 0.2735853905 | AJ28: 0.2735853905 | AK28: 0.2735853905 | AL28: 3.239956989 | AM28: 3.239956989 | AN28: 3.36457072 | AO28: 3.239956989 | AP28: =AP35*AP39/1000 -> 3.36457072 | AQ28: =AQ35*AQ39/1000 -> 3.239956989 | AR28: 1.869205955 | AS28: 1.869205955 | AT28: =AT35*AT39/1000 -> 1.869205955 | AU28: 1.921128343 | AV28: 1.921128343 | AW28: 1.820229898 | AX28: 2.55 | AY28: 0.248220629 | AZ28: 0.248220629
D29: Afskrivninger | E29: DKK / km | F29: =F34*F39/1000 -> 0.8043972931 | G29: 0.7297778781 | H29: 0.7297778781 | I29: 0.7297778781 | J29: 0.7297778781 | K29: 0.8043972931 | L29: 0.8043972931 | M29: 0.8407742579 | N29: 0.802644488 | O29: 0.802644488 | P29: 1.453502744 | Q29: 1.388701541 | R29: 1.172460392 | S29: =S34*S39/1000 -> 1.901870606 | T29: 1.174403998 | U29: 1.478234048 | V29: =V34*V39/1000 -> 0.836220122 | W29: =W34*W39/1000 -> 0.9973103491 | X29: =X34*X39/1000 -> 0.8574620138 | Y29: =Y34*Y39/1000 -> 1.138480006 | Z29: =Z34*Z39/1000 -> 0 | AA29: 0 | AB29: 215.5476649 | AC29: 227.4490891 | AD29: 227.4490891 | AE29: 245.0306422 | AF29: 0.06205840992 | AG29: 0.06205840992 | AH29: 0.05749023366 | AI29: 0.07969391507 | AJ29: 0.07969391507 | AK29: 0.08766330657 | AL29: 2.928615555 | AM29: 2.968234809 | AN29: 3.236509179 | AO29: 2.928615555 | AP29: =AP34*AP39/1000 -> 3.236509179 | AQ29: =AQ34*AQ39/1000 -> 2.928615555 | AR29: 3.902860983 | AS29: 3.902860983 | AT29: =AT34*AT39/1000 -> 3.902860983 | AU29: 4.406071803 | AV29: 4.406071803 | AW29: 5.515995683 | AX29: 7.866524429 | AY29: 0 | AZ29: 0
D31: Køretøj
A32: 31 | B32: =COLUMN('EU Std benzin personbil'!$D1)-1+chosenYear -> 4 | D32: Investeringsomkostninger exkl. afg | E32: DKK | F32: =INDIRECT(ADDRESS($A32,$B32,,,F$9)) -> 170976.0039 | G32: 155115.5212 | H32: 155115.5212 | I32: 155115.5212 | J32: 155115.5212 | K32: 170976.0039 | L32: 170976.0039 | M32: 178707.9893 | N32: 170603.4423 | O32: 170603.4423 | P32: =INDIRECT(ADDRESS($A32,$B32,,,P$9)) -> 308944.4644 | Q32: 295170.8593 | R32: 249208.4376 | S32: 404245.8112 | T32: 249621.5543 | U32: 314201.145 | V32: 177740 | W32: 211980 | X32: 182255 | Y32: 241985.8491 | Z32: =INDIRECT(ADDRESS($A32,$B32,,,Z$9)) -> 0 | AA32: 0 | AB32: 467820712.7 | AC32: 467820712.7 | AD32: 467820712.7 | AE32: 537993819.6 | AF32: 321934.8273 | AG32: 321934.8273 | AH32: 248530.7587 | AI32: 186747.7068 | AJ32: =INDIRECT(ADDRESS($A32,$B32,,,AJ$9)) -> 186747.7068 | AK32: 205422.4775 | AL32: 767610.177 | AM32: 777994.6546 | AN32: 848311.2027 | AO32: 767610.177 | AP32: 848311.2027 | AQ32: 767610.177 | AR32: 1370775.204 | AS32: 1370775.204 | AT32: 1370775.204 | AU32: 1547514.503 | AV32: 1547514.503 | AW32: 1937345.486 | AX32: 2762905.642 | AY32: 0 | AZ32: 0
A33: 32 | B33: =COLUMN('EU Std benzin personbil'!$D2)-1+chosenYear -> 4 | D33: Samlede omk (ex brændstof) | E33: DKK/GJ mek | F33: 2921.231474 | G33: 2797.980447 | H33: 2797.980447 | I33: 2797.980447 | J33: 2797.980447 | K33: 2921.231474 | L33: 2921.231474 | M33: 3011.519698 | N33: 2982.931943 | O33: 2982.931943 | P33: 3446.995437 | Q33: 3340.118019 | R33: 2898.300009 | S33: 4083.727743 | T33: 3151.04723 | U33: 3531.349687 | V33: 1344.84352 | W33: 1538.928131 | X33: 1370.436161 | Y33: 1571.317779 | Z33: 0 | AA33: 0 | AB33: 154.7429906 | AC33: 163.287096 | AD33: 163.287096 | AE33: 164.4326778 | AF33: 3630.484378 | AG33: 3630.484378 | AH33: 4330.789776 | AI33: 11775.97685 | AJ33: 11775.97685 | AK33: 12041.62324 | AL33: 2435.571739 | AM33: 2451.214829 | AN33: 2606.341019 | AO33: 2435.571739 | AP33: 2606.341019 | AQ33: 2435.571739 | AR33: 3006.284864 | AS33: 3006.284864 | AT33: 3006.284864 | AU33: 3295.416743 | AV33: 3295.416743 | AW33: 3820.950824 | AX33: 5425.27314 | AY33: 816.5152268 | AZ33: 816.5152268
A34: 33 | B34: =COLUMN('EU Std benzin personbil'!$D3)-1+chosenYear -> 4 | D34: heraf investeringer | E34: DKK/GJ mek | F34: 1996.527282 | G34: 1852.336902 | H34: 1852.336902 | I34: 1852.336902 | J34: 1852.336902 | K34: 1996.527282 | L34: 1996.527282 | M34: 2086.815506 | N34: 2037.288399 | O34: 2037.288399 | P34: 3076.382549 | Q34: 2966.115003 | R34: 2708.926225 | S34: 3915.005527 | T34: 2742.186415 | U34: 3157.346672 | V34: 1007.494123 | W34: 1201.578734 | X34: 1033.086764 | Y34: 1299.629393 | Z34: 0 | AA34: 0 | AB34: 102.2039386 | AC34: 107.84711 | AD34: 107.84711 | AE34: 113.435008 | AF34: 1051.837456 | AG34: 1051.837456 | AH34: 1277.560748 | AI34: 2656.463836 | AJ34: 2656.463836 | AK34: 2922.110219 | AL34: 1156.321536 | AM34: 1171.964626 | AN34: 1277.888885 | AO34: 1156.321536 | AP34: 1277.888885 | AQ34: 1156.321536 | AR34: 2032.740095 | AS34: 2032.740095 | AT34: 2032.740095 | AU34: 2294.829064 | AV34: 2294.829064 | AW34: 2872.914418 | AX34: 4097.14814 | AY34: 0 | AZ34: 0
A35: 34 | B35: =COLUMN('EU Std benzin personbil'!$D4)-1+chosenYear -> 4 | D35: heraf drift, faste | E35: DKK/GJ mek | F35: 924.7041918 | G35: 945.6435443 | H35: 945.6435443 | I35: 945.6435443 | J35: 945.6435443 | K35: 924.7041918 | L35: 924.7041918 | M35: 924.7041918 | N35: 945.6435443 | O35: 945.6435443 | P35: 370.6128887 | Q35: 374.0030153 | R35: 189.3737834 | S35: 168.7222163 | T35: 408.8608147 | U35: 374.0030153 | V35: 337.3493976 | W35: 337.3493976 | X35: 337.3493976 | Y35: 271.6883863 | Z35: 0 | AA35: 0 | AB35: 50.7942371 | AC35: 53.59883143 | AD35: 53.59883143 | AE35: 49.02256999 | AF35: 2578.646922 | AG35: 2578.646922 | AH35: 3053.229028 | AI35: 9119.513017 | AJ35: 9119.513017 | AK35: 9119.513017 | AL35: 1279.250203 | AM35: 1279.250203 | AN35: 1328.452134 | AO35: 1279.250203 | AP35: 1328.452134 | AQ35: 1279.250203 | AR35: 973.5447684 | AS35: 973.5447684 | AT35: 973.5447684 | AU35: 1000.587679 | AV35: 1000.587679 | AW35: 948.0364054 | AX35: 1328.125 | AY35: 816.5152268 | AZ35: 816.5152268
D36: Energiforbrug | E36: MJd / km | F36: =SUM(F37:F38) -> 1.99 | G36: 2.22 | H36: 2.22 | I36: 2.22 | J36: 2.22 | K36: 1.99 | L36: 1.99 | M36: 1.97 | N36: 2.12 | O36: 2.12 | P36: 0.8547456848 | Q36: 0.8276228968 | R36: 0.5453020134 | S36: =SUM(S37:S38) -> 0.6618392619 | T36: 0.9192206328 | U36: 1.25 | V36: =SUM(V37:V38) -> 3.9732 | W36: =SUM(W37:W38) -> 3.8575 | X36: =SUM(X37:X38) -> 3.1133 | Y36: =SUM(Y37:Y38) -> 1.193465373 | Z36: =SUM(Z37:Z38) -> 4232.181425 | AA36: 4232.181425 | AB36: 6549.676026 | AC36: 6549.676026 | AD36: 6549.676026 | AE36: 6857.451404 | AF36: 0.25 | AG36: 0.25 | AH36: 0.07 | AI36: 0.27 | AJ36: 0.27 | AK36: 0.33 | AL36: 13.33 | AM36: 13.33 | AN36: 15.829375 | AO36: 13.19114583 | AP36: =SUM(AP37:AP38) -> 15.829375 | AQ36: =SUM(AQ37:AQ38) -> 13.33 | AR36: 16.01 | AS36: 16.01 | AT36: =SUM(AT37:AT38) -> 16.01 | AU36: 19.05 | AV36: 19.05 | AW36: 11.2 | AX36: 4.608 | AY36: 1.9 | AZ36: 1.9
A37: =ROW('EU Std benzin personbil'!D25) -> 25 | B37: =COLUMN('EU Std benzin personbil'!$D6)-1+chosenYear -> 4 | D37: Energiforbrug, primært drivmidel | E37: MJd / km | F37: =INDIRECT(ADDRESS($A37,$B37,,,F$9))*F11 -> 1.99 | G37: =INDIRECT(ADDRESS($A37,$B37,,,G$9))*G11 -> 2.22 | H37: 1.7538 | I37: 1.7538 | J37: 1.7538 | K37: 1.99 | L37: 1.99 | M37: 1.97 | N37: 2.12 | O37: 2.12 | P37: 0.4105968289 | Q37: 0.3875 | R37: 0.5453020134 | S37: 0.6618392619 | T37: 0.5166208125 | U37: 1.25 | V37: =INDIRECT(ADDRESS($A37,$B37,,,V$9))*V11 -> 3.9732 | W37: 3.8575 | X37: 3.1133 | Y37: 1.193465373 | Z37: =INDIRECT(ADDRESS($A37,$B37,,,Z$9))*Z11 -> 4232.181425 | AA37: 4232.181425 | AB37: =INDIRECT(ADDRESS($A37,$B37,,,AB$9))*AB11 -> 6549.676026 | AC37: 6549.676026 | AD37: 6549.676026 | AE37: 6446.00432 | AF37: 0.25 | AG37: 0.25 | AH37: 0.07 | AI37: 0.27 | AJ37: 0.27 | AK37: 0.297 | AL37: 13.33 | AM37: 13.33 | AN37: 15.829375 | AO37: 13.19114583 | AP37: 15.829375 | AQ37: =INDIRECT(ADDRESS($A37,$B37,,,AQ$9))*AQ11 -> 13.33 | AR37: 16.01 | AS37: 16.01 | AT37: =INDIRECT(ADDRESS($A37,$B37,,,AT$9))*AT11 -> 16.01 | AU37: 19.05 | AV37: 19.05 | AW37: 11.2 | AX37: 4.608 | AY37: 1.9 | AZ37: 1.9
A38: =ROW('EU Std benzin personbil'!D26) -> 26 | B38: =COLUMN('EU Std benzin personbil'!$D7)-1+chosenYear -> 4 | D38: Energiforbrug, sekundært drivmidel | E38: MJd / km | F38: =INDIRECT(ADDRESS($A38,$B38,,,F$9))*F12 -> 0 | G38: =INDIRECT(ADDRESS($A38,$B38,,,G$9))*G12 -> 0 | H38: 0.4662 | I38: 0.4662 | J38: 0.4662 | K38: 0 | L38: 0 | M38: 0 | N38: 0 | O38: 0 | P38: 0.4441488559 | Q38: 0.4401228968 | R38: 0 | S38: 0 | T38: 0.4025998203 | U38: 0 | V38: 0 | W38: 0 | X38: 0 | Y38: 0 | Z38: =INDIRECT(ADDRESS($A38,$B38,,,Z$9))*Z12 -> 0 | AA38: 0 | AB38: 0 | AC38: 0 | AD38: 0 | AE38: 411.4470842 | AF38: 0 | AG38: 0 | AH38: 0 | AI38: 0 | AJ38: 0 | AK38: 0.033 | AL38: 0 | AM38: 0 | AN38: 0 | AO38: 0 | AP38: 0 | AQ38: =INDIRECT(ADDRESS($A38,$B38,,,AQ$9))*AQ12 -> 0 | AR38: 0 | AS38: 0 | AT38: =INDIRECT(ADDRESS($A38,$B38,,,AT$9))*AT12 -> 0 | AU38: 0 | AV38: 0 | AW38: 0 | AX38: 0 | AY38: 0 | AZ38: 0
A39: =ROW('EU Std benzin personbil'!$D67) -> 67 | B39: =COLUMN('EU Std benzin personbil'!$D8)-1+chosenYear -> 4 | D39: Energiforbrug | E39: MJ mek/km | F39: =INDIRECT(ADDRESS($A39,$B39,,,F$9)) -> 0.4028982224 | G39: 0.3939768609 | H39: 0.3939768609 | I39: 0.3939768609 | J39: 0.3939768609 | K39: 0.4028982224 | L39: 0.4028982224 | M39: 0.4028982224 | N39: 0.3939768609 | O39: 0.3939768609 | P39: =INDIRECT(ADDRESS($A39,$B39,,,P$9)) -> 0.4724713917 | Q39: 0.4681887047 | R39: 0.4328137035 | S39: 0.4857900182 | T39: =INDIRECT(ADDRESS($A39,$B39,,,T$9)) -> 0.4282728523 | U39: 0.4681887047 | V39: 0.83 | W39: 0.83 | X39: 0.83 | Y39: 0.8760035836 | Z39: =INDIRECT(ADDRESS($A39,$B39,,,Z$9)) -> 1699.102613 | AA39: 1699.102613 | AB39: 2108.99568 | AC39: 2108.99568 | AD39: 2108.99568 | AE39: 2160.097192 | AF39: 0.059 | AG39: 0.059 | AH39: 0.045 | AI39: 0.03 | AJ39: 0.03 | AK39: 0.03 | AL39: 2.5327 | AM39: 2.5327 | AN39: 2.5327 | AO39: 2.5327 | AP39: 2.5327 | AQ39: 2.5327 | AR39: 1.92 | AS39: 1.92 | AT39: 1.92 | AU39: 1.92 | AV39: 1.92 | AW39: 1.92 | AX39: 1.92 | AY39: 0.304 | AZ39: 0.304
D40: Virkningsgrad | E40: MJ mek/MJ drivm. | F40: =F39/F36 -> 0.2024614183 | G40: 0.1774670545 | H40: 0.1774670545 | I40: 0.1774670545 | J40: 0.1774670545 | K40: 0.2024614183 | L40: 0.2024614183 | M40: 0.2045168642 | N40: 0.1858381419 | O40: 0.1858381419 | P40: 0.5527625352 | Q40: 0.5657029385 | R40: 0.7937137454 | S40: =S39/S36 -> 0.734 | T40: 0.465908659 | U40: 0.3745509638 | V40: =V39/V36 -> 0.2088996275 | W40: =W39/W36 -> 0.2151652625 | X40: =X39/X36 -> 0.2665981434 | Y40: =Y39/Y36 -> 0.734 | Z40: =Z39/Z36 -> 0.4014720642 | AA40: 0.4014720642 | AB40: 0.322 | AC40: 0.322 | AD40: 0.322 | AE40: 0.315 | AF40: 0.236 | AG40: 0.236 | AH40: 0.6428571429 | AI40: 0.1111111111 | AJ40: 0.1111111111 | AK40: 0.09090909091 | AL40: 0.19 | AM40: 0.19 | AN40: 0.16 | AO40: 0.192 | AP40: =AP39/AP36 -> 0.16 | AQ40: =AQ39/AQ36 -> 0.19 | AR40: 0.1199250468 | AS40: 0.1199250468 | AT40: =AT39/AT36 -> 0.1199250468 | AU40: 0.1007874016 | AV40: 0.1007874016 | AW40: 0.1714285714 | AX40: 0.4166666667 | AY40: 0.16 | AZ40: 0.16
D41: Energiforbrug | E41: km/l benzin-ækv. | F41: ='Basic Data'!$Z$126/F36 -> 16.50753769 | G41: ='Basic Data'!$Z$126/G36 -> 14.7972973 | H41: ='Basic Data'!$Z$126/H36 -> 14.7972973 | I41: ='Basic Data'!$Z$126/I36 -> 14.7972973 | J41: ='Basic Data'!$Z$126/J36 -> 14.7972973 | K41: ='Basic Data'!$Z$126/K36 -> 16.50753769 | L41: ='Basic Data'!$Z$126/L36 -> 16.50753769 | M41: ='Basic Data'!$Z$126/M36 -> 16.6751269 | N41: ='Basic Data'!$Z$126/N36 -> 15.49528302 | O41: ='Basic Data'!$Z$126/O36 -> 15.49528302 | P41: ='Basic Data'!$Z$126/P36 -> 38.43248417 | Q41: ='Basic Data'!$Z$126/Q36 -> 39.69199031 | R41: ='Basic Data'!$Z$126/R36 -> 60.24184615 | S41: ='Basic Data'!$Z$126/S36 -> 49.63440807 | T41: ='Basic Data'!$Z$126/T36 -> 35.73679575 | U41: ='Basic Data'!$Z$126/U36 -> 26.28 | V41: ='Basic Data'!$Z$126/V36 -> 8.267894896 | W41: ='Basic Data'!$Z$126/W36 -> 8.515878159 | X41: ='Basic Data'!$Z$126/X36 -> 10.55150483 | Y41: ='Basic Data'!$Z$126/Y36 -> 27.5248874 | Z41: ='Basic Data'!$Z$126/Z36 -> 0.00776195458 | AA41: ='Basic Data'!$Z$126/AA36 -> 0.00776195458 | AB41: ='Basic Data'!$Z$126/AB36 -> 0.005015515251 | AC41: ='Basic Data'!$Z$126/AC36 -> 0.005015515251 | AD41: ='Basic Data'!$Z$126/AD36 -> 0.005015515251 | AE41: ='Basic Data'!$Z$126/AE36 -> 0.004790409449 | AF41: ='Basic Data'!$Z$126/AF36 -> 131.4 | AG41: ='Basic Data'!$Z$126/AG36 -> 131.4 | AH41: ='Basic Data'!$Z$126/AH36 -> 469.2857143 | AI41: ='Basic Data'!$Z$126/AI36 -> 121.6666667 | AJ41: ='Basic Data'!$Z$126/AJ36 -> 121.6666667 | AK41: ='Basic Data'!$Z$126/AK36 -> 99.54545455 | AL41: ='Basic Data'!$Z$126/AL36 -> 2.464366092 | AM41: ='Basic Data'!$Z$126/AM36 -> 2.464366092 | AN41: ='Basic Data'!$Z$126/AN36 -> 2.075255656 | AO41: ='Basic Data'!$Z$126/AO36 -> 2.490306787 | AP41: ='Basic Data'!$Z$126/AP36 -> 2.075255656 | AQ41: ='Basic Data'!$Z$126/AQ36 -> 2.464366092 | AR41: ='Basic Data'!$Z$126/AR36 -> 2.051842598 | AS41: ='Basic Data'!$Z$126/AS36 -> 2.051842598 | AT41: ='Basic Data'!$Z$126/AT36 -> 2.051842598 | AU41: ='Basic Data'!$Z$126/AU36 -> 1.724409449 | AV41: ='Basic Data'!$Z$126/AV36 -> 1.724409449 | AW41: ='Basic Data'!$Z$126/AW36 -> 2.933035714 | AX41: ='Basic Data'!$Z$126/AX36 -> 7.12890625 | AY41: ='Basic Data'!$Z$126/AY36 -> 17.28947368 | AZ41: ='Basic Data'!$Z$126/AZ36 -> 17.28947368
D44: Drivmiddel
D45: Drivmiddelpris i alt | E45: DKK / GJd | F45: =F46*F11+F47*F12 -> 147.1761119 | G45: 154.4331394 | H45: 175.2451721 | I45: 130.8071023 | J45: 183.9768925 | K45: 156.6256524 | L45: 168.9541052 | M45: 170.6927239 | N45: 84.763926 | O45: 179.2582218 | P45: 128.7617319 | Q45: 215.6537933 | R45: 144.8044807 | S45: =S46*S11+S47*S12 -> 144.8044807 | T45: 121.2804408 | U45: 458.8633087 | V45: =V46*V11+V47*V12 -> 154.4331394 | W45: =W46*W11+W47*W12 -> 84.763926 | X45: =X46*X11+X47*X12 -> 147.1761119 | Y45: =Y46*Y11+Y47*Y12 -> 144.8044807 | Z45: =Z46*Z11+Z47*Z12 -> 147.1761119 | AA45: 168.9541052 | AB45: 91.84735406 | AC45: 147.1761119 | AD45: 168.9541052 | AE45: 91.00813323 | AF45: 147.1761119 | AG45: 168.9541052 | AH45: 481.6510254 | AI45: 147.1761119 | AJ45: 168.9541052 | AK45: 93.39825998 | AL45: 147.1761119 | AM45: 156.6256524 | AN45: 84.763926 | AO45: 170.6927239 | AP45: =AP46*AP11+AP47*AP12 -> 179.2582218 | AQ45: =AQ46*AQ11+AQ47*AQ12 -> 249.1367848 | AR45: 147.1761119 | AS45: 156.6256524 | AT45: =AT46*AT11+AT47*AT12 -> 249.1367848 | AU45: 84.763926 | AV45: 179.2582218 | AW45: 147.1761119 | AX45: 144.8044807 | AY45: 116.0975389 | AZ45: 142.9031907
D46: Primært drivmiddel | E46: DKK / GJd | F46: =IF(F$7<>0,OFFSET(Fuels!$E$18,0,MATCH(F$7,Fuels!$F$6:$AJ$6,0)),0) -> 147.1761119 | G46: =IF(G$7<>0,OFFSET(Fuels!$E$18,0,MATCH(G$7,Fuels!$F$6:$AJ$6,0)),0) -> 154.4331394 | H46: =IF(H$7<>0,OFFSET(Fuels!$E$18,0,MATCH(H$7,Fuels!$F$6:$AJ$6,0)),0) -> 180.7774846 | I46: =IF(I$7<>0,OFFSET(Fuels!$E$18,0,MATCH(I$7,Fuels!$F$6:$AJ$6,0)),0) -> 124.5267633 | J46: =IF(J$7<>0,OFFSET(Fuels!$E$18,0,MATCH(J$7,Fuels!$F$6:$AJ$6,0)),0) -> 191.8302952 | K46: =IF(K$7<>0,OFFSET(Fuels!$E$18,0,MATCH(K$7,Fuels!$F$6:$AJ$6,0)),0) -> 156.6256524 | L46: =IF(L$7<>0,OFFSET(Fuels!$E$18,0,MATCH(L$7,Fuels!$F$6:$AJ$6,0)),0) -> 168.9541052 | M46: =IF(M$7<>0,OFFSET(Fuels!$E$18,0,MATCH(M$7,Fuels!$F$6:$AJ$6,0)),0) -> 170.6927239 | N46: =IF(N$7<>0,OFFSET(Fuels!$E$18,0,MATCH(N$7,Fuels!$F$6:$AJ$6,0)),0) -> 84.763926 | O46: =IF(O$7<>0,OFFSET(Fuels!$E$18,0,MATCH(O$7,Fuels!$F$6:$AJ$6,0)),0) -> 179.2582218 | P46: =IF(P$7<>0,OFFSET(Fuels!$E$18,0,MATCH(P$7,Fuels!$F$6:$AJ$6,0)),0) -> 178.5663363 | Q46: =IF(Q$7<>0,OFFSET(Fuels!$E$18,0,MATCH(Q$7,Fuels!$F$6:$AJ$6,0)),0) -> 458.8633087 | R46: =IF(R$7<>0,OFFSET(Fuels!$E$18,0,MATCH(R$7,Fuels!$F$6:$AJ$6,0)),0) -> 144.8044807 | S46: =IF(S$7<>0,OFFSET(Fuels!$E$18,0,MATCH(S$7,Fuels!$F$6:$AJ$6,0)),0) -> 144.8044807 | T46: =IF(T$7<>0,OFFSET(Fuels!$E$18,0,MATCH(T$7,Fuels!$F$6:$AJ$6,0)),0) -> 154.4331394 | U46: =IF(U$7<>0,OFFSET(Fuels!$E$18,0,MATCH(U$7,Fuels!$F$6:$AJ$6,0)),0) -> 458.8633087 | V46: =IF(V$7<>0,OFFSET(Fuels!$E$18,0,MATCH(V$7,Fuels!$F$6:$AJ$6,0)),0) -> 154.4331394 | W46: =IF(W$7<>0,OFFSET(Fuels!$E$18,0,MATCH(W$7,Fuels!$F$6:$AJ$6,0)),0) -> 84.763926 | X46: =IF(X$7<>0,OFFSET(Fuels!$E$18,0,MATCH(X$7,Fuels!$F$6:$AJ$6,0)),0) -> 147.1761119 | Y46: =IF(Y$7<>0,OFFSET(Fuels!$E$18,0,MATCH(Y$7,Fuels!$F$6:$AJ$6,0)),0) -> 144.8044807 | Z46: =IF(Z$7<>0,OFFSET(Fuels!$E$18,0,MATCH(Z$7,Fuels!$F$6:$AJ$6,0)),0) -> 147.1761119 | AA46: =IF(AA$7<>0,OFFSET(Fuels!$E$18,0,MATCH(AA$7,Fuels!$F$6:$AJ$6,0)),0) -> 168.9541052 | AB46: =IF(AB$7<>0,OFFSET(Fuels!$E$18,0,MATCH(AB$7,Fuels!$F$6:$AJ$6,0)),0) -> 91.84735406 | AC46: =IF(AC$7<>0,OFFSET(Fuels!$E$18,0,MATCH(AC$7,Fuels!$F$6:$AJ$6,0)),0) -> 147.1761119 | AD46: =IF(AD$7<>0,OFFSET(Fuels!$E$18,0,MATCH(AD$7,Fuels!$F$6:$AJ$6,0)),0) -> 168.9541052 | AE46: =IF(AE$7<>0,OFFSET(Fuels!$E$18,0,MATCH(AE$7,Fuels!$F$6:$AJ$6,0)),0) -> 87.4229431 | AF46: =IF(AF$7<>0,OFFSET(Fuels!$E$18,0,MATCH(AF$7,Fuels!$F$6:$AJ$6,0)),0) -> 147.1761119 | AG46: =IF(AG$7<>0,OFFSET(Fuels!$E$18,0,MATCH(AG$7,Fuels!$F$6:$AJ$6,0)),0) -> 168.9541052 | AH46: =IF(AH$7<>0,OFFSET(Fuels!$E$18,0,MATCH(AH$7,Fuels!$F$6:$AJ$6,0)),0) -> 481.6510254 | AI46: =IF(AI$7<>0,OFFSET(Fuels!$E$18,0,MATCH(AI$7,Fuels!$F$6:$AJ$6,0)),0) -> 147.1761119 | AJ46: =IF(AJ$7<>0,OFFSET(Fuels!$E$18,0,MATCH(AJ$7,Fuels!$F$6:$AJ$6,0)),0) -> 168.9541052 | AK46: =IF(AK$7<>0,OFFSET(Fuels!$E$18,0,MATCH(AK$7,Fuels!$F$6:$AJ$6,0)),0) -> 87.4229431 | AL46: =IF(AL$7<>0,OFFSET(Fuels!$E$18,0,MATCH(AL$7,Fuels!$F$6:$AJ$6,0)),0) -> 147.1761119 | AM46: =IF(AM$7<>0,OFFSET(Fuels!$E$18,0,MATCH(AM$7,Fuels!$F$6:$AJ$6,0)),0) -> 156.6256524 | AN46: =IF(AN$7<>0,OFFSET(Fuels!$E$18,0,MATCH(AN$7,Fuels!$F$6:$AJ$6,0)),0) -> 84.763926 | AO46: =IF(AO$7<>0,OFFSET(Fuels!$E$18,0,MATCH(AO$7,Fuels!$F$6:$AJ$6,0)),0) -> 170.6927239 | AP46: =IF(AP$7<>0,OFFSET(Fuels!$E$18,0,MATCH(AP$7,Fuels!$F$6:$AJ$6,0)),0) -> 179.2582218 | AQ46: =IF(AQ$7<>0,OFFSET(Fuels!$E$18,0,MATCH(AQ$7,Fuels!$F$6:$AJ$6,0)),0) -> 249.1367848 | AR46: =IF(AR$7<>0,OFFSET(Fuels!$E$18,0,MATCH(AR$7,Fuels!$F$6:$AJ$6,0)),0) -> 147.1761119 | AS46: =IF(AS$7<>0,OFFSET(Fuels!$E$18,0,MATCH(AS$7,Fuels!$F$6:$AJ$6,0)),0) -> 156.6256524 | AT46: =IF(AT$7<>0,OFFSET(Fuels!$E$18,0,MATCH(AT$7,Fuels!$F$6:$AJ$6,0)),0) -> 249.1367848 | AU46: =IF(AU$7<>0,OFFSET(Fuels!$E$18,0,MATCH(AU$7,Fuels!$F$6:$AJ$6,0)),0) -> 84.763926 | AV46: =IF(AV$7<>0,OFFSET(Fuels!$E$18,0,MATCH(AV$7,Fuels!$F$6:$AJ$6,0)),0) -> 179.2582218 | AW46: =IF(AW$7<>0,OFFSET(Fuels!$E$18,0,MATCH(AW$7,Fuels!$F$6:$AJ$6,0)),0) -> 147.1761119 | AX46: =IF(AX$7<>0,OFFSET(Fuels!$E$18,0,MATCH(AX$7,Fuels!$F$6:$AJ$6,0)),0) -> 144.8044807 | AY46: =IF(AY$7<>0,OFFSET(Fuels!$E$18,0,MATCH(AY$7,Fuels!$F$6:$AJ$6,0)),0) -> 116.0975389 | AZ46: =IF(AZ$7<>0,OFFSET(Fuels!$E$18,0,MATCH(AZ$7,Fuels!$F$6:$AJ$6,0)),0) -> 142.9031907
D47: Sekundært brændstof | E47: DKK / GJd | F47: =IF(F$8<>0,OFFSET(Fuels!$E$18,0,MATCH(F$8,Fuels!$F$6:$AJ$6,0)),0) -> 0 | G47: =IF(G$8<>0,OFFSET(Fuels!$E$18,0,MATCH(G$8,Fuels!$F$6:$AJ$6,0)),0) -> 0 | H47: =IF(H$8<>0,OFFSET(Fuels!$E$18,0,MATCH(H$8,Fuels!$F$6:$AJ$6,0)),0) -> 154.4331394 | I47: =IF(I$8<>0,OFFSET(Fuels!$E$18,0,MATCH(I$8,Fuels!$F$6:$AJ$6,0)),0) -> 154.4331394 | J47: =IF(J$8<>0,OFFSET(Fuels!$E$18,0,MATCH(J$8,Fuels!$F$6:$AJ$6,0)),0) -> 154.4331394 | K47: =IF(K$8<>0,OFFSET(Fuels!$E$18,0,MATCH(K$8,Fuels!$F$6:$AJ$6,0)),0) -> 0 | L47: =IF(L$8<>0,OFFSET(Fuels!$E$18,0,MATCH(L$8,Fuels!$F$6:$AJ$6,0)),0) -> 0 | M47: =IF(M$8<>0,OFFSET(Fuels!$E$18,0,MATCH(M$8,Fuels!$F$6:$AJ$6,0)),0) -> 0 | N47: =IF(N$8<>0,OFFSET(Fuels!$E$18,0,MATCH(N$8,Fuels!$F$6:$AJ$6,0)),0) -> 0 | O47: =IF(O$8<>0,OFFSET(Fuels!$E$18,0,MATCH(O$8,Fuels!$F$6:$AJ$6,0)),0) -> 0 | P47: =IF(P$8<>0,OFFSET(Fuels!$E$18,0,MATCH(P$8,Fuels!$F$6:$AJ$6,0)),0) -> 106.3857502 | Q47: =IF(Q$8<>0,OFFSET(Fuels!$E$18,0,MATCH(Q$8,Fuels!$F$6:$AJ$6,0)),0) -> 106.3857502 | R47: =IF(R$8<>0,OFFSET(Fuels!$E$18,0,MATCH(R$8,Fuels!$F$6:$AJ$6,0)),0) -> 0 | S47: =IF(S$8<>0,OFFSET(Fuels!$E$18,0,MATCH(S$8,Fuels!$F$6:$AJ$6,0)),0) -> 0 | T47: =IF(T$8<>0,OFFSET(Fuels!$E$18,0,MATCH(T$8,Fuels!$F$6:$AJ$6,0)),0) -> 106.3857502 | U47: =IF(U$8<>0,OFFSET(Fuels!$E$18,0,MATCH(U$8,Fuels!$F$6:$AJ$6,0)),0) -> 0 | V47: =IF(V$8<>0,OFFSET(Fuels!$E$18,0,MATCH(V$8,Fuels!$F$6:$AJ$6,0)),0) -> 0 | W47: =IF(W$8<>0,OFFSET(Fuels!$E$18,0,MATCH(W$8,Fuels!$F$6:$AJ$6,0)),0) -> 0 | X47: =IF(X$8<>0,OFFSET(Fuels!$E$18,0,MATCH(X$8,Fuels!$F$6:$AJ$6,0)),0) -> 0 | Y47: =IF(Y$8<>0,OFFSET(Fuels!$E$18,0,MATCH(Y$8,Fuels!$F$6:$AJ$6,0)),0) -> 0 | Z47: =IF(Z$8<>0,OFFSET(Fuels!$E$18,0,MATCH(Z$8,Fuels!$F$6:$AJ$6,0)),0) -> 0 | AA47: =IF(AA$8<>0,OFFSET(Fuels!$E$18,0,MATCH(AA$8,Fuels!$F$6:$AJ$6,0)),0) -> 0 | AB47: =IF(AB$8<>0,OFFSET(Fuels!$E$18,0,MATCH(AB$8,Fuels!$F$6:$AJ$6,0)),0) -> 0 | AC47: =IF(AC$8<>0,OFFSET(Fuels!$E$18,0,MATCH(AC$8,Fuels!$F$6:$AJ$6,0)),0) -> 0 | AD47: =IF(AD$8<>0,OFFSET(Fuels!$E$18,0,MATCH(AD$8,Fuels!$F$6:$AJ$6,0)),0) -> 0 | AE47: =IF(AE$8<>0,OFFSET(Fuels!$E$18,0,MATCH(AE$8,Fuels!$F$6:$AJ$6,0)),0) -> 147.1761119 | AF47: =IF(AF$8<>0,OFFSET(Fuels!$E$18,0,MATCH(AF$8,Fuels!$F$6:$AJ$6,0)),0) -> 0 | AG47: =IF(AG$8<>0,OFFSET(Fuels!$E$18,0,MATCH(AG$8,Fuels!$F$6:$AJ$6,0)),0) -> 0 | AH47: =IF(AH$8<>0,OFFSET(Fuels!$E$18,0,MATCH(AH$8,Fuels!$F$6:$AJ$6,0)),0) -> 0 | AI47: =IF(AI$8<>0,OFFSET(Fuels!$E$18,0,MATCH(AI$8,Fuels!$F$6:$AJ$6,0)),0) -> 0 | AJ47: =IF(AJ$8<>0,OFFSET(Fuels!$E$18,0,MATCH(AJ$8,Fuels!$F$6:$AJ$6,0)),0) -> 0 | AK47: =IF(AK$8<>0,OFFSET(Fuels!$E$18,0,MATCH(AK$8,Fuels!$F$6:$AJ$6,0)),0) -> 147.1761119 | AL47: =IF(AL$8<>0,OFFSET(Fuels!$E$18,0,MATCH(AL$8,Fuels!$F$6:$AJ$6,0)),0) -> 0 | AM47: =IF(AM$8<>0,OFFSET(Fuels!$E$18,0,MATCH(AM$8,Fuels!$F$6:$AJ$6,0)),0) -> 0 | AN47: =IF(AN$8<>0,OFFSET(Fuels!$E$18,0,MATCH(AN$8,Fuels!$F$6:$AJ$6,0)),0) -> 0 | AO47: =IF(AO$8<>0,OFFSET(Fuels!$E$18,0,MATCH(AO$8,Fuels!$F$6:$AJ$6,0)),0) -> 0 | AP47: =IF(AP$8<>0,OFFSET(Fuels!$E$18,0,MATCH(AP$8,Fuels!$F$6:$AJ$6,0)),0) -> 0 | AQ47: =IF(AQ$8<>0,OFFSET(Fuels!$E$18,0,MATCH(AQ$8,Fuels!$F$6:$AJ$6,0)),0) -> 0 | AR47: =IF(AR$8<>0,OFFSET(Fuels!$E$18,0,MATCH(AR$8,Fuels!$F$6:$AJ$6,0)),0) -> 0 | AS47: =IF(AS$8<>0,OFFSET(Fuels!$E$18,0,MATCH(AS$8,Fuels!$F$6:$AJ$6,0)),0) -> 0 | AT47: =IF(AT$8<>0,OFFSET(Fuels!$E$18,0,MATCH(AT$8,Fuels!$F$6:$AJ$6,0)),0) -> 0 | AU47: =IF(AU$8<>0,OFFSET(Fuels!$E$18,0,MATCH(AU$8,Fuels!$F$6:$AJ$6,0)),0) -> 0 | AV47: =IF(AV$8<>0,OFFSET(Fuels!$E$18,0,MATCH(AV$8,Fuels!$F$6:$AJ$6,0)),0) -> 0 | AW47: =IF(AW$8<>0,OFFSET(Fuels!$E$18,0,MATCH(AW$8,Fuels!$F$6:$AJ$6,0)),0) -> 0 | AX47: =IF(AX$8<>0,OFFSET(Fuels!$E$18,0,MATCH(AX$8,Fuels!$F$6:$AJ$6,0)),0) -> 0 | AY47: =IF(AY$8<>0,OFFSET(Fuels!$E$18,0,MATCH(AY$8,Fuels!$F$6:$AJ$6,0)),0) -> 0 | AZ47: =IF(AZ$8<>0,OFFSET(Fuels!$E$18,0,MATCH(AZ$8,Fuels!$F$6:$AJ$6,0)),0) -> 0
D48: Kolonnenr. for drivmiddel
D50: Infrastrukturomkostninger ved levering af drivmiddel
D51: Samlet | E51: DKK/km | F51: =IF(F54>0,F54*F36/1000,SUM(F52:F53)) -> 0.05720221063 | G51: 0.07734477334 | H51: 0.110880797 | I51: 0.110880797 | J51: 0.110880797 | K51: 0.07545528342 | L51: 0.05720221063 | M51: 0.1184912972 | N51: 0.0281413877 | O51: 0.0281413877 | P51: 0.06199034077 | Q51: 0.2207680313 | R51: 0.03162596045 | S51: =IF(S54>0,S54*S36/1000,SUM(S52:S53)) -> 0.03838478825 | T51: 0.03202563581 | U51: 0.3334369314 | V51: =IF(V54>0,V54*V36/1000,SUM(V52:V53)) -> 0.1384262403 | W51: =IF(W54>0,W54*W36/1000,SUM(W52:W53)) -> 0.0512053788 | X51: =IF(X54>0,X54*X36/1000,SUM(X52:X53)) -> 0.08949127756 | Y51: =IF(Y54>0,Y54*Y36/1000,SUM(Y52:Y53)) -> 0.06921758538 | Z51: =IF(Z54>0,Z54*Z36/1000,SUM(Z52:Z53)) -> 121.6533333 | AA51: 121.6533333 | AB51: 14.18856139 | AC51: 188.2693204 | AD51: 188.2693204 | AE51: 54.64868457 | AF51: 0.007186207365 | AG51: 0.007186207365 | AH51: 0.02860318853 | AI51: 0.007761103955 | AJ51: 0.007761103955 | AK51: 0.002629849611 | AL51: 0.3831685767 | AM51: 0.5054366473 | AN51: 0.2101229146 | AO51: 0.7934192797 | AP51: =IF(AP54>0,AP54*AP36/1000,SUM(AP52:AP53)) -> 0.2101229146 | AQ51: =IF(AQ54>0,AQ54*AQ36/1000,SUM(AQ52:AQ53)) -> 0.4445250513 | AR51: 0.4602047197 | AS51: 0.6070548179 | AT51: =IF(AT54>0,AT54*AT36/1000,SUM(AT52:AT53)) -> 0.5338969296 | AU51: 0.2528742621 | AV51: 0.2528742621 | AW51: 0.32194209 | AX51: 0.2672508484 | AY51: 0.004115969481 | AZ51: 0.004115969481
D52: Investering | E52: DKK/km | F52: =IF(F54>0,"Ingen data",F55*F36/1000) -> Ingen data | G52: Ingen data | H52: Ingen data | I52: Ingen data | J52: Ingen data | K52: Ingen data | L52: Ingen data | M52: Ingen data | N52: 0.0153452612 | O52: 0.0153452612 | P52: Ingen data | Q52: 0.01234837639 | R52: 0 | S52: =IF(S54>0,"Ingen data",S55*S36/1000) -> 0 | T52: Ingen data | U52: 0.01865036667 | V52: =IF(V54>0,"Ingen data",V55*V36/1000) -> Ingen data | W52: =IF(W54>0,"Ingen data",W55*W36/1000) -> 0.02792186088 | X52: =IF(X54>0,"Ingen data",X55*X36/1000) -> Ingen data | Y52: =IF(Y54>0,"Ingen data",Y55*Y36/1000) -> 0 | Z52: =IF(Z54>0,"Ingen data",Z55*Z36/1000) -> Ingen data | AA52: Ingen data | AB52: Ingen data | AC52: Ingen data | AD52: Ingen data | AE52: 31.48296665 | AF52: Ingen data | AG52: Ingen data | AH52: 0.00195489418 | AI52: Ingen data | AJ52: Ingen data | AK52: 0.001515049598 | AL52: Ingen data | AM52: Ingen data | AN52: 0.1145782519 | AO52: Ingen data | AP52: =IF(AP54>0,"Ingen data",AP55*AP36/1000) -> 0.1145782519 | AQ52: =IF(AQ54>0,"Ingen data",AQ55*AQ36/1000) -> Ingen data | AR52: Ingen data | AS52: Ingen data | AT52: =IF(AT54>0,"Ingen data",AT55*AT36/1000) -> Ingen data | AU52: 0.1378902008 | AV52: 0.1378902008 | AW52: Ingen data | AX52: 0 | AY52: Ingen data | AZ52: Ingen data
D53: Drift | E53: DKK/km | F53: =IF(F54>0,"Ingen data",F56*F36/1000) -> Ingen data | G53: Ingen data | H53: Ingen data | I53: Ingen data | J53: Ingen data | K53: Ingen data | L53: Ingen data | M53: Ingen data | N53: 0.01279612651 | O53: 0.01279612651 | P53: Ingen data | Q53: 0.2084196549 | R53: 0.03162596045 | S53: =IF(S54>0,"Ingen data",S56*S36/1000) -> 0.03838478825 | T53: Ingen data | U53: 0.3147865648 | V53: =IF(V54>0,"Ingen data",V56*V36/1000) -> Ingen data | W53: =IF(W54>0,"Ingen data",W56*W36/1000) -> 0.02328351793 | X53: =IF(X54>0,"Ingen data",X56*X36/1000) -> Ingen data | Y53: =IF(Y54>0,"Ingen data",Y56*Y36/1000) -> 0.06921758538 | Z53: =IF(Z54>0,"Ingen data",Z56*Z36/1000) -> Ingen data | AA53: Ingen data | AB53: Ingen data | AC53: Ingen data | AD53: Ingen data | AE53: 23.16571792 | AF53: Ingen data | AG53: Ingen data | AH53: 0.02664829435 | AI53: Ingen data | AJ53: Ingen data | AK53: 0.001114800013 | AL53: Ingen data | AM53: Ingen data | AN53: 0.09554466276 | AO53: Ingen data | AP53: =IF(AP54>0,"Ingen data",AP56*AP36/1000) -> 0.09554466276 | AQ53: =IF(AQ54>0,"Ingen data",AQ56*AQ36/1000) -> Ingen data | AR53: Ingen data | AS53: Ingen data | AT53: =IF(AT54>0,"Ingen data",AT56*AT36/1000) -> Ingen data | AU53: 0.1149840613 | AV53: 0.1149840613 | AW53: Ingen data | AX53: 0.2672508484 | AY53: Ingen data | AZ53: Ingen data
D54: Mellemprodukt - levering an tank | E54: DKK/GJ drivmiddel | F54: =IF(F$7<>0,OFFSET(Fuels!$E$19,0,MATCH(F$7,Fuels!$F$6:$AJ$6,0)),0) -> 28.74482946 | G54: =IF(G$7<>0,OFFSET(Fuels!$E$19,0,MATCH(G$7,Fuels!$F$6:$AJ$6,0)),0) -> 34.83998799 | H54: =IF(H$7<>0,OFFSET(Fuels!$E$19,0,MATCH(H$7,Fuels!$F$6:$AJ$6,0)),0) -> 49.94630493 | I54: =IF(I$7<>0,OFFSET(Fuels!$E$19,0,MATCH(I$7,Fuels!$F$6:$AJ$6,0)),0) -> 49.94630493 | J54: =IF(J$7<>0,OFFSET(Fuels!$E$19,0,MATCH(J$7,Fuels!$F$6:$AJ$6,0)),0) -> 49.94630493 | K54: =IF(K$7<>0,OFFSET(Fuels!$E$19,0,MATCH(K$7,Fuels!$F$6:$AJ$6,0)),0) -> 37.91722785 | L54: =IF(L$7<>0,OFFSET(Fuels!$E$19,0,MATCH(L$7,Fuels!$F$6:$AJ$6,0)),0) -> 28.74482946 | M54: =IF(M$7<>0,OFFSET(Fuels!$E$19,0,MATCH(M$7,Fuels!$F$6:$AJ$6,0)),0) -> 60.14786659 | N54: =IF(N$7<>0,OFFSET(Fuels!$E$19,0,MATCH(N$7,Fuels!$F$6:$AJ$6,0)),0) -> 0 | O54: =IF(O$7<>0,OFFSET(Fuels!$E$19,0,MATCH(O$7,Fuels!$F$6:$AJ$6,0)),0) -> 0 | P54: =IF(P$7<>0,OFFSET(Fuels!$E$19,0,MATCH(P$7,Fuels!$F$6:$AJ$6,0)),0) -> 72.52489468 | Q54: =IF(Q$7<>0,OFFSET(Fuels!$E$19,0,MATCH(Q$7,Fuels!$F$6:$AJ$6,0)),0) -> 0 | R54: =IF(R$7<>0,OFFSET(Fuels!$E$19,0,MATCH(R$7,Fuels!$F$6:$AJ$6,0)),0) -> 0 | S54: =IF(S$7<>0,OFFSET(Fuels!$E$19,0,MATCH(S$7,Fuels!$F$6:$AJ$6,0)),0) -> 0 | T54: =IF(T$7<>0,OFFSET(Fuels!$E$19,0,MATCH(T$7,Fuels!$F$6:$AJ$6,0)),0) -> 34.83998799 | U54: =IF(U$7<>0,OFFSET(Fuels!$E$19,0,MATCH(U$7,Fuels!$F$6:$AJ$6,0)),0) -> 0 | V54: =IF(V$7<>0,OFFSET(Fuels!$E$19,0,MATCH(V$7,Fuels!$F$6:$AJ$6,0)),0) -> 34.83998799 | W54: =IF(W$7<>0,OFFSET(Fuels!$E$19,0,MATCH(W$7,Fuels!$F$6:$AJ$6,0)),0) -> 0 | X54: =IF(X$7<>0,OFFSET(Fuels!$E$19,0,MATCH(X$7,Fuels!$F$6:$AJ$6,0)),0) -> 28.74482946 | Y54: =IF(Y$7<>0,OFFSET(Fuels!$E$19,0,MATCH(Y$7,Fuels!$F$6:$AJ$6,0)),0) -> 0 | Z54: =IF(Z$7<>0,OFFSET(Fuels!$E$19,0,MATCH(Z$7,Fuels!$F$6:$AJ$6,0)),0) -> 28.74482946 | AA54: =IF(AA$7<>0,OFFSET(Fuels!$E$19,0,MATCH(AA$7,Fuels!$F$6:$AJ$6,0)),0) -> 28.74482946 | AB54: =IF(AB$7<>0,OFFSET(Fuels!$E$19,0,MATCH(AB$7,Fuels!$F$6:$AJ$6,0)),0) -> 2.166299727 | AC54: =IF(AC$7<>0,OFFSET(Fuels!$E$19,0,MATCH(AC$7,Fuels!$F$6:$AJ$6,0)),0) -> 28.74482946 | AD54: =IF(AD$7<>0,OFFSET(Fuels!$E$19,0,MATCH(AD$7,Fuels!$F$6:$AJ$6,0)),0) -> 28.74482946 | AE54: =IF(AE$7<>0,OFFSET(Fuels!$E$19,0,MATCH(AE$7,Fuels!$F$6:$AJ$6,0)),0) -> 0 | AF54: =IF(AF$7<>0,OFFSET(Fuels!$E$19,0,MATCH(AF$7,Fuels!$F$6:$AJ$6,0)),0) -> 28.74482946 | AG54: =IF(AG$7<>0,OFFSET(Fuels!$E$19,0,MATCH(AG$7,Fuels!$F$6:$AJ$6,0)),0) -> 28.74482946 | AH54: =IF(AH$7<>0,OFFSET(Fuels!$E$19,0,MATCH(AH$7,Fuels!$F$6:$AJ$6,0)),0) -> 0 | AI54: =IF(AI$7<>0,OFFSET(Fuels!$E$19,0,MATCH(AI$7,Fuels!$F$6:$AJ$6,0)),0) -> 28.74482946 | AJ54: =IF(AJ$7<>0,OFFSET(Fuels!$E$19,0,MATCH(AJ$7,Fuels!$F$6:$AJ$6,0)),0) -> 28.74482946 | AK54: =IF(AK$7<>0,OFFSET(Fuels!$E$19,0,MATCH(AK$7,Fuels!$F$6:$AJ$6,0)),0) -> 0 | AL54: =IF(AL$7<>0,OFFSET(Fuels!$E$19,0,MATCH(AL$7,Fuels!$F$6:$AJ$6,0)),0) -> 28.74482946 | AM54: =IF(AM$7<>0,OFFSET(Fuels!$E$19,0,MATCH(AM$7,Fuels!$F$6:$AJ$6,0)),0) -> 37.91722785 | AN54: =IF(AN$7<>0,OFFSET(Fuels!$E$19,0,MATCH(AN$7,Fuels!$F$6:$AJ$6,0)),0) -> 0 | AO54: =IF(AO$7<>0,OFFSET(Fuels!$E$19,0,MATCH(AO$7,Fuels!$F$6:$AJ$6,0)),0) -> 60.14786659 | AP54: =IF(AP$7<>0,OFFSET(Fuels!$E$19,0,MATCH(AP$7,Fuels!$F$6:$AJ$6,0)),0) -> 0 | AQ54: =IF(AQ$7<>0,OFFSET(Fuels!$E$19,0,MATCH(AQ$7,Fuels!$F$6:$AJ$6,0)),0) -> 33.34771578 | AR54: =IF(AR$7<>0,OFFSET(Fuels!$E$19,0,MATCH(AR$7,Fuels!$F$6:$AJ$6,0)),0) -> 28.74482946 | AS54: =IF(AS$7<>0,OFFSET(Fuels!$E$19,0,MATCH(AS$7,Fuels!$F$6:$AJ$6,0)),0) -> 37.91722785 | AT54: =IF(AT$7<>0,OFFSET(Fuels!$E$19,0,MATCH(AT$7,Fuels!$F$6:$AJ$6,0)),0) -> 33.34771578 | AU54: =IF(AU$7<>0,OFFSET(Fuels!$E$19,0,MATCH(AU$7,Fuels!$F$6:$AJ$6,0)),0) -> 0 | AV54: =IF(AV$7<>0,OFFSET(Fuels!$E$19,0,MATCH(AV$7,Fuels!$F$6:$AJ$6,0)),0) -> 0 | AW54: =IF(AW$7<>0,OFFSET(Fuels!$E$19,0,MATCH(AW$7,Fuels!$F$6:$AJ$6,0)),0) -> 28.74482946 | AX54: =IF(AX$7<>0,OFFSET(Fuels!$E$19,0,MATCH(AX$7,Fuels!$F$6:$AJ$6,0)),0) -> 0 | AY54: =IF(AY$7<>0,OFFSET(Fuels!$E$19,0,MATCH(AY$7,Fuels!$F$6:$AJ$6,0)),0) -> 2.166299727 | AZ54: =IF(AZ$7<>0,OFFSET(Fuels!$E$19,0,MATCH(AZ$7,Fuels!$F$6:$AJ$6,0)),0) -> 2.166299727
D55: Mellemprodukt - afskrivninger | E55: DKK/GJ drivmiddel | F55: =IF(F$7<>0,OFFSET(Fuels!$E$23,0,MATCH(F$7,Fuels!$F$6:$AJ$6,0)),0) -> 0 | G55: =IF(G$7<>0,OFFSET(Fuels!$E$23,0,MATCH(G$7,Fuels!$F$6:$AJ$6,0)),0) -> 0 | H55: =IF(H$7<>0,OFFSET(Fuels!$E$23,0,MATCH(H$7,Fuels!$F$6:$AJ$6,0)),0) -> 0 | I55: =IF(I$7<>0,OFFSET(Fuels!$E$23,0,MATCH(I$7,Fuels!$F$6:$AJ$6,0)),0) -> 0 | J55: =IF(J$7<>0,OFFSET(Fuels!$E$23,0,MATCH(J$7,Fuels!$F$6:$AJ$6,0)),0) -> 0 | K55: =IF(K$7<>0,OFFSET(Fuels!$E$23,0,MATCH(K$7,Fuels!$F$6:$AJ$6,0)),0) -> 0 | L55: =IF(L$7<>0,OFFSET(Fuels!$E$23,0,MATCH(L$7,Fuels!$F$6:$AJ$6,0)),0) -> 0 | M55: =IF(M$7<>0,OFFSET(Fuels!$E$23,0,MATCH(M$7,Fuels!$F$6:$AJ$6,0)),0) -> 0 | N55: =IF(N$7<>0,OFFSET(Fuels!$E$23,0,MATCH(N$7,Fuels!$F$6:$AJ$6,0)),0) -> 7.238330753 | O55: =IF(O$7<>0,OFFSET(Fuels!$E$23,0,MATCH(O$7,Fuels!$F$6:$AJ$6,0)),0) -> 7.238330753 | P55: =IF(P$7<>0,OFFSET(Fuels!$E$23,0,MATCH(P$7,Fuels!$F$6:$AJ$6,0)),0) -> 0 | Q55: =IF(Q$7<>0,OFFSET(Fuels!$E$23,0,MATCH(Q$7,Fuels!$F$6:$AJ$6,0)),0) -> 14.92029334 | R55: =IF(R$7<>0,OFFSET(Fuels!$E$23,0,MATCH(R$7,Fuels!$F$6:$AJ$6,0)),0) -> 0 | S55: =IF(S$7<>0,OFFSET(Fuels!$E$23,0,MATCH(S$7,Fuels!$F$6:$AJ$6,0)),0) -> 0 | T55: =IF(T$7<>0,OFFSET(Fuels!$E$23,0,MATCH(T$7,Fuels!$F$6:$AJ$6,0)),0) -> 0 | U55: =IF(U$7<>0,OFFSET(Fuels!$E$23,0,MATCH(U$7,Fuels!$F$6:$AJ$6,0)),0) -> 14.92029334 | V55: =IF(V$7<>0,OFFSET(Fuels!$E$23,0,MATCH(V$7,Fuels!$F$6:$AJ$6,0)),0) -> 0 | W55: =IF(W$7<>0,OFFSET(Fuels!$E$23,0,MATCH(W$7,Fuels!$F$6:$AJ$6,0)),0) -> 7.238330753 | X55: =IF(X$7<>0,OFFSET(Fuels!$E$23,0,MATCH(X$7,Fuels!$F$6:$AJ$6,0)),0) -> 0 | Y55: =IF(Y$7<>0,OFFSET(Fuels!$E$23,0,MATCH(Y$7,Fuels!$F$6:$AJ$6,0)),0) -> 0 | Z55: =IF(Z$7<>0,OFFSET(Fuels!$E$23,0,MATCH(Z$7,Fuels!$F$6:$AJ$6,0)),0) -> 0 | AA55: =IF(AA$7<>0,OFFSET(Fuels!$E$23,0,MATCH(AA$7,Fuels!$F$6:$AJ$6,0)),0) -> 0 | AB55: =IF(AB$7<>0,OFFSET(Fuels!$E$23,0,MATCH(AB$7,Fuels!$F$6:$AJ$6,0)),0) -> 0 | AC55: =IF(AC$7<>0,OFFSET(Fuels!$E$23,0,MATCH(AC$7,Fuels!$F$6:$AJ$6,0)),0) -> 0 | AD55: =IF(AD$7<>0,OFFSET(Fuels!$E$23,0,MATCH(AD$7,Fuels!$F$6:$AJ$6,0)),0) -> 0 | AE55: =IF(AE$7<>0,OFFSET(Fuels!$E$23,0,MATCH(AE$7,Fuels!$F$6:$AJ$6,0)),0) -> 4.591059389 | AF55: =IF(AF$7<>0,OFFSET(Fuels!$E$23,0,MATCH(AF$7,Fuels!$F$6:$AJ$6,0)),0) -> 0 | AG55: =IF(AG$7<>0,OFFSET(Fuels!$E$23,0,MATCH(AG$7,Fuels!$F$6:$AJ$6,0)),0) -> 0 | AH55: =IF(AH$7<>0,OFFSET(Fuels!$E$23,0,MATCH(AH$7,Fuels!$F$6:$AJ$6,0)),0) -> 27.92705972 | AI55: =IF(AI$7<>0,OFFSET(Fuels!$E$23,0,MATCH(AI$7,Fuels!$F$6:$AJ$6,0)),0) -> 0 | AJ55: =IF(AJ$7<>0,OFFSET(Fuels!$E$23,0,MATCH(AJ$7,Fuels!$F$6:$AJ$6,0)),0) -> 0 | AK55: =IF(AK$7<>0,OFFSET(Fuels!$E$23,0,MATCH(AK$7,Fuels!$F$6:$AJ$6,0)),0) -> 4.591059389 | AL55: =IF(AL$7<>0,OFFSET(Fuels!$E$23,0,MATCH(AL$7,Fuels!$F$6:$AJ$6,0)),0) -> 0 | AM55: =IF(AM$7<>0,OFFSET(Fuels!$E$23,0,MATCH(AM$7,Fuels!$F$6:$AJ$6,0)),0) -> 0 | AN55: =IF(AN$7<>0,OFFSET(Fuels!$E$23,0,MATCH(AN$7,Fuels!$F$6:$AJ$6,0)),0) -> 7.238330753 | AO55: =IF(AO$7<>0,OFFSET(Fuels!$E$23,0,MATCH(AO$7,Fuels!$F$6:$AJ$6,0)),0) -> 0 | AP55: =IF(AP$7<>0,OFFSET(Fuels!$E$23,0,MATCH(AP$7,Fuels!$F$6:$AJ$6,0)),0) -> 7.238330753 | AQ55: =IF(AQ$7<>0,OFFSET(Fuels!$E$23,0,MATCH(AQ$7,Fuels!$F$6:$AJ$6,0)),0) -> 0 | AR55: =IF(AR$7<>0,OFFSET(Fuels!$E$23,0,MATCH(AR$7,Fuels!$F$6:$AJ$6,0)),0) -> 0 | AS55: =IF(AS$7<>0,OFFSET(Fuels!$E$23,0,MATCH(AS$7,Fuels!$F$6:$AJ$6,0)),0) -> 0 | AT55: =IF(AT$7<>0,OFFSET(Fuels!$E$23,0,MATCH(AT$7,Fuels!$F$6:$AJ$6,0)),0) -> 0 | AU55: =IF(AU$7<>0,OFFSET(Fuels!$E$23,0,MATCH(AU$7,Fuels!$F$6:$AJ$6,0)),0) -> 7.238330753 | AV55: =IF(AV$7<>0,OFFSET(Fuels!$E$23,0,MATCH(AV$7,Fuels!$F$6:$AJ$6,0)),0) -> 7.238330753 | AW55: =IF(AW$7<>0,OFFSET(Fuels!$E$23,0,MATCH(AW$7,Fuels!$F$6:$AJ$6,0)),0) -> 0 | AX55: =IF(AX$7<>0,OFFSET(Fuels!$E$23,0,MATCH(AX$7,Fuels!$F$6:$AJ$6,0)),0) -> 0 | AY55: =IF(AY$7<>0,OFFSET(Fuels!$E$23,0,MATCH(AY$7,Fuels!$F$6:$AJ$6,0)),0) -> 0 | AZ55: =IF(AZ$7<>0,OFFSET(Fuels!$E$23,0,MATCH(AZ$7,Fuels!$F$6:$AJ$6,0)),0) -> 0
D56: Mellemprodukt - øvrige faste | E56: DKK/GJ drivmiddel | F56: =IF(F$7<>0,OFFSET(Fuels!$E$25,0,MATCH(F$7,Fuels!$F$6:$AJ$6,0)),0) -> 0 | G56: =IF(G$7<>0,OFFSET(Fuels!$E$25,0,MATCH(G$7,Fuels!$F$6:$AJ$6,0)),0) -> 0 | H56: =IF(H$7<>0,OFFSET(Fuels!$E$25,0,MATCH(H$7,Fuels!$F$6:$AJ$6,0)),0) -> 0 | I56: =IF(I$7<>0,OFFSET(Fuels!$E$25,0,MATCH(I$7,Fuels!$F$6:$AJ$6,0)),0) -> 0 | J56: =IF(J$7<>0,OFFSET(Fuels!$E$25,0,MATCH(J$7,Fuels!$F$6:$AJ$6,0)),0) -> 0 | K56: =IF(K$7<>0,OFFSET(Fuels!$E$25,0,MATCH(K$7,Fuels!$F$6:$AJ$6,0)),0) -> 0 | L56: =IF(L$7<>0,OFFSET(Fuels!$E$25,0,MATCH(L$7,Fuels!$F$6:$AJ$6,0)),0) -> 0 | M56: =IF(M$7<>0,OFFSET(Fuels!$E$25,0,MATCH(M$7,Fuels!$F$6:$AJ$6,0)),0) -> 0 | N56: =IF(N$7<>0,OFFSET(Fuels!$E$25,0,MATCH(N$7,Fuels!$F$6:$AJ$6,0)),0) -> 6.03590873 | O56: =IF(O$7<>0,OFFSET(Fuels!$E$25,0,MATCH(O$7,Fuels!$F$6:$AJ$6,0)),0) -> 6.03590873 | P56: =IF(P$7<>0,OFFSET(Fuels!$E$25,0,MATCH(P$7,Fuels!$F$6:$AJ$6,0)),0) -> 0 | Q56: =IF(Q$7<>0,OFFSET(Fuels!$E$25,0,MATCH(Q$7,Fuels!$F$6:$AJ$6,0)),0) -> 251.8292518 | R56: =IF(R$7<>0,OFFSET(Fuels!$E$25,0,MATCH(R$7,Fuels!$F$6:$AJ$6,0)),0) -> 57.99714592 | S56: =IF(S$7<>0,OFFSET(Fuels!$E$25,0,MATCH(S$7,Fuels!$F$6:$AJ$6,0)),0) -> 57.99714592 | T56: =IF(T$7<>0,OFFSET(Fuels!$E$25,0,MATCH(T$7,Fuels!$F$6:$AJ$6,0)),0) -> 0 | U56: =IF(U$7<>0,OFFSET(Fuels!$E$25,0,MATCH(U$7,Fuels!$F$6:$AJ$6,0)),0) -> 251.8292518 | V56: =IF(V$7<>0,OFFSET(Fuels!$E$25,0,MATCH(V$7,Fuels!$F$6:$AJ$6,0)),0) -> 0 | W56: =IF(W$7<>0,OFFSET(Fuels!$E$25,0,MATCH(W$7,Fuels!$F$6:$AJ$6,0)),0) -> 6.03590873 | X56: =IF(X$7<>0,OFFSET(Fuels!$E$25,0,MATCH(X$7,Fuels!$F$6:$AJ$6,0)),0) -> 0 | Y56: =IF(Y$7<>0,OFFSET(Fuels!$E$25,0,MATCH(Y$7,Fuels!$F$6:$AJ$6,0)),0) -> 57.99714592 | Z56: =IF(Z$7<>0,OFFSET(Fuels!$E$25,0,MATCH(Z$7,Fuels!$F$6:$AJ$6,0)),0) -> 0 | AA56: =IF(AA$7<>0,OFFSET(Fuels!$E$25,0,MATCH(AA$7,Fuels!$F$6:$AJ$6,0)),0) -> 0 | AB56: =IF(AB$7<>0,OFFSET(Fuels!$E$25,0,MATCH(AB$7,Fuels!$F$6:$AJ$6,0)),0) -> 0 | AC56: =IF(AC$7<>0,OFFSET(Fuels!$E$25,0,MATCH(AC$7,Fuels!$F$6:$AJ$6,0)),0) -> 0 | AD56: =IF(AD$7<>0,OFFSET(Fuels!$E$25,0,MATCH(AD$7,Fuels!$F$6:$AJ$6,0)),0) -> 0 | AE56: =IF(AE$7<>0,OFFSET(Fuels!$E$25,0,MATCH(AE$7,Fuels!$F$6:$AJ$6,0)),0) -> 3.378181857 | AF56: =IF(AF$7<>0,OFFSET(Fuels!$E$25,0,MATCH(AF$7,Fuels!$F$6:$AJ$6,0)),0) -> 0 | AG56: =IF(AG$7<>0,OFFSET(Fuels!$E$25,0,MATCH(AG$7,Fuels!$F$6:$AJ$6,0)),0) -> 0 | AH56: =IF(AH$7<>0,OFFSET(Fuels!$E$25,0,MATCH(AH$7,Fuels!$F$6:$AJ$6,0)),0) -> 380.6899193 | AI56: =IF(AI$7<>0,OFFSET(Fuels!$E$25,0,MATCH(AI$7,Fuels!$F$6:$AJ$6,0)),0) -> 0 | AJ56: =IF(AJ$7<>0,OFFSET(Fuels!$E$25,0,MATCH(AJ$7,Fuels!$F$6:$AJ$6,0)),0) -> 0 | AK56: =IF(AK$7<>0,OFFSET(Fuels!$E$25,0,MATCH(AK$7,Fuels!$F$6:$AJ$6,0)),0) -> 3.378181857 | AL56: =IF(AL$7<>0,OFFSET(Fuels!$E$25,0,MATCH(AL$7,Fuels!$F$6:$AJ$6,0)),0) -> 0 | AM56: =IF(AM$7<>0,OFFSET(Fuels!$E$25,0,MATCH(AM$7,Fuels!$F$6:$AJ$6,0)),0) -> 0 | AN56: =IF(AN$7<>0,OFFSET(Fuels!$E$25,0,MATCH(AN$7,Fuels!$F$6:$AJ$6,0)),0) -> 6.03590873 | AO56: =IF(AO$7<>0,OFFSET(Fuels!$E$25,0,MATCH(AO$7,Fuels!$F$6:$AJ$6,0)),0) -> 0 | AP56: =IF(AP$7<>0,OFFSET(Fuels!$E$25,0,MATCH(AP$7,Fuels!$F$6:$AJ$6,0)),0) -> 6.03590873 | AQ56: =IF(AQ$7<>0,OFFSET(Fuels!$E$25,0,MATCH(AQ$7,Fuels!$F$6:$AJ$6,0)),0) -> 0 | AR56: =IF(AR$7<>0,OFFSET(Fuels!$E$25,0,MATCH(AR$7,Fuels!$F$6:$AJ$6,0)),0) -> 0 | AS56: =IF(AS$7<>0,OFFSET(Fuels!$E$25,0,MATCH(AS$7,Fuels!$F$6:$AJ$6,0)),0) -> 0 | AT56: =IF(AT$7<>0,OFFSET(Fuels!$E$25,0,MATCH(AT$7,Fuels!$F$6:$AJ$6,0)),0) -> 0 | AU56: =IF(AU$7<>0,OFFSET(Fuels!$E$25,0,MATCH(AU$7,Fuels!$F$6:$AJ$6,0)),0) -> 6.03590873 | AV56: =IF(AV$7<>0,OFFSET(Fuels!$E$25,0,MATCH(AV$7,Fuels!$F$6:$AJ$6,0)),0) -> 6.03590873 | AW56: =IF(AW$7<>0,OFFSET(Fuels!$E$25,0,MATCH(AW$7,Fuels!$F$6:$AJ$6,0)),0) -> 0 | AX56: =IF(AX$7<>0,OFFSET(Fuels!$E$25,0,MATCH(AX$7,Fuels!$F$6:$AJ$6,0)),0) -> 57.99714592 | AY56: =IF(AY$7<>0,OFFSET(Fuels!$E$25,0,MATCH(AY$7,Fuels!$F$6:$AJ$6,0)),0) -> 0 | AZ56: =IF(AZ$7<>0,OFFSET(Fuels!$E$25,0,MATCH(AZ$7,Fuels!$F$6:$AJ$6,0)),0) -> 0
A59: Virkningsgrader
D62: Virkningsgrader, primært drivmiddel
D63: Kolonnenr på drivmiddel ark | F63: =MATCH(F$7,Fuels!$F$6:$AJ$6,0) -> 1 | G63: =MATCH(G$7,Fuels!$F$6:$AJ$6,0) -> 2 | H63: =MATCH(H$7,Fuels!$F$6:$AJ$6,0) -> 7 | I63: =MATCH(I$7,Fuels!$F$6:$AJ$6,0) -> 20 | J63: =MATCH(J$7,Fuels!$F$6:$AJ$6,0) -> 8 | K63: =MATCH(K$7,Fuels!$F$6:$AJ$6,0) -> 19 | L63: =MATCH(L$7,Fuels!$F$6:$AJ$6,0) -> 11 | M63: =MATCH(M$7,Fuels!$F$6:$AJ$6,0) -> 12 | N63: =MATCH(N$7,Fuels!$F$6:$AJ$6,0) -> 5 | O63: =MATCH(O$7,Fuels!$F$6:$AJ$6,0) -> 13 | P63: =MATCH(P$7,Fuels!$F$6:$AJ$6,0) -> 9 | Q63: =MATCH(Q$7,Fuels!$F$6:$AJ$6,0) -> 14 | R63: =MATCH(R$7,Fuels!$F$6:$AJ$6,0) -> 15 | S63: =MATCH(S$7,Fuels!$F$6:$AJ$6,0) -> 15 | T63: =MATCH(T$7,Fuels!$F$6:$AJ$6,0) -> 2 | U63: =MATCH(U$7,Fuels!$F$6:$AJ$6,0) -> 14 | V63: =MATCH(V$7,Fuels!$F$6:$AJ$6,0) -> 2 | W63: =MATCH(W$7,Fuels!$F$6:$AJ$6,0) -> 5 | X63: =MATCH(X$7,Fuels!$F$6:$AJ$6,0) -> 1 | Y63: =MATCH(Y$7,Fuels!$F$6:$AJ$6,0) -> 15 | Z63: =MATCH(Z$7,Fuels!$F$6:$AJ$6,0) -> 1 | AA63: =MATCH(AA$7,Fuels!$F$6:$AJ$6,0) -> 11 | AB63: =MATCH(AB$7,Fuels!$F$6:$AJ$6,0) -> 4 | AC63: =MATCH(AC$7,Fuels!$F$6:$AJ$6,0) -> 1 | AD63: =MATCH(AD$7,Fuels!$F$6:$AJ$6,0) -> 11 | AE63: =MATCH(AE$7,Fuels!$F$6:$AJ$6,0) -> 6 | AF63: =MATCH(AF$7,Fuels!$F$6:$AJ$6,0) -> 1 | AG63: =MATCH(AG$7,Fuels!$F$6:$AJ$6,0) -> 11 | AH63: =MATCH(AH$7,Fuels!$F$6:$AJ$6,0) -> 17 | AI63: =MATCH(AI$7,Fuels!$F$6:$AJ$6,0) -> 1 | AJ63: =MATCH(AJ$7,Fuels!$F$6:$AJ$6,0) -> 11 | AK63: =MATCH(AK$7,Fuels!$F$6:$AJ$6,0) -> 6 | AL63: =MATCH(AL$7,Fuels!$F$6:$AJ$6,0) -> 1 | AM63: =MATCH(AM$7,Fuels!$F$6:$AJ$6,0) -> 19 | AN63: =MATCH(AN$7,Fuels!$F$6:$AJ$6,0) -> 5 | AO63: =MATCH(AO$7,Fuels!$F$6:$AJ$6,0) -> 12 | AP63: =MATCH(AP$7,Fuels!$F$6:$AJ$6,0) -> 13 | AQ63: =MATCH(AQ$7,Fuels!$F$6:$AJ$6,0) -> 21 | AR63: =MATCH(AR$7,Fuels!$F$6:$AJ$6,0) -> 1 | AS63: =MATCH(AS$7,Fuels!$F$6:$AJ$6,0) -> 19 | AT63: =MATCH(AT$7,Fuels!$F$6:$AJ$6,0) -> 21 | AU63: =MATCH(AU$7,Fuels!$F$6:$AJ$6,0) -> 5 | AV63: =MATCH(AV$7,Fuels!$F$6:$AJ$6,0) -> 13 | AW63: =MATCH(AW$7,Fuels!$F$6:$AJ$6,0) -> 1 | AX63: =MATCH(AX$7,Fuels!$F$6:$AJ$6,0) -> 15 | AY63: =MATCH(AY$7,Fuels!$F$6:$AJ$6,0) -> 3 | AZ63: =MATCH(AZ$7,Fuels!$F$6:$AJ$6,0) -> 18
F64: 1 | G64: 1 | H64: 1 | I64: 1 | J64: 1 | K64: 1 | L64: 1 | M64: 1 | N64: 1 | O64: 1 | P64: 1 | Q64: 1 | R64: 1 | S64: 1 | T64: 1 | U64: 1 | V64: 1 | W64: 1 | X64: 1 | Y64: 1 | Z64: 1 | AA64: 1 | AB64: 1 | AC64: 1 | AD64: 1 | AE64: 1 | AF64: 1 | AG64: 1 | AH64: 1 | AI64: 1 | AJ64: 1 | AK64: 1 | AL64: 1 | AM64: 1 | AN64: 1 | AO64: 1 | AP64: 1 | AQ64: 1 | AR64: 1 | AS64: 1 | AT64: 1 | AU64: 1 | AV64: 1 | AW64: 1 | AX64: 1 | AY64: 1 | AZ64: 1
D65: =Fuels!D59 -> Råstofudvinding - energieffektivitet | E65: % | F65: =OFFSET(Fuels!$E59,0,F$63) -> 0.8256885108 | G65: =OFFSET(Fuels!$E59,0,G$63) -> 0.8256885108 | H65: =OFFSET(Fuels!$E59,0,H$63) -> 0.9043465803 | I65: =OFFSET(Fuels!$E59,0,I$63) -> 0.9135448635 | J65: =OFFSET(Fuels!$E59,0,J$63) -> 0.9650423075 | K65: =OFFSET(Fuels!$E59,0,K$63) -> 0.8124985447 | L65: =OFFSET(Fuels!$E59,0,L$63) -> 0.9650423075 | M65: =OFFSET(Fuels!$E59,0,M$63) -> 0.9630753462 | N65: =OFFSET(Fuels!$E59,0,N$63) -> 0.8547008547 | O65: =OFFSET(Fuels!$E59,0,O$63) -> 1 | P65: =OFFSET(Fuels!$E59,0,P$63) -> 0.9630753462 | Q65: =OFFSET(Fuels!$E59,0,Q$63) -> 0.9490167132 | R65: =OFFSET(Fuels!$E59,0,R$63) -> 0.9490167132 | S65: =OFFSET(Fuels!$E59,0,S$63) -> 0.9490167132 | T65: =OFFSET(Fuels!$E59,0,T$63) -> 0.8256885108 | U65: =OFFSET(Fuels!$E59,0,U$63) -> 0.9490167132 | V65: =OFFSET(Fuels!$E59,0,V$63) -> 0.8256885108 | W65: =OFFSET(Fuels!$E59,0,W$63) -> 0.8547008547 | X65: =OFFSET(Fuels!$E59,0,X$63) -> 0.8256885108 | Y65: =OFFSET(Fuels!$E59,0,Y$63) -> 0.9490167132 | Z65: =OFFSET(Fuels!$E59,0,Z$63) -> 0.8256885108 | AA65: =OFFSET(Fuels!$E59,0,AA$63) -> 0.9650423075 | AB65: =OFFSET(Fuels!$E59,0,AB$63) -> 0.8256885108 | AC65: =OFFSET(Fuels!$E59,0,AC$63) -> 0.8256885108 | AD65: =OFFSET(Fuels!$E59,0,AD$63) -> 0.9650423075 | AE65: =OFFSET(Fuels!$E59,0,AE$63) -> 0.8547008547 | AF65: =OFFSET(Fuels!$E59,0,AF$63) -> 0.8256885108 | AG65: =OFFSET(Fuels!$E59,0,AG$63) -> 0.9650423075 | AH65: =OFFSET(Fuels!$E59,0,AH$63) -> 0.9490167132 | AI65: =OFFSET(Fuels!$E59,0,AI$63) -> 0.8256885108 | AJ65: =OFFSET(Fuels!$E59,0,AJ$63) -> 0.9650423075 | AK65: =OFFSET(Fuels!$E59,0,AK$63) -> 0.8547008547 | AL65: =OFFSET(Fuels!$E59,0,AL$63) -> 0.8256885108 | AM65: =OFFSET(Fuels!$E59,0,AM$63) -> 0.8124985447 | AN65: =OFFSET(Fuels!$E59,0,AN$63) -> 0.8547008547 | AO65: =OFFSET(Fuels!$E59,0,AO$63) -> 0.9630753462 | AP65: =OFFSET(Fuels!$E59,0,AP$63) -> 1 | AQ65: =OFFSET(Fuels!$E59,0,AQ$63) -> 0.7927354989 | AR65: =OFFSET(Fuels!$E59,0,AR$63) -> 0.8256885108 | AS65: =OFFSET(Fuels!$E59,0,AS$63) -> 0.8124985447 | AT65: =OFFSET(Fuels!$E59,0,AT$63) -> 0.7927354989 | AU65: =OFFSET(Fuels!$E59,0,AU$63) -> 0.8547008547 | AV65: =OFFSET(Fuels!$E59,0,AV$63) -> 1 | AW65: =OFFSET(Fuels!$E59,0,AW$63) -> 0.8256885108 | AX65: =OFFSET(Fuels!$E59,0,AX$63) -> 0.9490167132 | AY65: =OFFSET(Fuels!$E59,0,AY$63) -> 0.8256885108 | AZ65: =OFFSET(Fuels!$E59,0,AZ$63) -> 0.9650423075
D66: =Fuels!D60 -> Råstofkonvertering - energieffektivitet | E66: % | F66: =OFFSET(Fuels!$E60,0,F$63) -> 0.9969957556 | G66: =OFFSET(Fuels!$E60,0,G$63) -> 0.9969957556 | H66: =OFFSET(Fuels!$E60,0,H$63) -> 0.8102894139 | I66: =OFFSET(Fuels!$E60,0,I$63) -> 0.8155008255 | J66: =OFFSET(Fuels!$E60,0,J$63) -> 0.6849866667 | K66: =OFFSET(Fuels!$E60,0,K$63) -> 0.9516673675 | L66: =OFFSET(Fuels!$E60,0,L$63) -> 0.7654675 | M66: =OFFSET(Fuels!$E60,0,M$63) -> 0.8595 | N66: =OFFSET(Fuels!$E60,0,N$63) -> 1 | O66: =OFFSET(Fuels!$E60,0,O$63) -> 0.9370695221 | P66: =OFFSET(Fuels!$E60,0,P$63) -> 0.8089260521 | Q66: =OFFSET(Fuels!$E60,0,Q$63) -> 0.9808282217 | R66: =OFFSET(Fuels!$E60,0,R$63) -> 0.9808282217 | S66: =OFFSET(Fuels!$E60,0,S$63) -> 0.9808282217 | T66: =OFFSET(Fuels!$E60,0,T$63) -> 0.9969957556 | U66: =OFFSET(Fuels!$E60,0,U$63) -> 0.9808282217 | V66: =OFFSET(Fuels!$E60,0,V$63) -> 0.9969957556 | W66: =OFFSET(Fuels!$E60,0,W$63) -> 1 | X66: =OFFSET(Fuels!$E60,0,X$63) -> 0.9969957556 | Y66: =OFFSET(Fuels!$E60,0,Y$63) -> 0.9808282217 | Z66: =OFFSET(Fuels!$E60,0,Z$63) -> 0.9969957556 | AA66: =OFFSET(Fuels!$E60,0,AA$63) -> 0.7654675 | AB66: =OFFSET(Fuels!$E60,0,AB$63) -> 0.9969957556 | AC66: =OFFSET(Fuels!$E60,0,AC$63) -> 0.9969957556 | AD66: =OFFSET(Fuels!$E60,0,AD$63) -> 0.7654675 | AE66: =OFFSET(Fuels!$E60,0,AE$63) -> 1 | AF66: =OFFSET(Fuels!$E60,0,AF$63) -> 0.9969957556 | AG66: =OFFSET(Fuels!$E60,0,AG$63) -> 0.7654675 | AH66: =OFFSET(Fuels!$E60,0,AH$63) -> 0.9808282217 | AI66: =OFFSET(Fuels!$E60,0,AI$63) -> 0.9969957556 | AJ66: =OFFSET(Fuels!$E60,0,AJ$63) -> 0.7654675 | AK66: =OFFSET(Fuels!$E60,0,AK$63) -> 1 | AL66: =OFFSET(Fuels!$E60,0,AL$63) -> 0.9969957556 | AM66: =OFFSET(Fuels!$E60,0,AM$63) -> 0.9516673675 | AN66: =OFFSET(Fuels!$E60,0,AN$63) -> 1 | AO66: =OFFSET(Fuels!$E60,0,AO$63) -> 0.8595 | AP66: =OFFSET(Fuels!$E60,0,AP$63) -> 0.9370695221 | AQ66: =OFFSET(Fuels!$E60,0,AQ$63) -> 0.8973451327 | AR66: =OFFSET(Fuels!$E60,0,AR$63) -> 0.9969957556 | AS66: =OFFSET(Fuels!$E60,0,AS$63) -> 0.9516673675 | AT66: =OFFSET(Fuels!$E60,0,AT$63) -> 0.8973451327 | AU66: =OFFSET(Fuels!$E60,0,AU$63) -> 1 | AV66: =OFFSET(Fuels!$E60,0,AV$63) -> 0.9370695221 | AW66: =OFFSET(Fuels!$E60,0,AW$63) -> 0.9969957556 | AX66: =OFFSET(Fuels!$E60,0,AX$63) -> 0.9808282217 | AY66: =OFFSET(Fuels!$E60,0,AY$63) -> 0.9969957556 | AZ66: =OFFSET(Fuels!$E60,0,AZ$63) -> 0.7857142857
D67: =Fuels!D63 -> Distributioneffektivitet - råstofkonv -> mellemkonv. | E67: % | F67: =OFFSET(Fuels!$E63,0,F$63) -> 1 | G67: =OFFSET(Fuels!$E63,0,G$63) -> 1 | H67: =OFFSET(Fuels!$E63,0,H$63) -> 1 | I67: =OFFSET(Fuels!$E63,0,I$63) -> 1 | J67: =OFFSET(Fuels!$E63,0,J$63) -> 1 | K67: =OFFSET(Fuels!$E63,0,K$63) -> 1 | L67: =OFFSET(Fuels!$E63,0,L$63) -> 1 | M67: =OFFSET(Fuels!$E63,0,M$63) -> 1 | N67: =OFFSET(Fuels!$E63,0,N$63) -> 1 | O67: =OFFSET(Fuels!$E63,0,O$63) -> 1 | P67: =OFFSET(Fuels!$E63,0,P$63) -> 1 | Q67: =OFFSET(Fuels!$E63,0,Q$63) -> 0.93 | R67: =OFFSET(Fuels!$E63,0,R$63) -> 0.93 | S67: =OFFSET(Fuels!$E63,0,S$63) -> 0.93 | T67: =OFFSET(Fuels!$E63,0,T$63) -> 1 | U67: =OFFSET(Fuels!$E63,0,U$63) -> 0.93 | V67: =OFFSET(Fuels!$E63,0,V$63) -> 1 | W67: =OFFSET(Fuels!$E63,0,W$63) -> 1 | X67: =OFFSET(Fuels!$E63,0,X$63) -> 1 | Y67: =OFFSET(Fuels!$E63,0,Y$63) -> 0.93 | Z67: =OFFSET(Fuels!$E63,0,Z$63) -> 1 | AA67: =OFFSET(Fuels!$E63,0,AA$63) -> 1 | AB67: =OFFSET(Fuels!$E63,0,AB$63) -> 1 | AC67: =OFFSET(Fuels!$E63,0,AC$63) -> 1 | AD67: =OFFSET(Fuels!$E63,0,AD$63) -> 1 | AE67: =OFFSET(Fuels!$E63,0,AE$63) -> 1 | AF67: =OFFSET(Fuels!$E63,0,AF$63) -> 1 | AG67: =OFFSET(Fuels!$E63,0,AG$63) -> 1 | AH67: =OFFSET(Fuels!$E63,0,AH$63) -> 0.93 | AI67: =OFFSET(Fuels!$E63,0,AI$63) -> 1 | AJ67: =OFFSET(Fuels!$E63,0,AJ$63) -> 1 | AK67: =OFFSET(Fuels!$E63,0,AK$63) -> 1 | AL67: =OFFSET(Fuels!$E63,0,AL$63) -> 1 | AM67: =OFFSET(Fuels!$E63,0,AM$63) -> 1 | AN67: =OFFSET(Fuels!$E63,0,AN$63) -> 1 | AO67: =OFFSET(Fuels!$E63,0,AO$63) -> 1 | AP67: =OFFSET(Fuels!$E63,0,AP$63) -> 1 | AQ67: =OFFSET(Fuels!$E63,0,AQ$63) -> 1 | AR67: =OFFSET(Fuels!$E63,0,AR$63) -> 1 | AS67: =OFFSET(Fuels!$E63,0,AS$63) -> 1 | AT67: =OFFSET(Fuels!$E63,0,AT$63) -> 1 | AU67: =OFFSET(Fuels!$E63,0,AU$63) -> 1 | AV67: =OFFSET(Fuels!$E63,0,AV$63) -> 1 | AW67: =OFFSET(Fuels!$E63,0,AW$63) -> 1 | AX67: =OFFSET(Fuels!$E63,0,AX$63) -> 0.93 | AY67: =OFFSET(Fuels!$E63,0,AY$63) -> 1 | AZ67: =OFFSET(Fuels!$E63,0,AZ$63) -> 1
D68: =Fuels!D66 -> Mellemkonvertering - energieffektivitet | E68: % | F68: =OFFSET(Fuels!$E66,0,F$63) -> 1 | G68: =OFFSET(Fuels!$E66,0,G$63) -> 1 | H68: =OFFSET(Fuels!$E66,0,H$63) -> 1 | I68: =OFFSET(Fuels!$E66,0,I$63) -> 1 | J68: =OFFSET(Fuels!$E66,0,J$63) -> 1 | K68: =OFFSET(Fuels!$E66,0,K$63) -> 1 | L68: =OFFSET(Fuels!$E66,0,L$63) -> 1 | M68: =OFFSET(Fuels!$E66,0,M$63) -> 1 | N68: =OFFSET(Fuels!$E66,0,N$63) -> 0.9756097561 | O68: =OFFSET(Fuels!$E66,0,O$63) -> 0.9756097561 | P68: =OFFSET(Fuels!$E66,0,P$63) -> 1 | Q68: =OFFSET(Fuels!$E66,0,Q$63) -> 0.6670972222 | R68: =OFFSET(Fuels!$E66,0,R$63) -> 0.802 | S68: =OFFSET(Fuels!$E66,0,S$63) -> 0.802 | T68: =OFFSET(Fuels!$E66,0,T$63) -> 1 | U68: =OFFSET(Fuels!$E66,0,U$63) -> 0.6670972222 | V68: =OFFSET(Fuels!$E66,0,V$63) -> 1 | W68: =OFFSET(Fuels!$E66,0,W$63) -> 0.9756097561 | X68: =OFFSET(Fuels!$E66,0,X$63) -> 1 | Y68: =OFFSET(Fuels!$E66,0,Y$63) -> 0.802 | Z68: =OFFSET(Fuels!$E66,0,Z$63) -> 1 | AA68: =OFFSET(Fuels!$E66,0,AA$63) -> 1 | AB68: =OFFSET(Fuels!$E66,0,AB$63) -> 1 | AC68: =OFFSET(Fuels!$E66,0,AC$63) -> 1 | AD68: =OFFSET(Fuels!$E66,0,AD$63) -> 1 | AE68: =OFFSET(Fuels!$E66,0,AE$63) -> 0.8779342723 | AF68: =OFFSET(Fuels!$E66,0,AF$63) -> 1 | AG68: =OFFSET(Fuels!$E66,0,AG$63) -> 1 | AH68: =OFFSET(Fuels!$E66,0,AH$63) -> 0.95 | AI68: =OFFSET(Fuels!$E66,0,AI$63) -> 1 | AJ68: =OFFSET(Fuels!$E66,0,AJ$63) -> 1 | AK68: =OFFSET(Fuels!$E66,0,AK$63) -> 0.8779342723 | AL68: =OFFSET(Fuels!$E66,0,AL$63) -> 1 | AM68: =OFFSET(Fuels!$E66,0,AM$63) -> 1 | AN68: =OFFSET(Fuels!$E66,0,AN$63) -> 0.9756097561 | AO68: =OFFSET(Fuels!$E66,0,AO$63) -> 1 | AP68: =OFFSET(Fuels!$E66,0,AP$63) -> 0.9756097561 | AQ68: =OFFSET(Fuels!$E66,0,AQ$63) -> 1 | AR68: =OFFSET(Fuels!$E66,0,AR$63) -> 1 | AS68: =OFFSET(Fuels!$E66,0,AS$63) -> 1 | AT68: =OFFSET(Fuels!$E66,0,AT$63) -> 1 | AU68: =OFFSET(Fuels!$E66,0,AU$63) -> 0.9756097561 | AV68: =OFFSET(Fuels!$E66,0,AV$63) -> 0.9756097561 | AW68: =OFFSET(Fuels!$E66,0,AW$63) -> 1 | AX68: =OFFSET(Fuels!$E66,0,AX$63) -> 0.802 | AY68: =OFFSET(Fuels!$E66,0,AY$63) -> 1 | AZ68: =OFFSET(Fuels!$E66,0,AZ$63) -> 1
D69: =Fuels!D67 -> Distributionseffektivitet, transport | E69: % | F69: =OFFSET(Fuels!$E67,0,F$63) -> 0.9988901221 | G69: =OFFSET(Fuels!$E67,0,G$63) -> 0.9987882788 | H69: =OFFSET(Fuels!$E67,0,H$63) -> 0.9982637991 | I69: =OFFSET(Fuels!$E67,0,I$63) -> 0.9982637991 | J69: =OFFSET(Fuels!$E67,0,J$63) -> 0.9982637991 | K69: =OFFSET(Fuels!$E67,0,K$63) -> 0.9986813947 | L69: =OFFSET(Fuels!$E67,0,L$63) -> 0.9988901221 | M69: =OFFSET(Fuels!$E67,0,M$63) -> 0.9979099203 | N69: =OFFSET(Fuels!$E67,0,N$63) -> 1 | O69: =OFFSET(Fuels!$E67,0,O$63) -> 1 | P69: =OFFSET(Fuels!$E67,0,P$63) -> 0.9974809141 | Q69: =OFFSET(Fuels!$E67,0,Q$63) -> 1 | R69: =OFFSET(Fuels!$E67,0,R$63) -> 1 | S69: =OFFSET(Fuels!$E67,0,S$63) -> 1 | T69: =OFFSET(Fuels!$E67,0,T$63) -> 0.9987882788 | U69: =OFFSET(Fuels!$E67,0,U$63) -> 1 | V69: =OFFSET(Fuels!$E67,0,V$63) -> 0.9987882788 | W69: =OFFSET(Fuels!$E67,0,W$63) -> 1 | X69: =OFFSET(Fuels!$E67,0,X$63) -> 0.9988901221 | Y69: =OFFSET(Fuels!$E67,0,Y$63) -> 1 | Z69: =OFFSET(Fuels!$E67,0,Z$63) -> 0.9988901221 | AA69: =OFFSET(Fuels!$E67,0,AA$63) -> 0.9988901221 | AB69: =OFFSET(Fuels!$E67,0,AB$63) -> 0.9990005898 | AC69: =OFFSET(Fuels!$E67,0,AC$63) -> 0.9988901221 | AD69: =OFFSET(Fuels!$E67,0,AD$63) -> 0.9988901221 | AE69: =OFFSET(Fuels!$E67,0,AE$63) -> 1 | AF69: =OFFSET(Fuels!$E67,0,AF$63) -> 0.9988901221 | AG69: =OFFSET(Fuels!$E67,0,AG$63) -> 0.9988901221 | AH69: =OFFSET(Fuels!$E67,0,AH$63) -> 1 | AI69: =OFFSET(Fuels!$E67,0,AI$63) -> 0.9988901221 | AJ69: =OFFSET(Fuels!$E67,0,AJ$63) -> 0.9988901221 | AK69: =OFFSET(Fuels!$E67,0,AK$63) -> 1 | AL69: =OFFSET(Fuels!$E67,0,AL$63) -> 0.9988901221 | AM69: =OFFSET(Fuels!$E67,0,AM$63) -> 0.9986813947 | AN69: =OFFSET(Fuels!$E67,0,AN$63) -> 1 | AO69: =OFFSET(Fuels!$E67,0,AO$63) -> 0.9979099203 | AP69: =OFFSET(Fuels!$E67,0,AP$63) -> 1 | AQ69: =OFFSET(Fuels!$E67,0,AQ$63) -> 0.9988401192 | AR69: =OFFSET(Fuels!$E67,0,AR$63) -> 0.9988901221 | AS69: =OFFSET(Fuels!$E67,0,AS$63) -> 0.9986813947 | AT69: =OFFSET(Fuels!$E67,0,AT$63) -> 0.9988401192 | AU69: =OFFSET(Fuels!$E67,0,AU$63) -> 1 | AV69: =OFFSET(Fuels!$E67,0,AV$63) -> 1 | AW69: =OFFSET(Fuels!$E67,0,AW$63) -> 0.9988901221 | AX69: =OFFSET(Fuels!$E67,0,AX$63) -> 1 | AY69: =OFFSET(Fuels!$E67,0,AY$63) -> 0.998848198 | AZ69: =OFFSET(Fuels!$E67,0,AZ$63) -> 0.998848198
D70: Transportmiddelfremstilling | E70: 1-MJ prod./MJ primær energi | F70: =IF(ResultsOneYear!$B14=1,1-(HLOOKUP(F9,'LCA Vehicles'!$D180:$AH181,2,FALSE))/F36,1) -> 0.8877391829 | G70: =IF(ResultsOneYear!$B14=1,1-(HLOOKUP(G9,'LCA Vehicles'!$D180:$AH181,2,FALSE))/G36,1) -> 0.9026658881 | H70: =IF(ResultsOneYear!$B14=1,1-(HLOOKUP(H9,'LCA Vehicles'!$D180:$AH181,2,FALSE))/H36,1) -> 0.9026658881 | I70: =IF(ResultsOneYear!$B14=1,1-(HLOOKUP(I9,'LCA Vehicles'!$D180:$AH181,2,FALSE))/I36,1) -> 0.9026658881 | J70: =IF(ResultsOneYear!$B14=1,1-(HLOOKUP(J9,'LCA Vehicles'!$D180:$AH181,2,FALSE))/J36,1) -> 0.9026658881 | K70: =IF(ResultsOneYear!$B14=1,1-(HLOOKUP(K9,'LCA Vehicles'!$D180:$AH181,2,FALSE))/K36,1) -> 0.8877391829 | L70: =IF(ResultsOneYear!$B14=1,1-(HLOOKUP(L9,'LCA Vehicles'!$D180:$AH181,2,FALSE))/L36,1) -> 0.8877391829 | M70: =IF(ResultsOneYear!$B14=1,1-(HLOOKUP(M9,'LCA Vehicles'!$D180:$AH181,2,FALSE))/M36,1) -> 0.8816981587 | N70: =IF(ResultsOneYear!$B14=1,1-(HLOOKUP(N9,'LCA Vehicles'!$D180:$AH181,2,FALSE))/N36,1) -> 0.8988298615 | O70: =IF(ResultsOneYear!$B14=1,1-(HLOOKUP(O9,'LCA Vehicles'!$D180:$AH181,2,FALSE))/O36,1) -> 0.8988298615 | P70: =IF(ResultsOneYear!$B14=1,1-(HLOOKUP(P9,'LCA Vehicles'!$D180:$AH181,2,FALSE))/P36,1) -> 0.5980706179 | Q70: =IF(ResultsOneYear!$B14=1,1-(HLOOKUP(Q9,'LCA Vehicles'!$D180:$AH181,2,FALSE))/Q36,1) -> 0.4762756218 | R70: =IF(ResultsOneYear!$B14=1,1-(HLOOKUP(R9,'LCA Vehicles'!$D180:$AH181,2,FALSE))/R36,1) -> 0.447976839 | S70: =IF(ResultsOneYear!$B14=1,1-(HLOOKUP(S9,'LCA Vehicles'!$D180:$AH181,2,FALSE))/S36,1) -> 0.2666335652 | T70: =IF(ResultsOneYear!$B14=1,1-(HLOOKUP(T9,'LCA Vehicles'!$D180:$AH181,2,FALSE))/T36,1) -> 0.6833039433 | U70: =IF(ResultsOneYear!$B14=1,1-(HLOOKUP(U9,'LCA Vehicles'!$D180:$AH181,2,FALSE))/U36,1) -> 0.589341237 | V70: =IF(ResultsOneYear!$B14=1,1-(HLOOKUP(V9,'LCA Vehicles'!$D180:$AH181,2,FALSE))/V36,1) -> 0.9227654304 | W70: =IF(ResultsOneYear!$B14=1,1-(HLOOKUP(W9,'LCA Vehicles'!$D180:$AH181,2,FALSE))/W36,1) -> 0.9197874611 | X70: =IF(ResultsOneYear!$B14=1,1-(HLOOKUP(X9,'LCA Vehicles'!$D180:$AH181,2,FALSE))/X36,1) -> 0.90143308 | Y70: =IF(ResultsOneYear!$B14=1,1-(HLOOKUP(Y9,'LCA Vehicles'!$D180:$AH181,2,FALSE))/Y36,1) -> 0.6559398287 | Z70: =IF(ResultsOneYear!$B14=1,1-(HLOOKUP(Z9,'LCA Vehicles'!$D180:$AH181,2,FALSE))/Z36,1) -> 0.9793511451 | AA70: =IF(ResultsOneYear!$B14=1,1-(HLOOKUP(AA9,'LCA Vehicles'!$D180:$AH181,2,FALSE))/AA36,1) -> 0.9793511451 | AB70: =IF(ResultsOneYear!$B14=1,1-(HLOOKUP(AB9,'LCA Vehicles'!$D180:$AH181,2,FALSE))/AB36,1) -> 0.968499994 | AC70: =IF(ResultsOneYear!$B14=1,1-(HLOOKUP(AC9,'LCA Vehicles'!$D180:$AH181,2,FALSE))/AC36,1) -> 0.968499994 | AD70: =IF(ResultsOneYear!$B14=1,1-(HLOOKUP(AD9,'LCA Vehicles'!$D180:$AH181,2,FALSE))/AD36,1) -> 0.968499994 | AE70: =IF(ResultsOneYear!$B14=1,1-(HLOOKUP(AE9,'LCA Vehicles'!$D180:$AH181,2,FALSE))/AE36,1) -> 0.9699137738 | AF70: =IF(ResultsOneYear!$B14=1,1-(HLOOKUP(AF9,'LCA Vehicles'!$D180:$AH181,2,FALSE))/AF36,1) -> 0.979512956 | AG70: =IF(ResultsOneYear!$B14=1,1-(HLOOKUP(AG9,'LCA Vehicles'!$D180:$AH181,2,FALSE))/AG36,1) -> 0.979512956 | AH70: =IF(ResultsOneYear!$B14=1,1-(HLOOKUP(AH9,'LCA Vehicles'!$D180:$AH181,2,FALSE))/AH36,1) -> 0.8888756841 | AI70: =IF(ResultsOneYear!$B14=1,1-(HLOOKUP(AI9,'LCA Vehicles'!$D180:$AH181,2,FALSE))/AI36,1) -> 0.9468278022 | AJ70: =IF(ResultsOneYear!$B14=1,1-(HLOOKUP(AJ9,'LCA Vehicles'!$D180:$AH181,2,FALSE))/AJ36,1) -> 0.9468278022 | AK70: =IF(ResultsOneYear!$B14=1,1-(HLOOKUP(AK9,'LCA Vehicles'!$D180:$AH181,2,FALSE))/AK36,1) -> 0.9486982036 | AL70: =IF(ResultsOneYear!$B14=1,1-(HLOOKUP(AL9,'LCA Vehicles'!$D180:$AH181,2,FALSE))/AL36,1) -> 0.8883454211 | AM70: =IF(ResultsOneYear!$B14=1,1-(HLOOKUP(AM9,'LCA Vehicles'!$D180:$AH181,2,FALSE))/AM36,1) -> 0.8884204398 | AN70: =IF(ResultsOneYear!$B14=1,1-(HLOOKUP(AN9,'LCA Vehicles'!$D180:$AH181,2,FALSE))/AN36,1) -> 0.8740901004 | AO70: =IF(ResultsOneYear!$B14=1,1-(HLOOKUP(AO9,'LCA Vehicles'!$D180:$AH181,2,FALSE))/AO36,1) -> 0.8855379561 | AP70: =IF(ResultsOneYear!$B14=1,1-(HLOOKUP(AP9,'LCA Vehicles'!$D180:$AH181,2,FALSE))/AP36,1) -> 0.8740901004 | AQ70: =IF(ResultsOneYear!$B14=1,1-(HLOOKUP(AQ9,'LCA Vehicles'!$D180:$AH181,2,FALSE))/AQ36,1) -> 0.8883454211 | AR70: =IF(ResultsOneYear!$B14=1,1-(HLOOKUP(AR9,'LCA Vehicles'!$D180:$AH181,2,FALSE))/AR36,1) -> 0.9194059917 | AS70: =IF(ResultsOneYear!$B14=1,1-(HLOOKUP(AS9,'LCA Vehicles'!$D180:$AH181,2,FALSE))/AS36,1) -> 0.9194059917 | AT70: =IF(ResultsOneYear!$B14=1,1-(HLOOKUP(AT9,'LCA Vehicles'!$D180:$AH181,2,FALSE))/AT36,1) -> 0.9194059917 | AU70: =IF(ResultsOneYear!$B14=1,1-(HLOOKUP(AU9,'LCA Vehicles'!$D180:$AH181,2,FALSE))/AU36,1) -> 0.9003632028 | AV70: =IF(ResultsOneYear!$B14=1,1-(HLOOKUP(AV9,'LCA Vehicles'!$D180:$AH181,2,FALSE))/AV36,1) -> 0.9003632028 | AW70: =IF(ResultsOneYear!$B14=1,1-(HLOOKUP(AW9,'LCA Vehicles'!$D180:$AH181,2,FALSE))/AW36,1) -> 0.815954506 | AX70: =IF(ResultsOneYear!$B14=1,1-(HLOOKUP(AX9,'LCA Vehicles'!$D180:$AH181,2,FALSE))/AX36,1) -> 0.5550880745 | AY70: =IF(ResultsOneYear!$B14=1,1-(HLOOKUP(AY9,'LCA Vehicles'!$D180:$AH181,2,FALSE))/AY36,1) -> 0.9989845689 | AZ70: =IF(ResultsOneYear!$B14=1,1-(HLOOKUP(AZ9,'LCA Vehicles'!$D180:$AH181,2,FALSE))/AZ36,1) -> 0.9989845689
A71: =ROW('EU Std benzin personbil'!$A23) -> 23 | B71: =COLUMN('EU Std benzin personbil'!$D76)-1+chosenYear -> 4 | D71: Virkningsgrad primær motor | E71: MJ mek/MJ drivm. | F71: =INDIRECT(ADDRESS($A71,$B71,,,F$9)) -> 0.2024614183 | G71: 0.177 | H71: 0.177 | I71: 0.177 | J71: 0.177 | K71: 0.2024614183 | L71: 0.2024614183 | M71: 0.2045168642 | N71: 0.186 | O71: 0.186 | P71: 0.3567152036 | Q71: 0.3745509638 | R71: 0.734 | S71: 0.734 | T71: 0.2569865189 | U71: 0.3745509638 | V71: 0.2088996275 | W71: 0.2151652625 | X71: 0.2665981434 | Y71: 0.734 | Z71: =INDIRECT(ADDRESS($A71,$B71,,,Z$9)) -> 0.4014720642 | AA71: 0.4014720642 | AB71: 0.322 | AC71: 0.322 | AD71: 0.322 | AE71: 0.315 | AF71: 0.236 | AG71: 0.236 | AH71: 0.6428571429 | AI71: 0.1111111111 | AJ71: 0.1111111111 | AK71: 0.09090909091 | AL71: 0.19 | AM71: 0.19 | AN71: 0.16 | AO71: 0.192 | AP71: 0.16 | AQ71: 0.19 | AR71: 0.1199250468 | AS71: 0.1199250468 | AT71: 0.1199250468 | AU71: 0.1007874016 | AV71: 0.1007874016 | AW71: 0.1714285714 | AX71: 0.4166666667 | AY71: 0.16 | AZ71: 0.16
D73: Virkningsgrader, sekundært drivmiddel
D74: Kolonnenr på drivmiddel ark | F74: =IF(F8<>"",MATCH(F$8,Fuels!$F$6:$U$6,0),1000) -> 1000 | G74: =IF(G8<>"",MATCH(G$8,Fuels!$F$6:$U$6,0),1000) -> 1000 | H74: =IF(H8<>"",MATCH(H$8,Fuels!$F$6:$U$6,0),1000) -> 2 | I74: =IF(I8<>"",MATCH(I$8,Fuels!$F$6:$U$6,0),1000) -> 2 | J74: =IF(J8<>"",MATCH(J$8,Fuels!$F$6:$U$6,0),1000) -> 2 | K74: =IF(K8<>"",MATCH(K$8,Fuels!$F$6:$U$6,0),1000) -> 1000 | L74: =IF(L8<>"",MATCH(L$8,Fuels!$F$6:$U$6,0),1000) -> 1000 | M74: =IF(M8<>"",MATCH(M$8,Fuels!$F$6:$U$6,0),1000) -> 1000 | N74: =IF(N8<>"",MATCH(N$8,Fuels!$F$6:$U$6,0),1000) -> 1000 | O74: =IF(O8<>"",MATCH(O$8,Fuels!$F$6:$U$6,0),1000) -> 1000 | P74: =IF(P8<>"",MATCH(P$8,Fuels!$F$6:$U$6,0),1000) -> 16 | Q74: =IF(Q8<>"",MATCH(Q$8,Fuels!$F$6:$U$6,0),1000) -> 16 | R74: =IF(R8<>"",MATCH(R$8,Fuels!$F$6:$U$6,0),1000) -> 1000 | S74: =IF(S8<>"",MATCH(S$8,Fuels!$F$6:$U$6,0),1000) -> 1000 | T74: =IF(T8<>"",MATCH(T$8,Fuels!$F$6:$U$6,0),1000) -> 16 | U74: =IF(U8<>"",MATCH(U$8,Fuels!$F$6:$U$6,0),1000) -> 1000 | V74: =IF(V8<>"",MATCH(V$8,Fuels!$F$6:$U$6,0),1000) -> 1000 | W74: =IF(W8<>"",MATCH(W$8,Fuels!$F$6:$U$6,0),1000) -> 1000 | X74: =IF(X8<>"",MATCH(X$8,Fuels!$F$6:$U$6,0),1000) -> 1000 | Y74: =IF(Y8<>"",MATCH(Y$8,Fuels!$F$6:$U$6,0),1000) -> 1000 | Z74: =IF(Z8<>"",MATCH(Z$8,Fuels!$F$6:$U$6,0),1000) -> 1000 | AA74: =IF(AA8<>"",MATCH(AA$8,Fuels!$F$6:$U$6,0),1000) -> 1000 | AB74: =IF(AB8<>"",MATCH(AB$8,Fuels!$F$6:$U$6,0),1000) -> 1000 | AC74: =IF(AC8<>"",MATCH(AC$8,Fuels!$F$6:$U$6,0),1000) -> 1000 | AD74: =IF(AD8<>"",MATCH(AD$8,Fuels!$F$6:$U$6,0),1000) -> 1000 | AE74: =IF(AE8<>"",MATCH(AE$8,Fuels!$F$6:$U$6,0),1000) -> 1 | AF74: =IF(AF8<>"",MATCH(AF$8,Fuels!$F$6:$U$6,0),1000) -> 1000 | AG74: =IF(AG8<>"",MATCH(AG$8,Fuels!$F$6:$U$6,0),1000) -> 1000 | AH74: =IF(AH8<>"",MATCH(AH$8,Fuels!$F$6:$U$6,0),1000) -> 1000 | AI74: =IF(AI8<>"",MATCH(AI$8,Fuels!$F$6:$U$6,0),1000) -> 1000 | AJ74: =IF(AJ8<>"",MATCH(AJ$8,Fuels!$F$6:$U$6,0),1000) -> 1000 | AK74: =IF(AK8<>"",MATCH(AK$8,Fuels!$F$6:$U$6,0),1000) -> 1 | AL74: =IF(AL8<>"",MATCH(AL$8,Fuels!$F$6:$U$6,0),1000) -> 1000 | AM74: =IF(AM8<>"",MATCH(AM$8,Fuels!$F$6:$U$6,0),1000) -> 1000 | AN74: =IF(AN8<>"",MATCH(AN$8,Fuels!$F$6:$U$6,0),1000) -> 1000 | AO74: =IF(AO8<>"",MATCH(AO$8,Fuels!$F$6:$U$6,0),1000) -> 1000 | AP74: =IF(AP8<>"",MATCH(AP$8,Fuels!$F$6:$U$6,0),1000) -> 1000 | AQ74: =IF(AQ8<>"",MATCH(AQ$8,Fuels!$F$6:$U$6,0),1000) -> 1000 | AR74: =IF(AR8<>"",MATCH(AR$8,Fuels!$F$6:$U$6,0),1000) -> 1000 | AS74: =IF(AS8<>"",MATCH(AS$8,Fuels!$F$6:$U$6,0),1000) -> 1000 | AT74: =IF(AT8<>"",MATCH(AT$8,Fuels!$F$6:$U$6,0),1000) -> 1000 | AU74: =IF(AU8<>"",MATCH(AU$8,Fuels!$F$6:$U$6,0),1000) -> 1000 | AV74: =IF(AV8<>"",MATCH(AV$8,Fuels!$F$6:$U$6,0),1000) -> 1000 | AW74: =IF(AW8<>"",MATCH(AW$8,Fuels!$F$6:$U$6,0),1000) -> 1000 | AX74: =IF(AX8<>"",MATCH(AX$8,Fuels!$F$6:$U$6,0),1000) -> 1000 | AY74: =IF(AY8<>"",MATCH(AY$8,Fuels!$F$6:$U$6,0),1000) -> 1000 | AZ74: =IF(AZ8<>"",MATCH(AZ$8,Fuels!$F$6:$U$6,0),1000) -> 1000
F75: =IF(F74=1000,0,100%) -> 0 | G75: =IF(G74=1000,0,100%) -> 0 | H75: 1 | I75: 1 | J75: 1 | K75: 0 | L75: 0 | M75: 0 | N75: 0 | O75: 0 | P75: 1 | Q75: 1 | R75: 0 | S75: 0 | T75: 1 | U75: 0 | V75: =IF(V74=1000,0,100%) -> 0 | W75: =IF(W74=1000,0,100%) -> 0 | X75: =IF(X74=1000,0,100%) -> 0 | Y75: =IF(Y74=1000,0,100%) -> 0 | Z75: =IF(Z74=1000,0,100%) -> 0 | AA75: 0 | AB75: 0 | AC75: 0 | AD75: 0 | AE75: 1 | AF75: 0 | AG75: 0 | AH75: 0 | AI75: 0 | AJ75: 0 | AK75: 1 | AL75: 0 | AM75: 0 | AN75: 0 | AO75: 0 | AP75: 0 | AQ75: =IF(AQ74=1000,0,100%) -> 0 | AR75: 0 | AS75: 0 | AT75: =IF(AT74=1000,0,100%) -> 0 | AU75: 0 | AV75: 0 | AW75: 0 | AX75: 0 | AY75: 0 | AZ75: 0
D76: =Fuels!D59 -> Råstofudvinding - energieffektivitet | E76: % | F76: =OFFSET(Fuels!$E59,0,F$74) -> 0 | G76: =OFFSET(Fuels!$E59,0,G$74) -> 0 | H76: =OFFSET(Fuels!$E59,0,H$74) -> 0.8256885108 | I76: =OFFSET(Fuels!$E59,0,I$74) -> 0.8256885108 | J76: =OFFSET(Fuels!$E59,0,J$74) -> 0.8256885108 | K76: =OFFSET(Fuels!$E59,0,K$74) -> 0 | L76: =OFFSET(Fuels!$E59,0,L$74) -> 0 | M76: =OFFSET(Fuels!$E59,0,M$74) -> 0 | N76: =OFFSET(Fuels!$E59,0,N$74) -> 0 | O76: =OFFSET(Fuels!$E59,0,O$74) -> 0 | P76: =OFFSET(Fuels!$E59,0,P$74) -> 0.9490167132 | Q76: =OFFSET(Fuels!$E59,0,Q$74) -> 0.9490167132 | R76: =OFFSET(Fuels!$E59,0,R$74) -> 0 | S76: =OFFSET(Fuels!$E59,0,S$74) -> 0 | T76: =OFFSET(Fuels!$E59,0,T$74) -> 0.9490167132 | U76: =OFFSET(Fuels!$E59,0,U$74) -> 0 | V76: =OFFSET(Fuels!$E59,0,V$74) -> 0 | W76: =OFFSET(Fuels!$E59,0,W$74) -> 0 | X76: =OFFSET(Fuels!$E59,0,X$74) -> 0 | Y76: =OFFSET(Fuels!$E59,0,Y$74) -> 0 | Z76: =OFFSET(Fuels!$E59,0,Z$74) -> 0 | AA76: =OFFSET(Fuels!$E59,0,AA$74) -> 0 | AB76: =OFFSET(Fuels!$E59,0,AB$74) -> 0 | AC76: =OFFSET(Fuels!$E59,0,AC$74) -> 0 | AD76: =OFFSET(Fuels!$E59,0,AD$74) -> 0 | AE76: =OFFSET(Fuels!$E59,0,AE$74) -> 0.8256885108 | AF76: =OFFSET(Fuels!$E59,0,AF$74) -> 0 | AG76: =OFFSET(Fuels!$E59,0,AG$74) -> 0 | AH76: =OFFSET(Fuels!$E59,0,AH$74) -> 0 | AI76: =OFFSET(Fuels!$E59,0,AI$74) -> 0 | AJ76: =OFFSET(Fuels!$E59,0,AJ$74) -> 0 | AK76: =OFFSET(Fuels!$E59,0,AK$74) -> 0.8256885108 | AL76: =OFFSET(Fuels!$E59,0,AL$74) -> 0 | AM76: =OFFSET(Fuels!$E59,0,AM$74) -> 0 | AN76: =OFFSET(Fuels!$E59,0,AN$74) -> 0 | AO76: =OFFSET(Fuels!$E59,0,AO$74) -> 0 | AP76: =OFFSET(Fuels!$E59,0,AP$74) -> 0 | AQ76: =OFFSET(Fuels!$E59,0,AQ$74) -> 0 | AR76: =OFFSET(Fuels!$E59,0,AR$74) -> 0 | AS76: =OFFSET(Fuels!$E59,0,AS$74) -> 0 | AT76: =OFFSET(Fuels!$E59,0,AT$74) -> 0 | AU76: =OFFSET(Fuels!$E59,0,AU$74) -> 0 | AV76: =OFFSET(Fuels!$E59,0,AV$74) -> 0 | AW76: =OFFSET(Fuels!$E59,0,AW$74) -> 0 | AX76: =OFFSET(Fuels!$E59,0,AX$74) -> 0 | AY76: =OFFSET(Fuels!$E59,0,AY$74) -> 0 | AZ76: =OFFSET(Fuels!$E59,0,AZ$74) -> 0
D77: =Fuels!D60 -> Råstofkonvertering - energieffektivitet | E77: % | F77: =OFFSET(Fuels!$E60,0,F$74) -> 0 | G77: =OFFSET(Fuels!$E60,0,G$74) -> 0 | H77: =OFFSET(Fuels!$E60,0,H$74) -> 0.9969957556 | I77: =OFFSET(Fuels!$E60,0,I$74) -> 0.9969957556 | J77: =OFFSET(Fuels!$E60,0,J$74) -> 0.9969957556 | K77: =OFFSET(Fuels!$E60,0,K$74) -> 0 | L77: =OFFSET(Fuels!$E60,0,L$74) -> 0 | M77: =OFFSET(Fuels!$E60,0,M$74) -> 0 | N77: =OFFSET(Fuels!$E60,0,N$74) -> 0 | O77: =OFFSET(Fuels!$E60,0,O$74) -> 0 | P77: =OFFSET(Fuels!$E60,0,P$74) -> 0.9808282217 | Q77: =OFFSET(Fuels!$E60,0,Q$74) -> 0.9808282217 | R77: =OFFSET(Fuels!$E60,0,R$74) -> 0 | S77: =OFFSET(Fuels!$E60,0,S$74) -> 0 | T77: =OFFSET(Fuels!$E60,0,T$74) -> 0.9808282217 | U77: =OFFSET(Fuels!$E60,0,U$74) -> 0 | V77: =OFFSET(Fuels!$E60,0,V$74) -> 0 | W77: =OFFSET(Fuels!$E60,0,W$74) -> 0 | X77: =OFFSET(Fuels!$E60,0,X$74) -> 0 | Y77: =OFFSET(Fuels!$E60,0,Y$74) -> 0 | Z77: =OFFSET(Fuels!$E60,0,Z$74) -> 0 | AA77: =OFFSET(Fuels!$E60,0,AA$74) -> 0 | AB77: =OFFSET(Fuels!$E60,0,AB$74) -> 0 | AC77: =OFFSET(Fuels!$E60,0,AC$74) -> 0 | AD77: =OFFSET(Fuels!$E60,0,AD$74) -> 0 | AE77: =OFFSET(Fuels!$E60,0,AE$74) -> 0.9969957556 | AF77: =OFFSET(Fuels!$E60,0,AF$74) -> 0 | AG77: =OFFSET(Fuels!$E60,0,AG$74) -> 0 | AH77: =OFFSET(Fuels!$E60,0,AH$74) -> 0 | AI77: =OFFSET(Fuels!$E60,0,AI$74) -> 0 | AJ77: =OFFSET(Fuels!$E60,0,AJ$74) -> 0 | AK77: =OFFSET(Fuels!$E60,0,AK$74) -> 0.9969957556 | AL77: =OFFSET(Fuels!$E60,0,AL$74) -> 0 | AM77: =OFFSET(Fuels!$E60,0,AM$74) -> 0 | AN77: =OFFSET(Fuels!$E60,0,AN$74) -> 0 | AO77: =OFFSET(Fuels!$E60,0,AO$74) -> 0 | AP77: =OFFSET(Fuels!$E60,0,AP$74) -> 0 | AQ77: =OFFSET(Fuels!$E60,0,AQ$74) -> 0 | AR77: =OFFSET(Fuels!$E60,0,AR$74) -> 0 | AS77: =OFFSET(Fuels!$E60,0,AS$74) -> 0 | AT77: =OFFSET(Fuels!$E60,0,AT$74) -> 0 | AU77: =OFFSET(Fuels!$E60,0,AU$74) -> 0 | AV77: =OFFSET(Fuels!$E60,0,AV$74) -> 0 | AW77: =OFFSET(Fuels!$E60,0,AW$74) -> 0 | AX77: =OFFSET(Fuels!$E60,0,AX$74) -> 0 | AY77: =OFFSET(Fuels!$E60,0,AY$74) -> 0 | AZ77: =OFFSET(Fuels!$E60,0,AZ$74) -> 0
D78: =Fuels!D63 -> Distributioneffektivitet - råstofkonv -> mellemkonv. | E78: % | F78: =OFFSET(Fuels!$E63,0,F$74) -> 0 | G78: =OFFSET(Fuels!$E63,0,G$74) -> 0 | H78: =OFFSET(Fuels!$E63,0,H$74) -> 1 | I78: =OFFSET(Fuels!$E63,0,I$74) -> 1 | J78: =OFFSET(Fuels!$E63,0,J$74) -> 1 | K78: =OFFSET(Fuels!$E63,0,K$74) -> 0 | L78: =OFFSET(Fuels!$E63,0,L$74) -> 0 | M78: =OFFSET(Fuels!$E63,0,M$74) -> 0 | N78: =OFFSET(Fuels!$E63,0,N$74) -> 0 | O78: =OFFSET(Fuels!$E63,0,O$74) -> 0 | P78: =OFFSET(Fuels!$E63,0,P$74) -> 0.93 | Q78: =OFFSET(Fuels!$E63,0,Q$74) -> 0.93 | R78: =OFFSET(Fuels!$E63,0,R$74) -> 0 | S78: =OFFSET(Fuels!$E63,0,S$74) -> 0 | T78: =OFFSET(Fuels!$E63,0,T$74) -> 0.93 | U78: =OFFSET(Fuels!$E63,0,U$74) -> 0 | V78: =OFFSET(Fuels!$E63,0,V$74) -> 0 | W78: =OFFSET(Fuels!$E63,0,W$74) -> 0 | X78: =OFFSET(Fuels!$E63,0,X$74) -> 0 | Y78: =OFFSET(Fuels!$E63,0,Y$74) -> 0 | Z78: =OFFSET(Fuels!$E63,0,Z$74) -> 0 | AA78: =OFFSET(Fuels!$E63,0,AA$74) -> 0 | AB78: =OFFSET(Fuels!$E63,0,AB$74) -> 0 | AC78: =OFFSET(Fuels!$E63,0,AC$74) -> 0 | AD78: =OFFSET(Fuels!$E63,0,AD$74) -> 0 | AE78: =OFFSET(Fuels!$E63,0,AE$74) -> 1 | AF78: =OFFSET(Fuels!$E63,0,AF$74) -> 0 | AG78: =OFFSET(Fuels!$E63,0,AG$74) -> 0 | AH78: =OFFSET(Fuels!$E63,0,AH$74) -> 0 | AI78: =OFFSET(Fuels!$E63,0,AI$74) -> 0 | AJ78: =OFFSET(Fuels!$E63,0,AJ$74) -> 0 | AK78: =OFFSET(Fuels!$E63,0,AK$74) -> 1 | AL78: =OFFSET(Fuels!$E63,0,AL$74) -> 0 | AM78: =OFFSET(Fuels!$E63,0,AM$74) -> 0 | AN78: =OFFSET(Fuels!$E63,0,AN$74) -> 0 | AO78: =OFFSET(Fuels!$E63,0,AO$74) -> 0 | AP78: =OFFSET(Fuels!$E63,0,AP$74) -> 0 | AQ78: =OFFSET(Fuels!$E63,0,AQ$74) -> 0 | AR78: =OFFSET(Fuels!$E63,0,AR$74) -> 0 | AS78: =OFFSET(Fuels!$E63,0,AS$74) -> 0 | AT78: =OFFSET(Fuels!$E63,0,AT$74) -> 0 | AU78: =OFFSET(Fuels!$E63,0,AU$74) -> 0 | AV78: =OFFSET(Fuels!$E63,0,AV$74) -> 0 | AW78: =OFFSET(Fuels!$E63,0,AW$74) -> 0 | AX78: =OFFSET(Fuels!$E63,0,AX$74) -> 0 | AY78: =OFFSET(Fuels!$E63,0,AY$74) -> 0 | AZ78: =OFFSET(Fuels!$E63,0,AZ$74) -> 0
D79: =Fuels!D66 -> Mellemkonvertering - energieffektivitet | E79: % | F79: =OFFSET(Fuels!$E66,0,F$74) -> 0 | G79: =OFFSET(Fuels!$E66,0,G$74) -> 0 | H79: =OFFSET(Fuels!$E66,0,H$74) -> 1 | I79: =OFFSET(Fuels!$E66,0,I$74) -> 1 | J79: =OFFSET(Fuels!$E66,0,J$74) -> 1 | K79: =OFFSET(Fuels!$E66,0,K$74) -> 0 | L79: =OFFSET(Fuels!$E66,0,L$74) -> 0 | M79: =OFFSET(Fuels!$E66,0,M$74) -> 0 | N79: =OFFSET(Fuels!$E66,0,N$74) -> 0 | O79: =OFFSET(Fuels!$E66,0,O$74) -> 0 | P79: =OFFSET(Fuels!$E66,0,P$74) -> 0.9 | Q79: =OFFSET(Fuels!$E66,0,Q$74) -> 0.9 | R79: =OFFSET(Fuels!$E66,0,R$74) -> 0 | S79: =OFFSET(Fuels!$E66,0,S$74) -> 0 | T79: =OFFSET(Fuels!$E66,0,T$74) -> 0.9 | U79: =OFFSET(Fuels!$E66,0,U$74) -> 0 | V79: =OFFSET(Fuels!$E66,0,V$74) -> 0 | W79: =OFFSET(Fuels!$E66,0,W$74) -> 0 | X79: =OFFSET(Fuels!$E66,0,X$74) -> 0 | Y79: =OFFSET(Fuels!$E66,0,Y$74) -> 0 | Z79: =OFFSET(Fuels!$E66,0,Z$74) -> 0 | AA79: =OFFSET(Fuels!$E66,0,AA$74) -> 0 | AB79: =OFFSET(Fuels!$E66,0,AB$74) -> 0 | AC79: =OFFSET(Fuels!$E66,0,AC$74) -> 0 | AD79: =OFFSET(Fuels!$E66,0,AD$74) -> 0 | AE79: =OFFSET(Fuels!$E66,0,AE$74) -> 1 | AF79: =OFFSET(Fuels!$E66,0,AF$74) -> 0 | AG79: =OFFSET(Fuels!$E66,0,AG$74) -> 0 | AH79: =OFFSET(Fuels!$E66,0,AH$74) -> 0 | AI79: =OFFSET(Fuels!$E66,0,AI$74) -> 0 | AJ79: =OFFSET(Fuels!$E66,0,AJ$74) -> 0 | AK79: =OFFSET(Fuels!$E66,0,AK$74) -> 1 | AL79: =OFFSET(Fuels!$E66,0,AL$74) -> 0 | AM79: =OFFSET(Fuels!$E66,0,AM$74) -> 0 | AN79: =OFFSET(Fuels!$E66,0,AN$74) -> 0 | AO79: =OFFSET(Fuels!$E66,0,AO$74) -> 0 | AP79: =OFFSET(Fuels!$E66,0,AP$74) -> 0 | AQ79: =OFFSET(Fuels!$E66,0,AQ$74) -> 0 | AR79: =OFFSET(Fuels!$E66,0,AR$74) -> 0 | AS79: =OFFSET(Fuels!$E66,0,AS$74) -> 0 | AT79: =OFFSET(Fuels!$E66,0,AT$74) -> 0 | AU79: =OFFSET(Fuels!$E66,0,AU$74) -> 0 | AV79: =OFFSET(Fuels!$E66,0,AV$74) -> 0 | AW79: =OFFSET(Fuels!$E66,0,AW$74) -> 0 | AX79: =OFFSET(Fuels!$E66,0,AX$74) -> 0 | AY79: =OFFSET(Fuels!$E66,0,AY$74) -> 0 | AZ79: =OFFSET(Fuels!$E66,0,AZ$74) -> 0
D80: =Fuels!D67 -> Distributionseffektivitet, transport | E80: % | F80: =OFFSET(Fuels!$E67,0,F$74) -> 0 | G80: =OFFSET(Fuels!$E67,0,G$74) -> 0 | H80: =OFFSET(Fuels!$E67,0,H$74) -> 0.9987882788 | I80: =OFFSET(Fuels!$E67,0,I$74) -> 0.9987882788 | J80: =OFFSET(Fuels!$E67,0,J$74) -> 0.9987882788 | K80: =OFFSET(Fuels!$E67,0,K$74) -> 0 | L80: =OFFSET(Fuels!$E67,0,L$74) -> 0 | M80: =OFFSET(Fuels!$E67,0,M$74) -> 0 | N80: =OFFSET(Fuels!$E67,0,N$74) -> 0 | O80: =OFFSET(Fuels!$E67,0,O$74) -> 0 | P80: =OFFSET(Fuels!$E67,0,P$74) -> 1 | Q80: =OFFSET(Fuels!$E67,0,Q$74) -> 1 | R80: =OFFSET(Fuels!$E67,0,R$74) -> 0 | S80: =OFFSET(Fuels!$E67,0,S$74) -> 0 | T80: =OFFSET(Fuels!$E67,0,T$74) -> 1 | U80: =OFFSET(Fuels!$E67,0,U$74) -> 0 | V80: =OFFSET(Fuels!$E67,0,V$74) -> 0 | W80: =OFFSET(Fuels!$E67,0,W$74) -> 0 | X80: =OFFSET(Fuels!$E67,0,X$74) -> 0 | Y80: =OFFSET(Fuels!$E67,0,Y$74) -> 0 | Z80: =OFFSET(Fuels!$E67,0,Z$74) -> 0 | AA80: =OFFSET(Fuels!$E67,0,AA$74) -> 0 | AB80: =OFFSET(Fuels!$E67,0,AB$74) -> 0 | AC80: =OFFSET(Fuels!$E67,0,AC$74) -> 0 | AD80: =OFFSET(Fuels!$E67,0,AD$74) -> 0 | AE80: =OFFSET(Fuels!$E67,0,AE$74) -> 0.9988901221 | AF80: =OFFSET(Fuels!$E67,0,AF$74) -> 0 | AG80: =OFFSET(Fuels!$E67,0,AG$74) -> 0 | AH80: =OFFSET(Fuels!$E67,0,AH$74) -> 0 | AI80: =OFFSET(Fuels!$E67,0,AI$74) -> 0 | AJ80: =OFFSET(Fuels!$E67,0,AJ$74) -> 0 | AK80: =OFFSET(Fuels!$E67,0,AK$74) -> 0.9988901221 | AL80: =OFFSET(Fuels!$E67,0,AL$74) -> 0 | AM80: =OFFSET(Fuels!$E67,0,AM$74) -> 0 | AN80: =OFFSET(Fuels!$E67,0,AN$74) -> 0 | AO80: =OFFSET(Fuels!$E67,0,AO$74) -> 0 | AP80: =OFFSET(Fuels!$E67,0,AP$74) -> 0 | AQ80: =OFFSET(Fuels!$E67,0,AQ$74) -> 0 | AR80: =OFFSET(Fuels!$E67,0,AR$74) -> 0 | AS80: =OFFSET(Fuels!$E67,0,AS$74) -> 0 | AT80: =OFFSET(Fuels!$E67,0,AT$74) -> 0 | AU80: =OFFSET(Fuels!$E67,0,AU$74) -> 0 | AV80: =OFFSET(Fuels!$E67,0,AV$74) -> 0 | AW80: =OFFSET(Fuels!$E67,0,AW$74) -> 0 | AX80: =OFFSET(Fuels!$E67,0,AX$74) -> 0 | AY80: =OFFSET(Fuels!$E67,0,AY$74) -> 0 | AZ80: =OFFSET(Fuels!$E67,0,AZ$74) -> 0
D81: Transportmiddelfremstilling | E81: 1-MJ prod./MJ primær energi | F81: =IF(F74=1000,0,IF(ResultsOneYear!$B14=1,1-(HLOOKUP(F9,'LCA Vehicles'!$D180:$AH181,2,FALSE))/F36,1)) -> 0 | G81: =IF(G74=1000,0,IF(ResultsOneYear!$B14=1,1-(HLOOKUP(G9,'LCA Vehicles'!$D180:$AH181,2,FALSE))/G36,1)) -> 0 | H81: =IF(H74=1000,0,IF(ResultsOneYear!$B14=1,1-(HLOOKUP(H9,'LCA Vehicles'!$D180:$AH181,2,FALSE))/H36,1)) -> 0.9026658881 | I81: =IF(I74=1000,0,IF(ResultsOneYear!$B14=1,1-(HLOOKUP(I9,'LCA Vehicles'!$D180:$AH181,2,FALSE))/I36,1)) -> 0.9026658881 | J81: =IF(J74=1000,0,IF(ResultsOneYear!$B14=1,1-(HLOOKUP(J9,'LCA Vehicles'!$D180:$AH181,2,FALSE))/J36,1)) -> 0.9026658881 | K81: =IF(K74=1000,0,IF(ResultsOneYear!$B14=1,1-(HLOOKUP(K9,'LCA Vehicles'!$D180:$AH181,2,FALSE))/K36,1)) -> 0 | L81: =IF(L74=1000,0,IF(ResultsOneYear!$B14=1,1-(HLOOKUP(L9,'LCA Vehicles'!$D180:$AH181,2,FALSE))/L36,1)) -> 0 | M81: =IF(M74=1000,0,IF(ResultsOneYear!$B14=1,1-(HLOOKUP(M9,'LCA Vehicles'!$D180:$AH181,2,FALSE))/M36,1)) -> 0 | N81: =IF(N74=1000,0,IF(ResultsOneYear!$B14=1,1-(HLOOKUP(N9,'LCA Vehicles'!$D180:$AH181,2,FALSE))/N36,1)) -> 0 | O81: =IF(O74=1000,0,IF(ResultsOneYear!$B14=1,1-(HLOOKUP(O9,'LCA Vehicles'!$D180:$AH181,2,FALSE))/O36,1)) -> 0 | P81: =IF(P74=1000,0,IF(ResultsOneYear!$B14=1,1-(HLOOKUP(P9,'LCA Vehicles'!$D180:$AH181,2,FALSE))/P36,1)) -> 0.5980706179 | Q81: =IF(Q74=1000,0,IF(ResultsOneYear!$B14=1,1-(HLOOKUP(Q9,'LCA Vehicles'!$D180:$AH181,2,FALSE))/Q36,1)) -> 0.4762756218 | R81: =IF(R74=1000,0,IF(ResultsOneYear!$B14=1,1-(HLOOKUP(R9,'LCA Vehicles'!$D180:$AH181,2,FALSE))/R36,1)) -> 0 | S81: =IF(S74=1000,0,IF(ResultsOneYear!$B14=1,1-(HLOOKUP(S9,'LCA Vehicles'!$D180:$AH181,2,FALSE))/S36,1)) -> 0 | T81: =IF(T74=1000,0,IF(ResultsOneYear!$B14=1,1-(HLOOKUP(T9,'LCA Vehicles'!$D180:$AH181,2,FALSE))/T36,1)) -> 0.6833039433 | U81: =IF(U74=1000,0,IF(ResultsOneYear!$B14=1,1-(HLOOKUP(U9,'LCA Vehicles'!$D180:$AH181,2,FALSE))/U36,1)) -> 0 | V81: =IF(V74=1000,0,IF(ResultsOneYear!$B14=1,1-(HLOOKUP(V9,'LCA Vehicles'!$D180:$AH181,2,FALSE))/V36,1)) -> 0 | W81: =IF(W74=1000,0,IF(ResultsOneYear!$B14=1,1-(HLOOKUP(W9,'LCA Vehicles'!$D180:$AH181,2,FALSE))/W36,1)) -> 0 | X81: =IF(X74=1000,0,IF(ResultsOneYear!$B14=1,1-(HLOOKUP(X9,'LCA Vehicles'!$D180:$AH181,2,FALSE))/X36,1)) -> 0 | Y81: =IF(Y74=1000,0,IF(ResultsOneYear!$B14=1,1-(HLOOKUP(Y9,'LCA Vehicles'!$D180:$AH181,2,FALSE))/Y36,1)) -> 0 | Z81: =IF(Z74=1000,0,IF(ResultsOneYear!$B14=1,1-(HLOOKUP(Z9,'LCA Vehicles'!$D180:$AH181,2,FALSE))/Z36,1)) -> 0 | AA81: =IF(AA74=1000,0,IF(ResultsOneYear!$B14=1,1-(HLOOKUP(AA9,'LCA Vehicles'!$D180:$AH181,2,FALSE))/AA36,1)) -> 0 | AB81: =IF(AB74=1000,0,IF(ResultsOneYear!$B14=1,1-(HLOOKUP(AB9,'LCA Vehicles'!$D180:$AH181,2,FALSE))/AB36,1)) -> 0 | AC81: =IF(AC74=1000,0,IF(ResultsOneYear!$B14=1,1-(HLOOKUP(AC9,'LCA Vehicles'!$D180:$AH181,2,FALSE))/AC36,1)) -> 0 | AD81: =IF(AD74=1000,0,IF(ResultsOneYear!$B14=1,1-(HLOOKUP(AD9,'LCA Vehicles'!$D180:$AH181,2,FALSE))/AD36,1)) -> 0 | AE81: =IF(AE74=1000,0,IF(ResultsOneYear!$B14=1,1-(HLOOKUP(AE9,'LCA Vehicles'!$D180:$AH181,2,FALSE))/AE36,1)) -> 0.9699137738 | AF81: =IF(AF74=1000,0,IF(ResultsOneYear!$B14=1,1-(HLOOKUP(AF9,'LCA Vehicles'!$D180:$AH181,2,FALSE))/AF36,1)) -> 0 | AG81: =IF(AG74=1000,0,IF(ResultsOneYear!$B14=1,1-(HLOOKUP(AG9,'LCA Vehicles'!$D180:$AH181,2,FALSE))/AG36,1)) -> 0 | AH81: =IF(AH74=1000,0,IF(ResultsOneYear!$B14=1,1-(HLOOKUP(AH9,'LCA Vehicles'!$D180:$AH181,2,FALSE))/AH36,1)) -> 0 | AI81: =IF(AI74=1000,0,IF(ResultsOneYear!$B14=1,1-(HLOOKUP(AI9,'LCA Vehicles'!$D180:$AH181,2,FALSE))/AI36,1)) -> 0 | AJ81: =IF(AJ74=1000,0,IF(ResultsOneYear!$B14=1,1-(HLOOKUP(AJ9,'LCA Vehicles'!$D180:$AH181,2,FALSE))/AJ36,1)) -> 0 | AK81: =IF(AK74=1000,0,IF(ResultsOneYear!$B14=1,1-(HLOOKUP(AK9,'LCA Vehicles'!$D180:$AH181,2,FALSE))/AK36,1)) -> 0.9486982036 | AL81: =IF(AL74=1000,0,IF(ResultsOneYear!$B14=1,1-(HLOOKUP(AL9,'LCA Vehicles'!$D180:$AH181,2,FALSE))/AL36,1)) -> 0 | AM81: =IF(AM74=1000,0,IF(ResultsOneYear!$B14=1,1-(HLOOKUP(AM9,'LCA Vehicles'!$D180:$AH181,2,FALSE))/AM36,1)) -> 0 | AN81: =IF(AN74=1000,0,IF(ResultsOneYear!$B14=1,1-(HLOOKUP(AN9,'LCA Vehicles'!$D180:$AH181,2,FALSE))/AN36,1)) -> 0 | AO81: =IF(AO74=1000,0,IF(ResultsOneYear!$B14=1,1-(HLOOKUP(AO9,'LCA Vehicles'!$D180:$AH181,2,FALSE))/AO36,1)) -> 0 | AP81: =IF(AP74=1000,0,IF(ResultsOneYear!$B14=1,1-(HLOOKUP(AP9,'LCA Vehicles'!$D180:$AH181,2,FALSE))/AP36,1)) -> 0 | AQ81: =IF(AQ74=1000,0,IF(ResultsOneYear!$B14=1,1-(HLOOKUP(AQ9,'LCA Vehicles'!$D180:$AH181,2,FALSE))/AQ36,1)) -> 0 | AR81: =IF(AR74=1000,0,IF(ResultsOneYear!$B14=1,1-(HLOOKUP(AR9,'LCA Vehicles'!$D180:$AH181,2,FALSE))/AR36,1)) -> 0 | AS81: =IF(AS74=1000,0,IF(ResultsOneYear!$B14=1,1-(HLOOKUP(AS9,'LCA Vehicles'!$D180:$AH181,2,FALSE))/AS36,1)) -> 0 | AT81: =IF(AT74=1000,0,IF(ResultsOneYear!$B14=1,1-(HLOOKUP(AT9,'LCA Vehicles'!$D180:$AH181,2,FALSE))/AT36,1)) -> 0 | AU81: =IF(AU74=1000,0,IF(ResultsOneYear!$B14=1,1-(HLOOKUP(AU9,'LCA Vehicles'!$D180:$AH181,2,FALSE))/AU36,1)) -> 0 | AV81: =IF(AV74=1000,0,IF(ResultsOneYear!$B14=1,1-(HLOOKUP(AV9,'LCA Vehicles'!$D180:$AH181,2,FALSE))/AV36,1)) -> 0 | AW81: =IF(AW74=1000,0,IF(ResultsOneYear!$B14=1,1-(HLOOKUP(AW9,'LCA Vehicles'!$D180:$AH181,2,FALSE))/AW36,1)) -> 0 | AX81: =IF(AX74=1000,0,IF(ResultsOneYear!$B14=1,1-(HLOOKUP(AX9,'LCA Vehicles'!$D180:$AH181,2,FALSE))/AX36,1)) -> 0 | AY81: =IF(AY74=1000,0,IF(ResultsOneYear!$B14=1,1-(HLOOKUP(AY9,'LCA Vehicles'!$D180:$AH181,2,FALSE))/AY36,1)) -> 0 | AZ81: =IF(AZ74=1000,0,IF(ResultsOneYear!$B14=1,1-(HLOOKUP(AZ9,'LCA Vehicles'!$D180:$AH181,2,FALSE))/AZ36,1)) -> 0
A82: =ROW('EU Std benzin personbil'!$A24) -> 24 | B82: =COLUMN('EU Std benzin personbil'!$D86)-1+chosenYear -> 4 | D82: Virkningsgrad sekundær motor | E82: MJ mek/MJ drivm. | F82: =IF(F74=1000,0,INDIRECT(ADDRESS($A82,$B82,,,F$9))) -> 0 | G82: 0 | H82: 0.177 | I82: 0.177 | J82: 0.177 | K82: 0 | L82: 0 | M82: 0 | N82: 0 | O82: 0 | P82: 0.734 | Q82: 0.734 | R82: 0 | S82: 0 | T82: 0.734 | U82: 0 | V82: =IF(V74=1000,0,INDIRECT(ADDRESS($A82,$B82,,,V$9))) -> 0 | W82: =IF(W74=1000,0,INDIRECT(ADDRESS($A82,$B82,,,W$9))) -> 0 | X82: =IF(X74=1000,0,INDIRECT(ADDRESS($A82,$B82,,,X$9))) -> 0 | Y82: =IF(Y74=1000,0,INDIRECT(ADDRESS($A82,$B82,,,Y$9))) -> 0 | Z82: =IF(Z74=1000,0,INDIRECT(ADDRESS($A82,$B82,,,Z$9))) -> 0 | AA82: 0 | AB82: 0 | AC82: 0 | AD82: 0 | AE82: 0.315 | AF82: 0 | AG82: 0 | AH82: 0 | AI82: 0 | AJ82: 0 | AK82: 0.09090909091 | AL82: 0 | AM82: 0 | AN82: 0 | AO82: 0 | AP82: 0 | AQ82: =IF(AQ74=1000,0,INDIRECT(ADDRESS($A82,$B82,,,AQ$9))) -> 0 | AR82: 0 | AS82: 0 | AT82: =IF(AT74=1000,0,INDIRECT(ADDRESS($A82,$B82,,,AT$9))) -> 0 | AU82: 0 | AV82: 0 | AW82: 0 | AX82: 0 | AY82: 0 | AZ82: 0
D84: Videresendt energi, primært drivmiddel
D85: =D65 -> Råstofudvinding - energieffektivitet | E85: % | F85: =OFFSET(Fuels!$E73,0,F$63) -> 0.8256885108 | G85: =OFFSET(Fuels!$E73,0,G$63) -> 0.8256885108 | H85: =OFFSET(Fuels!$E73,0,H$63) -> 0.9043465803 | I85: =OFFSET(Fuels!$E73,0,I$63) -> 0.9135448635 | J85: =OFFSET(Fuels!$E73,0,J$63) -> 0.9650423075 | K85: =OFFSET(Fuels!$E73,0,K$63) -> 0.8124985447 | L85: =OFFSET(Fuels!$E73,0,L$63) -> 0.9650423075 | M85: =OFFSET(Fuels!$E73,0,M$63) -> 0.9630753462 | N85: =OFFSET(Fuels!$E73,0,N$63) -> 0.8547008547 | O85: =OFFSET(Fuels!$E73,0,O$63) -> 1 | P85: =OFFSET(Fuels!$E73,0,P$63) -> 0.9630753462 | Q85: =OFFSET(Fuels!$E73,0,Q$63) -> 0.9490167132 | R85: =OFFSET(Fuels!$E73,0,R$63) -> 0.9490167132 | S85: =OFFSET(Fuels!$E73,0,S$63) -> 0.9490167132 | T85: =OFFSET(Fuels!$E73,0,T$63) -> 0.8256885108 | U85: =OFFSET(Fuels!$E73,0,U$63) -> 0.9490167132 | V85: =OFFSET(Fuels!$E73,0,V$63) -> 0.8256885108 | W85: =OFFSET(Fuels!$E73,0,W$63) -> 0.8547008547 | X85: =OFFSET(Fuels!$E73,0,X$63) -> 0.8256885108 | Y85: =OFFSET(Fuels!$E73,0,Y$63) -> 0.9490167132 | Z85: =OFFSET(Fuels!$E73,0,Z$63) -> 0.8256885108 | AA85: =OFFSET(Fuels!$E73,0,AA$63) -> 0.9650423075 | AB85: =OFFSET(Fuels!$E73,0,AB$63) -> 0.8256885108 | AC85: =OFFSET(Fuels!$E73,0,AC$63) -> 0.8256885108 | AD85: =OFFSET(Fuels!$E73,0,AD$63) -> 0.9650423075 | AE85: =OFFSET(Fuels!$E73,0,AE$63) -> 0.8547008547 | AF85: =OFFSET(Fuels!$E73,0,AF$63) -> 0.8256885108 | AG85: =OFFSET(Fuels!$E73,0,AG$63) -> 0.9650423075 | AH85: =OFFSET(Fuels!$E73,0,AH$63) -> 0.9490167132 | AI85: =OFFSET(Fuels!$E73,0,AI$63) -> 0.8256885108 | AJ85: =OFFSET(Fuels!$E73,0,AJ$63) -> 0.9650423075 | AK85: =OFFSET(Fuels!$E73,0,AK$63) -> 0.8547008547 | AL85: =OFFSET(Fuels!$E73,0,AL$63) -> 0.8256885108 | AM85: =OFFSET(Fuels!$E73,0,AM$63) -> 0.8124985447 | AN85: =OFFSET(Fuels!$E73,0,AN$63) -> 0.8547008547 | AO85: =OFFSET(Fuels!$E73,0,AO$63) -> 0.9630753462 | AP85: =OFFSET(Fuels!$E73,0,AP$63) -> 1 | AQ85: =OFFSET(Fuels!$E73,0,AQ$63) -> 0.7927354989 | AR85: =OFFSET(Fuels!$E73,0,AR$63) -> 0.8256885108 | AS85: =OFFSET(Fuels!$E73,0,AS$63) -> 0.8124985447 | AT85: =OFFSET(Fuels!$E73,0,AT$63) -> 0.7927354989 | AU85: =OFFSET(Fuels!$E73,0,AU$63) -> 0.8547008547 | AV85: =OFFSET(Fuels!$E73,0,AV$63) -> 1 | AW85: =OFFSET(Fuels!$E73,0,AW$63) -> 0.8256885108 | AX85: =OFFSET(Fuels!$E73,0,AX$63) -> 0.9490167132 | AY85: =OFFSET(Fuels!$E73,0,AY$63) -> 0.8256885108 | AZ85: =OFFSET(Fuels!$E73,0,AZ$63) -> 0.9650423075
D86: Råstofkonvertering - energieffektivitet | E86: % | F86: =OFFSET(Fuels!$E74,0,F$63) -> 0.4700502524 | G86: =OFFSET(Fuels!$E74,0,G$63) -> 0.3457037588 | H86: =OFFSET(Fuels!$E74,0,H$63) -> 0.5747126437 | I86: =OFFSET(Fuels!$E74,0,I$63) -> 0.5555555556 | J86: =OFFSET(Fuels!$E74,0,J$63) -> 0.4166666667 | K86: =OFFSET(Fuels!$E74,0,K$63) -> 0.6451612903 | L86: =OFFSET(Fuels!$E74,0,L$63) -> 0.3487875 | M86: =OFFSET(Fuels!$E74,0,M$63) -> 0.438 | N86: =OFFSET(Fuels!$E74,0,N$63) -> 1 | O86: =OFFSET(Fuels!$E74,0,O$63) -> 1.108365831 | P86: =OFFSET(Fuels!$E74,0,P$63) -> 0.4556760521 | Q86: =OFFSET(Fuels!$E74,0,Q$63) -> 0.9808282217 | R86: =OFFSET(Fuels!$E74,0,R$63) -> 0.9808282217 | S86: =OFFSET(Fuels!$E74,0,S$63) -> 0.9808282217 | T86: =OFFSET(Fuels!$E74,0,T$63) -> 0.3457037588 | U86: =OFFSET(Fuels!$E74,0,U$63) -> 0.9808282217 | V86: =OFFSET(Fuels!$E74,0,V$63) -> 0.3457037588 | W86: =OFFSET(Fuels!$E74,0,W$63) -> 1 | X86: =OFFSET(Fuels!$E74,0,X$63) -> 0.4700502524 | Y86: =OFFSET(Fuels!$E74,0,Y$63) -> 0.9808282217 | Z86: =OFFSET(Fuels!$E74,0,Z$63) -> 0.4700502524 | AA86: =OFFSET(Fuels!$E74,0,AA$63) -> 0.3487875 | AB86: =OFFSET(Fuels!$E74,0,AB$63) -> 0.1609932734 | AC86: =OFFSET(Fuels!$E74,0,AC$63) -> 0.4700502524 | AD86: =OFFSET(Fuels!$E74,0,AD$63) -> 0.3487875 | AE86: =OFFSET(Fuels!$E74,0,AE$63) -> 1 | AF86: =OFFSET(Fuels!$E74,0,AF$63) -> 0.4700502524 | AG86: =OFFSET(Fuels!$E74,0,AG$63) -> 0.3487875 | AH86: =OFFSET(Fuels!$E74,0,AH$63) -> 0.9808282217 | AI86: =OFFSET(Fuels!$E74,0,AI$63) -> 0.4700502524 | AJ86: =OFFSET(Fuels!$E74,0,AJ$63) -> 0.3487875 | AK86: =OFFSET(Fuels!$E74,0,AK$63) -> 1 | AL86: =OFFSET(Fuels!$E74,0,AL$63) -> 0.4700502524 | AM86: =OFFSET(Fuels!$E74,0,AM$63) -> 0.6451612903 | AN86: =OFFSET(Fuels!$E74,0,AN$63) -> 1 | AO86: =OFFSET(Fuels!$E74,0,AO$63) -> 0.438 | AP86: =OFFSET(Fuels!$E74,0,AP$63) -> 1.108365831 | AQ86: =OFFSET(Fuels!$E74,0,AQ$63) -> 0.9615384615 | AR86: =OFFSET(Fuels!$E74,0,AR$63) -> 0.4700502524 | AS86: =OFFSET(Fuels!$E74,0,AS$63) -> 0.6451612903 | AT86: =OFFSET(Fuels!$E74,0,AT$63) -> 0.9615384615 | AU86: =OFFSET(Fuels!$E74,0,AU$63) -> 1 | AV86: =OFFSET(Fuels!$E74,0,AV$63) -> 1.108365831 | AW86: =OFFSET(Fuels!$E74,0,AW$63) -> 0.4700502524 | AX86: =OFFSET(Fuels!$E74,0,AX$63) -> 0.9808282217 | AY86: =OFFSET(Fuels!$E74,0,AY$63) -> 0.009403731747 | AZ86: =OFFSET(Fuels!$E74,0,AZ$63) -> 0.2380952381
D87: Distributioneffektivitet - råstofkonv -> mellemkonv. | E87: % | F87: =OFFSET(Fuels!$E75,0,F$63) -> 1 | G87: =OFFSET(Fuels!$E75,0,G$63) -> 1 | H87: =OFFSET(Fuels!$E75,0,H$63) -> 1 | I87: =OFFSET(Fuels!$E75,0,I$63) -> 1 | J87: =OFFSET(Fuels!$E75,0,J$63) -> 1 | K87: =OFFSET(Fuels!$E75,0,K$63) -> 1 | L87: =OFFSET(Fuels!$E75,0,L$63) -> 1 | M87: =OFFSET(Fuels!$E75,0,M$63) -> 1 | N87: =OFFSET(Fuels!$E75,0,N$63) -> 1 | O87: =OFFSET(Fuels!$E75,0,O$63) -> 1 | P87: =OFFSET(Fuels!$E75,0,P$63) -> 1 | Q87: =OFFSET(Fuels!$E75,0,Q$63) -> 0.93 | R87: =OFFSET(Fuels!$E75,0,R$63) -> 0.93 | S87: =OFFSET(Fuels!$E75,0,S$63) -> 0.93 | T87: =OFFSET(Fuels!$E75,0,T$63) -> 1 | U87: =OFFSET(Fuels!$E75,0,U$63) -> 0.93 | V87: =OFFSET(Fuels!$E75,0,V$63) -> 1 | W87: =OFFSET(Fuels!$E75,0,W$63) -> 1 | X87: =OFFSET(Fuels!$E75,0,X$63) -> 1 | Y87: =OFFSET(Fuels!$E75,0,Y$63) -> 0.93 | Z87: =OFFSET(Fuels!$E75,0,Z$63) -> 1 | AA87: =OFFSET(Fuels!$E75,0,AA$63) -> 1 | AB87: =OFFSET(Fuels!$E75,0,AB$63) -> 1 | AC87: =OFFSET(Fuels!$E75,0,AC$63) -> 1 | AD87: =OFFSET(Fuels!$E75,0,AD$63) -> 1 | AE87: =OFFSET(Fuels!$E75,0,AE$63) -> 1 | AF87: =OFFSET(Fuels!$E75,0,AF$63) -> 1 | AG87: =OFFSET(Fuels!$E75,0,AG$63) -> 1 | AH87: =OFFSET(Fuels!$E75,0,AH$63) -> 0.93 | AI87: =OFFSET(Fuels!$E75,0,AI$63) -> 1 | AJ87: =OFFSET(Fuels!$E75,0,AJ$63) -> 1 | AK87: =OFFSET(Fuels!$E75,0,AK$63) -> 1 | AL87: =OFFSET(Fuels!$E75,0,AL$63) -> 1 | AM87: =OFFSET(Fuels!$E75,0,AM$63) -> 1 | AN87: =OFFSET(Fuels!$E75,0,AN$63) -> 1 | AO87: =OFFSET(Fuels!$E75,0,AO$63) -> 1 | AP87: =OFFSET(Fuels!$E75,0,AP$63) -> 1 | AQ87: =OFFSET(Fuels!$E75,0,AQ$63) -> 1 | AR87: =OFFSET(Fuels!$E75,0,AR$63) -> 1 | AS87: =OFFSET(Fuels!$E75,0,AS$63) -> 1 | AT87: =OFFSET(Fuels!$E75,0,AT$63) -> 1 | AU87: =OFFSET(Fuels!$E75,0,AU$63) -> 1 | AV87: =OFFSET(Fuels!$E75,0,AV$63) -> 1 | AW87: =OFFSET(Fuels!$E75,0,AW$63) -> 1 | AX87: =OFFSET(Fuels!$E75,0,AX$63) -> 0.93 | AY87: =OFFSET(Fuels!$E75,0,AY$63) -> 1 | AZ87: =OFFSET(Fuels!$E75,0,AZ$63) -> 1
